{"text_format":"3","workbook":"xlsx","n_sheets":10,"sheets":["Instructions","Cover sheet","Dates","A. Child data","B. Child dashboard","Child dash support","C. Parent data","Parent dash support","D. Parent dashboard","E. Main activities"],"not_rendered":{"charts":6,"macros":1,"defined_names":18},"read":"whole","date_system":"1900"}

{"sheet":"Instructions","index":0,"n_rows":76,"n_cols":4,"rows_kept":76}
{"$rows_empty":28}
[null,"Term","Definition","Applicable data tabs and column numbers"]
[null,"Child","Individuals who were age-eligible to be enrolled in Medicaid or Children’s Health Insurance Program (CHIP) children’s coverage when your organization assisted them. Upper age limits vary by state and range from 18 to 21 years."]
[{"$nulls":3},"A, all columns"]
[null,null,"Include pregnant women if they are age-eligible for Medicaid or CHIP children’s health coverage. Only include children who are not yet born if the state provides coverage to unborn children under CHIP."]
[]
[null,"Parent","Individuals who:"]
[null,null,"Were above the age limit for children’s Medicaid or CHIP in your state when your organization assisted them (age limits vary by state and range from 18 to 21 years)"]
[null,null,"AND","C, all colums"]
[null,null,"Were a parent or caretaker relative of a child who was within your state’s age limit for Medicaid or CHIP children’s coverage when your organization assisted them."]
[null,null,"Include pregnant women who already have other children as parents. Do not count pregnant women who are pregnant with their first child as parents."]
[null,"Insurance affordability program","CHIP, Medicaid, Qualified Health Plans with Premium Tax Credits sold via state-based or federally facilitated marketplaces, or a Basic Health Program (MinnesotaCare in Minnesota or the Essential Plan in New York).","C, all columns"]
[]
[null,"Applied as a direct result of project activities","Individuals who meet the following criteria:"]
[null,null,"They, or someone acting on their behalf, received substantial interactive assistance on or after January 1, 2019,"]
[null,null,"AND"]
[null,null,"They submitted (or someone submitted on their behalf) an application for health coverage to the state Medicaid or CHIP agency, to a state-based marketplace, or to the federally facilitated Marketplace between the first and last days of the current reporting month, after receiving substantial interactive assistance","A and C, columns 1 - 3"]
[null,null,"Do not count individuals in these data if you have reported or will be reporting them as applicants assisted under another funding source."]
[null,"New applications","Applications submitted by individuals who:"]
[null,null,"Applied for CHIP/Medicaid (for children) or for any insurance affordability program (for parents) as a result of your MACRA project activities","A and C, column 1"]
[null,null,"AND"]
[null,null,"Were not enrolled in Medicaid or CHIP (for children) or in any insurance affordability program (for parents) when they applied. "]
[null,"Renewal applications","Applications submitted by individuals who:"]
[null,null,"Applied for CHIP/Medicaid (for children) or for any insurance affordability program (for parents) as a result of your MACRA project activities"]
[null,null,"AND","A and C, column 2"]
[null,null,"Were already enrolled in Medicaid or CHIP (for children) or in any insurance affordability program (for parents) when they applied for coverage"]
[null,null,"AND"]
[null,null,"They did not benefit from an Ex Parte or automatic renewal."]
[null,"Substantial interactive assistance","Person-to-person assistance provided in person, by phone, or online, by a member of your organization or project partner, resulting from funding from the Centers for Medicare and Medicaid Services (CMS) under the Medicare Access and CHIP Reauthorization Act of 2015 (MACRA). This does not include sending mailings or emails or calling people with pre-recorded messages.","A and C, all columns"]
[null,null,"This definition of substantial interactive assistance is relevant to the definitions of applied as a direct result of project activities, enrolled as a direct result of project activities, and renewed as a direct result of project activities."]
[null,"Enrolled as a direct result of project activities","Individuals who meet the following criteria:"]
[null,null,"They, or someone acting on their behalf, received substantial interactive assistance on or after January 1, 2019,"]
[null,null,"AND"]
[null,null,"They were not already enrolled in Medicaid or CHIP (for children) or in any insurance affordability program (for parents) when they received substantial interactive assistance"]
[null,null,"AND"]
[null,null,"They were newly enrolled in Medicaid or CHIP (for children) or in any insurance affordability program (for parents) between January 1, 2019 and the last day of the current reporting month, after receiving substantial interactive assistance.","A and C, column 4, column 6"]
[null,null,"Only count full eligibility determinations: do not count individuals benefitting from ‘presumptive eligibility’ unless a full determination has subsequently been made."]
[null,null,"Enrollment data should be verified by state or county enrollment records. If you are unable to verify, explain in the data limitations note how you calculated new enrollments."]
[null,null,"Do not count individuals in these data if you have reported or will be reporting them as applicants enrolled under another funding source."]
[null,"Renewed as a direct result of  project activities","Individuals who meet the following criteria:"]
[null,null,"They, or someone acting on their behalf, received substantial interactive assistance on or after January 1, 2019,"]
[null,null,"AND"]
[null,null,"They were already enrolled in Medicaid or CHIP (for children) or in any insurance affordability program (for parents) when they received substantial interactive assistance"]
[null,null,"AND"]
[null,null,"They were renewed in Medicaid or CHIP (for children) or in any insurance affordability program (for parents) between January 1, 2019 and the last day of the current reporting month, after receiving substantial interactive assistance","A and C, column 5, column 6"]
[null,null,"AND"]
[null,null,"They did not benefit from an Ex Parte or automatic renewal."]
[null,null,"Renewals data should be verified by state or county enrollment records. If you are unable to verify, explain in the data limitations note how you calculated renewals."]
[null,null,"Do not count individuals in these data if you have reported or will be reporting them as renewed under another funding source."]

{"sheet":"Cover sheet","index":1,"n_rows":39,"n_cols":5,"rows_kept":39,"merged":[[22,2,22,4],[23,2,25,4],[26,2,27,4],[28,2,28,4],[38,2,57,5]]}
{"$rows_empty":7}
[null,null,"Connecting Kids to Coverage: Monthly Report"]
[]
[{"$nulls":3},"Complete the boxes below. Select from drop-down menu where applicable.","Notes"]
[null,null,"Grantee Name"]
[null,null,"Project Director "]
[null,null,"Target for new child enrollments (from grant application)"]
[null,null,"Target for child renewals (from grant application)"]
[null,null,"Target for child enrollments and renewals combined",{"$f":"IF(D13+D14=0,\"\",D13+D14)","v":""}]
[null,null,"Target for new parent enrollments (from grant application)"]
[null,null,"Target for parent renewals (from grant application)"]
[null,null,"Target for parent enrollments and renewals combined",{"$f":"IF(D16+D17=0,\"\",D16+D17)","v":""}]
[null,null,"Grant start month (drop-down)","2019-07-01"]
[null,null,"Grant end month (drop-down)","2022-06-01"]
[null,null,"Current Reporting Month (drop-down)","2019-08-01"]
[]
[]
[null,null,"Check this box if all applications, enrollments and renewals counted in this report resulted from assistance by staff 100% funded by your CKC grant. If they did not, please estimate the shares of applications, enrollments and renewals reported that are attributable to CKC funding, and explain how you arrived at this estimate, in the 'data limitations' fields on tabs A and B."]
[]
[]
[null,null,"Check this box if all applications, enrollments and renewals counted in this report are reported consistently with the data definitions on the instructions tab. If they are not, please explain how they differ in the 'data limitations' field on tabs A and B."]
[]
[null,null,"Check this box if all enrollments and renewals counted in this report were verified."]
{"$rows_empty":9}
[null,null,"PRA Disclosure Statement This information is being collected to assist the Centers for Medicare & Medicaid Services (CMS) with the data needed to reflect the aggregate goals and accomplishments for this cooperative agreement program. This mandatory information collection (42 U.S.C. 1396a) will be used to demonstrate the outcomes that result directly from this funding opportunity, and will also be used to help evaluate the success of outreach and enrollment strategies and identify areas that need improvement or mid-course corrections. This request does not collect personally identifiable information. Consequently, the Privacy Act of 1974 does not apply. According to the Paperwork Reduction Act of 1995, no persons are required to respond to a collection of information unless it displays a valid Office of Management and Budget (OMB) control number. The valid OMB control number for this information collection is 0938-1148 (CMS-10398 #7). Public burden for all of the collection of information requirements under this control number is estimated to range from 16 to 20 hours per response, including the time reviewing instructions, searching existing data sources, gathering and maintaining the data needed, and completing and reviewing the collection of information. Send comments regarding this burden estimate or any other aspect of this collection of information, including suggestions for reducing this burden, to CMS, 7500 Security Boulevard, Attn: Paperwork Reduction Act Reports Clearance Officer, Mail Stop C4-26-05, Baltimore, Maryland 21244-1850."]

{"sheet":"Dates","index":2,"n_rows":81,"n_cols":2,"rows_kept":81,"hidden":true}
[]
[]
[null,"2017-06-01"]
[null,"2017-07-01"]
[null,"2017-08-01"]
[null,"2017-09-01"]
[null,"2017-10-01"]
[null,"2017-11-01"]
[null,"2017-12-01"]
[null,"2018-01-01"]
[null,"2018-02-01"]
[null,"2018-03-01"]
[null,"2018-04-01"]
[null,"2018-05-01"]
[null,"2018-06-01"]
[null,"2018-07-01"]
[null,"2018-08-01"]
[null,"2018-09-01"]
[null,"2018-10-01"]
[null,"2018-11-01"]
[null,"2018-12-01"]
[null,"2019-01-01"]
[null,"2019-02-01"]
[null,"2019-03-01"]
[null,"2019-04-01"]
[null,"2019-05-01"]
[null,"2019-06-01"]
[null,"2019-07-01"]
[null,"2019-08-01"]
[null,"2019-09-01"]
[null,"2019-10-01"]
[null,"2019-11-01"]
[null,"2019-12-01"]
[null,"2020-01-01"]
[null,"2020-02-01"]
[null,"2020-03-01"]
[null,"2020-04-01"]
[null,"2020-05-01"]
[null,"2020-06-01"]
[null,"2020-07-01"]
[null,"2020-08-01"]
[null,"2020-09-01"]
[null,"2020-10-01"]
[null,"2020-11-01"]
[null,"2020-12-01"]
[null,"2021-01-01"]
[null,"2021-02-01"]
[null,"2021-03-01"]
[null,"2021-04-01"]
[null,"2021-05-01"]
[null,"2021-06-01"]
[null,"2021-07-01"]
[null,"2021-08-01"]
[null,"2021-09-01"]
[null,"2021-10-01"]
[null,"2021-11-01"]
[null,"2021-12-01"]
[null,"2022-01-01"]
[null,"2022-02-01"]
[null,"2022-03-01"]
[null,"2022-04-01"]
[null,"2022-05-01"]
[null,"2022-06-01"]
[null,"2022-07-01"]
[null,"2022-08-01"]
[null,"2022-09-01"]
[null,"2022-10-01"]
[null,"2022-11-01"]
[null,"2022-12-01"]
[null,"2023-01-01"]
[null,"2023-02-01"]
[null,"2023-03-01"]
[null,"2023-04-01"]
[null,"2023-05-01"]
[null,"2023-06-01"]
[null,"2023-07-01"]
[null,"2023-08-01"]
[null,"2023-09-01"]
[null,"2023-10-01"]
[null,"2023-11-01"]
[null,"2023-12-01"]

{"sheet":"A. Child data","index":3,"n_rows":73,"n_cols":19,"rows_kept":73,"merged":[[1,1,1,23],[3,1,5,23],[7,1,9,23],[11,18,26,23],[27,18,60,23]]}
[]
[null,"Please review the instructions tab, including data definitions, before completing this table. Then enter data in the row for the current reporting month, which you selected on the Cover Sheet and is shaded gray below. Enter data in the columns in order, starting with column 1."]
[]
[null,"Enter the number of children for whom a Medicaid/ CHIP application was submitted during the current reporting month, as a direct result of your CKC grant activities. If you can identify which children were already covered by Medicaid or CHIP when you provided them with substantial interactive assistance, enter data in columns  1 and 2; column 3 will calculate automatically. If you cannot identify which children were already covered, enter data in column 3, and leave columns 1 and 2 blank. If you completed no applications this month, enter 0 in columns 1 and 2."]
[]
[]
[]
[null,"Enter the number of children for whom a Medicaid/ CHIP new enrollment or renewal was verified , between the start of the grant and the end of the current reporting month, as a direct result of your CKC  grant activities. If you can identify which children were already covered by Medicaid or CHIP when you provided them with substantial interactive assistance, enter data in columns 4 and 5; column 6 will calculate automatically. If you cannot identify which children were already covered, enter data in column 6, and leave columns 4 and 5 blank. If you have verified no new enrollments or renewals to date, enter 0 in columns 4 and 5."]
[]
[]
[]
[null,"Month","1\nNumber of children for whom a new application was submitted during the month","2\nNumber of children for whom a renewal application was submitted during the month","3\nTotal: number of children applying this month","Child new apps for dashboard","Child renewal apps for dashboard","Child apps of unknown new/renewal status for dashboard","4\nNumber of children newly enrolled to date","5\nNumber of children renewed to date","6\nTotal: Number of children enrolled or renewed to date","Child new enrollments for dashboard","Child renewals for dashboard","Child enrollments of unknown status for dashboard","Target: New enrollments","Target: Renewals","Target: Total new enrollments and renewals",null,"Data limitations. Explain any limitations that may help us understand these data, such as reasons the data reported do not reflect the true number of applications submitted, or enrollments or renewals completed, that were funded by this grant."]
[null,null,0,0,{"$f":"IF(AND(ISBLANK(C13),ISBLANK(D13)),\"\",C13+D13)","v":0},{"$f":"IF(AND(Table1[[#This Row],[1\nNumber of children for whom a new application was submitted during the month]]=\"\", Table1[[#This Row],[2\nNumber of children for whom a renewal application was submitted during the month]]=\"\",Table1[[#This Row],[3\nTotal: number of children applying this month]]=\"\"),\"\", IF(Table1[[#This Row],[1\nNumber of children for whom a new application was submitted during the month]]=\"\",0,Table1[[#This Row],[1\nNumber of children for whom a new application was submitted during the month]]))","v":0},{"$f":"IF(AND(Table1[[#This Row],[1\nNumber of children for whom a new application was submitted during the month]]=\"\", Table1[[#This Row],[2\nNumber of children for whom a renewal application was submitted during the month]]=\"\", Table1[[#This Row],[3\nTotal: number of children applying this month]]=\"\"),\"\",IF(Table1[[#This Row],[2\nNumber of children for whom a renewal application was submitted during the month]]=\"\",0,Table1[[#This Row],[2\nNumber of children for whom a renewal application was submitted during the month]]))","v":0},{"$f":"IF(AND(Table1[[#This Row],[1\nNumber of children for whom a new application was submitted during the month]]=\"\", Table1[[#This Row],[2\nNumber of children for whom a renewal application was submitted during the month]]=\"\",Table1[[#This Row],[3\nTotal: number of children applying this month]]=\"\"),\"\",MAX(Table1[[#This Row],[3\nTotal: number of children applying this month]]-(Table1[[#This Row],[2\nNumber of children for whom a renewal application was submitted during the month]]+Table1[[#This Row],[1\nNumber of children for whom a new application was submitted during the month]]),0))","v":0},0,0,{"$f":"IF(AND(ISBLANK(I13),ISBLANK(J13)),\"\",I13+J13)","v":0},{"$f":"IF(AND(Table1[[#This Row],[4\nNumber of children newly enrolled to date]]=\"\", Table1[[#This Row],[5\nNumber of children renewed to date]]=\"\",Table1[[#This Row],[6\nTotal: Number of children enrolled or renewed to date]]=\"\"),\"\", IF(Table1[[#This Row],[4\nNumber of children newly enrolled to date]]=\"\",0,Table1[[#This Row],[4\nNumber of children newly enrolled to date]]))","v":0},{"$f":"IF(AND(Table1[[#This Row],[4\nNumber of children newly enrolled to date]]=\"\",Table1[[#This Row],[5\nNumber of children renewed to date]]=\"\", Table1[[#This Row],[6\nTotal: Number of children enrolled or renewed to date]]=\"\"),\"\", IF(Table1[[#This Row],[5\nNumber of children renewed to date]]=\"\",0,Table1[[#This Row],[5\nNumber of children renewed to date]]))","v":0},{"$f":"IF(AND(Table1[[#This Row],[4\nNumber of children newly enrolled to date]]=\"\",Table1[[#This Row],[5\nNumber of children renewed to date]]=\"\",Table1[[#This Row],[6\nTotal: Number of children enrolled or renewed to date]]=\"\"),\"\", MAX(Table1[[#This Row],[6\nTotal: Number of children enrolled or renewed to date]]-(Table1[[#This Row],[4\nNumber of children newly enrolled to date]]+Table1[[#This Row],[5\nNumber of children renewed to date]]),0))","v":0},{"$f":"'Cover sheet'!$D$13","v":0},{"$f":"'Cover sheet'!$D$14","v":0},{"$f":"'Cover sheet'!$D$15","v":""}]
[null,null,0,0,{"$f":"IF(AND(ISBLANK(C14),ISBLANK(D14)),\"\",C14+D14)","v":0},{"$f":"IF(AND(Table1[[#This Row],[1\nNumber of children for whom a new application was submitted during the month]]=\"\", Table1[[#This Row],[2\nNumber of children for whom a renewal application was submitted during the month]]=\"\",Table1[[#This Row],[3\nTotal: number of children applying this month]]=\"\"),\"\", IF(Table1[[#This Row],[1\nNumber of children for whom a new application was submitted during the month]]=\"\",0,Table1[[#This Row],[1\nNumber of children for whom a new application was submitted during the month]]))","v":0},{"$f":"IF(AND(Table1[[#This Row],[1\nNumber of children for whom a new application was submitted during the month]]=\"\", Table1[[#This Row],[2\nNumber of children for whom a renewal application was submitted during the month]]=\"\", Table1[[#This Row],[3\nTotal: number of children applying this month]]=\"\"),\"\",IF(Table1[[#This Row],[2\nNumber of children for whom a renewal application was submitted during the month]]=\"\",0,Table1[[#This Row],[2\nNumber of children for whom a renewal application was submitted during the month]]))","v":0},{"$f":"IF(AND(Table1[[#This Row],[1\nNumber of children for whom a new application was submitted during the month]]=\"\", Table1[[#This Row],[2\nNumber of children for whom a renewal application was submitted during the month]]=\"\",Table1[[#This Row],[3\nTotal: number of children applying this month]]=\"\"),\"\",MAX(Table1[[#This Row],[3\nTotal: number of children applying this month]]-(Table1[[#This Row],[2\nNumber of children for whom a renewal application was submitted during the month]]+Table1[[#This Row],[1\nNumber of children for whom a new application was submitted during the month]]),0))","v":0},0,0,{"$f":"IF(AND(ISBLANK(I14),ISBLANK(J14)),\"\",I14+J14)","v":0},{"$f":"IF(AND(Table1[[#This Row],[4\nNumber of children newly enrolled to date]]=\"\", Table1[[#This Row],[5\nNumber of children renewed to date]]=\"\",Table1[[#This Row],[6\nTotal: Number of children enrolled or renewed to date]]=\"\"),\"\", IF(Table1[[#This Row],[4\nNumber of children newly enrolled to date]]=\"\",0,Table1[[#This Row],[4\nNumber of children newly enrolled to date]]))","v":0},{"$f":"IF(AND(Table1[[#This Row],[4\nNumber of children newly enrolled to date]]=\"\",Table1[[#This Row],[5\nNumber of children renewed to date]]=\"\", Table1[[#This Row],[6\nTotal: Number of children enrolled or renewed to date]]=\"\"),\"\", IF(Table1[[#This Row],[5\nNumber of children renewed to date]]=\"\",0,Table1[[#This Row],[5\nNumber of children renewed to date]]))","v":0},{"$f":"IF(AND(Table1[[#This Row],[4\nNumber of children newly enrolled to date]]=\"\",Table1[[#This Row],[5\nNumber of children renewed to date]]=\"\",Table1[[#This Row],[6\nTotal: Number of children enrolled or renewed to date]]=\"\"),\"\", MAX(Table1[[#This Row],[6\nTotal: Number of children enrolled or renewed to date]]-(Table1[[#This Row],[4\nNumber of children newly enrolled to date]]+Table1[[#This Row],[5\nNumber of children renewed to date]]),0))","v":0},500,{"$f":"'Cover sheet'!$D$14","v":0},{"$f":"'Cover sheet'!$D$15","v":""}]
[null,null,0,0,0,{"$f":"IF(AND(Table1[[#This Row],[1\nNumber of children for whom a new application was submitted during the month]]=\"\", Table1[[#This Row],[2\nNumber of children for whom a renewal application was submitted during the month]]=\"\",Table1[[#This Row],[3\nTotal: number of children applying this month]]=\"\"),\"\", IF(Table1[[#This Row],[1\nNumber of children for whom a new application was submitted during the month]]=\"\",0,Table1[[#This Row],[1\nNumber of children for whom a new application was submitted during the month]]))","v":0},{"$f":"IF(AND(Table1[[#This Row],[1\nNumber of children for whom a new application was submitted during the month]]=\"\", Table1[[#This Row],[2\nNumber of children for whom a renewal application was submitted during the month]]=\"\", Table1[[#This Row],[3\nTotal: number of children applying this month]]=\"\"),\"\",IF(Table1[[#This Row],[2\nNumber of children for whom a renewal application was submitted during the month]]=\"\",0,Table1[[#This Row],[2\nNumber of children for whom a renewal application was submitted during the month]]))","v":0},{"$f":"IF(AND(Table1[[#This Row],[1\nNumber of children for whom a new application was submitted during the month]]=\"\", Table1[[#This Row],[2\nNumber of children for whom a renewal application was submitted during the month]]=\"\",Table1[[#This Row],[3\nTotal: number of children applying this month]]=\"\"),\"\",MAX(Table1[[#This Row],[3\nTotal: number of children applying this month]]-(Table1[[#This Row],[2\nNumber of children for whom a renewal application was submitted during the month]]+Table1[[#This Row],[1\nNumber of children for whom a new application was submitted during the month]]),0))","v":0},0,0,0,{"$f":"IF(AND(Table1[[#This Row],[4\nNumber of children newly enrolled to date]]=\"\", Table1[[#This Row],[5\nNumber of children renewed to date]]=\"\",Table1[[#This Row],[6\nTotal: Number of children enrolled or renewed to date]]=\"\"),\"\", IF(Table1[[#This Row],[4\nNumber of children newly enrolled to date]]=\"\",0,Table1[[#This Row],[4\nNumber of children newly enrolled to date]]))","v":0},{"$f":"IF(AND(Table1[[#This Row],[4\nNumber of children newly enrolled to date]]=\"\",Table1[[#This Row],[5\nNumber of children renewed to date]]=\"\", Table1[[#This Row],[6\nTotal: Number of children enrolled or renewed to date]]=\"\"),\"\", IF(Table1[[#This Row],[5\nNumber of children renewed to date]]=\"\",0,Table1[[#This Row],[5\nNumber of children renewed to date]]))","v":0},{"$f":"IF(AND(Table1[[#This Row],[4\nNumber of children newly enrolled to date]]=\"\",Table1[[#This Row],[5\nNumber of children renewed to date]]=\"\",Table1[[#This Row],[6\nTotal: Number of children enrolled or renewed to date]]=\"\"),\"\", MAX(Table1[[#This Row],[6\nTotal: Number of children enrolled or renewed to date]]-(Table1[[#This Row],[4\nNumber of children newly enrolled to date]]+Table1[[#This Row],[5\nNumber of children renewed to date]]),0))","v":0},500,{"$f":"'Cover sheet'!$D$14","v":0},{"$f":"'Cover sheet'!$D$15","v":""}]
[null,null,0,0,0,{"$f":"IF(AND(Table1[[#This Row],[1\nNumber of children for whom a new application was submitted during the month]]=\"\", Table1[[#This Row],[2\nNumber of children for whom a renewal application was submitted during the month]]=\"\",Table1[[#This Row],[3\nTotal: number of children applying this month]]=\"\"),\"\", IF(Table1[[#This Row],[1\nNumber of children for whom a new application was submitted during the month]]=\"\",0,Table1[[#This Row],[1\nNumber of children for whom a new application was submitted during the month]]))","v":0},{"$f":"IF(AND(Table1[[#This Row],[1\nNumber of children for whom a new application was submitted during the month]]=\"\", Table1[[#This Row],[2\nNumber of children for whom a renewal application was submitted during the month]]=\"\", Table1[[#This Row],[3\nTotal: number of children applying this month]]=\"\"),\"\",IF(Table1[[#This Row],[2\nNumber of children for whom a renewal application was submitted during the month]]=\"\",0,Table1[[#This Row],[2\nNumber of children for whom a renewal application was submitted during the month]]))","v":0},{"$f":"IF(AND(Table1[[#This Row],[1\nNumber of children for whom a new application was submitted during the month]]=\"\", Table1[[#This Row],[2\nNumber of children for whom a renewal application was submitted during the month]]=\"\",Table1[[#This Row],[3\nTotal: number of children applying this month]]=\"\"),\"\",MAX(Table1[[#This Row],[3\nTotal: number of children applying this month]]-(Table1[[#This Row],[2\nNumber of children for whom a renewal application was submitted during the month]]+Table1[[#This Row],[1\nNumber of children for whom a new application was submitted during the month]]),0))","v":0},0,0,0,{"$f":"IF(AND(Table1[[#This Row],[4\nNumber of children newly enrolled to date]]=\"\", Table1[[#This Row],[5\nNumber of children renewed to date]]=\"\",Table1[[#This Row],[6\nTotal: Number of children enrolled or renewed to date]]=\"\"),\"\", IF(Table1[[#This Row],[4\nNumber of children newly enrolled to date]]=\"\",0,Table1[[#This Row],[4\nNumber of children newly enrolled to date]]))","v":0},{"$f":"IF(AND(Table1[[#This Row],[4\nNumber of children newly enrolled to date]]=\"\",Table1[[#This Row],[5\nNumber of children renewed to date]]=\"\", Table1[[#This Row],[6\nTotal: Number of children enrolled or renewed to date]]=\"\"),\"\", IF(Table1[[#This Row],[5\nNumber of children renewed to date]]=\"\",0,Table1[[#This Row],[5\nNumber of children renewed to date]]))","v":0},{"$f":"IF(AND(Table1[[#This Row],[4\nNumber of children newly enrolled to date]]=\"\",Table1[[#This Row],[5\nNumber of children renewed to date]]=\"\",Table1[[#This Row],[6\nTotal: Number of children enrolled or renewed to date]]=\"\"),\"\", MAX(Table1[[#This Row],[6\nTotal: Number of children enrolled or renewed to date]]-(Table1[[#This Row],[4\nNumber of children newly enrolled to date]]+Table1[[#This Row],[5\nNumber of children renewed to date]]),0))","v":0},500,{"$f":"'Cover sheet'!$D$14","v":0},{"$f":"'Cover sheet'!$D$15","v":""}]
[null,null,0,0,0,{"$f":"IF(AND(Table1[[#This Row],[1\nNumber of children for whom a new application was submitted during the month]]=\"\", Table1[[#This Row],[2\nNumber of children for whom a renewal application was submitted during the month]]=\"\",Table1[[#This Row],[3\nTotal: number of children applying this month]]=\"\"),\"\", IF(Table1[[#This Row],[1\nNumber of children for whom a new application was submitted during the month]]=\"\",0,Table1[[#This Row],[1\nNumber of children for whom a new application was submitted during the month]]))","v":0},{"$f":"IF(AND(Table1[[#This Row],[1\nNumber of children for whom a new application was submitted during the month]]=\"\", Table1[[#This Row],[2\nNumber of children for whom a renewal application was submitted during the month]]=\"\", Table1[[#This Row],[3\nTotal: number of children applying this month]]=\"\"),\"\",IF(Table1[[#This Row],[2\nNumber of children for whom a renewal application was submitted during the month]]=\"\",0,Table1[[#This Row],[2\nNumber of children for whom a renewal application was submitted during the month]]))","v":0},{"$f":"IF(AND(Table1[[#This Row],[1\nNumber of children for whom a new application was submitted during the month]]=\"\", Table1[[#This Row],[2\nNumber of children for whom a renewal application was submitted during the month]]=\"\",Table1[[#This Row],[3\nTotal: number of children applying this month]]=\"\"),\"\",MAX(Table1[[#This Row],[3\nTotal: number of children applying this month]]-(Table1[[#This Row],[2\nNumber of children for whom a renewal application was submitted during the month]]+Table1[[#This Row],[1\nNumber of children for whom a new application was submitted during the month]]),0))","v":0},0,0,0,{"$f":"IF(AND(Table1[[#This Row],[4\nNumber of children newly enrolled to date]]=\"\", Table1[[#This Row],[5\nNumber of children renewed to date]]=\"\",Table1[[#This Row],[6\nTotal: Number of children enrolled or renewed to date]]=\"\"),\"\", IF(Table1[[#This Row],[4\nNumber of children newly enrolled to date]]=\"\",0,Table1[[#This Row],[4\nNumber of children newly enrolled to date]]))","v":0},{"$f":"IF(AND(Table1[[#This Row],[4\nNumber of children newly enrolled to date]]=\"\",Table1[[#This Row],[5\nNumber of children renewed to date]]=\"\", Table1[[#This Row],[6\nTotal: Number of children enrolled or renewed to date]]=\"\"),\"\", IF(Table1[[#This Row],[5\nNumber of children renewed to date]]=\"\",0,Table1[[#This Row],[5\nNumber of children renewed to date]]))","v":0},{"$f":"IF(AND(Table1[[#This Row],[4\nNumber of children newly enrolled to date]]=\"\",Table1[[#This Row],[5\nNumber of children renewed to date]]=\"\",Table1[[#This Row],[6\nTotal: Number of children enrolled or renewed to date]]=\"\"),\"\", MAX(Table1[[#This Row],[6\nTotal: Number of children enrolled or renewed to date]]-(Table1[[#This Row],[4\nNumber of children newly enrolled to date]]+Table1[[#This Row],[5\nNumber of children renewed to date]]),0))","v":0},500,{"$f":"'Cover sheet'!$D$14","v":0},{"$f":"'Cover sheet'!$D$15","v":""}]
[null,null,0,0,{"$f":"IF(AND(ISBLANK(C18),ISBLANK(D18)),\"\",C18+D18)","v":0},{"$f":"IF(AND(Table1[[#This Row],[1\nNumber of children for whom a new application was submitted during the month]]=\"\", Table1[[#This Row],[2\nNumber of children for whom a renewal application was submitted during the month]]=\"\",Table1[[#This Row],[3\nTotal: number of children applying this month]]=\"\"),\"\", IF(Table1[[#This Row],[1\nNumber of children for whom a new application was submitted during the month]]=\"\",0,Table1[[#This Row],[1\nNumber of children for whom a new application was submitted during the month]]))","v":0},{"$f":"IF(AND(Table1[[#This Row],[1\nNumber of children for whom a new application was submitted during the month]]=\"\", Table1[[#This Row],[2\nNumber of children for whom a renewal application was submitted during the month]]=\"\", Table1[[#This Row],[3\nTotal: number of children applying this month]]=\"\"),\"\",IF(Table1[[#This Row],[2\nNumber of children for whom a renewal application was submitted during the month]]=\"\",0,Table1[[#This Row],[2\nNumber of children for whom a renewal application was submitted during the month]]))","v":0},{"$f":"IF(AND(Table1[[#This Row],[1\nNumber of children for whom a new application was submitted during the month]]=\"\", Table1[[#This Row],[2\nNumber of children for whom a renewal application was submitted during the month]]=\"\",Table1[[#This Row],[3\nTotal: number of children applying this month]]=\"\"),\"\",MAX(Table1[[#This Row],[3\nTotal: number of children applying this month]]-(Table1[[#This Row],[2\nNumber of children for whom a renewal application was submitted during the month]]+Table1[[#This Row],[1\nNumber of children for whom a new application was submitted during the month]]),0))","v":0},0,0,{"$f":"IF(AND(ISBLANK(I18),ISBLANK(J18)),\"\",I18+J18)","v":0},{"$f":"IF(AND(Table1[[#This Row],[4\nNumber of children newly enrolled to date]]=\"\", Table1[[#This Row],[5\nNumber of children renewed to date]]=\"\",Table1[[#This Row],[6\nTotal: Number of children enrolled or renewed to date]]=\"\"),\"\", IF(Table1[[#This Row],[4\nNumber of children newly enrolled to date]]=\"\",0,Table1[[#This Row],[4\nNumber of children newly enrolled to date]]))","v":0},{"$f":"IF(AND(Table1[[#This Row],[4\nNumber of children newly enrolled to date]]=\"\",Table1[[#This Row],[5\nNumber of children renewed to date]]=\"\", Table1[[#This Row],[6\nTotal: Number of children enrolled or renewed to date]]=\"\"),\"\", IF(Table1[[#This Row],[5\nNumber of children renewed to date]]=\"\",0,Table1[[#This Row],[5\nNumber of children renewed to date]]))","v":0},{"$f":"IF(AND(Table1[[#This Row],[4\nNumber of children newly enrolled to date]]=\"\",Table1[[#This Row],[5\nNumber of children renewed to date]]=\"\",Table1[[#This Row],[6\nTotal: Number of children enrolled or renewed to date]]=\"\"),\"\", MAX(Table1[[#This Row],[6\nTotal: Number of children enrolled or renewed to date]]-(Table1[[#This Row],[4\nNumber of children newly enrolled to date]]+Table1[[#This Row],[5\nNumber of children renewed to date]]),0))","v":0},500,{"$f":"'Cover sheet'!$D$14","v":0},{"$f":"'Cover sheet'!$D$15","v":""}]
[null,null,0,0,0,{"$f":"IF(AND(Table1[[#This Row],[1\nNumber of children for whom a new application was submitted during the month]]=\"\", Table1[[#This Row],[2\nNumber of children for whom a renewal application was submitted during the month]]=\"\",Table1[[#This Row],[3\nTotal: number of children applying this month]]=\"\"),\"\", IF(Table1[[#This Row],[1\nNumber of children for whom a new application was submitted during the month]]=\"\",0,Table1[[#This Row],[1\nNumber of children for whom a new application was submitted during the month]]))","v":0},{"$f":"IF(AND(Table1[[#This Row],[1\nNumber of children for whom a new application was submitted during the month]]=\"\", Table1[[#This Row],[2\nNumber of children for whom a renewal application was submitted during the month]]=\"\", Table1[[#This Row],[3\nTotal: number of children applying this month]]=\"\"),\"\",IF(Table1[[#This Row],[2\nNumber of children for whom a renewal application was submitted during the month]]=\"\",0,Table1[[#This Row],[2\nNumber of children for whom a renewal application was submitted during the month]]))","v":0},{"$f":"IF(AND(Table1[[#This Row],[1\nNumber of children for whom a new application was submitted during the month]]=\"\", Table1[[#This Row],[2\nNumber of children for whom a renewal application was submitted during the month]]=\"\",Table1[[#This Row],[3\nTotal: number of children applying this month]]=\"\"),\"\",MAX(Table1[[#This Row],[3\nTotal: number of children applying this month]]-(Table1[[#This Row],[2\nNumber of children for whom a renewal application was submitted during the month]]+Table1[[#This Row],[1\nNumber of children for whom a new application was submitted during the month]]),0))","v":0},0,0,0,{"$f":"IF(AND(Table1[[#This Row],[4\nNumber of children newly enrolled to date]]=\"\", Table1[[#This Row],[5\nNumber of children renewed to date]]=\"\",Table1[[#This Row],[6\nTotal: Number of children enrolled or renewed to date]]=\"\"),\"\", IF(Table1[[#This Row],[4\nNumber of children newly enrolled to date]]=\"\",0,Table1[[#This Row],[4\nNumber of children newly enrolled to date]]))","v":0},{"$f":"IF(AND(Table1[[#This Row],[4\nNumber of children newly enrolled to date]]=\"\",Table1[[#This Row],[5\nNumber of children renewed to date]]=\"\", Table1[[#This Row],[6\nTotal: Number of children enrolled or renewed to date]]=\"\"),\"\", IF(Table1[[#This Row],[5\nNumber of children renewed to date]]=\"\",0,Table1[[#This Row],[5\nNumber of children renewed to date]]))","v":0},{"$f":"IF(AND(Table1[[#This Row],[4\nNumber of children newly enrolled to date]]=\"\",Table1[[#This Row],[5\nNumber of children renewed to date]]=\"\",Table1[[#This Row],[6\nTotal: Number of children enrolled or renewed to date]]=\"\"),\"\", MAX(Table1[[#This Row],[6\nTotal: Number of children enrolled or renewed to date]]-(Table1[[#This Row],[4\nNumber of children newly enrolled to date]]+Table1[[#This Row],[5\nNumber of children renewed to date]]),0))","v":0},500,{"$f":"'Cover sheet'!$D$14","v":0},{"$f":"'Cover sheet'!$D$15","v":""}]
[null,null,0,0,0,{"$f":"IF(AND(Table1[[#This Row],[1\nNumber of children for whom a new application was submitted during the month]]=\"\", Table1[[#This Row],[2\nNumber of children for whom a renewal application was submitted during the month]]=\"\",Table1[[#This Row],[3\nTotal: number of children applying this month]]=\"\"),\"\", IF(Table1[[#This Row],[1\nNumber of children for whom a new application was submitted during the month]]=\"\",0,Table1[[#This Row],[1\nNumber of children for whom a new application was submitted during the month]]))","v":0},{"$f":"IF(AND(Table1[[#This Row],[1\nNumber of children for whom a new application was submitted during the month]]=\"\", Table1[[#This Row],[2\nNumber of children for whom a renewal application was submitted during the month]]=\"\", Table1[[#This Row],[3\nTotal: number of children applying this month]]=\"\"),\"\",IF(Table1[[#This Row],[2\nNumber of children for whom a renewal application was submitted during the month]]=\"\",0,Table1[[#This Row],[2\nNumber of children for whom a renewal application was submitted during the month]]))","v":0},{"$f":"IF(AND(Table1[[#This Row],[1\nNumber of children for whom a new application was submitted during the month]]=\"\", Table1[[#This Row],[2\nNumber of children for whom a renewal application was submitted during the month]]=\"\",Table1[[#This Row],[3\nTotal: number of children applying this month]]=\"\"),\"\",MAX(Table1[[#This Row],[3\nTotal: number of children applying this month]]-(Table1[[#This Row],[2\nNumber of children for whom a renewal application was submitted during the month]]+Table1[[#This Row],[1\nNumber of children for whom a new application was submitted during the month]]),0))","v":0},0,0,0,{"$f":"IF(AND(Table1[[#This Row],[4\nNumber of children newly enrolled to date]]=\"\", Table1[[#This Row],[5\nNumber of children renewed to date]]=\"\",Table1[[#This Row],[6\nTotal: Number of children enrolled or renewed to date]]=\"\"),\"\", IF(Table1[[#This Row],[4\nNumber of children newly enrolled to date]]=\"\",0,Table1[[#This Row],[4\nNumber of children newly enrolled to date]]))","v":0},{"$f":"IF(AND(Table1[[#This Row],[4\nNumber of children newly enrolled to date]]=\"\",Table1[[#This Row],[5\nNumber of children renewed to date]]=\"\", Table1[[#This Row],[6\nTotal: Number of children enrolled or renewed to date]]=\"\"),\"\", IF(Table1[[#This Row],[5\nNumber of children renewed to date]]=\"\",0,Table1[[#This Row],[5\nNumber of children renewed to date]]))","v":0},{"$f":"IF(AND(Table1[[#This Row],[4\nNumber of children newly enrolled to date]]=\"\",Table1[[#This Row],[5\nNumber of children renewed to date]]=\"\",Table1[[#This Row],[6\nTotal: Number of children enrolled or renewed to date]]=\"\"),\"\", MAX(Table1[[#This Row],[6\nTotal: Number of children enrolled or renewed to date]]-(Table1[[#This Row],[4\nNumber of children newly enrolled to date]]+Table1[[#This Row],[5\nNumber of children renewed to date]]),0))","v":0},500,{"$f":"'Cover sheet'!$D$14","v":0},{"$f":"'Cover sheet'!$D$15","v":""}]
[null,null,0,0,0,{"$f":"IF(AND(Table1[[#This Row],[1\nNumber of children for whom a new application was submitted during the month]]=\"\", Table1[[#This Row],[2\nNumber of children for whom a renewal application was submitted during the month]]=\"\",Table1[[#This Row],[3\nTotal: number of children applying this month]]=\"\"),\"\", IF(Table1[[#This Row],[1\nNumber of children for whom a new application was submitted during the month]]=\"\",0,Table1[[#This Row],[1\nNumber of children for whom a new application was submitted during the month]]))","v":0},{"$f":"IF(AND(Table1[[#This Row],[1\nNumber of children for whom a new application was submitted during the month]]=\"\", Table1[[#This Row],[2\nNumber of children for whom a renewal application was submitted during the month]]=\"\", Table1[[#This Row],[3\nTotal: number of children applying this month]]=\"\"),\"\",IF(Table1[[#This Row],[2\nNumber of children for whom a renewal application was submitted during the month]]=\"\",0,Table1[[#This Row],[2\nNumber of children for whom a renewal application was submitted during the month]]))","v":0},{"$f":"IF(AND(Table1[[#This Row],[1\nNumber of children for whom a new application was submitted during the month]]=\"\", Table1[[#This Row],[2\nNumber of children for whom a renewal application was submitted during the month]]=\"\",Table1[[#This Row],[3\nTotal: number of children applying this month]]=\"\"),\"\",MAX(Table1[[#This Row],[3\nTotal: number of children applying this month]]-(Table1[[#This Row],[2\nNumber of children for whom a renewal application was submitted during the month]]+Table1[[#This Row],[1\nNumber of children for whom a new application was submitted during the month]]),0))","v":0},0,0,0,{"$f":"IF(AND(Table1[[#This Row],[4\nNumber of children newly enrolled to date]]=\"\", Table1[[#This Row],[5\nNumber of children renewed to date]]=\"\",Table1[[#This Row],[6\nTotal: Number of children enrolled or renewed to date]]=\"\"),\"\", IF(Table1[[#This Row],[4\nNumber of children newly enrolled to date]]=\"\",0,Table1[[#This Row],[4\nNumber of children newly enrolled to date]]))","v":0},{"$f":"IF(AND(Table1[[#This Row],[4\nNumber of children newly enrolled to date]]=\"\",Table1[[#This Row],[5\nNumber of children renewed to date]]=\"\", Table1[[#This Row],[6\nTotal: Number of children enrolled or renewed to date]]=\"\"),\"\", IF(Table1[[#This Row],[5\nNumber of children renewed to date]]=\"\",0,Table1[[#This Row],[5\nNumber of children renewed to date]]))","v":0},{"$f":"IF(AND(Table1[[#This Row],[4\nNumber of children newly enrolled to date]]=\"\",Table1[[#This Row],[5\nNumber of children renewed to date]]=\"\",Table1[[#This Row],[6\nTotal: Number of children enrolled or renewed to date]]=\"\"),\"\", MAX(Table1[[#This Row],[6\nTotal: Number of children enrolled or renewed to date]]-(Table1[[#This Row],[4\nNumber of children newly enrolled to date]]+Table1[[#This Row],[5\nNumber of children renewed to date]]),0))","v":0},500,{"$f":"'Cover sheet'!$D$14","v":0},{"$f":"'Cover sheet'!$D$15","v":""}]
[null,null,0,0,0,{"$f":"IF(AND(Table1[[#This Row],[1\nNumber of children for whom a new application was submitted during the month]]=\"\", Table1[[#This Row],[2\nNumber of children for whom a renewal application was submitted during the month]]=\"\",Table1[[#This Row],[3\nTotal: number of children applying this month]]=\"\"),\"\", IF(Table1[[#This Row],[1\nNumber of children for whom a new application was submitted during the month]]=\"\",0,Table1[[#This Row],[1\nNumber of children for whom a new application was submitted during the month]]))","v":0},{"$f":"IF(AND(Table1[[#This Row],[1\nNumber of children for whom a new application was submitted during the month]]=\"\", Table1[[#This Row],[2\nNumber of children for whom a renewal application was submitted during the month]]=\"\", Table1[[#This Row],[3\nTotal: number of children applying this month]]=\"\"),\"\",IF(Table1[[#This Row],[2\nNumber of children for whom a renewal application was submitted during the month]]=\"\",0,Table1[[#This Row],[2\nNumber of children for whom a renewal application was submitted during the month]]))","v":0},{"$f":"IF(AND(Table1[[#This Row],[1\nNumber of children for whom a new application was submitted during the month]]=\"\", Table1[[#This Row],[2\nNumber of children for whom a renewal application was submitted during the month]]=\"\",Table1[[#This Row],[3\nTotal: number of children applying this month]]=\"\"),\"\",MAX(Table1[[#This Row],[3\nTotal: number of children applying this month]]-(Table1[[#This Row],[2\nNumber of children for whom a renewal application was submitted during the month]]+Table1[[#This Row],[1\nNumber of children for whom a new application was submitted during the month]]),0))","v":0},0,0,0,{"$f":"IF(AND(Table1[[#This Row],[4\nNumber of children newly enrolled to date]]=\"\", Table1[[#This Row],[5\nNumber of children renewed to date]]=\"\",Table1[[#This Row],[6\nTotal: Number of children enrolled or renewed to date]]=\"\"),\"\", IF(Table1[[#This Row],[4\nNumber of children newly enrolled to date]]=\"\",0,Table1[[#This Row],[4\nNumber of children newly enrolled to date]]))","v":0},{"$f":"IF(AND(Table1[[#This Row],[4\nNumber of children newly enrolled to date]]=\"\",Table1[[#This Row],[5\nNumber of children renewed to date]]=\"\", Table1[[#This Row],[6\nTotal: Number of children enrolled or renewed to date]]=\"\"),\"\", IF(Table1[[#This Row],[5\nNumber of children renewed to date]]=\"\",0,Table1[[#This Row],[5\nNumber of children renewed to date]]))","v":0},{"$f":"IF(AND(Table1[[#This Row],[4\nNumber of children newly enrolled to date]]=\"\",Table1[[#This Row],[5\nNumber of children renewed to date]]=\"\",Table1[[#This Row],[6\nTotal: Number of children enrolled or renewed to date]]=\"\"),\"\", MAX(Table1[[#This Row],[6\nTotal: Number of children enrolled or renewed to date]]-(Table1[[#This Row],[4\nNumber of children newly enrolled to date]]+Table1[[#This Row],[5\nNumber of children renewed to date]]),0))","v":0},500,{"$f":"'Cover sheet'!$D$14","v":0},{"$f":"'Cover sheet'!$D$15","v":""}]
[null,null,0,0,0,{"$f":"IF(AND(Table1[[#This Row],[1\nNumber of children for whom a new application was submitted during the month]]=\"\", Table1[[#This Row],[2\nNumber of children for whom a renewal application was submitted during the month]]=\"\",Table1[[#This Row],[3\nTotal: number of children applying this month]]=\"\"),\"\", IF(Table1[[#This Row],[1\nNumber of children for whom a new application was submitted during the month]]=\"\",0,Table1[[#This Row],[1\nNumber of children for whom a new application was submitted during the month]]))","v":0},{"$f":"IF(AND(Table1[[#This Row],[1\nNumber of children for whom a new application was submitted during the month]]=\"\", Table1[[#This Row],[2\nNumber of children for whom a renewal application was submitted during the month]]=\"\", Table1[[#This Row],[3\nTotal: number of children applying this month]]=\"\"),\"\",IF(Table1[[#This Row],[2\nNumber of children for whom a renewal application was submitted during the month]]=\"\",0,Table1[[#This Row],[2\nNumber of children for whom a renewal application was submitted during the month]]))","v":0},{"$f":"IF(AND(Table1[[#This Row],[1\nNumber of children for whom a new application was submitted during the month]]=\"\", Table1[[#This Row],[2\nNumber of children for whom a renewal application was submitted during the month]]=\"\",Table1[[#This Row],[3\nTotal: number of children applying this month]]=\"\"),\"\",MAX(Table1[[#This Row],[3\nTotal: number of children applying this month]]-(Table1[[#This Row],[2\nNumber of children for whom a renewal application was submitted during the month]]+Table1[[#This Row],[1\nNumber of children for whom a new application was submitted during the month]]),0))","v":0},0,0,0,{"$f":"IF(AND(Table1[[#This Row],[4\nNumber of children newly enrolled to date]]=\"\", Table1[[#This Row],[5\nNumber of children renewed to date]]=\"\",Table1[[#This Row],[6\nTotal: Number of children enrolled or renewed to date]]=\"\"),\"\", IF(Table1[[#This Row],[4\nNumber of children newly enrolled to date]]=\"\",0,Table1[[#This Row],[4\nNumber of children newly enrolled to date]]))","v":0},{"$f":"IF(AND(Table1[[#This Row],[4\nNumber of children newly enrolled to date]]=\"\",Table1[[#This Row],[5\nNumber of children renewed to date]]=\"\", Table1[[#This Row],[6\nTotal: Number of children enrolled or renewed to date]]=\"\"),\"\", IF(Table1[[#This Row],[5\nNumber of children renewed to date]]=\"\",0,Table1[[#This Row],[5\nNumber of children renewed to date]]))","v":0},{"$f":"IF(AND(Table1[[#This Row],[4\nNumber of children newly enrolled to date]]=\"\",Table1[[#This Row],[5\nNumber of children renewed to date]]=\"\",Table1[[#This Row],[6\nTotal: Number of children enrolled or renewed to date]]=\"\"),\"\", MAX(Table1[[#This Row],[6\nTotal: Number of children enrolled or renewed to date]]-(Table1[[#This Row],[4\nNumber of children newly enrolled to date]]+Table1[[#This Row],[5\nNumber of children renewed to date]]),0))","v":0},500,{"$f":"'Cover sheet'!$D$14","v":0},{"$f":"'Cover sheet'!$D$15","v":""}]
[null,null,0,0,0,{"$f":"IF(AND(Table1[[#This Row],[1\nNumber of children for whom a new application was submitted during the month]]=\"\", Table1[[#This Row],[2\nNumber of children for whom a renewal application was submitted during the month]]=\"\",Table1[[#This Row],[3\nTotal: number of children applying this month]]=\"\"),\"\", IF(Table1[[#This Row],[1\nNumber of children for whom a new application was submitted during the month]]=\"\",0,Table1[[#This Row],[1\nNumber of children for whom a new application was submitted during the month]]))","v":0},{"$f":"IF(AND(Table1[[#This Row],[1\nNumber of children for whom a new application was submitted during the month]]=\"\", Table1[[#This Row],[2\nNumber of children for whom a renewal application was submitted during the month]]=\"\", Table1[[#This Row],[3\nTotal: number of children applying this month]]=\"\"),\"\",IF(Table1[[#This Row],[2\nNumber of children for whom a renewal application was submitted during the month]]=\"\",0,Table1[[#This Row],[2\nNumber of children for whom a renewal application was submitted during the month]]))","v":0},{"$f":"IF(AND(Table1[[#This Row],[1\nNumber of children for whom a new application was submitted during the month]]=\"\", Table1[[#This Row],[2\nNumber of children for whom a renewal application was submitted during the month]]=\"\",Table1[[#This Row],[3\nTotal: number of children applying this month]]=\"\"),\"\",MAX(Table1[[#This Row],[3\nTotal: number of children applying this month]]-(Table1[[#This Row],[2\nNumber of children for whom a renewal application was submitted during the month]]+Table1[[#This Row],[1\nNumber of children for whom a new application was submitted during the month]]),0))","v":0},0,0,0,{"$f":"IF(AND(Table1[[#This Row],[4\nNumber of children newly enrolled to date]]=\"\", Table1[[#This Row],[5\nNumber of children renewed to date]]=\"\",Table1[[#This Row],[6\nTotal: Number of children enrolled or renewed to date]]=\"\"),\"\", IF(Table1[[#This Row],[4\nNumber of children newly enrolled to date]]=\"\",0,Table1[[#This Row],[4\nNumber of children newly enrolled to date]]))","v":0},{"$f":"IF(AND(Table1[[#This Row],[4\nNumber of children newly enrolled to date]]=\"\",Table1[[#This Row],[5\nNumber of children renewed to date]]=\"\", Table1[[#This Row],[6\nTotal: Number of children enrolled or renewed to date]]=\"\"),\"\", IF(Table1[[#This Row],[5\nNumber of children renewed to date]]=\"\",0,Table1[[#This Row],[5\nNumber of children renewed to date]]))","v":0},{"$f":"IF(AND(Table1[[#This Row],[4\nNumber of children newly enrolled to date]]=\"\",Table1[[#This Row],[5\nNumber of children renewed to date]]=\"\",Table1[[#This Row],[6\nTotal: Number of children enrolled or renewed to date]]=\"\"),\"\", MAX(Table1[[#This Row],[6\nTotal: Number of children enrolled or renewed to date]]-(Table1[[#This Row],[4\nNumber of children newly enrolled to date]]+Table1[[#This Row],[5\nNumber of children renewed to date]]),0))","v":0},500,{"$f":"'Cover sheet'!$D$14","v":0},{"$f":"'Cover sheet'!$D$15","v":""}]
[null,null,0,0,0,{"$f":"IF(AND(Table1[[#This Row],[1\nNumber of children for whom a new application was submitted during the month]]=\"\", Table1[[#This Row],[2\nNumber of children for whom a renewal application was submitted during the month]]=\"\",Table1[[#This Row],[3\nTotal: number of children applying this month]]=\"\"),\"\", IF(Table1[[#This Row],[1\nNumber of children for whom a new application was submitted during the month]]=\"\",0,Table1[[#This Row],[1\nNumber of children for whom a new application was submitted during the month]]))","v":0},{"$f":"IF(AND(Table1[[#This Row],[1\nNumber of children for whom a new application was submitted during the month]]=\"\", Table1[[#This Row],[2\nNumber of children for whom a renewal application was submitted during the month]]=\"\", Table1[[#This Row],[3\nTotal: number of children applying this month]]=\"\"),\"\",IF(Table1[[#This Row],[2\nNumber of children for whom a renewal application was submitted during the month]]=\"\",0,Table1[[#This Row],[2\nNumber of children for whom a renewal application was submitted during the month]]))","v":0},{"$f":"IF(AND(Table1[[#This Row],[1\nNumber of children for whom a new application was submitted during the month]]=\"\", Table1[[#This Row],[2\nNumber of children for whom a renewal application was submitted during the month]]=\"\",Table1[[#This Row],[3\nTotal: number of children applying this month]]=\"\"),\"\",MAX(Table1[[#This Row],[3\nTotal: number of children applying this month]]-(Table1[[#This Row],[2\nNumber of children for whom a renewal application was submitted during the month]]+Table1[[#This Row],[1\nNumber of children for whom a new application was submitted during the month]]),0))","v":0},0,0,0,{"$f":"IF(AND(Table1[[#This Row],[4\nNumber of children newly enrolled to date]]=\"\", Table1[[#This Row],[5\nNumber of children renewed to date]]=\"\",Table1[[#This Row],[6\nTotal: Number of children enrolled or renewed to date]]=\"\"),\"\", IF(Table1[[#This Row],[4\nNumber of children newly enrolled to date]]=\"\",0,Table1[[#This Row],[4\nNumber of children newly enrolled to date]]))","v":0},{"$f":"IF(AND(Table1[[#This Row],[4\nNumber of children newly enrolled to date]]=\"\",Table1[[#This Row],[5\nNumber of children renewed to date]]=\"\", Table1[[#This Row],[6\nTotal: Number of children enrolled or renewed to date]]=\"\"),\"\", IF(Table1[[#This Row],[5\nNumber of children renewed to date]]=\"\",0,Table1[[#This Row],[5\nNumber of children renewed to date]]))","v":0},{"$f":"IF(AND(Table1[[#This Row],[4\nNumber of children newly enrolled to date]]=\"\",Table1[[#This Row],[5\nNumber of children renewed to date]]=\"\",Table1[[#This Row],[6\nTotal: Number of children enrolled or renewed to date]]=\"\"),\"\", MAX(Table1[[#This Row],[6\nTotal: Number of children enrolled or renewed to date]]-(Table1[[#This Row],[4\nNumber of children newly enrolled to date]]+Table1[[#This Row],[5\nNumber of children renewed to date]]),0))","v":0},500,{"$f":"'Cover sheet'!$D$14","v":0},{"$f":"'Cover sheet'!$D$15","v":""}]
[null,{"$f":"'Cover sheet'!D19","v":"2019-07-01"},null,null,{"$f":"IF(AND(ISBLANK(C26),ISBLANK(D26)),\"\",C26+D26)","v":""},{"$f":"IF(AND(Table1[[#This Row],[1\nNumber of children for whom a new application was submitted during the month]]=\"\", Table1[[#This Row],[2\nNumber of children for whom a renewal application was submitted during the month]]=\"\",Table1[[#This Row],[3\nTotal: number of children applying this month]]=\"\"),\"\", IF(Table1[[#This Row],[1\nNumber of children for whom a new application was submitted during the month]]=\"\",0,Table1[[#This Row],[1\nNumber of children for whom a new application was submitted during the month]]))","v":""},{"$f":"IF(AND(Table1[[#This Row],[1\nNumber of children for whom a new application was submitted during the month]]=\"\", Table1[[#This Row],[2\nNumber of children for whom a renewal application was submitted during the month]]=\"\", Table1[[#This Row],[3\nTotal: number of children applying this month]]=\"\"),\"\",IF(Table1[[#This Row],[2\nNumber of children for whom a renewal application was submitted during the month]]=\"\",0,Table1[[#This Row],[2\nNumber of children for whom a renewal application was submitted during the month]]))","v":""},{"$f":"IF(AND(Table1[[#This Row],[1\nNumber of children for whom a new application was submitted during the month]]=\"\", Table1[[#This Row],[2\nNumber of children for whom a renewal application was submitted during the month]]=\"\",Table1[[#This Row],[3\nTotal: number of children applying this month]]=\"\"),\"\",MAX(Table1[[#This Row],[3\nTotal: number of children applying this month]]-(Table1[[#This Row],[2\nNumber of children for whom a renewal application was submitted during the month]]+Table1[[#This Row],[1\nNumber of children for whom a new application was submitted during the month]]),0))","v":""},null,null,"",{"$f":"IF(AND(Table1[[#This Row],[4\nNumber of children newly enrolled to date]]=\"\", Table1[[#This Row],[5\nNumber of children renewed to date]]=\"\",Table1[[#This Row],[6\nTotal: Number of children enrolled or renewed to date]]=\"\"),\"\", IF(Table1[[#This Row],[4\nNumber of children newly enrolled to date]]=\"\",0,Table1[[#This Row],[4\nNumber of children newly enrolled to date]]))","v":""},{"$f":"IF(AND(Table1[[#This Row],[4\nNumber of children newly enrolled to date]]=\"\",Table1[[#This Row],[5\nNumber of children renewed to date]]=\"\", Table1[[#This Row],[6\nTotal: Number of children enrolled or renewed to date]]=\"\"),\"\", IF(Table1[[#This Row],[5\nNumber of children renewed to date]]=\"\",0,Table1[[#This Row],[5\nNumber of children renewed to date]]))","v":""},{"$f":"IF(AND(Table1[[#This Row],[4\nNumber of children newly enrolled to date]]=\"\",Table1[[#This Row],[5\nNumber of children renewed to date]]=\"\",Table1[[#This Row],[6\nTotal: Number of children enrolled or renewed to date]]=\"\"),\"\", MAX(Table1[[#This Row],[6\nTotal: Number of children enrolled or renewed to date]]-(Table1[[#This Row],[4\nNumber of children newly enrolled to date]]+Table1[[#This Row],[5\nNumber of children renewed to date]]),0))","v":""},{"$f":"'Cover sheet'!$D$13","v":0},{"$f":"'Cover sheet'!$D$14","v":0},{"$f":"'Cover sheet'!$D$15","v":""}]
[null,{"$f":"EDATE(B26,1)","v":"2019-08-01"},null,null,"",{"$f":"IF(AND(Table1[[#This Row],[1\nNumber of children for whom a new application was submitted during the month]]=\"\", Table1[[#This Row],[2\nNumber of children for whom a renewal application was submitted during the month]]=\"\",Table1[[#This Row],[3\nTotal: number of children applying this month]]=\"\"),\"\", IF(Table1[[#This Row],[1\nNumber of children for whom a new application was submitted during the month]]=\"\",0,Table1[[#This Row],[1\nNumber of children for whom a new application was submitted during the month]]))","v":""},{"$f":"IF(AND(Table1[[#This Row],[1\nNumber of children for whom a new application was submitted during the month]]=\"\", Table1[[#This Row],[2\nNumber of children for whom a renewal application was submitted during the month]]=\"\", Table1[[#This Row],[3\nTotal: number of children applying this month]]=\"\"),\"\",IF(Table1[[#This Row],[2\nNumber of children for whom a renewal application was submitted during the month]]=\"\",0,Table1[[#This Row],[2\nNumber of children for whom a renewal application was submitted during the month]]))","v":""},{"$f":"IF(AND(Table1[[#This Row],[1\nNumber of children for whom a new application was submitted during the month]]=\"\", Table1[[#This Row],[2\nNumber of children for whom a renewal application was submitted during the month]]=\"\",Table1[[#This Row],[3\nTotal: number of children applying this month]]=\"\"),\"\",MAX(Table1[[#This Row],[3\nTotal: number of children applying this month]]-(Table1[[#This Row],[2\nNumber of children for whom a renewal application was submitted during the month]]+Table1[[#This Row],[1\nNumber of children for whom a new application was submitted during the month]]),0))","v":""},null,null,{"$f":"IF(AND(ISBLANK(I27),ISBLANK(J27)),\"\",I27+J27)","v":""},{"$f":"IF(AND(Table1[[#This Row],[4\nNumber of children newly enrolled to date]]=\"\", Table1[[#This Row],[5\nNumber of children renewed to date]]=\"\",Table1[[#This Row],[6\nTotal: Number of children enrolled or renewed to date]]=\"\"),\"\", IF(Table1[[#This Row],[4\nNumber of children newly enrolled to date]]=\"\",0,Table1[[#This Row],[4\nNumber of children newly enrolled to date]]))","v":""},{"$f":"IF(AND(Table1[[#This Row],[4\nNumber of children newly enrolled to date]]=\"\",Table1[[#This Row],[5\nNumber of children renewed to date]]=\"\", Table1[[#This Row],[6\nTotal: Number of children enrolled or renewed to date]]=\"\"),\"\", IF(Table1[[#This Row],[5\nNumber of children renewed to date]]=\"\",0,Table1[[#This Row],[5\nNumber of children renewed to date]]))","v":""},{"$f":"IF(AND(Table1[[#This Row],[4\nNumber of children newly enrolled to date]]=\"\",Table1[[#This Row],[5\nNumber of children renewed to date]]=\"\",Table1[[#This Row],[6\nTotal: Number of children enrolled or renewed to date]]=\"\"),\"\", MAX(Table1[[#This Row],[6\nTotal: Number of children enrolled or renewed to date]]-(Table1[[#This Row],[4\nNumber of children newly enrolled to date]]+Table1[[#This Row],[5\nNumber of children renewed to date]]),0))","v":""},{"$f":"'Cover sheet'!$D$13","v":0},{"$f":"'Cover sheet'!$D$14","v":0},{"$f":"'Cover sheet'!$D$15","v":""}]
[null,{"$f":"EDATE(B27,1)","v":"2019-09-01"},null,null,"",{"$f":"IF(AND(Table1[[#This Row],[1\nNumber of children for whom a new application was submitted during the month]]=\"\", Table1[[#This Row],[2\nNumber of children for whom a renewal application was submitted during the month]]=\"\",Table1[[#This Row],[3\nTotal: number of children applying this month]]=\"\"),\"\", IF(Table1[[#This Row],[1\nNumber of children for whom a new application was submitted during the month]]=\"\",0,Table1[[#This Row],[1\nNumber of children for whom a new application was submitted during the month]]))","v":""},{"$f":"IF(AND(Table1[[#This Row],[1\nNumber of children for whom a new application was submitted during the month]]=\"\", Table1[[#This Row],[2\nNumber of children for whom a renewal application was submitted during the month]]=\"\", Table1[[#This Row],[3\nTotal: number of children applying this month]]=\"\"),\"\",IF(Table1[[#This Row],[2\nNumber of children for whom a renewal application was submitted during the month]]=\"\",0,Table1[[#This Row],[2\nNumber of children for whom a renewal application was submitted during the month]]))","v":""},{"$f":"IF(AND(Table1[[#This Row],[1\nNumber of children for whom a new application was submitted during the month]]=\"\", Table1[[#This Row],[2\nNumber of children for whom a renewal application was submitted during the month]]=\"\",Table1[[#This Row],[3\nTotal: number of children applying this month]]=\"\"),\"\",MAX(Table1[[#This Row],[3\nTotal: number of children applying this month]]-(Table1[[#This Row],[2\nNumber of children for whom a renewal application was submitted during the month]]+Table1[[#This Row],[1\nNumber of children for whom a new application was submitted during the month]]),0))","v":""},null,null,"",{"$f":"IF(AND(Table1[[#This Row],[4\nNumber of children newly enrolled to date]]=\"\", Table1[[#This Row],[5\nNumber of children renewed to date]]=\"\",Table1[[#This Row],[6\nTotal: Number of children enrolled or renewed to date]]=\"\"),\"\", IF(Table1[[#This Row],[4\nNumber of children newly enrolled to date]]=\"\",0,Table1[[#This Row],[4\nNumber of children newly enrolled to date]]))","v":""},{"$f":"IF(AND(Table1[[#This Row],[4\nNumber of children newly enrolled to date]]=\"\",Table1[[#This Row],[5\nNumber of children renewed to date]]=\"\", Table1[[#This Row],[6\nTotal: Number of children enrolled or renewed to date]]=\"\"),\"\", IF(Table1[[#This Row],[5\nNumber of children renewed to date]]=\"\",0,Table1[[#This Row],[5\nNumber of children renewed to date]]))","v":""},{"$f":"IF(AND(Table1[[#This Row],[4\nNumber of children newly enrolled to date]]=\"\",Table1[[#This Row],[5\nNumber of children renewed to date]]=\"\",Table1[[#This Row],[6\nTotal: Number of children enrolled or renewed to date]]=\"\"),\"\", MAX(Table1[[#This Row],[6\nTotal: Number of children enrolled or renewed to date]]-(Table1[[#This Row],[4\nNumber of children newly enrolled to date]]+Table1[[#This Row],[5\nNumber of children renewed to date]]),0))","v":""},{"$f":"'Cover sheet'!$D$13","v":0},{"$f":"'Cover sheet'!$D$14","v":0},{"$f":"'Cover sheet'!$D$15","v":""},null,"Type here"]
[null,"2019-10-01",null,null,"",{"$f":"IF(AND(Table1[[#This Row],[1\nNumber of children for whom a new application was submitted during the month]]=\"\", Table1[[#This Row],[2\nNumber of children for whom a renewal application was submitted during the month]]=\"\",Table1[[#This Row],[3\nTotal: number of children applying this month]]=\"\"),\"\", IF(Table1[[#This Row],[1\nNumber of children for whom a new application was submitted during the month]]=\"\",0,Table1[[#This Row],[1\nNumber of children for whom a new application was submitted during the month]]))","v":""},{"$f":"IF(AND(Table1[[#This Row],[1\nNumber of children for whom a new application was submitted during the month]]=\"\", Table1[[#This Row],[2\nNumber of children for whom a renewal application was submitted during the month]]=\"\", Table1[[#This Row],[3\nTotal: number of children applying this month]]=\"\"),\"\",IF(Table1[[#This Row],[2\nNumber of children for whom a renewal application was submitted during the month]]=\"\",0,Table1[[#This Row],[2\nNumber of children for whom a renewal application was submitted during the month]]))","v":""},{"$f":"IF(AND(Table1[[#This Row],[1\nNumber of children for whom a new application was submitted during the month]]=\"\", Table1[[#This Row],[2\nNumber of children for whom a renewal application was submitted during the month]]=\"\",Table1[[#This Row],[3\nTotal: number of children applying this month]]=\"\"),\"\",MAX(Table1[[#This Row],[3\nTotal: number of children applying this month]]-(Table1[[#This Row],[2\nNumber of children for whom a renewal application was submitted during the month]]+Table1[[#This Row],[1\nNumber of children for whom a new application was submitted during the month]]),0))","v":""},null,null,"",{"$f":"IF(AND(Table1[[#This Row],[4\nNumber of children newly enrolled to date]]=\"\", Table1[[#This Row],[5\nNumber of children renewed to date]]=\"\",Table1[[#This Row],[6\nTotal: Number of children enrolled or renewed to date]]=\"\"),\"\", IF(Table1[[#This Row],[4\nNumber of children newly enrolled to date]]=\"\",0,Table1[[#This Row],[4\nNumber of children newly enrolled to date]]))","v":""},{"$f":"IF(AND(Table1[[#This Row],[4\nNumber of children newly enrolled to date]]=\"\",Table1[[#This Row],[5\nNumber of children renewed to date]]=\"\", Table1[[#This Row],[6\nTotal: Number of children enrolled or renewed to date]]=\"\"),\"\", IF(Table1[[#This Row],[5\nNumber of children renewed to date]]=\"\",0,Table1[[#This Row],[5\nNumber of children renewed to date]]))","v":""},{"$f":"IF(AND(Table1[[#This Row],[4\nNumber of children newly enrolled to date]]=\"\",Table1[[#This Row],[5\nNumber of children renewed to date]]=\"\",Table1[[#This Row],[6\nTotal: Number of children enrolled or renewed to date]]=\"\"),\"\", MAX(Table1[[#This Row],[6\nTotal: Number of children enrolled or renewed to date]]-(Table1[[#This Row],[4\nNumber of children newly enrolled to date]]+Table1[[#This Row],[5\nNumber of children renewed to date]]),0))","v":""},{"$f":"'Cover sheet'!$D$13","v":0},{"$f":"'Cover sheet'!$D$14","v":0},{"$f":"'Cover sheet'!$D$15","v":""}]
[null,"2019-11-01",null,null,"",{"$f":"IF(AND(Table1[[#This Row],[1\nNumber of children for whom a new application was submitted during the month]]=\"\", Table1[[#This Row],[2\nNumber of children for whom a renewal application was submitted during the month]]=\"\",Table1[[#This Row],[3\nTotal: number of children applying this month]]=\"\"),\"\", IF(Table1[[#This Row],[1\nNumber of children for whom a new application was submitted during the month]]=\"\",0,Table1[[#This Row],[1\nNumber of children for whom a new application was submitted during the month]]))","v":""},{"$f":"IF(AND(Table1[[#This Row],[1\nNumber of children for whom a new application was submitted during the month]]=\"\", Table1[[#This Row],[2\nNumber of children for whom a renewal application was submitted during the month]]=\"\", Table1[[#This Row],[3\nTotal: number of children applying this month]]=\"\"),\"\",IF(Table1[[#This Row],[2\nNumber of children for whom a renewal application was submitted during the month]]=\"\",0,Table1[[#This Row],[2\nNumber of children for whom a renewal application was submitted during the month]]))","v":""},{"$f":"IF(AND(Table1[[#This Row],[1\nNumber of children for whom a new application was submitted during the month]]=\"\", Table1[[#This Row],[2\nNumber of children for whom a renewal application was submitted during the month]]=\"\",Table1[[#This Row],[3\nTotal: number of children applying this month]]=\"\"),\"\",MAX(Table1[[#This Row],[3\nTotal: number of children applying this month]]-(Table1[[#This Row],[2\nNumber of children for whom a renewal application was submitted during the month]]+Table1[[#This Row],[1\nNumber of children for whom a new application was submitted during the month]]),0))","v":""},null,null,"",{"$f":"IF(AND(Table1[[#This Row],[4\nNumber of children newly enrolled to date]]=\"\", Table1[[#This Row],[5\nNumber of children renewed to date]]=\"\",Table1[[#This Row],[6\nTotal: Number of children enrolled or renewed to date]]=\"\"),\"\", IF(Table1[[#This Row],[4\nNumber of children newly enrolled to date]]=\"\",0,Table1[[#This Row],[4\nNumber of children newly enrolled to date]]))","v":""},{"$f":"IF(AND(Table1[[#This Row],[4\nNumber of children newly enrolled to date]]=\"\",Table1[[#This Row],[5\nNumber of children renewed to date]]=\"\", Table1[[#This Row],[6\nTotal: Number of children enrolled or renewed to date]]=\"\"),\"\", IF(Table1[[#This Row],[5\nNumber of children renewed to date]]=\"\",0,Table1[[#This Row],[5\nNumber of children renewed to date]]))","v":""},{"$f":"IF(AND(Table1[[#This Row],[4\nNumber of children newly enrolled to date]]=\"\",Table1[[#This Row],[5\nNumber of children renewed to date]]=\"\",Table1[[#This Row],[6\nTotal: Number of children enrolled or renewed to date]]=\"\"),\"\", MAX(Table1[[#This Row],[6\nTotal: Number of children enrolled or renewed to date]]-(Table1[[#This Row],[4\nNumber of children newly enrolled to date]]+Table1[[#This Row],[5\nNumber of children renewed to date]]),0))","v":""},{"$f":"'Cover sheet'!$D$13","v":0},{"$f":"'Cover sheet'!$D$14","v":0},{"$f":"'Cover sheet'!$D$15","v":""}]
[null,"2019-12-01",null,null,"",{"$f":"IF(AND(Table1[[#This Row],[1\nNumber of children for whom a new application was submitted during the month]]=\"\", Table1[[#This Row],[2\nNumber of children for whom a renewal application was submitted during the month]]=\"\",Table1[[#This Row],[3\nTotal: number of children applying this month]]=\"\"),\"\", IF(Table1[[#This Row],[1\nNumber of children for whom a new application was submitted during the month]]=\"\",0,Table1[[#This Row],[1\nNumber of children for whom a new application was submitted during the month]]))","v":""},{"$f":"IF(AND(Table1[[#This Row],[1\nNumber of children for whom a new application was submitted during the month]]=\"\", Table1[[#This Row],[2\nNumber of children for whom a renewal application was submitted during the month]]=\"\", Table1[[#This Row],[3\nTotal: number of children applying this month]]=\"\"),\"\",IF(Table1[[#This Row],[2\nNumber of children for whom a renewal application was submitted during the month]]=\"\",0,Table1[[#This Row],[2\nNumber of children for whom a renewal application was submitted during the month]]))","v":""},{"$f":"IF(AND(Table1[[#This Row],[1\nNumber of children for whom a new application was submitted during the month]]=\"\", Table1[[#This Row],[2\nNumber of children for whom a renewal application was submitted during the month]]=\"\",Table1[[#This Row],[3\nTotal: number of children applying this month]]=\"\"),\"\",MAX(Table1[[#This Row],[3\nTotal: number of children applying this month]]-(Table1[[#This Row],[2\nNumber of children for whom a renewal application was submitted during the month]]+Table1[[#This Row],[1\nNumber of children for whom a new application was submitted during the month]]),0))","v":""},null,null,"",{"$f":"IF(AND(Table1[[#This Row],[4\nNumber of children newly enrolled to date]]=\"\", Table1[[#This Row],[5\nNumber of children renewed to date]]=\"\",Table1[[#This Row],[6\nTotal: Number of children enrolled or renewed to date]]=\"\"),\"\", IF(Table1[[#This Row],[4\nNumber of children newly enrolled to date]]=\"\",0,Table1[[#This Row],[4\nNumber of children newly enrolled to date]]))","v":""},{"$f":"IF(AND(Table1[[#This Row],[4\nNumber of children newly enrolled to date]]=\"\",Table1[[#This Row],[5\nNumber of children renewed to date]]=\"\", Table1[[#This Row],[6\nTotal: Number of children enrolled or renewed to date]]=\"\"),\"\", IF(Table1[[#This Row],[5\nNumber of children renewed to date]]=\"\",0,Table1[[#This Row],[5\nNumber of children renewed to date]]))","v":""},{"$f":"IF(AND(Table1[[#This Row],[4\nNumber of children newly enrolled to date]]=\"\",Table1[[#This Row],[5\nNumber of children renewed to date]]=\"\",Table1[[#This Row],[6\nTotal: Number of children enrolled or renewed to date]]=\"\"),\"\", MAX(Table1[[#This Row],[6\nTotal: Number of children enrolled or renewed to date]]-(Table1[[#This Row],[4\nNumber of children newly enrolled to date]]+Table1[[#This Row],[5\nNumber of children renewed to date]]),0))","v":""},{"$f":"'Cover sheet'!$D$13","v":0},{"$f":"'Cover sheet'!$D$14","v":0},{"$f":"'Cover sheet'!$D$15","v":""}]
[null,"2020-01-01",null,null,"",{"$f":"IF(AND(Table1[[#This Row],[1\nNumber of children for whom a new application was submitted during the month]]=\"\", Table1[[#This Row],[2\nNumber of children for whom a renewal application was submitted during the month]]=\"\",Table1[[#This Row],[3\nTotal: number of children applying this month]]=\"\"),\"\", IF(Table1[[#This Row],[1\nNumber of children for whom a new application was submitted during the month]]=\"\",0,Table1[[#This Row],[1\nNumber of children for whom a new application was submitted during the month]]))","v":""},{"$f":"IF(AND(Table1[[#This Row],[1\nNumber of children for whom a new application was submitted during the month]]=\"\", Table1[[#This Row],[2\nNumber of children for whom a renewal application was submitted during the month]]=\"\", Table1[[#This Row],[3\nTotal: number of children applying this month]]=\"\"),\"\",IF(Table1[[#This Row],[2\nNumber of children for whom a renewal application was submitted during the month]]=\"\",0,Table1[[#This Row],[2\nNumber of children for whom a renewal application was submitted during the month]]))","v":""},{"$f":"IF(AND(Table1[[#This Row],[1\nNumber of children for whom a new application was submitted during the month]]=\"\", Table1[[#This Row],[2\nNumber of children for whom a renewal application was submitted during the month]]=\"\",Table1[[#This Row],[3\nTotal: number of children applying this month]]=\"\"),\"\",MAX(Table1[[#This Row],[3\nTotal: number of children applying this month]]-(Table1[[#This Row],[2\nNumber of children for whom a renewal application was submitted during the month]]+Table1[[#This Row],[1\nNumber of children for whom a new application was submitted during the month]]),0))","v":""},null,null,"",{"$f":"IF(AND(Table1[[#This Row],[4\nNumber of children newly enrolled to date]]=\"\", Table1[[#This Row],[5\nNumber of children renewed to date]]=\"\",Table1[[#This Row],[6\nTotal: Number of children enrolled or renewed to date]]=\"\"),\"\", IF(Table1[[#This Row],[4\nNumber of children newly enrolled to date]]=\"\",0,Table1[[#This Row],[4\nNumber of children newly enrolled to date]]))","v":""},{"$f":"IF(AND(Table1[[#This Row],[4\nNumber of children newly enrolled to date]]=\"\",Table1[[#This Row],[5\nNumber of children renewed to date]]=\"\", Table1[[#This Row],[6\nTotal: Number of children enrolled or renewed to date]]=\"\"),\"\", IF(Table1[[#This Row],[5\nNumber of children renewed to date]]=\"\",0,Table1[[#This Row],[5\nNumber of children renewed to date]]))","v":""},{"$f":"IF(AND(Table1[[#This Row],[4\nNumber of children newly enrolled to date]]=\"\",Table1[[#This Row],[5\nNumber of children renewed to date]]=\"\",Table1[[#This Row],[6\nTotal: Number of children enrolled or renewed to date]]=\"\"),\"\", MAX(Table1[[#This Row],[6\nTotal: Number of children enrolled or renewed to date]]-(Table1[[#This Row],[4\nNumber of children newly enrolled to date]]+Table1[[#This Row],[5\nNumber of children renewed to date]]),0))","v":""},{"$f":"'Cover sheet'!$D$13","v":0},{"$f":"'Cover sheet'!$D$14","v":0},{"$f":"'Cover sheet'!$D$15","v":""}]
[null,"2020-02-01",null,null,"",{"$f":"IF(AND(Table1[[#This Row],[1\nNumber of children for whom a new application was submitted during the month]]=\"\", Table1[[#This Row],[2\nNumber of children for whom a renewal application was submitted during the month]]=\"\",Table1[[#This Row],[3\nTotal: number of children applying this month]]=\"\"),\"\", IF(Table1[[#This Row],[1\nNumber of children for whom a new application was submitted during the month]]=\"\",0,Table1[[#This Row],[1\nNumber of children for whom a new application was submitted during the month]]))","v":""},{"$f":"IF(AND(Table1[[#This Row],[1\nNumber of children for whom a new application was submitted during the month]]=\"\", Table1[[#This Row],[2\nNumber of children for whom a renewal application was submitted during the month]]=\"\", Table1[[#This Row],[3\nTotal: number of children applying this month]]=\"\"),\"\",IF(Table1[[#This Row],[2\nNumber of children for whom a renewal application was submitted during the month]]=\"\",0,Table1[[#This Row],[2\nNumber of children for whom a renewal application was submitted during the month]]))","v":""},{"$f":"IF(AND(Table1[[#This Row],[1\nNumber of children for whom a new application was submitted during the month]]=\"\", Table1[[#This Row],[2\nNumber of children for whom a renewal application was submitted during the month]]=\"\",Table1[[#This Row],[3\nTotal: number of children applying this month]]=\"\"),\"\",MAX(Table1[[#This Row],[3\nTotal: number of children applying this month]]-(Table1[[#This Row],[2\nNumber of children for whom a renewal application was submitted during the month]]+Table1[[#This Row],[1\nNumber of children for whom a new application was submitted during the month]]),0))","v":""},null,null,"",{"$f":"IF(AND(Table1[[#This Row],[4\nNumber of children newly enrolled to date]]=\"\", Table1[[#This Row],[5\nNumber of children renewed to date]]=\"\",Table1[[#This Row],[6\nTotal: Number of children enrolled or renewed to date]]=\"\"),\"\", IF(Table1[[#This Row],[4\nNumber of children newly enrolled to date]]=\"\",0,Table1[[#This Row],[4\nNumber of children newly enrolled to date]]))","v":""},{"$f":"IF(AND(Table1[[#This Row],[4\nNumber of children newly enrolled to date]]=\"\",Table1[[#This Row],[5\nNumber of children renewed to date]]=\"\", Table1[[#This Row],[6\nTotal: Number of children enrolled or renewed to date]]=\"\"),\"\", IF(Table1[[#This Row],[5\nNumber of children renewed to date]]=\"\",0,Table1[[#This Row],[5\nNumber of children renewed to date]]))","v":""},{"$f":"IF(AND(Table1[[#This Row],[4\nNumber of children newly enrolled to date]]=\"\",Table1[[#This Row],[5\nNumber of children renewed to date]]=\"\",Table1[[#This Row],[6\nTotal: Number of children enrolled or renewed to date]]=\"\"),\"\", MAX(Table1[[#This Row],[6\nTotal: Number of children enrolled or renewed to date]]-(Table1[[#This Row],[4\nNumber of children newly enrolled to date]]+Table1[[#This Row],[5\nNumber of children renewed to date]]),0))","v":""},{"$f":"'Cover sheet'!$D$13","v":0},{"$f":"'Cover sheet'!$D$14","v":0},{"$f":"'Cover sheet'!$D$15","v":""}]
[null,"2020-03-01",null,null,"",{"$f":"IF(AND(Table1[[#This Row],[1\nNumber of children for whom a new application was submitted during the month]]=\"\", Table1[[#This Row],[2\nNumber of children for whom a renewal application was submitted during the month]]=\"\",Table1[[#This Row],[3\nTotal: number of children applying this month]]=\"\"),\"\", IF(Table1[[#This Row],[1\nNumber of children for whom a new application was submitted during the month]]=\"\",0,Table1[[#This Row],[1\nNumber of children for whom a new application was submitted during the month]]))","v":""},{"$f":"IF(AND(Table1[[#This Row],[1\nNumber of children for whom a new application was submitted during the month]]=\"\", Table1[[#This Row],[2\nNumber of children for whom a renewal application was submitted during the month]]=\"\", Table1[[#This Row],[3\nTotal: number of children applying this month]]=\"\"),\"\",IF(Table1[[#This Row],[2\nNumber of children for whom a renewal application was submitted during the month]]=\"\",0,Table1[[#This Row],[2\nNumber of children for whom a renewal application was submitted during the month]]))","v":""},{"$f":"IF(AND(Table1[[#This Row],[1\nNumber of children for whom a new application was submitted during the month]]=\"\", Table1[[#This Row],[2\nNumber of children for whom a renewal application was submitted during the month]]=\"\",Table1[[#This Row],[3\nTotal: number of children applying this month]]=\"\"),\"\",MAX(Table1[[#This Row],[3\nTotal: number of children applying this month]]-(Table1[[#This Row],[2\nNumber of children for whom a renewal application was submitted during the month]]+Table1[[#This Row],[1\nNumber of children for whom a new application was submitted during the month]]),0))","v":""},null,null,"",{"$f":"IF(AND(Table1[[#This Row],[4\nNumber of children newly enrolled to date]]=\"\", Table1[[#This Row],[5\nNumber of children renewed to date]]=\"\",Table1[[#This Row],[6\nTotal: Number of children enrolled or renewed to date]]=\"\"),\"\", IF(Table1[[#This Row],[4\nNumber of children newly enrolled to date]]=\"\",0,Table1[[#This Row],[4\nNumber of children newly enrolled to date]]))","v":""},{"$f":"IF(AND(Table1[[#This Row],[4\nNumber of children newly enrolled to date]]=\"\",Table1[[#This Row],[5\nNumber of children renewed to date]]=\"\", Table1[[#This Row],[6\nTotal: Number of children enrolled or renewed to date]]=\"\"),\"\", IF(Table1[[#This Row],[5\nNumber of children renewed to date]]=\"\",0,Table1[[#This Row],[5\nNumber of children renewed to date]]))","v":""},{"$f":"IF(AND(Table1[[#This Row],[4\nNumber of children newly enrolled to date]]=\"\",Table1[[#This Row],[5\nNumber of children renewed to date]]=\"\",Table1[[#This Row],[6\nTotal: Number of children enrolled or renewed to date]]=\"\"),\"\", MAX(Table1[[#This Row],[6\nTotal: Number of children enrolled or renewed to date]]-(Table1[[#This Row],[4\nNumber of children newly enrolled to date]]+Table1[[#This Row],[5\nNumber of children renewed to date]]),0))","v":""},{"$f":"'Cover sheet'!$D$13","v":0},{"$f":"'Cover sheet'!$D$14","v":0},{"$f":"'Cover sheet'!$D$15","v":""}]
[null,"2020-04-01",null,null,"",{"$f":"IF(AND(Table1[[#This Row],[1\nNumber of children for whom a new application was submitted during the month]]=\"\", Table1[[#This Row],[2\nNumber of children for whom a renewal application was submitted during the month]]=\"\",Table1[[#This Row],[3\nTotal: number of children applying this month]]=\"\"),\"\", IF(Table1[[#This Row],[1\nNumber of children for whom a new application was submitted during the month]]=\"\",0,Table1[[#This Row],[1\nNumber of children for whom a new application was submitted during the month]]))","v":""},{"$f":"IF(AND(Table1[[#This Row],[1\nNumber of children for whom a new application was submitted during the month]]=\"\", Table1[[#This Row],[2\nNumber of children for whom a renewal application was submitted during the month]]=\"\", Table1[[#This Row],[3\nTotal: number of children applying this month]]=\"\"),\"\",IF(Table1[[#This Row],[2\nNumber of children for whom a renewal application was submitted during the month]]=\"\",0,Table1[[#This Row],[2\nNumber of children for whom a renewal application was submitted during the month]]))","v":""},{"$f":"IF(AND(Table1[[#This Row],[1\nNumber of children for whom a new application was submitted during the month]]=\"\", Table1[[#This Row],[2\nNumber of children for whom a renewal application was submitted during the month]]=\"\",Table1[[#This Row],[3\nTotal: number of children applying this month]]=\"\"),\"\",MAX(Table1[[#This Row],[3\nTotal: number of children applying this month]]-(Table1[[#This Row],[2\nNumber of children for whom a renewal application was submitted during the month]]+Table1[[#This Row],[1\nNumber of children for whom a new application was submitted during the month]]),0))","v":""},null,null,"",{"$f":"IF(AND(Table1[[#This Row],[4\nNumber of children newly enrolled to date]]=\"\", Table1[[#This Row],[5\nNumber of children renewed to date]]=\"\",Table1[[#This Row],[6\nTotal: Number of children enrolled or renewed to date]]=\"\"),\"\", IF(Table1[[#This Row],[4\nNumber of children newly enrolled to date]]=\"\",0,Table1[[#This Row],[4\nNumber of children newly enrolled to date]]))","v":""},{"$f":"IF(AND(Table1[[#This Row],[4\nNumber of children newly enrolled to date]]=\"\",Table1[[#This Row],[5\nNumber of children renewed to date]]=\"\", Table1[[#This Row],[6\nTotal: Number of children enrolled or renewed to date]]=\"\"),\"\", IF(Table1[[#This Row],[5\nNumber of children renewed to date]]=\"\",0,Table1[[#This Row],[5\nNumber of children renewed to date]]))","v":""},{"$f":"IF(AND(Table1[[#This Row],[4\nNumber of children newly enrolled to date]]=\"\",Table1[[#This Row],[5\nNumber of children renewed to date]]=\"\",Table1[[#This Row],[6\nTotal: Number of children enrolled or renewed to date]]=\"\"),\"\", MAX(Table1[[#This Row],[6\nTotal: Number of children enrolled or renewed to date]]-(Table1[[#This Row],[4\nNumber of children newly enrolled to date]]+Table1[[#This Row],[5\nNumber of children renewed to date]]),0))","v":""},{"$f":"'Cover sheet'!$D$13","v":0},{"$f":"'Cover sheet'!$D$14","v":0},{"$f":"'Cover sheet'!$D$15","v":""}]
[null,"2020-05-01",null,null,"",{"$f":"IF(AND(Table1[[#This Row],[1\nNumber of children for whom a new application was submitted during the month]]=\"\", Table1[[#This Row],[2\nNumber of children for whom a renewal application was submitted during the month]]=\"\",Table1[[#This Row],[3\nTotal: number of children applying this month]]=\"\"),\"\", IF(Table1[[#This Row],[1\nNumber of children for whom a new application was submitted during the month]]=\"\",0,Table1[[#This Row],[1\nNumber of children for whom a new application was submitted during the month]]))","v":""},{"$f":"IF(AND(Table1[[#This Row],[1\nNumber of children for whom a new application was submitted during the month]]=\"\", Table1[[#This Row],[2\nNumber of children for whom a renewal application was submitted during the month]]=\"\", Table1[[#This Row],[3\nTotal: number of children applying this month]]=\"\"),\"\",IF(Table1[[#This Row],[2\nNumber of children for whom a renewal application was submitted during the month]]=\"\",0,Table1[[#This Row],[2\nNumber of children for whom a renewal application was submitted during the month]]))","v":""},{"$f":"IF(AND(Table1[[#This Row],[1\nNumber of children for whom a new application was submitted during the month]]=\"\", Table1[[#This Row],[2\nNumber of children for whom a renewal application was submitted during the month]]=\"\",Table1[[#This Row],[3\nTotal: number of children applying this month]]=\"\"),\"\",MAX(Table1[[#This Row],[3\nTotal: number of children applying this month]]-(Table1[[#This Row],[2\nNumber of children for whom a renewal application was submitted during the month]]+Table1[[#This Row],[1\nNumber of children for whom a new application was submitted during the month]]),0))","v":""},null,null,"",{"$f":"IF(AND(Table1[[#This Row],[4\nNumber of children newly enrolled to date]]=\"\", Table1[[#This Row],[5\nNumber of children renewed to date]]=\"\",Table1[[#This Row],[6\nTotal: Number of children enrolled or renewed to date]]=\"\"),\"\", IF(Table1[[#This Row],[4\nNumber of children newly enrolled to date]]=\"\",0,Table1[[#This Row],[4\nNumber of children newly enrolled to date]]))","v":""},{"$f":"IF(AND(Table1[[#This Row],[4\nNumber of children newly enrolled to date]]=\"\",Table1[[#This Row],[5\nNumber of children renewed to date]]=\"\", Table1[[#This Row],[6\nTotal: Number of children enrolled or renewed to date]]=\"\"),\"\", IF(Table1[[#This Row],[5\nNumber of children renewed to date]]=\"\",0,Table1[[#This Row],[5\nNumber of children renewed to date]]))","v":""},{"$f":"IF(AND(Table1[[#This Row],[4\nNumber of children newly enrolled to date]]=\"\",Table1[[#This Row],[5\nNumber of children renewed to date]]=\"\",Table1[[#This Row],[6\nTotal: Number of children enrolled or renewed to date]]=\"\"),\"\", MAX(Table1[[#This Row],[6\nTotal: Number of children enrolled or renewed to date]]-(Table1[[#This Row],[4\nNumber of children newly enrolled to date]]+Table1[[#This Row],[5\nNumber of children renewed to date]]),0))","v":""},{"$f":"'Cover sheet'!$D$13","v":0},{"$f":"'Cover sheet'!$D$14","v":0},{"$f":"'Cover sheet'!$D$15","v":""}]
[null,"2020-06-01",null,null,"",{"$f":"IF(AND(Table1[[#This Row],[1\nNumber of children for whom a new application was submitted during the month]]=\"\", Table1[[#This Row],[2\nNumber of children for whom a renewal application was submitted during the month]]=\"\",Table1[[#This Row],[3\nTotal: number of children applying this month]]=\"\"),\"\", IF(Table1[[#This Row],[1\nNumber of children for whom a new application was submitted during the month]]=\"\",0,Table1[[#This Row],[1\nNumber of children for whom a new application was submitted during the month]]))","v":""},{"$f":"IF(AND(Table1[[#This Row],[1\nNumber of children for whom a new application was submitted during the month]]=\"\", Table1[[#This Row],[2\nNumber of children for whom a renewal application was submitted during the month]]=\"\", Table1[[#This Row],[3\nTotal: number of children applying this month]]=\"\"),\"\",IF(Table1[[#This Row],[2\nNumber of children for whom a renewal application was submitted during the month]]=\"\",0,Table1[[#This Row],[2\nNumber of children for whom a renewal application was submitted during the month]]))","v":""},{"$f":"IF(AND(Table1[[#This Row],[1\nNumber of children for whom a new application was submitted during the month]]=\"\", Table1[[#This Row],[2\nNumber of children for whom a renewal application was submitted during the month]]=\"\",Table1[[#This Row],[3\nTotal: number of children applying this month]]=\"\"),\"\",MAX(Table1[[#This Row],[3\nTotal: number of children applying this month]]-(Table1[[#This Row],[2\nNumber of children for whom a renewal application was submitted during the month]]+Table1[[#This Row],[1\nNumber of children for whom a new application was submitted during the month]]),0))","v":""},null,null,"",{"$f":"IF(AND(Table1[[#This Row],[4\nNumber of children newly enrolled to date]]=\"\", Table1[[#This Row],[5\nNumber of children renewed to date]]=\"\",Table1[[#This Row],[6\nTotal: Number of children enrolled or renewed to date]]=\"\"),\"\", IF(Table1[[#This Row],[4\nNumber of children newly enrolled to date]]=\"\",0,Table1[[#This Row],[4\nNumber of children newly enrolled to date]]))","v":""},{"$f":"IF(AND(Table1[[#This Row],[4\nNumber of children newly enrolled to date]]=\"\",Table1[[#This Row],[5\nNumber of children renewed to date]]=\"\", Table1[[#This Row],[6\nTotal: Number of children enrolled or renewed to date]]=\"\"),\"\", IF(Table1[[#This Row],[5\nNumber of children renewed to date]]=\"\",0,Table1[[#This Row],[5\nNumber of children renewed to date]]))","v":""},{"$f":"IF(AND(Table1[[#This Row],[4\nNumber of children newly enrolled to date]]=\"\",Table1[[#This Row],[5\nNumber of children renewed to date]]=\"\",Table1[[#This Row],[6\nTotal: Number of children enrolled or renewed to date]]=\"\"),\"\", MAX(Table1[[#This Row],[6\nTotal: Number of children enrolled or renewed to date]]-(Table1[[#This Row],[4\nNumber of children newly enrolled to date]]+Table1[[#This Row],[5\nNumber of children renewed to date]]),0))","v":""},{"$f":"'Cover sheet'!$D$13","v":0},{"$f":"'Cover sheet'!$D$14","v":0},{"$f":"'Cover sheet'!$D$15","v":""}]
[null,"2020-07-01",null,null,"",{"$f":"IF(AND(Table1[[#This Row],[1\nNumber of children for whom a new application was submitted during the month]]=\"\", Table1[[#This Row],[2\nNumber of children for whom a renewal application was submitted during the month]]=\"\",Table1[[#This Row],[3\nTotal: number of children applying this month]]=\"\"),\"\", IF(Table1[[#This Row],[1\nNumber of children for whom a new application was submitted during the month]]=\"\",0,Table1[[#This Row],[1\nNumber of children for whom a new application was submitted during the month]]))","v":""},{"$f":"IF(AND(Table1[[#This Row],[1\nNumber of children for whom a new application was submitted during the month]]=\"\", Table1[[#This Row],[2\nNumber of children for whom a renewal application was submitted during the month]]=\"\", Table1[[#This Row],[3\nTotal: number of children applying this month]]=\"\"),\"\",IF(Table1[[#This Row],[2\nNumber of children for whom a renewal application was submitted during the month]]=\"\",0,Table1[[#This Row],[2\nNumber of children for whom a renewal application was submitted during the month]]))","v":""},{"$f":"IF(AND(Table1[[#This Row],[1\nNumber of children for whom a new application was submitted during the month]]=\"\", Table1[[#This Row],[2\nNumber of children for whom a renewal application was submitted during the month]]=\"\",Table1[[#This Row],[3\nTotal: number of children applying this month]]=\"\"),\"\",MAX(Table1[[#This Row],[3\nTotal: number of children applying this month]]-(Table1[[#This Row],[2\nNumber of children for whom a renewal application was submitted during the month]]+Table1[[#This Row],[1\nNumber of children for whom a new application was submitted during the month]]),0))","v":""},null,null,"",{"$f":"IF(AND(Table1[[#This Row],[4\nNumber of children newly enrolled to date]]=\"\", Table1[[#This Row],[5\nNumber of children renewed to date]]=\"\",Table1[[#This Row],[6\nTotal: Number of children enrolled or renewed to date]]=\"\"),\"\", IF(Table1[[#This Row],[4\nNumber of children newly enrolled to date]]=\"\",0,Table1[[#This Row],[4\nNumber of children newly enrolled to date]]))","v":""},{"$f":"IF(AND(Table1[[#This Row],[4\nNumber of children newly enrolled to date]]=\"\",Table1[[#This Row],[5\nNumber of children renewed to date]]=\"\", Table1[[#This Row],[6\nTotal: Number of children enrolled or renewed to date]]=\"\"),\"\", IF(Table1[[#This Row],[5\nNumber of children renewed to date]]=\"\",0,Table1[[#This Row],[5\nNumber of children renewed to date]]))","v":""},{"$f":"IF(AND(Table1[[#This Row],[4\nNumber of children newly enrolled to date]]=\"\",Table1[[#This Row],[5\nNumber of children renewed to date]]=\"\",Table1[[#This Row],[6\nTotal: Number of children enrolled or renewed to date]]=\"\"),\"\", MAX(Table1[[#This Row],[6\nTotal: Number of children enrolled or renewed to date]]-(Table1[[#This Row],[4\nNumber of children newly enrolled to date]]+Table1[[#This Row],[5\nNumber of children renewed to date]]),0))","v":""},{"$f":"'Cover sheet'!$D$13","v":0},{"$f":"'Cover sheet'!$D$14","v":0},{"$f":"'Cover sheet'!$D$15","v":""}]
[null,"2020-08-01",null,null,"",{"$f":"IF(AND(Table1[[#This Row],[1\nNumber of children for whom a new application was submitted during the month]]=\"\", Table1[[#This Row],[2\nNumber of children for whom a renewal application was submitted during the month]]=\"\",Table1[[#This Row],[3\nTotal: number of children applying this month]]=\"\"),\"\", IF(Table1[[#This Row],[1\nNumber of children for whom a new application was submitted during the month]]=\"\",0,Table1[[#This Row],[1\nNumber of children for whom a new application was submitted during the month]]))","v":""},{"$f":"IF(AND(Table1[[#This Row],[1\nNumber of children for whom a new application was submitted during the month]]=\"\", Table1[[#This Row],[2\nNumber of children for whom a renewal application was submitted during the month]]=\"\", Table1[[#This Row],[3\nTotal: number of children applying this month]]=\"\"),\"\",IF(Table1[[#This Row],[2\nNumber of children for whom a renewal application was submitted during the month]]=\"\",0,Table1[[#This Row],[2\nNumber of children for whom a renewal application was submitted during the month]]))","v":""},{"$f":"IF(AND(Table1[[#This Row],[1\nNumber of children for whom a new application was submitted during the month]]=\"\", Table1[[#This Row],[2\nNumber of children for whom a renewal application was submitted during the month]]=\"\",Table1[[#This Row],[3\nTotal: number of children applying this month]]=\"\"),\"\",MAX(Table1[[#This Row],[3\nTotal: number of children applying this month]]-(Table1[[#This Row],[2\nNumber of children for whom a renewal application was submitted during the month]]+Table1[[#This Row],[1\nNumber of children for whom a new application was submitted during the month]]),0))","v":""},null,null,"",{"$f":"IF(AND(Table1[[#This Row],[4\nNumber of children newly enrolled to date]]=\"\", Table1[[#This Row],[5\nNumber of children renewed to date]]=\"\",Table1[[#This Row],[6\nTotal: Number of children enrolled or renewed to date]]=\"\"),\"\", IF(Table1[[#This Row],[4\nNumber of children newly enrolled to date]]=\"\",0,Table1[[#This Row],[4\nNumber of children newly enrolled to date]]))","v":""},{"$f":"IF(AND(Table1[[#This Row],[4\nNumber of children newly enrolled to date]]=\"\",Table1[[#This Row],[5\nNumber of children renewed to date]]=\"\", Table1[[#This Row],[6\nTotal: Number of children enrolled or renewed to date]]=\"\"),\"\", IF(Table1[[#This Row],[5\nNumber of children renewed to date]]=\"\",0,Table1[[#This Row],[5\nNumber of children renewed to date]]))","v":""},{"$f":"IF(AND(Table1[[#This Row],[4\nNumber of children newly enrolled to date]]=\"\",Table1[[#This Row],[5\nNumber of children renewed to date]]=\"\",Table1[[#This Row],[6\nTotal: Number of children enrolled or renewed to date]]=\"\"),\"\", MAX(Table1[[#This Row],[6\nTotal: Number of children enrolled or renewed to date]]-(Table1[[#This Row],[4\nNumber of children newly enrolled to date]]+Table1[[#This Row],[5\nNumber of children renewed to date]]),0))","v":""},{"$f":"'Cover sheet'!$D$13","v":0},{"$f":"'Cover sheet'!$D$14","v":0},{"$f":"'Cover sheet'!$D$15","v":""}]
[null,"2020-09-01",null,null,"",{"$f":"IF(AND(Table1[[#This Row],[1\nNumber of children for whom a new application was submitted during the month]]=\"\", Table1[[#This Row],[2\nNumber of children for whom a renewal application was submitted during the month]]=\"\",Table1[[#This Row],[3\nTotal: number of children applying this month]]=\"\"),\"\", IF(Table1[[#This Row],[1\nNumber of children for whom a new application was submitted during the month]]=\"\",0,Table1[[#This Row],[1\nNumber of children for whom a new application was submitted during the month]]))","v":""},{"$f":"IF(AND(Table1[[#This Row],[1\nNumber of children for whom a new application was submitted during the month]]=\"\", Table1[[#This Row],[2\nNumber of children for whom a renewal application was submitted during the month]]=\"\", Table1[[#This Row],[3\nTotal: number of children applying this month]]=\"\"),\"\",IF(Table1[[#This Row],[2\nNumber of children for whom a renewal application was submitted during the month]]=\"\",0,Table1[[#This Row],[2\nNumber of children for whom a renewal application was submitted during the month]]))","v":""},{"$f":"IF(AND(Table1[[#This Row],[1\nNumber of children for whom a new application was submitted during the month]]=\"\", Table1[[#This Row],[2\nNumber of children for whom a renewal application was submitted during the month]]=\"\",Table1[[#This Row],[3\nTotal: number of children applying this month]]=\"\"),\"\",MAX(Table1[[#This Row],[3\nTotal: number of children applying this month]]-(Table1[[#This Row],[2\nNumber of children for whom a renewal application was submitted during the month]]+Table1[[#This Row],[1\nNumber of children for whom a new application was submitted during the month]]),0))","v":""},null,null,"",{"$f":"IF(AND(Table1[[#This Row],[4\nNumber of children newly enrolled to date]]=\"\", Table1[[#This Row],[5\nNumber of children renewed to date]]=\"\",Table1[[#This Row],[6\nTotal: Number of children enrolled or renewed to date]]=\"\"),\"\", IF(Table1[[#This Row],[4\nNumber of children newly enrolled to date]]=\"\",0,Table1[[#This Row],[4\nNumber of children newly enrolled to date]]))","v":""},{"$f":"IF(AND(Table1[[#This Row],[4\nNumber of children newly enrolled to date]]=\"\",Table1[[#This Row],[5\nNumber of children renewed to date]]=\"\", Table1[[#This Row],[6\nTotal: Number of children enrolled or renewed to date]]=\"\"),\"\", IF(Table1[[#This Row],[5\nNumber of children renewed to date]]=\"\",0,Table1[[#This Row],[5\nNumber of children renewed to date]]))","v":""},{"$f":"IF(AND(Table1[[#This Row],[4\nNumber of children newly enrolled to date]]=\"\",Table1[[#This Row],[5\nNumber of children renewed to date]]=\"\",Table1[[#This Row],[6\nTotal: Number of children enrolled or renewed to date]]=\"\"),\"\", MAX(Table1[[#This Row],[6\nTotal: Number of children enrolled or renewed to date]]-(Table1[[#This Row],[4\nNumber of children newly enrolled to date]]+Table1[[#This Row],[5\nNumber of children renewed to date]]),0))","v":""},{"$f":"'Cover sheet'!$D$13","v":0},{"$f":"'Cover sheet'!$D$14","v":0},{"$f":"'Cover sheet'!$D$15","v":""}]
[null,"2020-10-01",null,null,"",{"$f":"IF(AND(Table1[[#This Row],[1\nNumber of children for whom a new application was submitted during the month]]=\"\", Table1[[#This Row],[2\nNumber of children for whom a renewal application was submitted during the month]]=\"\",Table1[[#This Row],[3\nTotal: number of children applying this month]]=\"\"),\"\", IF(Table1[[#This Row],[1\nNumber of children for whom a new application was submitted during the month]]=\"\",0,Table1[[#This Row],[1\nNumber of children for whom a new application was submitted during the month]]))","v":""},{"$f":"IF(AND(Table1[[#This Row],[1\nNumber of children for whom a new application was submitted during the month]]=\"\", Table1[[#This Row],[2\nNumber of children for whom a renewal application was submitted during the month]]=\"\", Table1[[#This Row],[3\nTotal: number of children applying this month]]=\"\"),\"\",IF(Table1[[#This Row],[2\nNumber of children for whom a renewal application was submitted during the month]]=\"\",0,Table1[[#This Row],[2\nNumber of children for whom a renewal application was submitted during the month]]))","v":""},{"$f":"IF(AND(Table1[[#This Row],[1\nNumber of children for whom a new application was submitted during the month]]=\"\", Table1[[#This Row],[2\nNumber of children for whom a renewal application was submitted during the month]]=\"\",Table1[[#This Row],[3\nTotal: number of children applying this month]]=\"\"),\"\",MAX(Table1[[#This Row],[3\nTotal: number of children applying this month]]-(Table1[[#This Row],[2\nNumber of children for whom a renewal application was submitted during the month]]+Table1[[#This Row],[1\nNumber of children for whom a new application was submitted during the month]]),0))","v":""},null,null,"",{"$f":"IF(AND(Table1[[#This Row],[4\nNumber of children newly enrolled to date]]=\"\", Table1[[#This Row],[5\nNumber of children renewed to date]]=\"\",Table1[[#This Row],[6\nTotal: Number of children enrolled or renewed to date]]=\"\"),\"\", IF(Table1[[#This Row],[4\nNumber of children newly enrolled to date]]=\"\",0,Table1[[#This Row],[4\nNumber of children newly enrolled to date]]))","v":""},{"$f":"IF(AND(Table1[[#This Row],[4\nNumber of children newly enrolled to date]]=\"\",Table1[[#This Row],[5\nNumber of children renewed to date]]=\"\", Table1[[#This Row],[6\nTotal: Number of children enrolled or renewed to date]]=\"\"),\"\", IF(Table1[[#This Row],[5\nNumber of children renewed to date]]=\"\",0,Table1[[#This Row],[5\nNumber of children renewed to date]]))","v":""},{"$f":"IF(AND(Table1[[#This Row],[4\nNumber of children newly enrolled to date]]=\"\",Table1[[#This Row],[5\nNumber of children renewed to date]]=\"\",Table1[[#This Row],[6\nTotal: Number of children enrolled or renewed to date]]=\"\"),\"\", MAX(Table1[[#This Row],[6\nTotal: Number of children enrolled or renewed to date]]-(Table1[[#This Row],[4\nNumber of children newly enrolled to date]]+Table1[[#This Row],[5\nNumber of children renewed to date]]),0))","v":""},{"$f":"'Cover sheet'!$D$13","v":0},{"$f":"'Cover sheet'!$D$14","v":0},{"$f":"'Cover sheet'!$D$15","v":""}]
[null,"2020-11-01",null,null,"",{"$f":"IF(AND(Table1[[#This Row],[1\nNumber of children for whom a new application was submitted during the month]]=\"\", Table1[[#This Row],[2\nNumber of children for whom a renewal application was submitted during the month]]=\"\",Table1[[#This Row],[3\nTotal: number of children applying this month]]=\"\"),\"\", IF(Table1[[#This Row],[1\nNumber of children for whom a new application was submitted during the month]]=\"\",0,Table1[[#This Row],[1\nNumber of children for whom a new application was submitted during the month]]))","v":""},{"$f":"IF(AND(Table1[[#This Row],[1\nNumber of children for whom a new application was submitted during the month]]=\"\", Table1[[#This Row],[2\nNumber of children for whom a renewal application was submitted during the month]]=\"\", Table1[[#This Row],[3\nTotal: number of children applying this month]]=\"\"),\"\",IF(Table1[[#This Row],[2\nNumber of children for whom a renewal application was submitted during the month]]=\"\",0,Table1[[#This Row],[2\nNumber of children for whom a renewal application was submitted during the month]]))","v":""},{"$f":"IF(AND(Table1[[#This Row],[1\nNumber of children for whom a new application was submitted during the month]]=\"\", Table1[[#This Row],[2\nNumber of children for whom a renewal application was submitted during the month]]=\"\",Table1[[#This Row],[3\nTotal: number of children applying this month]]=\"\"),\"\",MAX(Table1[[#This Row],[3\nTotal: number of children applying this month]]-(Table1[[#This Row],[2\nNumber of children for whom a renewal application was submitted during the month]]+Table1[[#This Row],[1\nNumber of children for whom a new application was submitted during the month]]),0))","v":""},null,null,"",{"$f":"IF(AND(Table1[[#This Row],[4\nNumber of children newly enrolled to date]]=\"\", Table1[[#This Row],[5\nNumber of children renewed to date]]=\"\",Table1[[#This Row],[6\nTotal: Number of children enrolled or renewed to date]]=\"\"),\"\", IF(Table1[[#This Row],[4\nNumber of children newly enrolled to date]]=\"\",0,Table1[[#This Row],[4\nNumber of children newly enrolled to date]]))","v":""},{"$f":"IF(AND(Table1[[#This Row],[4\nNumber of children newly enrolled to date]]=\"\",Table1[[#This Row],[5\nNumber of children renewed to date]]=\"\", Table1[[#This Row],[6\nTotal: Number of children enrolled or renewed to date]]=\"\"),\"\", IF(Table1[[#This Row],[5\nNumber of children renewed to date]]=\"\",0,Table1[[#This Row],[5\nNumber of children renewed to date]]))","v":""},{"$f":"IF(AND(Table1[[#This Row],[4\nNumber of children newly enrolled to date]]=\"\",Table1[[#This Row],[5\nNumber of children renewed to date]]=\"\",Table1[[#This Row],[6\nTotal: Number of children enrolled or renewed to date]]=\"\"),\"\", MAX(Table1[[#This Row],[6\nTotal: Number of children enrolled or renewed to date]]-(Table1[[#This Row],[4\nNumber of children newly enrolled to date]]+Table1[[#This Row],[5\nNumber of children renewed to date]]),0))","v":""},{"$f":"'Cover sheet'!$D$13","v":0},{"$f":"'Cover sheet'!$D$14","v":0},{"$f":"'Cover sheet'!$D$15","v":""}]
[null,"2020-12-01",null,null,"",{"$f":"IF(AND(Table1[[#This Row],[1\nNumber of children for whom a new application was submitted during the month]]=\"\", Table1[[#This Row],[2\nNumber of children for whom a renewal application was submitted during the month]]=\"\",Table1[[#This Row],[3\nTotal: number of children applying this month]]=\"\"),\"\", IF(Table1[[#This Row],[1\nNumber of children for whom a new application was submitted during the month]]=\"\",0,Table1[[#This Row],[1\nNumber of children for whom a new application was submitted during the month]]))","v":""},{"$f":"IF(AND(Table1[[#This Row],[1\nNumber of children for whom a new application was submitted during the month]]=\"\", Table1[[#This Row],[2\nNumber of children for whom a renewal application was submitted during the month]]=\"\", Table1[[#This Row],[3\nTotal: number of children applying this month]]=\"\"),\"\",IF(Table1[[#This Row],[2\nNumber of children for whom a renewal application was submitted during the month]]=\"\",0,Table1[[#This Row],[2\nNumber of children for whom a renewal application was submitted during the month]]))","v":""},{"$f":"IF(AND(Table1[[#This Row],[1\nNumber of children for whom a new application was submitted during the month]]=\"\", Table1[[#This Row],[2\nNumber of children for whom a renewal application was submitted during the month]]=\"\",Table1[[#This Row],[3\nTotal: number of children applying this month]]=\"\"),\"\",MAX(Table1[[#This Row],[3\nTotal: number of children applying this month]]-(Table1[[#This Row],[2\nNumber of children for whom a renewal application was submitted during the month]]+Table1[[#This Row],[1\nNumber of children for whom a new application was submitted during the month]]),0))","v":""},null,null,"",{"$f":"IF(AND(Table1[[#This Row],[4\nNumber of children newly enrolled to date]]=\"\", Table1[[#This Row],[5\nNumber of children renewed to date]]=\"\",Table1[[#This Row],[6\nTotal: Number of children enrolled or renewed to date]]=\"\"),\"\", IF(Table1[[#This Row],[4\nNumber of children newly enrolled to date]]=\"\",0,Table1[[#This Row],[4\nNumber of children newly enrolled to date]]))","v":""},{"$f":"IF(AND(Table1[[#This Row],[4\nNumber of children newly enrolled to date]]=\"\",Table1[[#This Row],[5\nNumber of children renewed to date]]=\"\", Table1[[#This Row],[6\nTotal: Number of children enrolled or renewed to date]]=\"\"),\"\", IF(Table1[[#This Row],[5\nNumber of children renewed to date]]=\"\",0,Table1[[#This Row],[5\nNumber of children renewed to date]]))","v":""},{"$f":"IF(AND(Table1[[#This Row],[4\nNumber of children newly enrolled to date]]=\"\",Table1[[#This Row],[5\nNumber of children renewed to date]]=\"\",Table1[[#This Row],[6\nTotal: Number of children enrolled or renewed to date]]=\"\"),\"\", MAX(Table1[[#This Row],[6\nTotal: Number of children enrolled or renewed to date]]-(Table1[[#This Row],[4\nNumber of children newly enrolled to date]]+Table1[[#This Row],[5\nNumber of children renewed to date]]),0))","v":""},{"$f":"'Cover sheet'!$D$13","v":0},{"$f":"'Cover sheet'!$D$14","v":0},{"$f":"'Cover sheet'!$D$15","v":""}]
[null,"2021-01-01",null,null,"",{"$f":"IF(AND(Table1[[#This Row],[1\nNumber of children for whom a new application was submitted during the month]]=\"\", Table1[[#This Row],[2\nNumber of children for whom a renewal application was submitted during the month]]=\"\",Table1[[#This Row],[3\nTotal: number of children applying this month]]=\"\"),\"\", IF(Table1[[#This Row],[1\nNumber of children for whom a new application was submitted during the month]]=\"\",0,Table1[[#This Row],[1\nNumber of children for whom a new application was submitted during the month]]))","v":""},{"$f":"IF(AND(Table1[[#This Row],[1\nNumber of children for whom a new application was submitted during the month]]=\"\", Table1[[#This Row],[2\nNumber of children for whom a renewal application was submitted during the month]]=\"\", Table1[[#This Row],[3\nTotal: number of children applying this month]]=\"\"),\"\",IF(Table1[[#This Row],[2\nNumber of children for whom a renewal application was submitted during the month]]=\"\",0,Table1[[#This Row],[2\nNumber of children for whom a renewal application was submitted during the month]]))","v":""},{"$f":"IF(AND(Table1[[#This Row],[1\nNumber of children for whom a new application was submitted during the month]]=\"\", Table1[[#This Row],[2\nNumber of children for whom a renewal application was submitted during the month]]=\"\",Table1[[#This Row],[3\nTotal: number of children applying this month]]=\"\"),\"\",MAX(Table1[[#This Row],[3\nTotal: number of children applying this month]]-(Table1[[#This Row],[2\nNumber of children for whom a renewal application was submitted during the month]]+Table1[[#This Row],[1\nNumber of children for whom a new application was submitted during the month]]),0))","v":""},null,null,"",{"$f":"IF(AND(Table1[[#This Row],[4\nNumber of children newly enrolled to date]]=\"\", Table1[[#This Row],[5\nNumber of children renewed to date]]=\"\",Table1[[#This Row],[6\nTotal: Number of children enrolled or renewed to date]]=\"\"),\"\", IF(Table1[[#This Row],[4\nNumber of children newly enrolled to date]]=\"\",0,Table1[[#This Row],[4\nNumber of children newly enrolled to date]]))","v":""},{"$f":"IF(AND(Table1[[#This Row],[4\nNumber of children newly enrolled to date]]=\"\",Table1[[#This Row],[5\nNumber of children renewed to date]]=\"\", Table1[[#This Row],[6\nTotal: Number of children enrolled or renewed to date]]=\"\"),\"\", IF(Table1[[#This Row],[5\nNumber of children renewed to date]]=\"\",0,Table1[[#This Row],[5\nNumber of children renewed to date]]))","v":""},{"$f":"IF(AND(Table1[[#This Row],[4\nNumber of children newly enrolled to date]]=\"\",Table1[[#This Row],[5\nNumber of children renewed to date]]=\"\",Table1[[#This Row],[6\nTotal: Number of children enrolled or renewed to date]]=\"\"),\"\", MAX(Table1[[#This Row],[6\nTotal: Number of children enrolled or renewed to date]]-(Table1[[#This Row],[4\nNumber of children newly enrolled to date]]+Table1[[#This Row],[5\nNumber of children renewed to date]]),0))","v":""},{"$f":"'Cover sheet'!$D$13","v":0},{"$f":"'Cover sheet'!$D$14","v":0},{"$f":"'Cover sheet'!$D$15","v":""}]
[null,"2021-02-01",null,null,"",{"$f":"IF(AND(Table1[[#This Row],[1\nNumber of children for whom a new application was submitted during the month]]=\"\", Table1[[#This Row],[2\nNumber of children for whom a renewal application was submitted during the month]]=\"\",Table1[[#This Row],[3\nTotal: number of children applying this month]]=\"\"),\"\", IF(Table1[[#This Row],[1\nNumber of children for whom a new application was submitted during the month]]=\"\",0,Table1[[#This Row],[1\nNumber of children for whom a new application was submitted during the month]]))","v":""},{"$f":"IF(AND(Table1[[#This Row],[1\nNumber of children for whom a new application was submitted during the month]]=\"\", Table1[[#This Row],[2\nNumber of children for whom a renewal application was submitted during the month]]=\"\", Table1[[#This Row],[3\nTotal: number of children applying this month]]=\"\"),\"\",IF(Table1[[#This Row],[2\nNumber of children for whom a renewal application was submitted during the month]]=\"\",0,Table1[[#This Row],[2\nNumber of children for whom a renewal application was submitted during the month]]))","v":""},{"$f":"IF(AND(Table1[[#This Row],[1\nNumber of children for whom a new application was submitted during the month]]=\"\", Table1[[#This Row],[2\nNumber of children for whom a renewal application was submitted during the month]]=\"\",Table1[[#This Row],[3\nTotal: number of children applying this month]]=\"\"),\"\",MAX(Table1[[#This Row],[3\nTotal: number of children applying this month]]-(Table1[[#This Row],[2\nNumber of children for whom a renewal application was submitted during the month]]+Table1[[#This Row],[1\nNumber of children for whom a new application was submitted during the month]]),0))","v":""},null,null,"",{"$f":"IF(AND(Table1[[#This Row],[4\nNumber of children newly enrolled to date]]=\"\", Table1[[#This Row],[5\nNumber of children renewed to date]]=\"\",Table1[[#This Row],[6\nTotal: Number of children enrolled or renewed to date]]=\"\"),\"\", IF(Table1[[#This Row],[4\nNumber of children newly enrolled to date]]=\"\",0,Table1[[#This Row],[4\nNumber of children newly enrolled to date]]))","v":""},{"$f":"IF(AND(Table1[[#This Row],[4\nNumber of children newly enrolled to date]]=\"\",Table1[[#This Row],[5\nNumber of children renewed to date]]=\"\", Table1[[#This Row],[6\nTotal: Number of children enrolled or renewed to date]]=\"\"),\"\", IF(Table1[[#This Row],[5\nNumber of children renewed to date]]=\"\",0,Table1[[#This Row],[5\nNumber of children renewed to date]]))","v":""},{"$f":"IF(AND(Table1[[#This Row],[4\nNumber of children newly enrolled to date]]=\"\",Table1[[#This Row],[5\nNumber of children renewed to date]]=\"\",Table1[[#This Row],[6\nTotal: Number of children enrolled or renewed to date]]=\"\"),\"\", MAX(Table1[[#This Row],[6\nTotal: Number of children enrolled or renewed to date]]-(Table1[[#This Row],[4\nNumber of children newly enrolled to date]]+Table1[[#This Row],[5\nNumber of children renewed to date]]),0))","v":""},{"$f":"'Cover sheet'!$D$13","v":0},{"$f":"'Cover sheet'!$D$14","v":0},{"$f":"'Cover sheet'!$D$15","v":""}]
[null,"2021-03-01",null,null,"",{"$f":"IF(AND(Table1[[#This Row],[1\nNumber of children for whom a new application was submitted during the month]]=\"\", Table1[[#This Row],[2\nNumber of children for whom a renewal application was submitted during the month]]=\"\",Table1[[#This Row],[3\nTotal: number of children applying this month]]=\"\"),\"\", IF(Table1[[#This Row],[1\nNumber of children for whom a new application was submitted during the month]]=\"\",0,Table1[[#This Row],[1\nNumber of children for whom a new application was submitted during the month]]))","v":""},{"$f":"IF(AND(Table1[[#This Row],[1\nNumber of children for whom a new application was submitted during the month]]=\"\", Table1[[#This Row],[2\nNumber of children for whom a renewal application was submitted during the month]]=\"\", Table1[[#This Row],[3\nTotal: number of children applying this month]]=\"\"),\"\",IF(Table1[[#This Row],[2\nNumber of children for whom a renewal application was submitted during the month]]=\"\",0,Table1[[#This Row],[2\nNumber of children for whom a renewal application was submitted during the month]]))","v":""},{"$f":"IF(AND(Table1[[#This Row],[1\nNumber of children for whom a new application was submitted during the month]]=\"\", Table1[[#This Row],[2\nNumber of children for whom a renewal application was submitted during the month]]=\"\",Table1[[#This Row],[3\nTotal: number of children applying this month]]=\"\"),\"\",MAX(Table1[[#This Row],[3\nTotal: number of children applying this month]]-(Table1[[#This Row],[2\nNumber of children for whom a renewal application was submitted during the month]]+Table1[[#This Row],[1\nNumber of children for whom a new application was submitted during the month]]),0))","v":""},null,null,"",{"$f":"IF(AND(Table1[[#This Row],[4\nNumber of children newly enrolled to date]]=\"\", Table1[[#This Row],[5\nNumber of children renewed to date]]=\"\",Table1[[#This Row],[6\nTotal: Number of children enrolled or renewed to date]]=\"\"),\"\", IF(Table1[[#This Row],[4\nNumber of children newly enrolled to date]]=\"\",0,Table1[[#This Row],[4\nNumber of children newly enrolled to date]]))","v":""},{"$f":"IF(AND(Table1[[#This Row],[4\nNumber of children newly enrolled to date]]=\"\",Table1[[#This Row],[5\nNumber of children renewed to date]]=\"\", Table1[[#This Row],[6\nTotal: Number of children enrolled or renewed to date]]=\"\"),\"\", IF(Table1[[#This Row],[5\nNumber of children renewed to date]]=\"\",0,Table1[[#This Row],[5\nNumber of children renewed to date]]))","v":""},{"$f":"IF(AND(Table1[[#This Row],[4\nNumber of children newly enrolled to date]]=\"\",Table1[[#This Row],[5\nNumber of children renewed to date]]=\"\",Table1[[#This Row],[6\nTotal: Number of children enrolled or renewed to date]]=\"\"),\"\", MAX(Table1[[#This Row],[6\nTotal: Number of children enrolled or renewed to date]]-(Table1[[#This Row],[4\nNumber of children newly enrolled to date]]+Table1[[#This Row],[5\nNumber of children renewed to date]]),0))","v":""},{"$f":"'Cover sheet'!$D$13","v":0},{"$f":"'Cover sheet'!$D$14","v":0},{"$f":"'Cover sheet'!$D$15","v":""}]
[null,"2021-04-01",null,null,"",{"$f":"IF(AND(Table1[[#This Row],[1\nNumber of children for whom a new application was submitted during the month]]=\"\", Table1[[#This Row],[2\nNumber of children for whom a renewal application was submitted during the month]]=\"\",Table1[[#This Row],[3\nTotal: number of children applying this month]]=\"\"),\"\", IF(Table1[[#This Row],[1\nNumber of children for whom a new application was submitted during the month]]=\"\",0,Table1[[#This Row],[1\nNumber of children for whom a new application was submitted during the month]]))","v":""},{"$f":"IF(AND(Table1[[#This Row],[1\nNumber of children for whom a new application was submitted during the month]]=\"\", Table1[[#This Row],[2\nNumber of children for whom a renewal application was submitted during the month]]=\"\", Table1[[#This Row],[3\nTotal: number of children applying this month]]=\"\"),\"\",IF(Table1[[#This Row],[2\nNumber of children for whom a renewal application was submitted during the month]]=\"\",0,Table1[[#This Row],[2\nNumber of children for whom a renewal application was submitted during the month]]))","v":""},{"$f":"IF(AND(Table1[[#This Row],[1\nNumber of children for whom a new application was submitted during the month]]=\"\", Table1[[#This Row],[2\nNumber of children for whom a renewal application was submitted during the month]]=\"\",Table1[[#This Row],[3\nTotal: number of children applying this month]]=\"\"),\"\",MAX(Table1[[#This Row],[3\nTotal: number of children applying this month]]-(Table1[[#This Row],[2\nNumber of children for whom a renewal application was submitted during the month]]+Table1[[#This Row],[1\nNumber of children for whom a new application was submitted during the month]]),0))","v":""},null,null,"",{"$f":"IF(AND(Table1[[#This Row],[4\nNumber of children newly enrolled to date]]=\"\", Table1[[#This Row],[5\nNumber of children renewed to date]]=\"\",Table1[[#This Row],[6\nTotal: Number of children enrolled or renewed to date]]=\"\"),\"\", IF(Table1[[#This Row],[4\nNumber of children newly enrolled to date]]=\"\",0,Table1[[#This Row],[4\nNumber of children newly enrolled to date]]))","v":""},{"$f":"IF(AND(Table1[[#This Row],[4\nNumber of children newly enrolled to date]]=\"\",Table1[[#This Row],[5\nNumber of children renewed to date]]=\"\", Table1[[#This Row],[6\nTotal: Number of children enrolled or renewed to date]]=\"\"),\"\", IF(Table1[[#This Row],[5\nNumber of children renewed to date]]=\"\",0,Table1[[#This Row],[5\nNumber of children renewed to date]]))","v":""},{"$f":"IF(AND(Table1[[#This Row],[4\nNumber of children newly enrolled to date]]=\"\",Table1[[#This Row],[5\nNumber of children renewed to date]]=\"\",Table1[[#This Row],[6\nTotal: Number of children enrolled or renewed to date]]=\"\"),\"\", MAX(Table1[[#This Row],[6\nTotal: Number of children enrolled or renewed to date]]-(Table1[[#This Row],[4\nNumber of children newly enrolled to date]]+Table1[[#This Row],[5\nNumber of children renewed to date]]),0))","v":""},{"$f":"'Cover sheet'!$D$13","v":0},{"$f":"'Cover sheet'!$D$14","v":0},{"$f":"'Cover sheet'!$D$15","v":""}]
[null,"2021-05-01",null,null,"",{"$f":"IF(AND(Table1[[#This Row],[1\nNumber of children for whom a new application was submitted during the month]]=\"\", Table1[[#This Row],[2\nNumber of children for whom a renewal application was submitted during the month]]=\"\",Table1[[#This Row],[3\nTotal: number of children applying this month]]=\"\"),\"\", IF(Table1[[#This Row],[1\nNumber of children for whom a new application was submitted during the month]]=\"\",0,Table1[[#This Row],[1\nNumber of children for whom a new application was submitted during the month]]))","v":""},{"$f":"IF(AND(Table1[[#This Row],[1\nNumber of children for whom a new application was submitted during the month]]=\"\", Table1[[#This Row],[2\nNumber of children for whom a renewal application was submitted during the month]]=\"\", Table1[[#This Row],[3\nTotal: number of children applying this month]]=\"\"),\"\",IF(Table1[[#This Row],[2\nNumber of children for whom a renewal application was submitted during the month]]=\"\",0,Table1[[#This Row],[2\nNumber of children for whom a renewal application was submitted during the month]]))","v":""},{"$f":"IF(AND(Table1[[#This Row],[1\nNumber of children for whom a new application was submitted during the month]]=\"\", Table1[[#This Row],[2\nNumber of children for whom a renewal application was submitted during the month]]=\"\",Table1[[#This Row],[3\nTotal: number of children applying this month]]=\"\"),\"\",MAX(Table1[[#This Row],[3\nTotal: number of children applying this month]]-(Table1[[#This Row],[2\nNumber of children for whom a renewal application was submitted during the month]]+Table1[[#This Row],[1\nNumber of children for whom a new application was submitted during the month]]),0))","v":""},null,null,"",{"$f":"IF(AND(Table1[[#This Row],[4\nNumber of children newly enrolled to date]]=\"\", Table1[[#This Row],[5\nNumber of children renewed to date]]=\"\",Table1[[#This Row],[6\nTotal: Number of children enrolled or renewed to date]]=\"\"),\"\", IF(Table1[[#This Row],[4\nNumber of children newly enrolled to date]]=\"\",0,Table1[[#This Row],[4\nNumber of children newly enrolled to date]]))","v":""},{"$f":"IF(AND(Table1[[#This Row],[4\nNumber of children newly enrolled to date]]=\"\",Table1[[#This Row],[5\nNumber of children renewed to date]]=\"\", Table1[[#This Row],[6\nTotal: Number of children enrolled or renewed to date]]=\"\"),\"\", IF(Table1[[#This Row],[5\nNumber of children renewed to date]]=\"\",0,Table1[[#This Row],[5\nNumber of children renewed to date]]))","v":""},{"$f":"IF(AND(Table1[[#This Row],[4\nNumber of children newly enrolled to date]]=\"\",Table1[[#This Row],[5\nNumber of children renewed to date]]=\"\",Table1[[#This Row],[6\nTotal: Number of children enrolled or renewed to date]]=\"\"),\"\", MAX(Table1[[#This Row],[6\nTotal: Number of children enrolled or renewed to date]]-(Table1[[#This Row],[4\nNumber of children newly enrolled to date]]+Table1[[#This Row],[5\nNumber of children renewed to date]]),0))","v":""},{"$f":"'Cover sheet'!$D$13","v":0},{"$f":"'Cover sheet'!$D$14","v":0},{"$f":"'Cover sheet'!$D$15","v":""}]
[null,"2021-06-01",null,null,"",{"$f":"IF(AND(Table1[[#This Row],[1\nNumber of children for whom a new application was submitted during the month]]=\"\", Table1[[#This Row],[2\nNumber of children for whom a renewal application was submitted during the month]]=\"\",Table1[[#This Row],[3\nTotal: number of children applying this month]]=\"\"),\"\", IF(Table1[[#This Row],[1\nNumber of children for whom a new application was submitted during the month]]=\"\",0,Table1[[#This Row],[1\nNumber of children for whom a new application was submitted during the month]]))","v":""},{"$f":"IF(AND(Table1[[#This Row],[1\nNumber of children for whom a new application was submitted during the month]]=\"\", Table1[[#This Row],[2\nNumber of children for whom a renewal application was submitted during the month]]=\"\", Table1[[#This Row],[3\nTotal: number of children applying this month]]=\"\"),\"\",IF(Table1[[#This Row],[2\nNumber of children for whom a renewal application was submitted during the month]]=\"\",0,Table1[[#This Row],[2\nNumber of children for whom a renewal application was submitted during the month]]))","v":""},{"$f":"IF(AND(Table1[[#This Row],[1\nNumber of children for whom a new application was submitted during the month]]=\"\", Table1[[#This Row],[2\nNumber of children for whom a renewal application was submitted during the month]]=\"\",Table1[[#This Row],[3\nTotal: number of children applying this month]]=\"\"),\"\",MAX(Table1[[#This Row],[3\nTotal: number of children applying this month]]-(Table1[[#This Row],[2\nNumber of children for whom a renewal application was submitted during the month]]+Table1[[#This Row],[1\nNumber of children for whom a new application was submitted during the month]]),0))","v":""},null,null,"",{"$f":"IF(AND(Table1[[#This Row],[4\nNumber of children newly enrolled to date]]=\"\", Table1[[#This Row],[5\nNumber of children renewed to date]]=\"\",Table1[[#This Row],[6\nTotal: Number of children enrolled or renewed to date]]=\"\"),\"\", IF(Table1[[#This Row],[4\nNumber of children newly enrolled to date]]=\"\",0,Table1[[#This Row],[4\nNumber of children newly enrolled to date]]))","v":""},{"$f":"IF(AND(Table1[[#This Row],[4\nNumber of children newly enrolled to date]]=\"\",Table1[[#This Row],[5\nNumber of children renewed to date]]=\"\", Table1[[#This Row],[6\nTotal: Number of children enrolled or renewed to date]]=\"\"),\"\", IF(Table1[[#This Row],[5\nNumber of children renewed to date]]=\"\",0,Table1[[#This Row],[5\nNumber of children renewed to date]]))","v":""},{"$f":"IF(AND(Table1[[#This Row],[4\nNumber of children newly enrolled to date]]=\"\",Table1[[#This Row],[5\nNumber of children renewed to date]]=\"\",Table1[[#This Row],[6\nTotal: Number of children enrolled or renewed to date]]=\"\"),\"\", MAX(Table1[[#This Row],[6\nTotal: Number of children enrolled or renewed to date]]-(Table1[[#This Row],[4\nNumber of children newly enrolled to date]]+Table1[[#This Row],[5\nNumber of children renewed to date]]),0))","v":""},{"$f":"'Cover sheet'!$D$13","v":0},{"$f":"'Cover sheet'!$D$14","v":0},{"$f":"'Cover sheet'!$D$15","v":""}]
[null,"2021-07-01",null,null,"",{"$f":"IF(AND(Table1[[#This Row],[1\nNumber of children for whom a new application was submitted during the month]]=\"\", Table1[[#This Row],[2\nNumber of children for whom a renewal application was submitted during the month]]=\"\",Table1[[#This Row],[3\nTotal: number of children applying this month]]=\"\"),\"\", IF(Table1[[#This Row],[1\nNumber of children for whom a new application was submitted during the month]]=\"\",0,Table1[[#This Row],[1\nNumber of children for whom a new application was submitted during the month]]))","v":""},{"$f":"IF(AND(Table1[[#This Row],[1\nNumber of children for whom a new application was submitted during the month]]=\"\", Table1[[#This Row],[2\nNumber of children for whom a renewal application was submitted during the month]]=\"\", Table1[[#This Row],[3\nTotal: number of children applying this month]]=\"\"),\"\",IF(Table1[[#This Row],[2\nNumber of children for whom a renewal application was submitted during the month]]=\"\",0,Table1[[#This Row],[2\nNumber of children for whom a renewal application was submitted during the month]]))","v":""},{"$f":"IF(AND(Table1[[#This Row],[1\nNumber of children for whom a new application was submitted during the month]]=\"\", Table1[[#This Row],[2\nNumber of children for whom a renewal application was submitted during the month]]=\"\",Table1[[#This Row],[3\nTotal: number of children applying this month]]=\"\"),\"\",MAX(Table1[[#This Row],[3\nTotal: number of children applying this month]]-(Table1[[#This Row],[2\nNumber of children for whom a renewal application was submitted during the month]]+Table1[[#This Row],[1\nNumber of children for whom a new application was submitted during the month]]),0))","v":""},null,null,"",{"$f":"IF(AND(Table1[[#This Row],[4\nNumber of children newly enrolled to date]]=\"\", Table1[[#This Row],[5\nNumber of children renewed to date]]=\"\",Table1[[#This Row],[6\nTotal: Number of children enrolled or renewed to date]]=\"\"),\"\", IF(Table1[[#This Row],[4\nNumber of children newly enrolled to date]]=\"\",0,Table1[[#This Row],[4\nNumber of children newly enrolled to date]]))","v":""},{"$f":"IF(AND(Table1[[#This Row],[4\nNumber of children newly enrolled to date]]=\"\",Table1[[#This Row],[5\nNumber of children renewed to date]]=\"\", Table1[[#This Row],[6\nTotal: Number of children enrolled or renewed to date]]=\"\"),\"\", IF(Table1[[#This Row],[5\nNumber of children renewed to date]]=\"\",0,Table1[[#This Row],[5\nNumber of children renewed to date]]))","v":""},{"$f":"IF(AND(Table1[[#This Row],[4\nNumber of children newly enrolled to date]]=\"\",Table1[[#This Row],[5\nNumber of children renewed to date]]=\"\",Table1[[#This Row],[6\nTotal: Number of children enrolled or renewed to date]]=\"\"),\"\", MAX(Table1[[#This Row],[6\nTotal: Number of children enrolled or renewed to date]]-(Table1[[#This Row],[4\nNumber of children newly enrolled to date]]+Table1[[#This Row],[5\nNumber of children renewed to date]]),0))","v":""},{"$f":"'Cover sheet'!$D$13","v":0},{"$f":"'Cover sheet'!$D$14","v":0},{"$f":"'Cover sheet'!$D$15","v":""}]
[null,"2021-08-01",null,null,"",{"$f":"IF(AND(Table1[[#This Row],[1\nNumber of children for whom a new application was submitted during the month]]=\"\", Table1[[#This Row],[2\nNumber of children for whom a renewal application was submitted during the month]]=\"\",Table1[[#This Row],[3\nTotal: number of children applying this month]]=\"\"),\"\", IF(Table1[[#This Row],[1\nNumber of children for whom a new application was submitted during the month]]=\"\",0,Table1[[#This Row],[1\nNumber of children for whom a new application was submitted during the month]]))","v":""},{"$f":"IF(AND(Table1[[#This Row],[1\nNumber of children for whom a new application was submitted during the month]]=\"\", Table1[[#This Row],[2\nNumber of children for whom a renewal application was submitted during the month]]=\"\", Table1[[#This Row],[3\nTotal: number of children applying this month]]=\"\"),\"\",IF(Table1[[#This Row],[2\nNumber of children for whom a renewal application was submitted during the month]]=\"\",0,Table1[[#This Row],[2\nNumber of children for whom a renewal application was submitted during the month]]))","v":""},{"$f":"IF(AND(Table1[[#This Row],[1\nNumber of children for whom a new application was submitted during the month]]=\"\", Table1[[#This Row],[2\nNumber of children for whom a renewal application was submitted during the month]]=\"\",Table1[[#This Row],[3\nTotal: number of children applying this month]]=\"\"),\"\",MAX(Table1[[#This Row],[3\nTotal: number of children applying this month]]-(Table1[[#This Row],[2\nNumber of children for whom a renewal application was submitted during the month]]+Table1[[#This Row],[1\nNumber of children for whom a new application was submitted during the month]]),0))","v":""},null,null,"",{"$f":"IF(AND(Table1[[#This Row],[4\nNumber of children newly enrolled to date]]=\"\", Table1[[#This Row],[5\nNumber of children renewed to date]]=\"\",Table1[[#This Row],[6\nTotal: Number of children enrolled or renewed to date]]=\"\"),\"\", IF(Table1[[#This Row],[4\nNumber of children newly enrolled to date]]=\"\",0,Table1[[#This Row],[4\nNumber of children newly enrolled to date]]))","v":""},{"$f":"IF(AND(Table1[[#This Row],[4\nNumber of children newly enrolled to date]]=\"\",Table1[[#This Row],[5\nNumber of children renewed to date]]=\"\", Table1[[#This Row],[6\nTotal: Number of children enrolled or renewed to date]]=\"\"),\"\", IF(Table1[[#This Row],[5\nNumber of children renewed to date]]=\"\",0,Table1[[#This Row],[5\nNumber of children renewed to date]]))","v":""},{"$f":"IF(AND(Table1[[#This Row],[4\nNumber of children newly enrolled to date]]=\"\",Table1[[#This Row],[5\nNumber of children renewed to date]]=\"\",Table1[[#This Row],[6\nTotal: Number of children enrolled or renewed to date]]=\"\"),\"\", MAX(Table1[[#This Row],[6\nTotal: Number of children enrolled or renewed to date]]-(Table1[[#This Row],[4\nNumber of children newly enrolled to date]]+Table1[[#This Row],[5\nNumber of children renewed to date]]),0))","v":""},{"$f":"'Cover sheet'!$D$13","v":0},{"$f":"'Cover sheet'!$D$14","v":0},{"$f":"'Cover sheet'!$D$15","v":""}]
[null,"2021-09-01",null,null,"",{"$f":"IF(AND(Table1[[#This Row],[1\nNumber of children for whom a new application was submitted during the month]]=\"\", Table1[[#This Row],[2\nNumber of children for whom a renewal application was submitted during the month]]=\"\",Table1[[#This Row],[3\nTotal: number of children applying this month]]=\"\"),\"\", IF(Table1[[#This Row],[1\nNumber of children for whom a new application was submitted during the month]]=\"\",0,Table1[[#This Row],[1\nNumber of children for whom a new application was submitted during the month]]))","v":""},{"$f":"IF(AND(Table1[[#This Row],[1\nNumber of children for whom a new application was submitted during the month]]=\"\", Table1[[#This Row],[2\nNumber of children for whom a renewal application was submitted during the month]]=\"\", Table1[[#This Row],[3\nTotal: number of children applying this month]]=\"\"),\"\",IF(Table1[[#This Row],[2\nNumber of children for whom a renewal application was submitted during the month]]=\"\",0,Table1[[#This Row],[2\nNumber of children for whom a renewal application was submitted during the month]]))","v":""},{"$f":"IF(AND(Table1[[#This Row],[1\nNumber of children for whom a new application was submitted during the month]]=\"\", Table1[[#This Row],[2\nNumber of children for whom a renewal application was submitted during the month]]=\"\",Table1[[#This Row],[3\nTotal: number of children applying this month]]=\"\"),\"\",MAX(Table1[[#This Row],[3\nTotal: number of children applying this month]]-(Table1[[#This Row],[2\nNumber of children for whom a renewal application was submitted during the month]]+Table1[[#This Row],[1\nNumber of children for whom a new application was submitted during the month]]),0))","v":""},null,null,"",{"$f":"IF(AND(Table1[[#This Row],[4\nNumber of children newly enrolled to date]]=\"\", Table1[[#This Row],[5\nNumber of children renewed to date]]=\"\",Table1[[#This Row],[6\nTotal: Number of children enrolled or renewed to date]]=\"\"),\"\", IF(Table1[[#This Row],[4\nNumber of children newly enrolled to date]]=\"\",0,Table1[[#This Row],[4\nNumber of children newly enrolled to date]]))","v":""},{"$f":"IF(AND(Table1[[#This Row],[4\nNumber of children newly enrolled to date]]=\"\",Table1[[#This Row],[5\nNumber of children renewed to date]]=\"\", Table1[[#This Row],[6\nTotal: Number of children enrolled or renewed to date]]=\"\"),\"\", IF(Table1[[#This Row],[5\nNumber of children renewed to date]]=\"\",0,Table1[[#This Row],[5\nNumber of children renewed to date]]))","v":""},{"$f":"IF(AND(Table1[[#This Row],[4\nNumber of children newly enrolled to date]]=\"\",Table1[[#This Row],[5\nNumber of children renewed to date]]=\"\",Table1[[#This Row],[6\nTotal: Number of children enrolled or renewed to date]]=\"\"),\"\", MAX(Table1[[#This Row],[6\nTotal: Number of children enrolled or renewed to date]]-(Table1[[#This Row],[4\nNumber of children newly enrolled to date]]+Table1[[#This Row],[5\nNumber of children renewed to date]]),0))","v":""},{"$f":"'Cover sheet'!$D$13","v":0},{"$f":"'Cover sheet'!$D$14","v":0},{"$f":"'Cover sheet'!$D$15","v":""}]
[null,"2021-10-01",null,null,"",{"$f":"IF(AND(Table1[[#This Row],[1\nNumber of children for whom a new application was submitted during the month]]=\"\", Table1[[#This Row],[2\nNumber of children for whom a renewal application was submitted during the month]]=\"\",Table1[[#This Row],[3\nTotal: number of children applying this month]]=\"\"),\"\", IF(Table1[[#This Row],[1\nNumber of children for whom a new application was submitted during the month]]=\"\",0,Table1[[#This Row],[1\nNumber of children for whom a new application was submitted during the month]]))","v":""},{"$f":"IF(AND(Table1[[#This Row],[1\nNumber of children for whom a new application was submitted during the month]]=\"\", Table1[[#This Row],[2\nNumber of children for whom a renewal application was submitted during the month]]=\"\", Table1[[#This Row],[3\nTotal: number of children applying this month]]=\"\"),\"\",IF(Table1[[#This Row],[2\nNumber of children for whom a renewal application was submitted during the month]]=\"\",0,Table1[[#This Row],[2\nNumber of children for whom a renewal application was submitted during the month]]))","v":""},{"$f":"IF(AND(Table1[[#This Row],[1\nNumber of children for whom a new application was submitted during the month]]=\"\", Table1[[#This Row],[2\nNumber of children for whom a renewal application was submitted during the month]]=\"\",Table1[[#This Row],[3\nTotal: number of children applying this month]]=\"\"),\"\",MAX(Table1[[#This Row],[3\nTotal: number of children applying this month]]-(Table1[[#This Row],[2\nNumber of children for whom a renewal application was submitted during the month]]+Table1[[#This Row],[1\nNumber of children for whom a new application was submitted during the month]]),0))","v":""},null,null,"",{"$f":"IF(AND(Table1[[#This Row],[4\nNumber of children newly enrolled to date]]=\"\", Table1[[#This Row],[5\nNumber of children renewed to date]]=\"\",Table1[[#This Row],[6\nTotal: Number of children enrolled or renewed to date]]=\"\"),\"\", IF(Table1[[#This Row],[4\nNumber of children newly enrolled to date]]=\"\",0,Table1[[#This Row],[4\nNumber of children newly enrolled to date]]))","v":""},{"$f":"IF(AND(Table1[[#This Row],[4\nNumber of children newly enrolled to date]]=\"\",Table1[[#This Row],[5\nNumber of children renewed to date]]=\"\", Table1[[#This Row],[6\nTotal: Number of children enrolled or renewed to date]]=\"\"),\"\", IF(Table1[[#This Row],[5\nNumber of children renewed to date]]=\"\",0,Table1[[#This Row],[5\nNumber of children renewed to date]]))","v":""},{"$f":"IF(AND(Table1[[#This Row],[4\nNumber of children newly enrolled to date]]=\"\",Table1[[#This Row],[5\nNumber of children renewed to date]]=\"\",Table1[[#This Row],[6\nTotal: Number of children enrolled or renewed to date]]=\"\"),\"\", MAX(Table1[[#This Row],[6\nTotal: Number of children enrolled or renewed to date]]-(Table1[[#This Row],[4\nNumber of children newly enrolled to date]]+Table1[[#This Row],[5\nNumber of children renewed to date]]),0))","v":""},{"$f":"'Cover sheet'!$D$13","v":0},{"$f":"'Cover sheet'!$D$14","v":0},{"$f":"'Cover sheet'!$D$15","v":""}]
[null,"2021-11-01",null,null,"",{"$f":"IF(AND(Table1[[#This Row],[1\nNumber of children for whom a new application was submitted during the month]]=\"\", Table1[[#This Row],[2\nNumber of children for whom a renewal application was submitted during the month]]=\"\",Table1[[#This Row],[3\nTotal: number of children applying this month]]=\"\"),\"\", IF(Table1[[#This Row],[1\nNumber of children for whom a new application was submitted during the month]]=\"\",0,Table1[[#This Row],[1\nNumber of children for whom a new application was submitted during the month]]))","v":""},{"$f":"IF(AND(Table1[[#This Row],[1\nNumber of children for whom a new application was submitted during the month]]=\"\", Table1[[#This Row],[2\nNumber of children for whom a renewal application was submitted during the month]]=\"\", Table1[[#This Row],[3\nTotal: number of children applying this month]]=\"\"),\"\",IF(Table1[[#This Row],[2\nNumber of children for whom a renewal application was submitted during the month]]=\"\",0,Table1[[#This Row],[2\nNumber of children for whom a renewal application was submitted during the month]]))","v":""},{"$f":"IF(AND(Table1[[#This Row],[1\nNumber of children for whom a new application was submitted during the month]]=\"\", Table1[[#This Row],[2\nNumber of children for whom a renewal application was submitted during the month]]=\"\",Table1[[#This Row],[3\nTotal: number of children applying this month]]=\"\"),\"\",MAX(Table1[[#This Row],[3\nTotal: number of children applying this month]]-(Table1[[#This Row],[2\nNumber of children for whom a renewal application was submitted during the month]]+Table1[[#This Row],[1\nNumber of children for whom a new application was submitted during the month]]),0))","v":""},null,null,"",{"$f":"IF(AND(Table1[[#This Row],[4\nNumber of children newly enrolled to date]]=\"\", Table1[[#This Row],[5\nNumber of children renewed to date]]=\"\",Table1[[#This Row],[6\nTotal: Number of children enrolled or renewed to date]]=\"\"),\"\", IF(Table1[[#This Row],[4\nNumber of children newly enrolled to date]]=\"\",0,Table1[[#This Row],[4\nNumber of children newly enrolled to date]]))","v":""},{"$f":"IF(AND(Table1[[#This Row],[4\nNumber of children newly enrolled to date]]=\"\",Table1[[#This Row],[5\nNumber of children renewed to date]]=\"\", Table1[[#This Row],[6\nTotal: Number of children enrolled or renewed to date]]=\"\"),\"\", IF(Table1[[#This Row],[5\nNumber of children renewed to date]]=\"\",0,Table1[[#This Row],[5\nNumber of children renewed to date]]))","v":""},{"$f":"IF(AND(Table1[[#This Row],[4\nNumber of children newly enrolled to date]]=\"\",Table1[[#This Row],[5\nNumber of children renewed to date]]=\"\",Table1[[#This Row],[6\nTotal: Number of children enrolled or renewed to date]]=\"\"),\"\", MAX(Table1[[#This Row],[6\nTotal: Number of children enrolled or renewed to date]]-(Table1[[#This Row],[4\nNumber of children newly enrolled to date]]+Table1[[#This Row],[5\nNumber of children renewed to date]]),0))","v":""},{"$f":"'Cover sheet'!$D$13","v":0},{"$f":"'Cover sheet'!$D$14","v":0},{"$f":"'Cover sheet'!$D$15","v":""}]
[null,"2021-12-01",null,null,"",{"$f":"IF(AND(Table1[[#This Row],[1\nNumber of children for whom a new application was submitted during the month]]=\"\", Table1[[#This Row],[2\nNumber of children for whom a renewal application was submitted during the month]]=\"\",Table1[[#This Row],[3\nTotal: number of children applying this month]]=\"\"),\"\", IF(Table1[[#This Row],[1\nNumber of children for whom a new application was submitted during the month]]=\"\",0,Table1[[#This Row],[1\nNumber of children for whom a new application was submitted during the month]]))","v":""},{"$f":"IF(AND(Table1[[#This Row],[1\nNumber of children for whom a new application was submitted during the month]]=\"\", Table1[[#This Row],[2\nNumber of children for whom a renewal application was submitted during the month]]=\"\", Table1[[#This Row],[3\nTotal: number of children applying this month]]=\"\"),\"\",IF(Table1[[#This Row],[2\nNumber of children for whom a renewal application was submitted during the month]]=\"\",0,Table1[[#This Row],[2\nNumber of children for whom a renewal application was submitted during the month]]))","v":""},{"$f":"IF(AND(Table1[[#This Row],[1\nNumber of children for whom a new application was submitted during the month]]=\"\", Table1[[#This Row],[2\nNumber of children for whom a renewal application was submitted during the month]]=\"\",Table1[[#This Row],[3\nTotal: number of children applying this month]]=\"\"),\"\",MAX(Table1[[#This Row],[3\nTotal: number of children applying this month]]-(Table1[[#This Row],[2\nNumber of children for whom a renewal application was submitted during the month]]+Table1[[#This Row],[1\nNumber of children for whom a new application was submitted during the month]]),0))","v":""},null,null,"",{"$f":"IF(AND(Table1[[#This Row],[4\nNumber of children newly enrolled to date]]=\"\", Table1[[#This Row],[5\nNumber of children renewed to date]]=\"\",Table1[[#This Row],[6\nTotal: Number of children enrolled or renewed to date]]=\"\"),\"\", IF(Table1[[#This Row],[4\nNumber of children newly enrolled to date]]=\"\",0,Table1[[#This Row],[4\nNumber of children newly enrolled to date]]))","v":""},{"$f":"IF(AND(Table1[[#This Row],[4\nNumber of children newly enrolled to date]]=\"\",Table1[[#This Row],[5\nNumber of children renewed to date]]=\"\", Table1[[#This Row],[6\nTotal: Number of children enrolled or renewed to date]]=\"\"),\"\", IF(Table1[[#This Row],[5\nNumber of children renewed to date]]=\"\",0,Table1[[#This Row],[5\nNumber of children renewed to date]]))","v":""},{"$f":"IF(AND(Table1[[#This Row],[4\nNumber of children newly enrolled to date]]=\"\",Table1[[#This Row],[5\nNumber of children renewed to date]]=\"\",Table1[[#This Row],[6\nTotal: Number of children enrolled or renewed to date]]=\"\"),\"\", MAX(Table1[[#This Row],[6\nTotal: Number of children enrolled or renewed to date]]-(Table1[[#This Row],[4\nNumber of children newly enrolled to date]]+Table1[[#This Row],[5\nNumber of children renewed to date]]),0))","v":""},{"$f":"'Cover sheet'!$D$13","v":0},{"$f":"'Cover sheet'!$D$14","v":0},{"$f":"'Cover sheet'!$D$15","v":""}]
[null,"2022-01-01",null,null,"",{"$f":"IF(AND(Table1[[#This Row],[1\nNumber of children for whom a new application was submitted during the month]]=\"\", Table1[[#This Row],[2\nNumber of children for whom a renewal application was submitted during the month]]=\"\",Table1[[#This Row],[3\nTotal: number of children applying this month]]=\"\"),\"\", IF(Table1[[#This Row],[1\nNumber of children for whom a new application was submitted during the month]]=\"\",0,Table1[[#This Row],[1\nNumber of children for whom a new application was submitted during the month]]))","v":""},{"$f":"IF(AND(Table1[[#This Row],[1\nNumber of children for whom a new application was submitted during the month]]=\"\", Table1[[#This Row],[2\nNumber of children for whom a renewal application was submitted during the month]]=\"\", Table1[[#This Row],[3\nTotal: number of children applying this month]]=\"\"),\"\",IF(Table1[[#This Row],[2\nNumber of children for whom a renewal application was submitted during the month]]=\"\",0,Table1[[#This Row],[2\nNumber of children for whom a renewal application was submitted during the month]]))","v":""},{"$f":"IF(AND(Table1[[#This Row],[1\nNumber of children for whom a new application was submitted during the month]]=\"\", Table1[[#This Row],[2\nNumber of children for whom a renewal application was submitted during the month]]=\"\",Table1[[#This Row],[3\nTotal: number of children applying this month]]=\"\"),\"\",MAX(Table1[[#This Row],[3\nTotal: number of children applying this month]]-(Table1[[#This Row],[2\nNumber of children for whom a renewal application was submitted during the month]]+Table1[[#This Row],[1\nNumber of children for whom a new application was submitted during the month]]),0))","v":""},null,null,"",{"$f":"IF(AND(Table1[[#This Row],[4\nNumber of children newly enrolled to date]]=\"\", Table1[[#This Row],[5\nNumber of children renewed to date]]=\"\",Table1[[#This Row],[6\nTotal: Number of children enrolled or renewed to date]]=\"\"),\"\", IF(Table1[[#This Row],[4\nNumber of children newly enrolled to date]]=\"\",0,Table1[[#This Row],[4\nNumber of children newly enrolled to date]]))","v":""},{"$f":"IF(AND(Table1[[#This Row],[4\nNumber of children newly enrolled to date]]=\"\",Table1[[#This Row],[5\nNumber of children renewed to date]]=\"\", Table1[[#This Row],[6\nTotal: Number of children enrolled or renewed to date]]=\"\"),\"\", IF(Table1[[#This Row],[5\nNumber of children renewed to date]]=\"\",0,Table1[[#This Row],[5\nNumber of children renewed to date]]))","v":""},{"$f":"IF(AND(Table1[[#This Row],[4\nNumber of children newly enrolled to date]]=\"\",Table1[[#This Row],[5\nNumber of children renewed to date]]=\"\",Table1[[#This Row],[6\nTotal: Number of children enrolled or renewed to date]]=\"\"),\"\", MAX(Table1[[#This Row],[6\nTotal: Number of children enrolled or renewed to date]]-(Table1[[#This Row],[4\nNumber of children newly enrolled to date]]+Table1[[#This Row],[5\nNumber of children renewed to date]]),0))","v":""},{"$f":"'Cover sheet'!$D$13","v":0},{"$f":"'Cover sheet'!$D$14","v":0},{"$f":"'Cover sheet'!$D$15","v":""}]
[null,"2022-02-01",null,null,"",{"$f":"IF(AND(Table1[[#This Row],[1\nNumber of children for whom a new application was submitted during the month]]=\"\", Table1[[#This Row],[2\nNumber of children for whom a renewal application was submitted during the month]]=\"\",Table1[[#This Row],[3\nTotal: number of children applying this month]]=\"\"),\"\", IF(Table1[[#This Row],[1\nNumber of children for whom a new application was submitted during the month]]=\"\",0,Table1[[#This Row],[1\nNumber of children for whom a new application was submitted during the month]]))","v":""},{"$f":"IF(AND(Table1[[#This Row],[1\nNumber of children for whom a new application was submitted during the month]]=\"\", Table1[[#This Row],[2\nNumber of children for whom a renewal application was submitted during the month]]=\"\", Table1[[#This Row],[3\nTotal: number of children applying this month]]=\"\"),\"\",IF(Table1[[#This Row],[2\nNumber of children for whom a renewal application was submitted during the month]]=\"\",0,Table1[[#This Row],[2\nNumber of children for whom a renewal application was submitted during the month]]))","v":""},{"$f":"IF(AND(Table1[[#This Row],[1\nNumber of children for whom a new application was submitted during the month]]=\"\", Table1[[#This Row],[2\nNumber of children for whom a renewal application was submitted during the month]]=\"\",Table1[[#This Row],[3\nTotal: number of children applying this month]]=\"\"),\"\",MAX(Table1[[#This Row],[3\nTotal: number of children applying this month]]-(Table1[[#This Row],[2\nNumber of children for whom a renewal application was submitted during the month]]+Table1[[#This Row],[1\nNumber of children for whom a new application was submitted during the month]]),0))","v":""},null,null,"",{"$f":"IF(AND(Table1[[#This Row],[4\nNumber of children newly enrolled to date]]=\"\", Table1[[#This Row],[5\nNumber of children renewed to date]]=\"\",Table1[[#This Row],[6\nTotal: Number of children enrolled or renewed to date]]=\"\"),\"\", IF(Table1[[#This Row],[4\nNumber of children newly enrolled to date]]=\"\",0,Table1[[#This Row],[4\nNumber of children newly enrolled to date]]))","v":""},{"$f":"IF(AND(Table1[[#This Row],[4\nNumber of children newly enrolled to date]]=\"\",Table1[[#This Row],[5\nNumber of children renewed to date]]=\"\", Table1[[#This Row],[6\nTotal: Number of children enrolled or renewed to date]]=\"\"),\"\", IF(Table1[[#This Row],[5\nNumber of children renewed to date]]=\"\",0,Table1[[#This Row],[5\nNumber of children renewed to date]]))","v":""},{"$f":"IF(AND(Table1[[#This Row],[4\nNumber of children newly enrolled to date]]=\"\",Table1[[#This Row],[5\nNumber of children renewed to date]]=\"\",Table1[[#This Row],[6\nTotal: Number of children enrolled or renewed to date]]=\"\"),\"\", MAX(Table1[[#This Row],[6\nTotal: Number of children enrolled or renewed to date]]-(Table1[[#This Row],[4\nNumber of children newly enrolled to date]]+Table1[[#This Row],[5\nNumber of children renewed to date]]),0))","v":""},{"$f":"'Cover sheet'!$D$13","v":0},{"$f":"'Cover sheet'!$D$14","v":0},{"$f":"'Cover sheet'!$D$15","v":""}]
[null,"2022-03-01",null,null,"",{"$f":"IF(AND(Table1[[#This Row],[1\nNumber of children for whom a new application was submitted during the month]]=\"\", Table1[[#This Row],[2\nNumber of children for whom a renewal application was submitted during the month]]=\"\",Table1[[#This Row],[3\nTotal: number of children applying this month]]=\"\"),\"\", IF(Table1[[#This Row],[1\nNumber of children for whom a new application was submitted during the month]]=\"\",0,Table1[[#This Row],[1\nNumber of children for whom a new application was submitted during the month]]))","v":""},{"$f":"IF(AND(Table1[[#This Row],[1\nNumber of children for whom a new application was submitted during the month]]=\"\", Table1[[#This Row],[2\nNumber of children for whom a renewal application was submitted during the month]]=\"\", Table1[[#This Row],[3\nTotal: number of children applying this month]]=\"\"),\"\",IF(Table1[[#This Row],[2\nNumber of children for whom a renewal application was submitted during the month]]=\"\",0,Table1[[#This Row],[2\nNumber of children for whom a renewal application was submitted during the month]]))","v":""},{"$f":"IF(AND(Table1[[#This Row],[1\nNumber of children for whom a new application was submitted during the month]]=\"\", Table1[[#This Row],[2\nNumber of children for whom a renewal application was submitted during the month]]=\"\",Table1[[#This Row],[3\nTotal: number of children applying this month]]=\"\"),\"\",MAX(Table1[[#This Row],[3\nTotal: number of children applying this month]]-(Table1[[#This Row],[2\nNumber of children for whom a renewal application was submitted during the month]]+Table1[[#This Row],[1\nNumber of children for whom a new application was submitted during the month]]),0))","v":""},null,null,"",{"$f":"IF(AND(Table1[[#This Row],[4\nNumber of children newly enrolled to date]]=\"\", Table1[[#This Row],[5\nNumber of children renewed to date]]=\"\",Table1[[#This Row],[6\nTotal: Number of children enrolled or renewed to date]]=\"\"),\"\", IF(Table1[[#This Row],[4\nNumber of children newly enrolled to date]]=\"\",0,Table1[[#This Row],[4\nNumber of children newly enrolled to date]]))","v":""},{"$f":"IF(AND(Table1[[#This Row],[4\nNumber of children newly enrolled to date]]=\"\",Table1[[#This Row],[5\nNumber of children renewed to date]]=\"\", Table1[[#This Row],[6\nTotal: Number of children enrolled or renewed to date]]=\"\"),\"\", IF(Table1[[#This Row],[5\nNumber of children renewed to date]]=\"\",0,Table1[[#This Row],[5\nNumber of children renewed to date]]))","v":""},{"$f":"IF(AND(Table1[[#This Row],[4\nNumber of children newly enrolled to date]]=\"\",Table1[[#This Row],[5\nNumber of children renewed to date]]=\"\",Table1[[#This Row],[6\nTotal: Number of children enrolled or renewed to date]]=\"\"),\"\", MAX(Table1[[#This Row],[6\nTotal: Number of children enrolled or renewed to date]]-(Table1[[#This Row],[4\nNumber of children newly enrolled to date]]+Table1[[#This Row],[5\nNumber of children renewed to date]]),0))","v":""},{"$f":"'Cover sheet'!$D$13","v":0},{"$f":"'Cover sheet'!$D$14","v":0},{"$f":"'Cover sheet'!$D$15","v":""}]
[null,"2022-04-01",null,null,"",{"$f":"IF(AND(Table1[[#This Row],[1\nNumber of children for whom a new application was submitted during the month]]=\"\", Table1[[#This Row],[2\nNumber of children for whom a renewal application was submitted during the month]]=\"\",Table1[[#This Row],[3\nTotal: number of children applying this month]]=\"\"),\"\", IF(Table1[[#This Row],[1\nNumber of children for whom a new application was submitted during the month]]=\"\",0,Table1[[#This Row],[1\nNumber of children for whom a new application was submitted during the month]]))","v":""},{"$f":"IF(AND(Table1[[#This Row],[1\nNumber of children for whom a new application was submitted during the month]]=\"\", Table1[[#This Row],[2\nNumber of children for whom a renewal application was submitted during the month]]=\"\", Table1[[#This Row],[3\nTotal: number of children applying this month]]=\"\"),\"\",IF(Table1[[#This Row],[2\nNumber of children for whom a renewal application was submitted during the month]]=\"\",0,Table1[[#This Row],[2\nNumber of children for whom a renewal application was submitted during the month]]))","v":""},{"$f":"IF(AND(Table1[[#This Row],[1\nNumber of children for whom a new application was submitted during the month]]=\"\", Table1[[#This Row],[2\nNumber of children for whom a renewal application was submitted during the month]]=\"\",Table1[[#This Row],[3\nTotal: number of children applying this month]]=\"\"),\"\",MAX(Table1[[#This Row],[3\nTotal: number of children applying this month]]-(Table1[[#This Row],[2\nNumber of children for whom a renewal application was submitted during the month]]+Table1[[#This Row],[1\nNumber of children for whom a new application was submitted during the month]]),0))","v":""},null,null,"",{"$f":"IF(AND(Table1[[#This Row],[4\nNumber of children newly enrolled to date]]=\"\", Table1[[#This Row],[5\nNumber of children renewed to date]]=\"\",Table1[[#This Row],[6\nTotal: Number of children enrolled or renewed to date]]=\"\"),\"\", IF(Table1[[#This Row],[4\nNumber of children newly enrolled to date]]=\"\",0,Table1[[#This Row],[4\nNumber of children newly enrolled to date]]))","v":""},{"$f":"IF(AND(Table1[[#This Row],[4\nNumber of children newly enrolled to date]]=\"\",Table1[[#This Row],[5\nNumber of children renewed to date]]=\"\", Table1[[#This Row],[6\nTotal: Number of children enrolled or renewed to date]]=\"\"),\"\", IF(Table1[[#This Row],[5\nNumber of children renewed to date]]=\"\",0,Table1[[#This Row],[5\nNumber of children renewed to date]]))","v":""},{"$f":"IF(AND(Table1[[#This Row],[4\nNumber of children newly enrolled to date]]=\"\",Table1[[#This Row],[5\nNumber of children renewed to date]]=\"\",Table1[[#This Row],[6\nTotal: Number of children enrolled or renewed to date]]=\"\"),\"\", MAX(Table1[[#This Row],[6\nTotal: Number of children enrolled or renewed to date]]-(Table1[[#This Row],[4\nNumber of children newly enrolled to date]]+Table1[[#This Row],[5\nNumber of children renewed to date]]),0))","v":""},{"$f":"'Cover sheet'!$D$13","v":0},{"$f":"'Cover sheet'!$D$14","v":0},{"$f":"'Cover sheet'!$D$15","v":""}]
[null,"2022-05-01",null,null,"",{"$f":"IF(AND(Table1[[#This Row],[1\nNumber of children for whom a new application was submitted during the month]]=\"\", Table1[[#This Row],[2\nNumber of children for whom a renewal application was submitted during the month]]=\"\",Table1[[#This Row],[3\nTotal: number of children applying this month]]=\"\"),\"\", IF(Table1[[#This Row],[1\nNumber of children for whom a new application was submitted during the month]]=\"\",0,Table1[[#This Row],[1\nNumber of children for whom a new application was submitted during the month]]))","v":""},{"$f":"IF(AND(Table1[[#This Row],[1\nNumber of children for whom a new application was submitted during the month]]=\"\", Table1[[#This Row],[2\nNumber of children for whom a renewal application was submitted during the month]]=\"\", Table1[[#This Row],[3\nTotal: number of children applying this month]]=\"\"),\"\",IF(Table1[[#This Row],[2\nNumber of children for whom a renewal application was submitted during the month]]=\"\",0,Table1[[#This Row],[2\nNumber of children for whom a renewal application was submitted during the month]]))","v":""},{"$f":"IF(AND(Table1[[#This Row],[1\nNumber of children for whom a new application was submitted during the month]]=\"\", Table1[[#This Row],[2\nNumber of children for whom a renewal application was submitted during the month]]=\"\",Table1[[#This Row],[3\nTotal: number of children applying this month]]=\"\"),\"\",MAX(Table1[[#This Row],[3\nTotal: number of children applying this month]]-(Table1[[#This Row],[2\nNumber of children for whom a renewal application was submitted during the month]]+Table1[[#This Row],[1\nNumber of children for whom a new application was submitted during the month]]),0))","v":""},null,null,"",{"$f":"IF(AND(Table1[[#This Row],[4\nNumber of children newly enrolled to date]]=\"\", Table1[[#This Row],[5\nNumber of children renewed to date]]=\"\",Table1[[#This Row],[6\nTotal: Number of children enrolled or renewed to date]]=\"\"),\"\", IF(Table1[[#This Row],[4\nNumber of children newly enrolled to date]]=\"\",0,Table1[[#This Row],[4\nNumber of children newly enrolled to date]]))","v":""},{"$f":"IF(AND(Table1[[#This Row],[4\nNumber of children newly enrolled to date]]=\"\",Table1[[#This Row],[5\nNumber of children renewed to date]]=\"\", Table1[[#This Row],[6\nTotal: Number of children enrolled or renewed to date]]=\"\"),\"\", IF(Table1[[#This Row],[5\nNumber of children renewed to date]]=\"\",0,Table1[[#This Row],[5\nNumber of children renewed to date]]))","v":""},{"$f":"IF(AND(Table1[[#This Row],[4\nNumber of children newly enrolled to date]]=\"\",Table1[[#This Row],[5\nNumber of children renewed to date]]=\"\",Table1[[#This Row],[6\nTotal: Number of children enrolled or renewed to date]]=\"\"),\"\", MAX(Table1[[#This Row],[6\nTotal: Number of children enrolled or renewed to date]]-(Table1[[#This Row],[4\nNumber of children newly enrolled to date]]+Table1[[#This Row],[5\nNumber of children renewed to date]]),0))","v":""},{"$f":"'Cover sheet'!$D$13","v":0},{"$f":"'Cover sheet'!$D$14","v":0},{"$f":"'Cover sheet'!$D$15","v":""}]
[null,"2022-06-01",null,null,"",{"$f":"IF(AND(Table1[[#This Row],[1\nNumber of children for whom a new application was submitted during the month]]=\"\", Table1[[#This Row],[2\nNumber of children for whom a renewal application was submitted during the month]]=\"\",Table1[[#This Row],[3\nTotal: number of children applying this month]]=\"\"),\"\", IF(Table1[[#This Row],[1\nNumber of children for whom a new application was submitted during the month]]=\"\",0,Table1[[#This Row],[1\nNumber of children for whom a new application was submitted during the month]]))","v":""},{"$f":"IF(AND(Table1[[#This Row],[1\nNumber of children for whom a new application was submitted during the month]]=\"\", Table1[[#This Row],[2\nNumber of children for whom a renewal application was submitted during the month]]=\"\", Table1[[#This Row],[3\nTotal: number of children applying this month]]=\"\"),\"\",IF(Table1[[#This Row],[2\nNumber of children for whom a renewal application was submitted during the month]]=\"\",0,Table1[[#This Row],[2\nNumber of children for whom a renewal application was submitted during the month]]))","v":""},{"$f":"IF(AND(Table1[[#This Row],[1\nNumber of children for whom a new application was submitted during the month]]=\"\", Table1[[#This Row],[2\nNumber of children for whom a renewal application was submitted during the month]]=\"\",Table1[[#This Row],[3\nTotal: number of children applying this month]]=\"\"),\"\",MAX(Table1[[#This Row],[3\nTotal: number of children applying this month]]-(Table1[[#This Row],[2\nNumber of children for whom a renewal application was submitted during the month]]+Table1[[#This Row],[1\nNumber of children for whom a new application was submitted during the month]]),0))","v":""},null,null,"",{"$f":"IF(AND(Table1[[#This Row],[4\nNumber of children newly enrolled to date]]=\"\", Table1[[#This Row],[5\nNumber of children renewed to date]]=\"\",Table1[[#This Row],[6\nTotal: Number of children enrolled or renewed to date]]=\"\"),\"\", IF(Table1[[#This Row],[4\nNumber of children newly enrolled to date]]=\"\",0,Table1[[#This Row],[4\nNumber of children newly enrolled to date]]))","v":""},{"$f":"IF(AND(Table1[[#This Row],[4\nNumber of children newly enrolled to date]]=\"\",Table1[[#This Row],[5\nNumber of children renewed to date]]=\"\", Table1[[#This Row],[6\nTotal: Number of children enrolled or renewed to date]]=\"\"),\"\", IF(Table1[[#This Row],[5\nNumber of children renewed to date]]=\"\",0,Table1[[#This Row],[5\nNumber of children renewed to date]]))","v":""},{"$f":"IF(AND(Table1[[#This Row],[4\nNumber of children newly enrolled to date]]=\"\",Table1[[#This Row],[5\nNumber of children renewed to date]]=\"\",Table1[[#This Row],[6\nTotal: Number of children enrolled or renewed to date]]=\"\"),\"\", MAX(Table1[[#This Row],[6\nTotal: Number of children enrolled or renewed to date]]-(Table1[[#This Row],[4\nNumber of children newly enrolled to date]]+Table1[[#This Row],[5\nNumber of children renewed to date]]),0))","v":""},{"$f":"'Cover sheet'!$D$13","v":0},{"$f":"'Cover sheet'!$D$14","v":0},{"$f":"'Cover sheet'!$D$15","v":""}]
[null,"2022-07-01",null,null,"",{"$f":"IF(AND(Table1[[#This Row],[1\nNumber of children for whom a new application was submitted during the month]]=\"\", Table1[[#This Row],[2\nNumber of children for whom a renewal application was submitted during the month]]=\"\",Table1[[#This Row],[3\nTotal: number of children applying this month]]=\"\"),\"\", IF(Table1[[#This Row],[1\nNumber of children for whom a new application was submitted during the month]]=\"\",0,Table1[[#This Row],[1\nNumber of children for whom a new application was submitted during the month]]))","v":""},{"$f":"IF(AND(Table1[[#This Row],[1\nNumber of children for whom a new application was submitted during the month]]=\"\", Table1[[#This Row],[2\nNumber of children for whom a renewal application was submitted during the month]]=\"\", Table1[[#This Row],[3\nTotal: number of children applying this month]]=\"\"),\"\",IF(Table1[[#This Row],[2\nNumber of children for whom a renewal application was submitted during the month]]=\"\",0,Table1[[#This Row],[2\nNumber of children for whom a renewal application was submitted during the month]]))","v":""},{"$f":"IF(AND(Table1[[#This Row],[1\nNumber of children for whom a new application was submitted during the month]]=\"\", Table1[[#This Row],[2\nNumber of children for whom a renewal application was submitted during the month]]=\"\",Table1[[#This Row],[3\nTotal: number of children applying this month]]=\"\"),\"\",MAX(Table1[[#This Row],[3\nTotal: number of children applying this month]]-(Table1[[#This Row],[2\nNumber of children for whom a renewal application was submitted during the month]]+Table1[[#This Row],[1\nNumber of children for whom a new application was submitted during the month]]),0))","v":""},null,null,"",{"$f":"IF(AND(Table1[[#This Row],[4\nNumber of children newly enrolled to date]]=\"\", Table1[[#This Row],[5\nNumber of children renewed to date]]=\"\",Table1[[#This Row],[6\nTotal: Number of children enrolled or renewed to date]]=\"\"),\"\", IF(Table1[[#This Row],[4\nNumber of children newly enrolled to date]]=\"\",0,Table1[[#This Row],[4\nNumber of children newly enrolled to date]]))","v":""},{"$f":"IF(AND(Table1[[#This Row],[4\nNumber of children newly enrolled to date]]=\"\",Table1[[#This Row],[5\nNumber of children renewed to date]]=\"\", Table1[[#This Row],[6\nTotal: Number of children enrolled or renewed to date]]=\"\"),\"\", IF(Table1[[#This Row],[5\nNumber of children renewed to date]]=\"\",0,Table1[[#This Row],[5\nNumber of children renewed to date]]))","v":""},{"$f":"IF(AND(Table1[[#This Row],[4\nNumber of children newly enrolled to date]]=\"\",Table1[[#This Row],[5\nNumber of children renewed to date]]=\"\",Table1[[#This Row],[6\nTotal: Number of children enrolled or renewed to date]]=\"\"),\"\", MAX(Table1[[#This Row],[6\nTotal: Number of children enrolled or renewed to date]]-(Table1[[#This Row],[4\nNumber of children newly enrolled to date]]+Table1[[#This Row],[5\nNumber of children renewed to date]]),0))","v":""},{"$f":"'Cover sheet'!$D$13","v":0},{"$f":"'Cover sheet'!$D$14","v":0},{"$f":"'Cover sheet'!$D$15","v":""}]
[null,"2022-08-01",null,null,"",{"$f":"IF(AND(Table1[[#This Row],[1\nNumber of children for whom a new application was submitted during the month]]=\"\", Table1[[#This Row],[2\nNumber of children for whom a renewal application was submitted during the month]]=\"\",Table1[[#This Row],[3\nTotal: number of children applying this month]]=\"\"),\"\", IF(Table1[[#This Row],[1\nNumber of children for whom a new application was submitted during the month]]=\"\",0,Table1[[#This Row],[1\nNumber of children for whom a new application was submitted during the month]]))","v":""},{"$f":"IF(AND(Table1[[#This Row],[1\nNumber of children for whom a new application was submitted during the month]]=\"\", Table1[[#This Row],[2\nNumber of children for whom a renewal application was submitted during the month]]=\"\", Table1[[#This Row],[3\nTotal: number of children applying this month]]=\"\"),\"\",IF(Table1[[#This Row],[2\nNumber of children for whom a renewal application was submitted during the month]]=\"\",0,Table1[[#This Row],[2\nNumber of children for whom a renewal application was submitted during the month]]))","v":""},{"$f":"IF(AND(Table1[[#This Row],[1\nNumber of children for whom a new application was submitted during the month]]=\"\", Table1[[#This Row],[2\nNumber of children for whom a renewal application was submitted during the month]]=\"\",Table1[[#This Row],[3\nTotal: number of children applying this month]]=\"\"),\"\",MAX(Table1[[#This Row],[3\nTotal: number of children applying this month]]-(Table1[[#This Row],[2\nNumber of children for whom a renewal application was submitted during the month]]+Table1[[#This Row],[1\nNumber of children for whom a new application was submitted during the month]]),0))","v":""},null,null,"",{"$f":"IF(AND(Table1[[#This Row],[4\nNumber of children newly enrolled to date]]=\"\", Table1[[#This Row],[5\nNumber of children renewed to date]]=\"\",Table1[[#This Row],[6\nTotal: Number of children enrolled or renewed to date]]=\"\"),\"\", IF(Table1[[#This Row],[4\nNumber of children newly enrolled to date]]=\"\",0,Table1[[#This Row],[4\nNumber of children newly enrolled to date]]))","v":""},{"$f":"IF(AND(Table1[[#This Row],[4\nNumber of children newly enrolled to date]]=\"\",Table1[[#This Row],[5\nNumber of children renewed to date]]=\"\", Table1[[#This Row],[6\nTotal: Number of children enrolled or renewed to date]]=\"\"),\"\", IF(Table1[[#This Row],[5\nNumber of children renewed to date]]=\"\",0,Table1[[#This Row],[5\nNumber of children renewed to date]]))","v":""},{"$f":"IF(AND(Table1[[#This Row],[4\nNumber of children newly enrolled to date]]=\"\",Table1[[#This Row],[5\nNumber of children renewed to date]]=\"\",Table1[[#This Row],[6\nTotal: Number of children enrolled or renewed to date]]=\"\"),\"\", MAX(Table1[[#This Row],[6\nTotal: Number of children enrolled or renewed to date]]-(Table1[[#This Row],[4\nNumber of children newly enrolled to date]]+Table1[[#This Row],[5\nNumber of children renewed to date]]),0))","v":""},{"$f":"'Cover sheet'!$D$13","v":0},{"$f":"'Cover sheet'!$D$14","v":0},{"$f":"'Cover sheet'!$D$15","v":""}]
[null,"2022-09-01",null,null,"",{"$f":"IF(AND(Table1[[#This Row],[1\nNumber of children for whom a new application was submitted during the month]]=\"\", Table1[[#This Row],[2\nNumber of children for whom a renewal application was submitted during the month]]=\"\",Table1[[#This Row],[3\nTotal: number of children applying this month]]=\"\"),\"\", IF(Table1[[#This Row],[1\nNumber of children for whom a new application was submitted during the month]]=\"\",0,Table1[[#This Row],[1\nNumber of children for whom a new application was submitted during the month]]))","v":""},{"$f":"IF(AND(Table1[[#This Row],[1\nNumber of children for whom a new application was submitted during the month]]=\"\", Table1[[#This Row],[2\nNumber of children for whom a renewal application was submitted during the month]]=\"\", Table1[[#This Row],[3\nTotal: number of children applying this month]]=\"\"),\"\",IF(Table1[[#This Row],[2\nNumber of children for whom a renewal application was submitted during the month]]=\"\",0,Table1[[#This Row],[2\nNumber of children for whom a renewal application was submitted during the month]]))","v":""},{"$f":"IF(AND(Table1[[#This Row],[1\nNumber of children for whom a new application was submitted during the month]]=\"\", Table1[[#This Row],[2\nNumber of children for whom a renewal application was submitted during the month]]=\"\",Table1[[#This Row],[3\nTotal: number of children applying this month]]=\"\"),\"\",MAX(Table1[[#This Row],[3\nTotal: number of children applying this month]]-(Table1[[#This Row],[2\nNumber of children for whom a renewal application was submitted during the month]]+Table1[[#This Row],[1\nNumber of children for whom a new application was submitted during the month]]),0))","v":""},null,null,"",{"$f":"IF(AND(Table1[[#This Row],[4\nNumber of children newly enrolled to date]]=\"\", Table1[[#This Row],[5\nNumber of children renewed to date]]=\"\",Table1[[#This Row],[6\nTotal: Number of children enrolled or renewed to date]]=\"\"),\"\", IF(Table1[[#This Row],[4\nNumber of children newly enrolled to date]]=\"\",0,Table1[[#This Row],[4\nNumber of children newly enrolled to date]]))","v":""},{"$f":"IF(AND(Table1[[#This Row],[4\nNumber of children newly enrolled to date]]=\"\",Table1[[#This Row],[5\nNumber of children renewed to date]]=\"\", Table1[[#This Row],[6\nTotal: Number of children enrolled or renewed to date]]=\"\"),\"\", IF(Table1[[#This Row],[5\nNumber of children renewed to date]]=\"\",0,Table1[[#This Row],[5\nNumber of children renewed to date]]))","v":""},{"$f":"IF(AND(Table1[[#This Row],[4\nNumber of children newly enrolled to date]]=\"\",Table1[[#This Row],[5\nNumber of children renewed to date]]=\"\",Table1[[#This Row],[6\nTotal: Number of children enrolled or renewed to date]]=\"\"),\"\", MAX(Table1[[#This Row],[6\nTotal: Number of children enrolled or renewed to date]]-(Table1[[#This Row],[4\nNumber of children newly enrolled to date]]+Table1[[#This Row],[5\nNumber of children renewed to date]]),0))","v":""},{"$f":"'Cover sheet'!$D$13","v":0},{"$f":"'Cover sheet'!$D$14","v":0},{"$f":"'Cover sheet'!$D$15","v":""}]
[null,"2022-10-01",null,null,"",{"$f":"IF(AND(Table1[[#This Row],[1\nNumber of children for whom a new application was submitted during the month]]=\"\", Table1[[#This Row],[2\nNumber of children for whom a renewal application was submitted during the month]]=\"\",Table1[[#This Row],[3\nTotal: number of children applying this month]]=\"\"),\"\", IF(Table1[[#This Row],[1\nNumber of children for whom a new application was submitted during the month]]=\"\",0,Table1[[#This Row],[1\nNumber of children for whom a new application was submitted during the month]]))","v":""},{"$f":"IF(AND(Table1[[#This Row],[1\nNumber of children for whom a new application was submitted during the month]]=\"\", Table1[[#This Row],[2\nNumber of children for whom a renewal application was submitted during the month]]=\"\", Table1[[#This Row],[3\nTotal: number of children applying this month]]=\"\"),\"\",IF(Table1[[#This Row],[2\nNumber of children for whom a renewal application was submitted during the month]]=\"\",0,Table1[[#This Row],[2\nNumber of children for whom a renewal application was submitted during the month]]))","v":""},{"$f":"IF(AND(Table1[[#This Row],[1\nNumber of children for whom a new application was submitted during the month]]=\"\", Table1[[#This Row],[2\nNumber of children for whom a renewal application was submitted during the month]]=\"\",Table1[[#This Row],[3\nTotal: number of children applying this month]]=\"\"),\"\",MAX(Table1[[#This Row],[3\nTotal: number of children applying this month]]-(Table1[[#This Row],[2\nNumber of children for whom a renewal application was submitted during the month]]+Table1[[#This Row],[1\nNumber of children for whom a new application was submitted during the month]]),0))","v":""},null,null,"",{"$f":"IF(AND(Table1[[#This Row],[4\nNumber of children newly enrolled to date]]=\"\", Table1[[#This Row],[5\nNumber of children renewed to date]]=\"\",Table1[[#This Row],[6\nTotal: Number of children enrolled or renewed to date]]=\"\"),\"\", IF(Table1[[#This Row],[4\nNumber of children newly enrolled to date]]=\"\",0,Table1[[#This Row],[4\nNumber of children newly enrolled to date]]))","v":""},{"$f":"IF(AND(Table1[[#This Row],[4\nNumber of children newly enrolled to date]]=\"\",Table1[[#This Row],[5\nNumber of children renewed to date]]=\"\", Table1[[#This Row],[6\nTotal: Number of children enrolled or renewed to date]]=\"\"),\"\", IF(Table1[[#This Row],[5\nNumber of children renewed to date]]=\"\",0,Table1[[#This Row],[5\nNumber of children renewed to date]]))","v":""},{"$f":"IF(AND(Table1[[#This Row],[4\nNumber of children newly enrolled to date]]=\"\",Table1[[#This Row],[5\nNumber of children renewed to date]]=\"\",Table1[[#This Row],[6\nTotal: Number of children enrolled or renewed to date]]=\"\"),\"\", MAX(Table1[[#This Row],[6\nTotal: Number of children enrolled or renewed to date]]-(Table1[[#This Row],[4\nNumber of children newly enrolled to date]]+Table1[[#This Row],[5\nNumber of children renewed to date]]),0))","v":""},{"$f":"'Cover sheet'!$D$13","v":0},{"$f":"'Cover sheet'!$D$14","v":0},{"$f":"'Cover sheet'!$D$15","v":""}]
[null,"2022-11-01",null,null,"",{"$f":"IF(AND(Table1[[#This Row],[1\nNumber of children for whom a new application was submitted during the month]]=\"\", Table1[[#This Row],[2\nNumber of children for whom a renewal application was submitted during the month]]=\"\",Table1[[#This Row],[3\nTotal: number of children applying this month]]=\"\"),\"\", IF(Table1[[#This Row],[1\nNumber of children for whom a new application was submitted during the month]]=\"\",0,Table1[[#This Row],[1\nNumber of children for whom a new application was submitted during the month]]))","v":""},{"$f":"IF(AND(Table1[[#This Row],[1\nNumber of children for whom a new application was submitted during the month]]=\"\", Table1[[#This Row],[2\nNumber of children for whom a renewal application was submitted during the month]]=\"\", Table1[[#This Row],[3\nTotal: number of children applying this month]]=\"\"),\"\",IF(Table1[[#This Row],[2\nNumber of children for whom a renewal application was submitted during the month]]=\"\",0,Table1[[#This Row],[2\nNumber of children for whom a renewal application was submitted during the month]]))","v":""},{"$f":"IF(AND(Table1[[#This Row],[1\nNumber of children for whom a new application was submitted during the month]]=\"\", Table1[[#This Row],[2\nNumber of children for whom a renewal application was submitted during the month]]=\"\",Table1[[#This Row],[3\nTotal: number of children applying this month]]=\"\"),\"\",MAX(Table1[[#This Row],[3\nTotal: number of children applying this month]]-(Table1[[#This Row],[2\nNumber of children for whom a renewal application was submitted during the month]]+Table1[[#This Row],[1\nNumber of children for whom a new application was submitted during the month]]),0))","v":""},null,null,"",{"$f":"IF(AND(Table1[[#This Row],[4\nNumber of children newly enrolled to date]]=\"\", Table1[[#This Row],[5\nNumber of children renewed to date]]=\"\",Table1[[#This Row],[6\nTotal: Number of children enrolled or renewed to date]]=\"\"),\"\", IF(Table1[[#This Row],[4\nNumber of children newly enrolled to date]]=\"\",0,Table1[[#This Row],[4\nNumber of children newly enrolled to date]]))","v":""},{"$f":"IF(AND(Table1[[#This Row],[4\nNumber of children newly enrolled to date]]=\"\",Table1[[#This Row],[5\nNumber of children renewed to date]]=\"\", Table1[[#This Row],[6\nTotal: Number of children enrolled or renewed to date]]=\"\"),\"\", IF(Table1[[#This Row],[5\nNumber of children renewed to date]]=\"\",0,Table1[[#This Row],[5\nNumber of children renewed to date]]))","v":""},{"$f":"IF(AND(Table1[[#This Row],[4\nNumber of children newly enrolled to date]]=\"\",Table1[[#This Row],[5\nNumber of children renewed to date]]=\"\",Table1[[#This Row],[6\nTotal: Number of children enrolled or renewed to date]]=\"\"),\"\", MAX(Table1[[#This Row],[6\nTotal: Number of children enrolled or renewed to date]]-(Table1[[#This Row],[4\nNumber of children newly enrolled to date]]+Table1[[#This Row],[5\nNumber of children renewed to date]]),0))","v":""},{"$f":"'Cover sheet'!$D$13","v":0},{"$f":"'Cover sheet'!$D$14","v":0},{"$f":"'Cover sheet'!$D$15","v":""}]
[null,"2022-12-01",null,null,"",{"$f":"IF(AND(Table1[[#This Row],[1\nNumber of children for whom a new application was submitted during the month]]=\"\", Table1[[#This Row],[2\nNumber of children for whom a renewal application was submitted during the month]]=\"\",Table1[[#This Row],[3\nTotal: number of children applying this month]]=\"\"),\"\", IF(Table1[[#This Row],[1\nNumber of children for whom a new application was submitted during the month]]=\"\",0,Table1[[#This Row],[1\nNumber of children for whom a new application was submitted during the month]]))","v":""},{"$f":"IF(AND(Table1[[#This Row],[1\nNumber of children for whom a new application was submitted during the month]]=\"\", Table1[[#This Row],[2\nNumber of children for whom a renewal application was submitted during the month]]=\"\", Table1[[#This Row],[3\nTotal: number of children applying this month]]=\"\"),\"\",IF(Table1[[#This Row],[2\nNumber of children for whom a renewal application was submitted during the month]]=\"\",0,Table1[[#This Row],[2\nNumber of children for whom a renewal application was submitted during the month]]))","v":""},{"$f":"IF(AND(Table1[[#This Row],[1\nNumber of children for whom a new application was submitted during the month]]=\"\", Table1[[#This Row],[2\nNumber of children for whom a renewal application was submitted during the month]]=\"\",Table1[[#This Row],[3\nTotal: number of children applying this month]]=\"\"),\"\",MAX(Table1[[#This Row],[3\nTotal: number of children applying this month]]-(Table1[[#This Row],[2\nNumber of children for whom a renewal application was submitted during the month]]+Table1[[#This Row],[1\nNumber of children for whom a new application was submitted during the month]]),0))","v":""},null,null,"",{"$f":"IF(AND(Table1[[#This Row],[4\nNumber of children newly enrolled to date]]=\"\", Table1[[#This Row],[5\nNumber of children renewed to date]]=\"\",Table1[[#This Row],[6\nTotal: Number of children enrolled or renewed to date]]=\"\"),\"\", IF(Table1[[#This Row],[4\nNumber of children newly enrolled to date]]=\"\",0,Table1[[#This Row],[4\nNumber of children newly enrolled to date]]))","v":""},{"$f":"IF(AND(Table1[[#This Row],[4\nNumber of children newly enrolled to date]]=\"\",Table1[[#This Row],[5\nNumber of children renewed to date]]=\"\", Table1[[#This Row],[6\nTotal: Number of children enrolled or renewed to date]]=\"\"),\"\", IF(Table1[[#This Row],[5\nNumber of children renewed to date]]=\"\",0,Table1[[#This Row],[5\nNumber of children renewed to date]]))","v":""},{"$f":"IF(AND(Table1[[#This Row],[4\nNumber of children newly enrolled to date]]=\"\",Table1[[#This Row],[5\nNumber of children renewed to date]]=\"\",Table1[[#This Row],[6\nTotal: Number of children enrolled or renewed to date]]=\"\"),\"\", MAX(Table1[[#This Row],[6\nTotal: Number of children enrolled or renewed to date]]-(Table1[[#This Row],[4\nNumber of children newly enrolled to date]]+Table1[[#This Row],[5\nNumber of children renewed to date]]),0))","v":""},{"$f":"'Cover sheet'!$D$13","v":0},{"$f":"'Cover sheet'!$D$14","v":0},{"$f":"'Cover sheet'!$D$15","v":""}]
[null,"2023-01-01",null,null,"",{"$f":"IF(AND(Table1[[#This Row],[1\nNumber of children for whom a new application was submitted during the month]]=\"\", Table1[[#This Row],[2\nNumber of children for whom a renewal application was submitted during the month]]=\"\",Table1[[#This Row],[3\nTotal: number of children applying this month]]=\"\"),\"\", IF(Table1[[#This Row],[1\nNumber of children for whom a new application was submitted during the month]]=\"\",0,Table1[[#This Row],[1\nNumber of children for whom a new application was submitted during the month]]))","v":""},{"$f":"IF(AND(Table1[[#This Row],[1\nNumber of children for whom a new application was submitted during the month]]=\"\", Table1[[#This Row],[2\nNumber of children for whom a renewal application was submitted during the month]]=\"\", Table1[[#This Row],[3\nTotal: number of children applying this month]]=\"\"),\"\",IF(Table1[[#This Row],[2\nNumber of children for whom a renewal application was submitted during the month]]=\"\",0,Table1[[#This Row],[2\nNumber of children for whom a renewal application was submitted during the month]]))","v":""},{"$f":"IF(AND(Table1[[#This Row],[1\nNumber of children for whom a new application was submitted during the month]]=\"\", Table1[[#This Row],[2\nNumber of children for whom a renewal application was submitted during the month]]=\"\",Table1[[#This Row],[3\nTotal: number of children applying this month]]=\"\"),\"\",MAX(Table1[[#This Row],[3\nTotal: number of children applying this month]]-(Table1[[#This Row],[2\nNumber of children for whom a renewal application was submitted during the month]]+Table1[[#This Row],[1\nNumber of children for whom a new application was submitted during the month]]),0))","v":""},null,null,"",{"$f":"IF(AND(Table1[[#This Row],[4\nNumber of children newly enrolled to date]]=\"\", Table1[[#This Row],[5\nNumber of children renewed to date]]=\"\",Table1[[#This Row],[6\nTotal: Number of children enrolled or renewed to date]]=\"\"),\"\", IF(Table1[[#This Row],[4\nNumber of children newly enrolled to date]]=\"\",0,Table1[[#This Row],[4\nNumber of children newly enrolled to date]]))","v":""},{"$f":"IF(AND(Table1[[#This Row],[4\nNumber of children newly enrolled to date]]=\"\",Table1[[#This Row],[5\nNumber of children renewed to date]]=\"\", Table1[[#This Row],[6\nTotal: Number of children enrolled or renewed to date]]=\"\"),\"\", IF(Table1[[#This Row],[5\nNumber of children renewed to date]]=\"\",0,Table1[[#This Row],[5\nNumber of children renewed to date]]))","v":""},{"$f":"IF(AND(Table1[[#This Row],[4\nNumber of children newly enrolled to date]]=\"\",Table1[[#This Row],[5\nNumber of children renewed to date]]=\"\",Table1[[#This Row],[6\nTotal: Number of children enrolled or renewed to date]]=\"\"),\"\", MAX(Table1[[#This Row],[6\nTotal: Number of children enrolled or renewed to date]]-(Table1[[#This Row],[4\nNumber of children newly enrolled to date]]+Table1[[#This Row],[5\nNumber of children renewed to date]]),0))","v":""},{"$f":"'Cover sheet'!$D$13","v":0},{"$f":"'Cover sheet'!$D$14","v":0},{"$f":"'Cover sheet'!$D$15","v":""}]
[null,"2023-02-01",null,null,"",{"$f":"IF(AND(Table1[[#This Row],[1\nNumber of children for whom a new application was submitted during the month]]=\"\", Table1[[#This Row],[2\nNumber of children for whom a renewal application was submitted during the month]]=\"\",Table1[[#This Row],[3\nTotal: number of children applying this month]]=\"\"),\"\", IF(Table1[[#This Row],[1\nNumber of children for whom a new application was submitted during the month]]=\"\",0,Table1[[#This Row],[1\nNumber of children for whom a new application was submitted during the month]]))","v":""},{"$f":"IF(AND(Table1[[#This Row],[1\nNumber of children for whom a new application was submitted during the month]]=\"\", Table1[[#This Row],[2\nNumber of children for whom a renewal application was submitted during the month]]=\"\", Table1[[#This Row],[3\nTotal: number of children applying this month]]=\"\"),\"\",IF(Table1[[#This Row],[2\nNumber of children for whom a renewal application was submitted during the month]]=\"\",0,Table1[[#This Row],[2\nNumber of children for whom a renewal application was submitted during the month]]))","v":""},{"$f":"IF(AND(Table1[[#This Row],[1\nNumber of children for whom a new application was submitted during the month]]=\"\", Table1[[#This Row],[2\nNumber of children for whom a renewal application was submitted during the month]]=\"\",Table1[[#This Row],[3\nTotal: number of children applying this month]]=\"\"),\"\",MAX(Table1[[#This Row],[3\nTotal: number of children applying this month]]-(Table1[[#This Row],[2\nNumber of children for whom a renewal application was submitted during the month]]+Table1[[#This Row],[1\nNumber of children for whom a new application was submitted during the month]]),0))","v":""},null,null,"",{"$f":"IF(AND(Table1[[#This Row],[4\nNumber of children newly enrolled to date]]=\"\", Table1[[#This Row],[5\nNumber of children renewed to date]]=\"\",Table1[[#This Row],[6\nTotal: Number of children enrolled or renewed to date]]=\"\"),\"\", IF(Table1[[#This Row],[4\nNumber of children newly enrolled to date]]=\"\",0,Table1[[#This Row],[4\nNumber of children newly enrolled to date]]))","v":""},{"$f":"IF(AND(Table1[[#This Row],[4\nNumber of children newly enrolled to date]]=\"\",Table1[[#This Row],[5\nNumber of children renewed to date]]=\"\", Table1[[#This Row],[6\nTotal: Number of children enrolled or renewed to date]]=\"\"),\"\", IF(Table1[[#This Row],[5\nNumber of children renewed to date]]=\"\",0,Table1[[#This Row],[5\nNumber of children renewed to date]]))","v":""},{"$f":"IF(AND(Table1[[#This Row],[4\nNumber of children newly enrolled to date]]=\"\",Table1[[#This Row],[5\nNumber of children renewed to date]]=\"\",Table1[[#This Row],[6\nTotal: Number of children enrolled or renewed to date]]=\"\"),\"\", MAX(Table1[[#This Row],[6\nTotal: Number of children enrolled or renewed to date]]-(Table1[[#This Row],[4\nNumber of children newly enrolled to date]]+Table1[[#This Row],[5\nNumber of children renewed to date]]),0))","v":""},{"$f":"'Cover sheet'!$D$13","v":0},{"$f":"'Cover sheet'!$D$14","v":0},{"$f":"'Cover sheet'!$D$15","v":""}]
[null,"2023-03-01",null,null,"",{"$f":"IF(AND(Table1[[#This Row],[1\nNumber of children for whom a new application was submitted during the month]]=\"\", Table1[[#This Row],[2\nNumber of children for whom a renewal application was submitted during the month]]=\"\",Table1[[#This Row],[3\nTotal: number of children applying this month]]=\"\"),\"\", IF(Table1[[#This Row],[1\nNumber of children for whom a new application was submitted during the month]]=\"\",0,Table1[[#This Row],[1\nNumber of children for whom a new application was submitted during the month]]))","v":""},{"$f":"IF(AND(Table1[[#This Row],[1\nNumber of children for whom a new application was submitted during the month]]=\"\", Table1[[#This Row],[2\nNumber of children for whom a renewal application was submitted during the month]]=\"\", Table1[[#This Row],[3\nTotal: number of children applying this month]]=\"\"),\"\",IF(Table1[[#This Row],[2\nNumber of children for whom a renewal application was submitted during the month]]=\"\",0,Table1[[#This Row],[2\nNumber of children for whom a renewal application was submitted during the month]]))","v":""},{"$f":"IF(AND(Table1[[#This Row],[1\nNumber of children for whom a new application was submitted during the month]]=\"\", Table1[[#This Row],[2\nNumber of children for whom a renewal application was submitted during the month]]=\"\",Table1[[#This Row],[3\nTotal: number of children applying this month]]=\"\"),\"\",MAX(Table1[[#This Row],[3\nTotal: number of children applying this month]]-(Table1[[#This Row],[2\nNumber of children for whom a renewal application was submitted during the month]]+Table1[[#This Row],[1\nNumber of children for whom a new application was submitted during the month]]),0))","v":""},null,null,"",{"$f":"IF(AND(Table1[[#This Row],[4\nNumber of children newly enrolled to date]]=\"\", Table1[[#This Row],[5\nNumber of children renewed to date]]=\"\",Table1[[#This Row],[6\nTotal: Number of children enrolled or renewed to date]]=\"\"),\"\", IF(Table1[[#This Row],[4\nNumber of children newly enrolled to date]]=\"\",0,Table1[[#This Row],[4\nNumber of children newly enrolled to date]]))","v":""},{"$f":"IF(AND(Table1[[#This Row],[4\nNumber of children newly enrolled to date]]=\"\",Table1[[#This Row],[5\nNumber of children renewed to date]]=\"\", Table1[[#This Row],[6\nTotal: Number of children enrolled or renewed to date]]=\"\"),\"\", IF(Table1[[#This Row],[5\nNumber of children renewed to date]]=\"\",0,Table1[[#This Row],[5\nNumber of children renewed to date]]))","v":""},{"$f":"IF(AND(Table1[[#This Row],[4\nNumber of children newly enrolled to date]]=\"\",Table1[[#This Row],[5\nNumber of children renewed to date]]=\"\",Table1[[#This Row],[6\nTotal: Number of children enrolled or renewed to date]]=\"\"),\"\", MAX(Table1[[#This Row],[6\nTotal: Number of children enrolled or renewed to date]]-(Table1[[#This Row],[4\nNumber of children newly enrolled to date]]+Table1[[#This Row],[5\nNumber of children renewed to date]]),0))","v":""},{"$f":"'Cover sheet'!$D$13","v":0},{"$f":"'Cover sheet'!$D$14","v":0},{"$f":"'Cover sheet'!$D$15","v":""}]
[null,"2023-04-01",null,null,"",{"$f":"IF(AND(Table1[[#This Row],[1\nNumber of children for whom a new application was submitted during the month]]=\"\", Table1[[#This Row],[2\nNumber of children for whom a renewal application was submitted during the month]]=\"\",Table1[[#This Row],[3\nTotal: number of children applying this month]]=\"\"),\"\", IF(Table1[[#This Row],[1\nNumber of children for whom a new application was submitted during the month]]=\"\",0,Table1[[#This Row],[1\nNumber of children for whom a new application was submitted during the month]]))","v":""},{"$f":"IF(AND(Table1[[#This Row],[1\nNumber of children for whom a new application was submitted during the month]]=\"\", Table1[[#This Row],[2\nNumber of children for whom a renewal application was submitted during the month]]=\"\", Table1[[#This Row],[3\nTotal: number of children applying this month]]=\"\"),\"\",IF(Table1[[#This Row],[2\nNumber of children for whom a renewal application was submitted during the month]]=\"\",0,Table1[[#This Row],[2\nNumber of children for whom a renewal application was submitted during the month]]))","v":""},{"$f":"IF(AND(Table1[[#This Row],[1\nNumber of children for whom a new application was submitted during the month]]=\"\", Table1[[#This Row],[2\nNumber of children for whom a renewal application was submitted during the month]]=\"\",Table1[[#This Row],[3\nTotal: number of children applying this month]]=\"\"),\"\",MAX(Table1[[#This Row],[3\nTotal: number of children applying this month]]-(Table1[[#This Row],[2\nNumber of children for whom a renewal application was submitted during the month]]+Table1[[#This Row],[1\nNumber of children for whom a new application was submitted during the month]]),0))","v":""},null,null,"",{"$f":"IF(AND(Table1[[#This Row],[4\nNumber of children newly enrolled to date]]=\"\", Table1[[#This Row],[5\nNumber of children renewed to date]]=\"\",Table1[[#This Row],[6\nTotal: Number of children enrolled or renewed to date]]=\"\"),\"\", IF(Table1[[#This Row],[4\nNumber of children newly enrolled to date]]=\"\",0,Table1[[#This Row],[4\nNumber of children newly enrolled to date]]))","v":""},{"$f":"IF(AND(Table1[[#This Row],[4\nNumber of children newly enrolled to date]]=\"\",Table1[[#This Row],[5\nNumber of children renewed to date]]=\"\", Table1[[#This Row],[6\nTotal: Number of children enrolled or renewed to date]]=\"\"),\"\", IF(Table1[[#This Row],[5\nNumber of children renewed to date]]=\"\",0,Table1[[#This Row],[5\nNumber of children renewed to date]]))","v":""},{"$f":"IF(AND(Table1[[#This Row],[4\nNumber of children newly enrolled to date]]=\"\",Table1[[#This Row],[5\nNumber of children renewed to date]]=\"\",Table1[[#This Row],[6\nTotal: Number of children enrolled or renewed to date]]=\"\"),\"\", MAX(Table1[[#This Row],[6\nTotal: Number of children enrolled or renewed to date]]-(Table1[[#This Row],[4\nNumber of children newly enrolled to date]]+Table1[[#This Row],[5\nNumber of children renewed to date]]),0))","v":""},{"$f":"'Cover sheet'!$D$13","v":0},{"$f":"'Cover sheet'!$D$14","v":0},{"$f":"'Cover sheet'!$D$15","v":""}]
[null,"2023-05-01",null,null,"",{"$f":"IF(AND(Table1[[#This Row],[1\nNumber of children for whom a new application was submitted during the month]]=\"\", Table1[[#This Row],[2\nNumber of children for whom a renewal application was submitted during the month]]=\"\",Table1[[#This Row],[3\nTotal: number of children applying this month]]=\"\"),\"\", IF(Table1[[#This Row],[1\nNumber of children for whom a new application was submitted during the month]]=\"\",0,Table1[[#This Row],[1\nNumber of children for whom a new application was submitted during the month]]))","v":""},{"$f":"IF(AND(Table1[[#This Row],[1\nNumber of children for whom a new application was submitted during the month]]=\"\", Table1[[#This Row],[2\nNumber of children for whom a renewal application was submitted during the month]]=\"\", Table1[[#This Row],[3\nTotal: number of children applying this month]]=\"\"),\"\",IF(Table1[[#This Row],[2\nNumber of children for whom a renewal application was submitted during the month]]=\"\",0,Table1[[#This Row],[2\nNumber of children for whom a renewal application was submitted during the month]]))","v":""},{"$f":"IF(AND(Table1[[#This Row],[1\nNumber of children for whom a new application was submitted during the month]]=\"\", Table1[[#This Row],[2\nNumber of children for whom a renewal application was submitted during the month]]=\"\",Table1[[#This Row],[3\nTotal: number of children applying this month]]=\"\"),\"\",MAX(Table1[[#This Row],[3\nTotal: number of children applying this month]]-(Table1[[#This Row],[2\nNumber of children for whom a renewal application was submitted during the month]]+Table1[[#This Row],[1\nNumber of children for whom a new application was submitted during the month]]),0))","v":""},null,null,"",{"$f":"IF(AND(Table1[[#This Row],[4\nNumber of children newly enrolled to date]]=\"\", Table1[[#This Row],[5\nNumber of children renewed to date]]=\"\",Table1[[#This Row],[6\nTotal: Number of children enrolled or renewed to date]]=\"\"),\"\", IF(Table1[[#This Row],[4\nNumber of children newly enrolled to date]]=\"\",0,Table1[[#This Row],[4\nNumber of children newly enrolled to date]]))","v":""},{"$f":"IF(AND(Table1[[#This Row],[4\nNumber of children newly enrolled to date]]=\"\",Table1[[#This Row],[5\nNumber of children renewed to date]]=\"\", Table1[[#This Row],[6\nTotal: Number of children enrolled or renewed to date]]=\"\"),\"\", IF(Table1[[#This Row],[5\nNumber of children renewed to date]]=\"\",0,Table1[[#This Row],[5\nNumber of children renewed to date]]))","v":""},{"$f":"IF(AND(Table1[[#This Row],[4\nNumber of children newly enrolled to date]]=\"\",Table1[[#This Row],[5\nNumber of children renewed to date]]=\"\",Table1[[#This Row],[6\nTotal: Number of children enrolled or renewed to date]]=\"\"),\"\", MAX(Table1[[#This Row],[6\nTotal: Number of children enrolled or renewed to date]]-(Table1[[#This Row],[4\nNumber of children newly enrolled to date]]+Table1[[#This Row],[5\nNumber of children renewed to date]]),0))","v":""},{"$f":"'Cover sheet'!$D$13","v":0},{"$f":"'Cover sheet'!$D$14","v":0},{"$f":"'Cover sheet'!$D$15","v":""}]
[null,"2023-06-01",null,null,"",{"$f":"IF(AND(Table1[[#This Row],[1\nNumber of children for whom a new application was submitted during the month]]=\"\", Table1[[#This Row],[2\nNumber of children for whom a renewal application was submitted during the month]]=\"\",Table1[[#This Row],[3\nTotal: number of children applying this month]]=\"\"),\"\", IF(Table1[[#This Row],[1\nNumber of children for whom a new application was submitted during the month]]=\"\",0,Table1[[#This Row],[1\nNumber of children for whom a new application was submitted during the month]]))","v":""},{"$f":"IF(AND(Table1[[#This Row],[1\nNumber of children for whom a new application was submitted during the month]]=\"\", Table1[[#This Row],[2\nNumber of children for whom a renewal application was submitted during the month]]=\"\", Table1[[#This Row],[3\nTotal: number of children applying this month]]=\"\"),\"\",IF(Table1[[#This Row],[2\nNumber of children for whom a renewal application was submitted during the month]]=\"\",0,Table1[[#This Row],[2\nNumber of children for whom a renewal application was submitted during the month]]))","v":""},{"$f":"IF(AND(Table1[[#This Row],[1\nNumber of children for whom a new application was submitted during the month]]=\"\", Table1[[#This Row],[2\nNumber of children for whom a renewal application was submitted during the month]]=\"\",Table1[[#This Row],[3\nTotal: number of children applying this month]]=\"\"),\"\",MAX(Table1[[#This Row],[3\nTotal: number of children applying this month]]-(Table1[[#This Row],[2\nNumber of children for whom a renewal application was submitted during the month]]+Table1[[#This Row],[1\nNumber of children for whom a new application was submitted during the month]]),0))","v":""},null,null,"",{"$f":"IF(AND(Table1[[#This Row],[4\nNumber of children newly enrolled to date]]=\"\", Table1[[#This Row],[5\nNumber of children renewed to date]]=\"\",Table1[[#This Row],[6\nTotal: Number of children enrolled or renewed to date]]=\"\"),\"\", IF(Table1[[#This Row],[4\nNumber of children newly enrolled to date]]=\"\",0,Table1[[#This Row],[4\nNumber of children newly enrolled to date]]))","v":""},{"$f":"IF(AND(Table1[[#This Row],[4\nNumber of children newly enrolled to date]]=\"\",Table1[[#This Row],[5\nNumber of children renewed to date]]=\"\", Table1[[#This Row],[6\nTotal: Number of children enrolled or renewed to date]]=\"\"),\"\", IF(Table1[[#This Row],[5\nNumber of children renewed to date]]=\"\",0,Table1[[#This Row],[5\nNumber of children renewed to date]]))","v":""},{"$f":"IF(AND(Table1[[#This Row],[4\nNumber of children newly enrolled to date]]=\"\",Table1[[#This Row],[5\nNumber of children renewed to date]]=\"\",Table1[[#This Row],[6\nTotal: Number of children enrolled or renewed to date]]=\"\"),\"\", MAX(Table1[[#This Row],[6\nTotal: Number of children enrolled or renewed to date]]-(Table1[[#This Row],[4\nNumber of children newly enrolled to date]]+Table1[[#This Row],[5\nNumber of children renewed to date]]),0))","v":""},{"$f":"'Cover sheet'!$D$13","v":0},{"$f":"'Cover sheet'!$D$14","v":0},{"$f":"'Cover sheet'!$D$15","v":""}]

{"sheet":"B. Child dashboard","index":4,"n_rows":0,"n_cols":0,"rows_kept":0}

{"sheet":"Child dash support","index":5,"n_rows":14,"n_cols":4,"rows_kept":14,"hidden":true}
[]
[null,"Pie chart"]
[null,"Percentage of target achieved",{"$f":"$D$3/$D$4","v":{"$error":"#VALUE!"}},{"$f":"OFFSET('A. Child data'!$K$13,COUNT('A. Child data'!$K:$K)-1,0,-1,1)","v":0}]
[null,"Remaining progress needed",{"$f":"IF($C$3<1,1-$C$3,0)","v":{"$error":"#VALUE!"}},{"$f":"'Cover sheet'!$D$15","v":""}]
[]
[null,"Enrollments figure series names"]
[null,"Number of children newly enrolled to date"]
[null,"Number of children renewed to date"]
[null,"New/ renewal breakdown not available"]
[]
[null,"Applications bar series names"]
[null,"Number of children with new applications"]
[null,"Number of children with renewal applications"]
[null,"New/renewal breakdown not available"]

{"sheet":"C. Parent data","index":6,"n_rows":73,"n_cols":19,"rows_kept":73,"merged":[[1,1,1,23],[3,1,5,23],[7,1,9,23],[11,18,26,23],[27,18,60,23]]}
[]
[null,"Please review the instructions tab, including data definitions, before completing this table. Then enter data  in the row for the current reporting month, which you selected on the Cover Sheet and is shaded gray below. Enter data in the columns in order, starting with column 1."]
[]
[null,"Enter the number of parents for whom an insurance affordability program application was submitted during the current reporting month, as a direct result of your CKC grant activities. If you can identify which parents were already covered by an insurance affordability program when you provided them with substantial interactive assistance, enter data in columns  1 and 2; column 3 will calculate automatically. If you cannot identify which parents were already covered, enter data in column 3, and leave columns 1 and 2 blank. If you completed no applications this month, enter 0 in columns 1 and 2."]
[]
[]
[]
[null,"Enter the number of parents for whom a new enrollment or renewal in an insurance affordability program was verified, between the start of the grant and the end of the current reporting month, as a direct result of your CKC  grant activities. If you can identify which parents were already covered by an insurance affordability program when you provided them with substantial interactive assistance, enter data in columns 4 and 5; column 6 will calculate automatically. If you cannot identify which parents were already covered, enter data in column 6, and leave columns 4 and 5 blank. If you have verified no new enrollments or renewals to date, enter 0 in columns 4 and 5."]
[]
[]
[]
[null,"Month","1\nNumber of parents for whom a new application was submitted during the month","2\nNumber of parents for whom a renewal application was submitted during the month","3\nTotal: number of parents applying this month","Parent new applications for dashboard","Parent renewal applications for dashboard","Parent applications of unknown status for dashboard","4\nNumber of parents newly enrolled to date","5\nNumber of parents renewed to date","6\nTotal: Number of parents enrolled or renewed to date","Parent new enrollments for dashboard","Parent renewals for dashboard","Parent enrollments of unknown status for dashboard","Target: New enrollments","Target: Renewals","Target: Total new enrollments and renewals",null,"Data limitations. Explain any limitations that may help us understand these data, such as reasons the data reported do not reflect the true number of applications submitted, or enrollments or renewals completed, that were funded by this grant."]
[null,null,0,0,{"$f":"IF(AND(ISBLANK(C13),ISBLANK(D13)),\"\",C13+D13)","v":0},{"$f":"IF(AND(Table14[[#This Row],[1\nNumber of parents for whom a new application was submitted during the month]]=\"\",Table14[[#This Row],[2\nNumber of parents for whom a renewal application was submitted during the month]]=\"\",Table14[[#This Row],[3\nTotal: number of parents applying this month]]=\"\"),\"\",IF(Table14[[#This Row],[1\nNumber of parents for whom a new application was submitted during the month]]=\"\",0,Table14[[#This Row],[1\nNumber of parents for whom a new application was submitted during the month]]))","v":0},{"$f":"IF(AND(Table14[[#This Row],[1\nNumber of parents for whom a new application was submitted during the month]]=\"\",Table14[[#This Row],[2\nNumber of parents for whom a renewal application was submitted during the month]]=\"\",Table14[[#This Row],[3\nTotal: number of parents applying this month]]=\"\"),\"\",IF(Table14[[#This Row],[2\nNumber of parents for whom a renewal application was submitted during the month]]=\"\",0,Table14[[#This Row],[2\nNumber of parents for whom a renewal application was submitted during the month]]))","v":0},{"$f":"IF(AND(Table14[[#This Row],[1\nNumber of parents for whom a new application was submitted during the month]]=\"\",Table14[[#This Row],[2\nNumber of parents for whom a renewal application was submitted during the month]]=\"\",Table14[[#This Row],[3\nTotal: number of parents applying this month]]=\"\"),\"\", MAX(Table14[[#This Row],[3\nTotal: number of parents applying this month]]-(Table14[[#This Row],[1\nNumber of parents for whom a new application was submitted during the month]] + Table14[[#This Row],[2\nNumber of parents for whom a renewal application was submitted during the month]]),0))","v":0},0,0,{"$f":"IF(AND(ISBLANK(I13),ISBLANK(J13)),\"\",I13+J13)","v":0},{"$f":"IF(AND(Table14[[#This Row],[4\nNumber of parents newly enrolled to date]]=\"\",Table14[[#This Row],[5\nNumber of parents renewed to date]]=\"\",Table14[[#This Row],[6\nTotal: Number of parents enrolled or renewed to date]]=\"\"),\"\",IF(Table14[[#This Row],[4\nNumber of parents newly enrolled to date]]=\"\",0,Table14[[#This Row],[4\nNumber of parents newly enrolled to date]]))","v":0},{"$f":"IF(AND(Table14[[#This Row],[4\nNumber of parents newly enrolled to date]]=\"\",Table14[[#This Row],[5\nNumber of parents renewed to date]]=\"\",Table14[[#This Row],[6\nTotal: Number of parents enrolled or renewed to date]]=\"\"),\"\",IF(Table14[[#This Row],[5\nNumber of parents renewed to date]]=\"\",0,Table14[[#This Row],[5\nNumber of parents renewed to date]]))","v":0},{"$f":"IF(AND(Table14[[#This Row],[4\nNumber of parents newly enrolled to date]]=\"\", Table14[[#This Row],[5\nNumber of parents renewed to date]]=\"\", Table14[[#This Row],[6\nTotal: Number of parents enrolled or renewed to date]]=\"\"),\"\",MAX(Table14[[#This Row],[6\nTotal: Number of parents enrolled or renewed to date]]-(Table14[[#This Row],[4\nNumber of parents newly enrolled to date]]+Table14[[#This Row],[5\nNumber of parents renewed to date]]),0))","v":0},{"$f":"'Cover sheet'!$D$13","v":0},{"$f":"'Cover sheet'!$D$17","v":0},{"$f":"'Cover sheet'!$D$18","v":""}]
[null,null,0,0,0,{"$f":"IF(AND(Table14[[#This Row],[1\nNumber of parents for whom a new application was submitted during the month]]=\"\",Table14[[#This Row],[2\nNumber of parents for whom a renewal application was submitted during the month]]=\"\",Table14[[#This Row],[3\nTotal: number of parents applying this month]]=\"\"),\"\",IF(Table14[[#This Row],[1\nNumber of parents for whom a new application was submitted during the month]]=\"\",0,Table14[[#This Row],[1\nNumber of parents for whom a new application was submitted during the month]]))","v":0},{"$f":"IF(AND(Table14[[#This Row],[1\nNumber of parents for whom a new application was submitted during the month]]=\"\",Table14[[#This Row],[2\nNumber of parents for whom a renewal application was submitted during the month]]=\"\",Table14[[#This Row],[3\nTotal: number of parents applying this month]]=\"\"),\"\",IF(Table14[[#This Row],[2\nNumber of parents for whom a renewal application was submitted during the month]]=\"\",0,Table14[[#This Row],[2\nNumber of parents for whom a renewal application was submitted during the month]]))","v":0},{"$f":"IF(AND(Table14[[#This Row],[1\nNumber of parents for whom a new application was submitted during the month]]=\"\",Table14[[#This Row],[2\nNumber of parents for whom a renewal application was submitted during the month]]=\"\",Table14[[#This Row],[3\nTotal: number of parents applying this month]]=\"\"),\"\", MAX(Table14[[#This Row],[3\nTotal: number of parents applying this month]]-(Table14[[#This Row],[1\nNumber of parents for whom a new application was submitted during the month]] + Table14[[#This Row],[2\nNumber of parents for whom a renewal application was submitted during the month]]),0))","v":0},0,0,{"$f":"IF(AND(ISBLANK(I14),ISBLANK(J14)),\"\",I14+J14)","v":0},{"$f":"IF(AND(Table14[[#This Row],[4\nNumber of parents newly enrolled to date]]=\"\",Table14[[#This Row],[5\nNumber of parents renewed to date]]=\"\",Table14[[#This Row],[6\nTotal: Number of parents enrolled or renewed to date]]=\"\"),\"\",IF(Table14[[#This Row],[4\nNumber of parents newly enrolled to date]]=\"\",0,Table14[[#This Row],[4\nNumber of parents newly enrolled to date]]))","v":0},{"$f":"IF(AND(Table14[[#This Row],[4\nNumber of parents newly enrolled to date]]=\"\",Table14[[#This Row],[5\nNumber of parents renewed to date]]=\"\",Table14[[#This Row],[6\nTotal: Number of parents enrolled or renewed to date]]=\"\"),\"\",IF(Table14[[#This Row],[5\nNumber of parents renewed to date]]=\"\",0,Table14[[#This Row],[5\nNumber of parents renewed to date]]))","v":0},{"$f":"IF(AND(Table14[[#This Row],[4\nNumber of parents newly enrolled to date]]=\"\", Table14[[#This Row],[5\nNumber of parents renewed to date]]=\"\", Table14[[#This Row],[6\nTotal: Number of parents enrolled or renewed to date]]=\"\"),\"\",MAX(Table14[[#This Row],[6\nTotal: Number of parents enrolled or renewed to date]]-(Table14[[#This Row],[4\nNumber of parents newly enrolled to date]]+Table14[[#This Row],[5\nNumber of parents renewed to date]]),0))","v":0},500,{"$f":"'Cover sheet'!$D$17","v":0},{"$f":"'Cover sheet'!$D$18","v":""}]
[null,null,0,0,0,{"$f":"IF(AND(Table14[[#This Row],[1\nNumber of parents for whom a new application was submitted during the month]]=\"\",Table14[[#This Row],[2\nNumber of parents for whom a renewal application was submitted during the month]]=\"\",Table14[[#This Row],[3\nTotal: number of parents applying this month]]=\"\"),\"\",IF(Table14[[#This Row],[1\nNumber of parents for whom a new application was submitted during the month]]=\"\",0,Table14[[#This Row],[1\nNumber of parents for whom a new application was submitted during the month]]))","v":0},{"$f":"IF(AND(Table14[[#This Row],[1\nNumber of parents for whom a new application was submitted during the month]]=\"\",Table14[[#This Row],[2\nNumber of parents for whom a renewal application was submitted during the month]]=\"\",Table14[[#This Row],[3\nTotal: number of parents applying this month]]=\"\"),\"\",IF(Table14[[#This Row],[2\nNumber of parents for whom a renewal application was submitted during the month]]=\"\",0,Table14[[#This Row],[2\nNumber of parents for whom a renewal application was submitted during the month]]))","v":0},{"$f":"IF(AND(Table14[[#This Row],[1\nNumber of parents for whom a new application was submitted during the month]]=\"\",Table14[[#This Row],[2\nNumber of parents for whom a renewal application was submitted during the month]]=\"\",Table14[[#This Row],[3\nTotal: number of parents applying this month]]=\"\"),\"\", MAX(Table14[[#This Row],[3\nTotal: number of parents applying this month]]-(Table14[[#This Row],[1\nNumber of parents for whom a new application was submitted during the month]] + Table14[[#This Row],[2\nNumber of parents for whom a renewal application was submitted during the month]]),0))","v":0},0,0,0,{"$f":"IF(AND(Table14[[#This Row],[4\nNumber of parents newly enrolled to date]]=\"\",Table14[[#This Row],[5\nNumber of parents renewed to date]]=\"\",Table14[[#This Row],[6\nTotal: Number of parents enrolled or renewed to date]]=\"\"),\"\",IF(Table14[[#This Row],[4\nNumber of parents newly enrolled to date]]=\"\",0,Table14[[#This Row],[4\nNumber of parents newly enrolled to date]]))","v":0},{"$f":"IF(AND(Table14[[#This Row],[4\nNumber of parents newly enrolled to date]]=\"\",Table14[[#This Row],[5\nNumber of parents renewed to date]]=\"\",Table14[[#This Row],[6\nTotal: Number of parents enrolled or renewed to date]]=\"\"),\"\",IF(Table14[[#This Row],[5\nNumber of parents renewed to date]]=\"\",0,Table14[[#This Row],[5\nNumber of parents renewed to date]]))","v":0},{"$f":"IF(AND(Table14[[#This Row],[4\nNumber of parents newly enrolled to date]]=\"\", Table14[[#This Row],[5\nNumber of parents renewed to date]]=\"\", Table14[[#This Row],[6\nTotal: Number of parents enrolled or renewed to date]]=\"\"),\"\",MAX(Table14[[#This Row],[6\nTotal: Number of parents enrolled or renewed to date]]-(Table14[[#This Row],[4\nNumber of parents newly enrolled to date]]+Table14[[#This Row],[5\nNumber of parents renewed to date]]),0))","v":0},500,{"$f":"'Cover sheet'!$D$17","v":0},{"$f":"'Cover sheet'!$D$18","v":""}]
[null,null,0,0,0,{"$f":"IF(AND(Table14[[#This Row],[1\nNumber of parents for whom a new application was submitted during the month]]=\"\",Table14[[#This Row],[2\nNumber of parents for whom a renewal application was submitted during the month]]=\"\",Table14[[#This Row],[3\nTotal: number of parents applying this month]]=\"\"),\"\",IF(Table14[[#This Row],[1\nNumber of parents for whom a new application was submitted during the month]]=\"\",0,Table14[[#This Row],[1\nNumber of parents for whom a new application was submitted during the month]]))","v":0},{"$f":"IF(AND(Table14[[#This Row],[1\nNumber of parents for whom a new application was submitted during the month]]=\"\",Table14[[#This Row],[2\nNumber of parents for whom a renewal application was submitted during the month]]=\"\",Table14[[#This Row],[3\nTotal: number of parents applying this month]]=\"\"),\"\",IF(Table14[[#This Row],[2\nNumber of parents for whom a renewal application was submitted during the month]]=\"\",0,Table14[[#This Row],[2\nNumber of parents for whom a renewal application was submitted during the month]]))","v":0},{"$f":"IF(AND(Table14[[#This Row],[1\nNumber of parents for whom a new application was submitted during the month]]=\"\",Table14[[#This Row],[2\nNumber of parents for whom a renewal application was submitted during the month]]=\"\",Table14[[#This Row],[3\nTotal: number of parents applying this month]]=\"\"),\"\", MAX(Table14[[#This Row],[3\nTotal: number of parents applying this month]]-(Table14[[#This Row],[1\nNumber of parents for whom a new application was submitted during the month]] + Table14[[#This Row],[2\nNumber of parents for whom a renewal application was submitted during the month]]),0))","v":0},0,0,0,{"$f":"IF(AND(Table14[[#This Row],[4\nNumber of parents newly enrolled to date]]=\"\",Table14[[#This Row],[5\nNumber of parents renewed to date]]=\"\",Table14[[#This Row],[6\nTotal: Number of parents enrolled or renewed to date]]=\"\"),\"\",IF(Table14[[#This Row],[4\nNumber of parents newly enrolled to date]]=\"\",0,Table14[[#This Row],[4\nNumber of parents newly enrolled to date]]))","v":0},{"$f":"IF(AND(Table14[[#This Row],[4\nNumber of parents newly enrolled to date]]=\"\",Table14[[#This Row],[5\nNumber of parents renewed to date]]=\"\",Table14[[#This Row],[6\nTotal: Number of parents enrolled or renewed to date]]=\"\"),\"\",IF(Table14[[#This Row],[5\nNumber of parents renewed to date]]=\"\",0,Table14[[#This Row],[5\nNumber of parents renewed to date]]))","v":0},{"$f":"IF(AND(Table14[[#This Row],[4\nNumber of parents newly enrolled to date]]=\"\", Table14[[#This Row],[5\nNumber of parents renewed to date]]=\"\", Table14[[#This Row],[6\nTotal: Number of parents enrolled or renewed to date]]=\"\"),\"\",MAX(Table14[[#This Row],[6\nTotal: Number of parents enrolled or renewed to date]]-(Table14[[#This Row],[4\nNumber of parents newly enrolled to date]]+Table14[[#This Row],[5\nNumber of parents renewed to date]]),0))","v":0},500,{"$f":"'Cover sheet'!$D$17","v":0},{"$f":"'Cover sheet'!$D$18","v":""}]
[null,null,0,0,0,{"$f":"IF(AND(Table14[[#This Row],[1\nNumber of parents for whom a new application was submitted during the month]]=\"\",Table14[[#This Row],[2\nNumber of parents for whom a renewal application was submitted during the month]]=\"\",Table14[[#This Row],[3\nTotal: number of parents applying this month]]=\"\"),\"\",IF(Table14[[#This Row],[1\nNumber of parents for whom a new application was submitted during the month]]=\"\",0,Table14[[#This Row],[1\nNumber of parents for whom a new application was submitted during the month]]))","v":0},{"$f":"IF(AND(Table14[[#This Row],[1\nNumber of parents for whom a new application was submitted during the month]]=\"\",Table14[[#This Row],[2\nNumber of parents for whom a renewal application was submitted during the month]]=\"\",Table14[[#This Row],[3\nTotal: number of parents applying this month]]=\"\"),\"\",IF(Table14[[#This Row],[2\nNumber of parents for whom a renewal application was submitted during the month]]=\"\",0,Table14[[#This Row],[2\nNumber of parents for whom a renewal application was submitted during the month]]))","v":0},{"$f":"IF(AND(Table14[[#This Row],[1\nNumber of parents for whom a new application was submitted during the month]]=\"\",Table14[[#This Row],[2\nNumber of parents for whom a renewal application was submitted during the month]]=\"\",Table14[[#This Row],[3\nTotal: number of parents applying this month]]=\"\"),\"\", MAX(Table14[[#This Row],[3\nTotal: number of parents applying this month]]-(Table14[[#This Row],[1\nNumber of parents for whom a new application was submitted during the month]] + Table14[[#This Row],[2\nNumber of parents for whom a renewal application was submitted during the month]]),0))","v":0},0,0,0,{"$f":"IF(AND(Table14[[#This Row],[4\nNumber of parents newly enrolled to date]]=\"\",Table14[[#This Row],[5\nNumber of parents renewed to date]]=\"\",Table14[[#This Row],[6\nTotal: Number of parents enrolled or renewed to date]]=\"\"),\"\",IF(Table14[[#This Row],[4\nNumber of parents newly enrolled to date]]=\"\",0,Table14[[#This Row],[4\nNumber of parents newly enrolled to date]]))","v":0},{"$f":"IF(AND(Table14[[#This Row],[4\nNumber of parents newly enrolled to date]]=\"\",Table14[[#This Row],[5\nNumber of parents renewed to date]]=\"\",Table14[[#This Row],[6\nTotal: Number of parents enrolled or renewed to date]]=\"\"),\"\",IF(Table14[[#This Row],[5\nNumber of parents renewed to date]]=\"\",0,Table14[[#This Row],[5\nNumber of parents renewed to date]]))","v":0},{"$f":"IF(AND(Table14[[#This Row],[4\nNumber of parents newly enrolled to date]]=\"\", Table14[[#This Row],[5\nNumber of parents renewed to date]]=\"\", Table14[[#This Row],[6\nTotal: Number of parents enrolled or renewed to date]]=\"\"),\"\",MAX(Table14[[#This Row],[6\nTotal: Number of parents enrolled or renewed to date]]-(Table14[[#This Row],[4\nNumber of parents newly enrolled to date]]+Table14[[#This Row],[5\nNumber of parents renewed to date]]),0))","v":0},500,{"$f":"'Cover sheet'!$D$17","v":0},{"$f":"'Cover sheet'!$D$18","v":""}]
[null,null,0,0,0,{"$f":"IF(AND(Table14[[#This Row],[1\nNumber of parents for whom a new application was submitted during the month]]=\"\",Table14[[#This Row],[2\nNumber of parents for whom a renewal application was submitted during the month]]=\"\",Table14[[#This Row],[3\nTotal: number of parents applying this month]]=\"\"),\"\",IF(Table14[[#This Row],[1\nNumber of parents for whom a new application was submitted during the month]]=\"\",0,Table14[[#This Row],[1\nNumber of parents for whom a new application was submitted during the month]]))","v":0},{"$f":"IF(AND(Table14[[#This Row],[1\nNumber of parents for whom a new application was submitted during the month]]=\"\",Table14[[#This Row],[2\nNumber of parents for whom a renewal application was submitted during the month]]=\"\",Table14[[#This Row],[3\nTotal: number of parents applying this month]]=\"\"),\"\",IF(Table14[[#This Row],[2\nNumber of parents for whom a renewal application was submitted during the month]]=\"\",0,Table14[[#This Row],[2\nNumber of parents for whom a renewal application was submitted during the month]]))","v":0},{"$f":"IF(AND(Table14[[#This Row],[1\nNumber of parents for whom a new application was submitted during the month]]=\"\",Table14[[#This Row],[2\nNumber of parents for whom a renewal application was submitted during the month]]=\"\",Table14[[#This Row],[3\nTotal: number of parents applying this month]]=\"\"),\"\", MAX(Table14[[#This Row],[3\nTotal: number of parents applying this month]]-(Table14[[#This Row],[1\nNumber of parents for whom a new application was submitted during the month]] + Table14[[#This Row],[2\nNumber of parents for whom a renewal application was submitted during the month]]),0))","v":0},0,0,{"$f":"IF(AND(ISBLANK(I18),ISBLANK(J18)),\"\",I18+J18)","v":0},{"$f":"IF(AND(Table14[[#This Row],[4\nNumber of parents newly enrolled to date]]=\"\",Table14[[#This Row],[5\nNumber of parents renewed to date]]=\"\",Table14[[#This Row],[6\nTotal: Number of parents enrolled or renewed to date]]=\"\"),\"\",IF(Table14[[#This Row],[4\nNumber of parents newly enrolled to date]]=\"\",0,Table14[[#This Row],[4\nNumber of parents newly enrolled to date]]))","v":0},{"$f":"IF(AND(Table14[[#This Row],[4\nNumber of parents newly enrolled to date]]=\"\",Table14[[#This Row],[5\nNumber of parents renewed to date]]=\"\",Table14[[#This Row],[6\nTotal: Number of parents enrolled or renewed to date]]=\"\"),\"\",IF(Table14[[#This Row],[5\nNumber of parents renewed to date]]=\"\",0,Table14[[#This Row],[5\nNumber of parents renewed to date]]))","v":0},{"$f":"IF(AND(Table14[[#This Row],[4\nNumber of parents newly enrolled to date]]=\"\", Table14[[#This Row],[5\nNumber of parents renewed to date]]=\"\", Table14[[#This Row],[6\nTotal: Number of parents enrolled or renewed to date]]=\"\"),\"\",MAX(Table14[[#This Row],[6\nTotal: Number of parents enrolled or renewed to date]]-(Table14[[#This Row],[4\nNumber of parents newly enrolled to date]]+Table14[[#This Row],[5\nNumber of parents renewed to date]]),0))","v":0},500,{"$f":"'Cover sheet'!$D$17","v":0},{"$f":"'Cover sheet'!$D$18","v":""}]
[null,null,0,0,0,{"$f":"IF(AND(Table14[[#This Row],[1\nNumber of parents for whom a new application was submitted during the month]]=\"\",Table14[[#This Row],[2\nNumber of parents for whom a renewal application was submitted during the month]]=\"\",Table14[[#This Row],[3\nTotal: number of parents applying this month]]=\"\"),\"\",IF(Table14[[#This Row],[1\nNumber of parents for whom a new application was submitted during the month]]=\"\",0,Table14[[#This Row],[1\nNumber of parents for whom a new application was submitted during the month]]))","v":0},{"$f":"IF(AND(Table14[[#This Row],[1\nNumber of parents for whom a new application was submitted during the month]]=\"\",Table14[[#This Row],[2\nNumber of parents for whom a renewal application was submitted during the month]]=\"\",Table14[[#This Row],[3\nTotal: number of parents applying this month]]=\"\"),\"\",IF(Table14[[#This Row],[2\nNumber of parents for whom a renewal application was submitted during the month]]=\"\",0,Table14[[#This Row],[2\nNumber of parents for whom a renewal application was submitted during the month]]))","v":0},{"$f":"IF(AND(Table14[[#This Row],[1\nNumber of parents for whom a new application was submitted during the month]]=\"\",Table14[[#This Row],[2\nNumber of parents for whom a renewal application was submitted during the month]]=\"\",Table14[[#This Row],[3\nTotal: number of parents applying this month]]=\"\"),\"\", MAX(Table14[[#This Row],[3\nTotal: number of parents applying this month]]-(Table14[[#This Row],[1\nNumber of parents for whom a new application was submitted during the month]] + Table14[[#This Row],[2\nNumber of parents for whom a renewal application was submitted during the month]]),0))","v":0},0,0,0,{"$f":"IF(AND(Table14[[#This Row],[4\nNumber of parents newly enrolled to date]]=\"\",Table14[[#This Row],[5\nNumber of parents renewed to date]]=\"\",Table14[[#This Row],[6\nTotal: Number of parents enrolled or renewed to date]]=\"\"),\"\",IF(Table14[[#This Row],[4\nNumber of parents newly enrolled to date]]=\"\",0,Table14[[#This Row],[4\nNumber of parents newly enrolled to date]]))","v":0},{"$f":"IF(AND(Table14[[#This Row],[4\nNumber of parents newly enrolled to date]]=\"\",Table14[[#This Row],[5\nNumber of parents renewed to date]]=\"\",Table14[[#This Row],[6\nTotal: Number of parents enrolled or renewed to date]]=\"\"),\"\",IF(Table14[[#This Row],[5\nNumber of parents renewed to date]]=\"\",0,Table14[[#This Row],[5\nNumber of parents renewed to date]]))","v":0},{"$f":"IF(AND(Table14[[#This Row],[4\nNumber of parents newly enrolled to date]]=\"\", Table14[[#This Row],[5\nNumber of parents renewed to date]]=\"\", Table14[[#This Row],[6\nTotal: Number of parents enrolled or renewed to date]]=\"\"),\"\",MAX(Table14[[#This Row],[6\nTotal: Number of parents enrolled or renewed to date]]-(Table14[[#This Row],[4\nNumber of parents newly enrolled to date]]+Table14[[#This Row],[5\nNumber of parents renewed to date]]),0))","v":0},500,{"$f":"'Cover sheet'!$D$17","v":0},{"$f":"'Cover sheet'!$D$18","v":""}]
[null,null,0,0,0,{"$f":"IF(AND(Table14[[#This Row],[1\nNumber of parents for whom a new application was submitted during the month]]=\"\",Table14[[#This Row],[2\nNumber of parents for whom a renewal application was submitted during the month]]=\"\",Table14[[#This Row],[3\nTotal: number of parents applying this month]]=\"\"),\"\",IF(Table14[[#This Row],[1\nNumber of parents for whom a new application was submitted during the month]]=\"\",0,Table14[[#This Row],[1\nNumber of parents for whom a new application was submitted during the month]]))","v":0},{"$f":"IF(AND(Table14[[#This Row],[1\nNumber of parents for whom a new application was submitted during the month]]=\"\",Table14[[#This Row],[2\nNumber of parents for whom a renewal application was submitted during the month]]=\"\",Table14[[#This Row],[3\nTotal: number of parents applying this month]]=\"\"),\"\",IF(Table14[[#This Row],[2\nNumber of parents for whom a renewal application was submitted during the month]]=\"\",0,Table14[[#This Row],[2\nNumber of parents for whom a renewal application was submitted during the month]]))","v":0},{"$f":"IF(AND(Table14[[#This Row],[1\nNumber of parents for whom a new application was submitted during the month]]=\"\",Table14[[#This Row],[2\nNumber of parents for whom a renewal application was submitted during the month]]=\"\",Table14[[#This Row],[3\nTotal: number of parents applying this month]]=\"\"),\"\", MAX(Table14[[#This Row],[3\nTotal: number of parents applying this month]]-(Table14[[#This Row],[1\nNumber of parents for whom a new application was submitted during the month]] + Table14[[#This Row],[2\nNumber of parents for whom a renewal application was submitted during the month]]),0))","v":0},0,0,0,{"$f":"IF(AND(Table14[[#This Row],[4\nNumber of parents newly enrolled to date]]=\"\",Table14[[#This Row],[5\nNumber of parents renewed to date]]=\"\",Table14[[#This Row],[6\nTotal: Number of parents enrolled or renewed to date]]=\"\"),\"\",IF(Table14[[#This Row],[4\nNumber of parents newly enrolled to date]]=\"\",0,Table14[[#This Row],[4\nNumber of parents newly enrolled to date]]))","v":0},{"$f":"IF(AND(Table14[[#This Row],[4\nNumber of parents newly enrolled to date]]=\"\",Table14[[#This Row],[5\nNumber of parents renewed to date]]=\"\",Table14[[#This Row],[6\nTotal: Number of parents enrolled or renewed to date]]=\"\"),\"\",IF(Table14[[#This Row],[5\nNumber of parents renewed to date]]=\"\",0,Table14[[#This Row],[5\nNumber of parents renewed to date]]))","v":0},{"$f":"IF(AND(Table14[[#This Row],[4\nNumber of parents newly enrolled to date]]=\"\", Table14[[#This Row],[5\nNumber of parents renewed to date]]=\"\", Table14[[#This Row],[6\nTotal: Number of parents enrolled or renewed to date]]=\"\"),\"\",MAX(Table14[[#This Row],[6\nTotal: Number of parents enrolled or renewed to date]]-(Table14[[#This Row],[4\nNumber of parents newly enrolled to date]]+Table14[[#This Row],[5\nNumber of parents renewed to date]]),0))","v":0},500,{"$f":"'Cover sheet'!$D$17","v":0},{"$f":"'Cover sheet'!$D$18","v":""}]
[null,null,0,0,0,{"$f":"IF(AND(Table14[[#This Row],[1\nNumber of parents for whom a new application was submitted during the month]]=\"\",Table14[[#This Row],[2\nNumber of parents for whom a renewal application was submitted during the month]]=\"\",Table14[[#This Row],[3\nTotal: number of parents applying this month]]=\"\"),\"\",IF(Table14[[#This Row],[1\nNumber of parents for whom a new application was submitted during the month]]=\"\",0,Table14[[#This Row],[1\nNumber of parents for whom a new application was submitted during the month]]))","v":0},{"$f":"IF(AND(Table14[[#This Row],[1\nNumber of parents for whom a new application was submitted during the month]]=\"\",Table14[[#This Row],[2\nNumber of parents for whom a renewal application was submitted during the month]]=\"\",Table14[[#This Row],[3\nTotal: number of parents applying this month]]=\"\"),\"\",IF(Table14[[#This Row],[2\nNumber of parents for whom a renewal application was submitted during the month]]=\"\",0,Table14[[#This Row],[2\nNumber of parents for whom a renewal application was submitted during the month]]))","v":0},{"$f":"IF(AND(Table14[[#This Row],[1\nNumber of parents for whom a new application was submitted during the month]]=\"\",Table14[[#This Row],[2\nNumber of parents for whom a renewal application was submitted during the month]]=\"\",Table14[[#This Row],[3\nTotal: number of parents applying this month]]=\"\"),\"\", MAX(Table14[[#This Row],[3\nTotal: number of parents applying this month]]-(Table14[[#This Row],[1\nNumber of parents for whom a new application was submitted during the month]] + Table14[[#This Row],[2\nNumber of parents for whom a renewal application was submitted during the month]]),0))","v":0},0,0,0,{"$f":"IF(AND(Table14[[#This Row],[4\nNumber of parents newly enrolled to date]]=\"\",Table14[[#This Row],[5\nNumber of parents renewed to date]]=\"\",Table14[[#This Row],[6\nTotal: Number of parents enrolled or renewed to date]]=\"\"),\"\",IF(Table14[[#This Row],[4\nNumber of parents newly enrolled to date]]=\"\",0,Table14[[#This Row],[4\nNumber of parents newly enrolled to date]]))","v":0},{"$f":"IF(AND(Table14[[#This Row],[4\nNumber of parents newly enrolled to date]]=\"\",Table14[[#This Row],[5\nNumber of parents renewed to date]]=\"\",Table14[[#This Row],[6\nTotal: Number of parents enrolled or renewed to date]]=\"\"),\"\",IF(Table14[[#This Row],[5\nNumber of parents renewed to date]]=\"\",0,Table14[[#This Row],[5\nNumber of parents renewed to date]]))","v":0},{"$f":"IF(AND(Table14[[#This Row],[4\nNumber of parents newly enrolled to date]]=\"\", Table14[[#This Row],[5\nNumber of parents renewed to date]]=\"\", Table14[[#This Row],[6\nTotal: Number of parents enrolled or renewed to date]]=\"\"),\"\",MAX(Table14[[#This Row],[6\nTotal: Number of parents enrolled or renewed to date]]-(Table14[[#This Row],[4\nNumber of parents newly enrolled to date]]+Table14[[#This Row],[5\nNumber of parents renewed to date]]),0))","v":0},500,{"$f":"'Cover sheet'!$D$17","v":0},{"$f":"'Cover sheet'!$D$18","v":""}]
[null,null,0,0,0,{"$f":"IF(AND(Table14[[#This Row],[1\nNumber of parents for whom a new application was submitted during the month]]=\"\",Table14[[#This Row],[2\nNumber of parents for whom a renewal application was submitted during the month]]=\"\",Table14[[#This Row],[3\nTotal: number of parents applying this month]]=\"\"),\"\",IF(Table14[[#This Row],[1\nNumber of parents for whom a new application was submitted during the month]]=\"\",0,Table14[[#This Row],[1\nNumber of parents for whom a new application was submitted during the month]]))","v":0},{"$f":"IF(AND(Table14[[#This Row],[1\nNumber of parents for whom a new application was submitted during the month]]=\"\",Table14[[#This Row],[2\nNumber of parents for whom a renewal application was submitted during the month]]=\"\",Table14[[#This Row],[3\nTotal: number of parents applying this month]]=\"\"),\"\",IF(Table14[[#This Row],[2\nNumber of parents for whom a renewal application was submitted during the month]]=\"\",0,Table14[[#This Row],[2\nNumber of parents for whom a renewal application was submitted during the month]]))","v":0},{"$f":"IF(AND(Table14[[#This Row],[1\nNumber of parents for whom a new application was submitted during the month]]=\"\",Table14[[#This Row],[2\nNumber of parents for whom a renewal application was submitted during the month]]=\"\",Table14[[#This Row],[3\nTotal: number of parents applying this month]]=\"\"),\"\", MAX(Table14[[#This Row],[3\nTotal: number of parents applying this month]]-(Table14[[#This Row],[1\nNumber of parents for whom a new application was submitted during the month]] + Table14[[#This Row],[2\nNumber of parents for whom a renewal application was submitted during the month]]),0))","v":0},0,0,0,{"$f":"IF(AND(Table14[[#This Row],[4\nNumber of parents newly enrolled to date]]=\"\",Table14[[#This Row],[5\nNumber of parents renewed to date]]=\"\",Table14[[#This Row],[6\nTotal: Number of parents enrolled or renewed to date]]=\"\"),\"\",IF(Table14[[#This Row],[4\nNumber of parents newly enrolled to date]]=\"\",0,Table14[[#This Row],[4\nNumber of parents newly enrolled to date]]))","v":0},{"$f":"IF(AND(Table14[[#This Row],[4\nNumber of parents newly enrolled to date]]=\"\",Table14[[#This Row],[5\nNumber of parents renewed to date]]=\"\",Table14[[#This Row],[6\nTotal: Number of parents enrolled or renewed to date]]=\"\"),\"\",IF(Table14[[#This Row],[5\nNumber of parents renewed to date]]=\"\",0,Table14[[#This Row],[5\nNumber of parents renewed to date]]))","v":0},{"$f":"IF(AND(Table14[[#This Row],[4\nNumber of parents newly enrolled to date]]=\"\", Table14[[#This Row],[5\nNumber of parents renewed to date]]=\"\", Table14[[#This Row],[6\nTotal: Number of parents enrolled or renewed to date]]=\"\"),\"\",MAX(Table14[[#This Row],[6\nTotal: Number of parents enrolled or renewed to date]]-(Table14[[#This Row],[4\nNumber of parents newly enrolled to date]]+Table14[[#This Row],[5\nNumber of parents renewed to date]]),0))","v":0},500,{"$f":"'Cover sheet'!$D$17","v":0},{"$f":"'Cover sheet'!$D$18","v":""}]
[null,null,0,0,0,{"$f":"IF(AND(Table14[[#This Row],[1\nNumber of parents for whom a new application was submitted during the month]]=\"\",Table14[[#This Row],[2\nNumber of parents for whom a renewal application was submitted during the month]]=\"\",Table14[[#This Row],[3\nTotal: number of parents applying this month]]=\"\"),\"\",IF(Table14[[#This Row],[1\nNumber of parents for whom a new application was submitted during the month]]=\"\",0,Table14[[#This Row],[1\nNumber of parents for whom a new application was submitted during the month]]))","v":0},{"$f":"IF(AND(Table14[[#This Row],[1\nNumber of parents for whom a new application was submitted during the month]]=\"\",Table14[[#This Row],[2\nNumber of parents for whom a renewal application was submitted during the month]]=\"\",Table14[[#This Row],[3\nTotal: number of parents applying this month]]=\"\"),\"\",IF(Table14[[#This Row],[2\nNumber of parents for whom a renewal application was submitted during the month]]=\"\",0,Table14[[#This Row],[2\nNumber of parents for whom a renewal application was submitted during the month]]))","v":0},{"$f":"IF(AND(Table14[[#This Row],[1\nNumber of parents for whom a new application was submitted during the month]]=\"\",Table14[[#This Row],[2\nNumber of parents for whom a renewal application was submitted during the month]]=\"\",Table14[[#This Row],[3\nTotal: number of parents applying this month]]=\"\"),\"\", MAX(Table14[[#This Row],[3\nTotal: number of parents applying this month]]-(Table14[[#This Row],[1\nNumber of parents for whom a new application was submitted during the month]] + Table14[[#This Row],[2\nNumber of parents for whom a renewal application was submitted during the month]]),0))","v":0},0,0,0,{"$f":"IF(AND(Table14[[#This Row],[4\nNumber of parents newly enrolled to date]]=\"\",Table14[[#This Row],[5\nNumber of parents renewed to date]]=\"\",Table14[[#This Row],[6\nTotal: Number of parents enrolled or renewed to date]]=\"\"),\"\",IF(Table14[[#This Row],[4\nNumber of parents newly enrolled to date]]=\"\",0,Table14[[#This Row],[4\nNumber of parents newly enrolled to date]]))","v":0},{"$f":"IF(AND(Table14[[#This Row],[4\nNumber of parents newly enrolled to date]]=\"\",Table14[[#This Row],[5\nNumber of parents renewed to date]]=\"\",Table14[[#This Row],[6\nTotal: Number of parents enrolled or renewed to date]]=\"\"),\"\",IF(Table14[[#This Row],[5\nNumber of parents renewed to date]]=\"\",0,Table14[[#This Row],[5\nNumber of parents renewed to date]]))","v":0},{"$f":"IF(AND(Table14[[#This Row],[4\nNumber of parents newly enrolled to date]]=\"\", Table14[[#This Row],[5\nNumber of parents renewed to date]]=\"\", Table14[[#This Row],[6\nTotal: Number of parents enrolled or renewed to date]]=\"\"),\"\",MAX(Table14[[#This Row],[6\nTotal: Number of parents enrolled or renewed to date]]-(Table14[[#This Row],[4\nNumber of parents newly enrolled to date]]+Table14[[#This Row],[5\nNumber of parents renewed to date]]),0))","v":0},500,{"$f":"'Cover sheet'!$D$17","v":0},{"$f":"'Cover sheet'!$D$18","v":""}]
[null,null,0,0,0,{"$f":"IF(AND(Table14[[#This Row],[1\nNumber of parents for whom a new application was submitted during the month]]=\"\",Table14[[#This Row],[2\nNumber of parents for whom a renewal application was submitted during the month]]=\"\",Table14[[#This Row],[3\nTotal: number of parents applying this month]]=\"\"),\"\",IF(Table14[[#This Row],[1\nNumber of parents for whom a new application was submitted during the month]]=\"\",0,Table14[[#This Row],[1\nNumber of parents for whom a new application was submitted during the month]]))","v":0},{"$f":"IF(AND(Table14[[#This Row],[1\nNumber of parents for whom a new application was submitted during the month]]=\"\",Table14[[#This Row],[2\nNumber of parents for whom a renewal application was submitted during the month]]=\"\",Table14[[#This Row],[3\nTotal: number of parents applying this month]]=\"\"),\"\",IF(Table14[[#This Row],[2\nNumber of parents for whom a renewal application was submitted during the month]]=\"\",0,Table14[[#This Row],[2\nNumber of parents for whom a renewal application was submitted during the month]]))","v":0},{"$f":"IF(AND(Table14[[#This Row],[1\nNumber of parents for whom a new application was submitted during the month]]=\"\",Table14[[#This Row],[2\nNumber of parents for whom a renewal application was submitted during the month]]=\"\",Table14[[#This Row],[3\nTotal: number of parents applying this month]]=\"\"),\"\", MAX(Table14[[#This Row],[3\nTotal: number of parents applying this month]]-(Table14[[#This Row],[1\nNumber of parents for whom a new application was submitted during the month]] + Table14[[#This Row],[2\nNumber of parents for whom a renewal application was submitted during the month]]),0))","v":0},0,0,0,{"$f":"IF(AND(Table14[[#This Row],[4\nNumber of parents newly enrolled to date]]=\"\",Table14[[#This Row],[5\nNumber of parents renewed to date]]=\"\",Table14[[#This Row],[6\nTotal: Number of parents enrolled or renewed to date]]=\"\"),\"\",IF(Table14[[#This Row],[4\nNumber of parents newly enrolled to date]]=\"\",0,Table14[[#This Row],[4\nNumber of parents newly enrolled to date]]))","v":0},{"$f":"IF(AND(Table14[[#This Row],[4\nNumber of parents newly enrolled to date]]=\"\",Table14[[#This Row],[5\nNumber of parents renewed to date]]=\"\",Table14[[#This Row],[6\nTotal: Number of parents enrolled or renewed to date]]=\"\"),\"\",IF(Table14[[#This Row],[5\nNumber of parents renewed to date]]=\"\",0,Table14[[#This Row],[5\nNumber of parents renewed to date]]))","v":0},{"$f":"IF(AND(Table14[[#This Row],[4\nNumber of parents newly enrolled to date]]=\"\", Table14[[#This Row],[5\nNumber of parents renewed to date]]=\"\", Table14[[#This Row],[6\nTotal: Number of parents enrolled or renewed to date]]=\"\"),\"\",MAX(Table14[[#This Row],[6\nTotal: Number of parents enrolled or renewed to date]]-(Table14[[#This Row],[4\nNumber of parents newly enrolled to date]]+Table14[[#This Row],[5\nNumber of parents renewed to date]]),0))","v":0},500,{"$f":"'Cover sheet'!$D$17","v":0},{"$f":"'Cover sheet'!$D$18","v":""}]
[null,null,0,0,0,{"$f":"IF(AND(Table14[[#This Row],[1\nNumber of parents for whom a new application was submitted during the month]]=\"\",Table14[[#This Row],[2\nNumber of parents for whom a renewal application was submitted during the month]]=\"\",Table14[[#This Row],[3\nTotal: number of parents applying this month]]=\"\"),\"\",IF(Table14[[#This Row],[1\nNumber of parents for whom a new application was submitted during the month]]=\"\",0,Table14[[#This Row],[1\nNumber of parents for whom a new application was submitted during the month]]))","v":0},{"$f":"IF(AND(Table14[[#This Row],[1\nNumber of parents for whom a new application was submitted during the month]]=\"\",Table14[[#This Row],[2\nNumber of parents for whom a renewal application was submitted during the month]]=\"\",Table14[[#This Row],[3\nTotal: number of parents applying this month]]=\"\"),\"\",IF(Table14[[#This Row],[2\nNumber of parents for whom a renewal application was submitted during the month]]=\"\",0,Table14[[#This Row],[2\nNumber of parents for whom a renewal application was submitted during the month]]))","v":0},{"$f":"IF(AND(Table14[[#This Row],[1\nNumber of parents for whom a new application was submitted during the month]]=\"\",Table14[[#This Row],[2\nNumber of parents for whom a renewal application was submitted during the month]]=\"\",Table14[[#This Row],[3\nTotal: number of parents applying this month]]=\"\"),\"\", MAX(Table14[[#This Row],[3\nTotal: number of parents applying this month]]-(Table14[[#This Row],[1\nNumber of parents for whom a new application was submitted during the month]] + Table14[[#This Row],[2\nNumber of parents for whom a renewal application was submitted during the month]]),0))","v":0},0,0,0,{"$f":"IF(AND(Table14[[#This Row],[4\nNumber of parents newly enrolled to date]]=\"\",Table14[[#This Row],[5\nNumber of parents renewed to date]]=\"\",Table14[[#This Row],[6\nTotal: Number of parents enrolled or renewed to date]]=\"\"),\"\",IF(Table14[[#This Row],[4\nNumber of parents newly enrolled to date]]=\"\",0,Table14[[#This Row],[4\nNumber of parents newly enrolled to date]]))","v":0},{"$f":"IF(AND(Table14[[#This Row],[4\nNumber of parents newly enrolled to date]]=\"\",Table14[[#This Row],[5\nNumber of parents renewed to date]]=\"\",Table14[[#This Row],[6\nTotal: Number of parents enrolled or renewed to date]]=\"\"),\"\",IF(Table14[[#This Row],[5\nNumber of parents renewed to date]]=\"\",0,Table14[[#This Row],[5\nNumber of parents renewed to date]]))","v":0},{"$f":"IF(AND(Table14[[#This Row],[4\nNumber of parents newly enrolled to date]]=\"\", Table14[[#This Row],[5\nNumber of parents renewed to date]]=\"\", Table14[[#This Row],[6\nTotal: Number of parents enrolled or renewed to date]]=\"\"),\"\",MAX(Table14[[#This Row],[6\nTotal: Number of parents enrolled or renewed to date]]-(Table14[[#This Row],[4\nNumber of parents newly enrolled to date]]+Table14[[#This Row],[5\nNumber of parents renewed to date]]),0))","v":0},500,{"$f":"'Cover sheet'!$D$17","v":0},{"$f":"'Cover sheet'!$D$18","v":""}]
[null,{"$f":"'Cover sheet'!D19","v":"2019-07-01"},null,null,{"$f":"IF(AND(ISBLANK(C26),ISBLANK(D26)),\"\",C26+D26)","v":""},{"$f":"IF(AND(Table14[[#This Row],[1\nNumber of parents for whom a new application was submitted during the month]]=\"\",Table14[[#This Row],[2\nNumber of parents for whom a renewal application was submitted during the month]]=\"\",Table14[[#This Row],[3\nTotal: number of parents applying this month]]=\"\"),\"\",IF(Table14[[#This Row],[1\nNumber of parents for whom a new application was submitted during the month]]=\"\",0,Table14[[#This Row],[1\nNumber of parents for whom a new application was submitted during the month]]))","v":""},{"$f":"IF(AND(Table14[[#This Row],[1\nNumber of parents for whom a new application was submitted during the month]]=\"\",Table14[[#This Row],[2\nNumber of parents for whom a renewal application was submitted during the month]]=\"\",Table14[[#This Row],[3\nTotal: number of parents applying this month]]=\"\"),\"\",IF(Table14[[#This Row],[2\nNumber of parents for whom a renewal application was submitted during the month]]=\"\",0,Table14[[#This Row],[2\nNumber of parents for whom a renewal application was submitted during the month]]))","v":""},{"$f":"IF(AND(Table14[[#This Row],[1\nNumber of parents for whom a new application was submitted during the month]]=\"\",Table14[[#This Row],[2\nNumber of parents for whom a renewal application was submitted during the month]]=\"\",Table14[[#This Row],[3\nTotal: number of parents applying this month]]=\"\"),\"\", MAX(Table14[[#This Row],[3\nTotal: number of parents applying this month]]-(Table14[[#This Row],[1\nNumber of parents for whom a new application was submitted during the month]] + Table14[[#This Row],[2\nNumber of parents for whom a renewal application was submitted during the month]]),0))","v":""},null,null,"",{"$f":"IF(AND(Table14[[#This Row],[4\nNumber of parents newly enrolled to date]]=\"\",Table14[[#This Row],[5\nNumber of parents renewed to date]]=\"\",Table14[[#This Row],[6\nTotal: Number of parents enrolled or renewed to date]]=\"\"),\"\",IF(Table14[[#This Row],[4\nNumber of parents newly enrolled to date]]=\"\",0,Table14[[#This Row],[4\nNumber of parents newly enrolled to date]]))","v":""},{"$f":"IF(AND(Table14[[#This Row],[4\nNumber of parents newly enrolled to date]]=\"\",Table14[[#This Row],[5\nNumber of parents renewed to date]]=\"\",Table14[[#This Row],[6\nTotal: Number of parents enrolled or renewed to date]]=\"\"),\"\",IF(Table14[[#This Row],[5\nNumber of parents renewed to date]]=\"\",0,Table14[[#This Row],[5\nNumber of parents renewed to date]]))","v":""},{"$f":"IF(AND(Table14[[#This Row],[4\nNumber of parents newly enrolled to date]]=\"\", Table14[[#This Row],[5\nNumber of parents renewed to date]]=\"\", Table14[[#This Row],[6\nTotal: Number of parents enrolled or renewed to date]]=\"\"),\"\",MAX(Table14[[#This Row],[6\nTotal: Number of parents enrolled or renewed to date]]-(Table14[[#This Row],[4\nNumber of parents newly enrolled to date]]+Table14[[#This Row],[5\nNumber of parents renewed to date]]),0))","v":""},{"$f":"'Cover sheet'!$D$16","v":0},{"$f":"'Cover sheet'!$D$17","v":0},{"$f":"'Cover sheet'!$D$18","v":""}]
[null,{"$f":"EDATE(B26,1)","v":"2019-08-01"},null,null,"",{"$f":"IF(AND(Table14[[#This Row],[1\nNumber of parents for whom a new application was submitted during the month]]=\"\",Table14[[#This Row],[2\nNumber of parents for whom a renewal application was submitted during the month]]=\"\",Table14[[#This Row],[3\nTotal: number of parents applying this month]]=\"\"),\"\",IF(Table14[[#This Row],[1\nNumber of parents for whom a new application was submitted during the month]]=\"\",0,Table14[[#This Row],[1\nNumber of parents for whom a new application was submitted during the month]]))","v":""},{"$f":"IF(AND(Table14[[#This Row],[1\nNumber of parents for whom a new application was submitted during the month]]=\"\",Table14[[#This Row],[2\nNumber of parents for whom a renewal application was submitted during the month]]=\"\",Table14[[#This Row],[3\nTotal: number of parents applying this month]]=\"\"),\"\",IF(Table14[[#This Row],[2\nNumber of parents for whom a renewal application was submitted during the month]]=\"\",0,Table14[[#This Row],[2\nNumber of parents for whom a renewal application was submitted during the month]]))","v":""},{"$f":"IF(AND(Table14[[#This Row],[1\nNumber of parents for whom a new application was submitted during the month]]=\"\",Table14[[#This Row],[2\nNumber of parents for whom a renewal application was submitted during the month]]=\"\",Table14[[#This Row],[3\nTotal: number of parents applying this month]]=\"\"),\"\", MAX(Table14[[#This Row],[3\nTotal: number of parents applying this month]]-(Table14[[#This Row],[1\nNumber of parents for whom a new application was submitted during the month]] + Table14[[#This Row],[2\nNumber of parents for whom a renewal application was submitted during the month]]),0))","v":""},null,null,{"$f":"IF(AND(ISBLANK(I27),ISBLANK(J27)),\"\",I27+J27)","v":""},{"$f":"IF(AND(Table14[[#This Row],[4\nNumber of parents newly enrolled to date]]=\"\",Table14[[#This Row],[5\nNumber of parents renewed to date]]=\"\",Table14[[#This Row],[6\nTotal: Number of parents enrolled or renewed to date]]=\"\"),\"\",IF(Table14[[#This Row],[4\nNumber of parents newly enrolled to date]]=\"\",0,Table14[[#This Row],[4\nNumber of parents newly enrolled to date]]))","v":""},{"$f":"IF(AND(Table14[[#This Row],[4\nNumber of parents newly enrolled to date]]=\"\",Table14[[#This Row],[5\nNumber of parents renewed to date]]=\"\",Table14[[#This Row],[6\nTotal: Number of parents enrolled or renewed to date]]=\"\"),\"\",IF(Table14[[#This Row],[5\nNumber of parents renewed to date]]=\"\",0,Table14[[#This Row],[5\nNumber of parents renewed to date]]))","v":""},{"$f":"IF(AND(Table14[[#This Row],[4\nNumber of parents newly enrolled to date]]=\"\", Table14[[#This Row],[5\nNumber of parents renewed to date]]=\"\", Table14[[#This Row],[6\nTotal: Number of parents enrolled or renewed to date]]=\"\"),\"\",MAX(Table14[[#This Row],[6\nTotal: Number of parents enrolled or renewed to date]]-(Table14[[#This Row],[4\nNumber of parents newly enrolled to date]]+Table14[[#This Row],[5\nNumber of parents renewed to date]]),0))","v":""},{"$f":"'Cover sheet'!$D$16","v":0},{"$f":"'Cover sheet'!$D$17","v":0},{"$f":"'Cover sheet'!$D$18","v":""}]
[null,{"$f":"EDATE(B27,1)","v":"2019-09-01"},null,null,"",{"$f":"IF(AND(Table14[[#This Row],[1\nNumber of parents for whom a new application was submitted during the month]]=\"\",Table14[[#This Row],[2\nNumber of parents for whom a renewal application was submitted during the month]]=\"\",Table14[[#This Row],[3\nTotal: number of parents applying this month]]=\"\"),\"\",IF(Table14[[#This Row],[1\nNumber of parents for whom a new application was submitted during the month]]=\"\",0,Table14[[#This Row],[1\nNumber of parents for whom a new application was submitted during the month]]))","v":""},{"$f":"IF(AND(Table14[[#This Row],[1\nNumber of parents for whom a new application was submitted during the month]]=\"\",Table14[[#This Row],[2\nNumber of parents for whom a renewal application was submitted during the month]]=\"\",Table14[[#This Row],[3\nTotal: number of parents applying this month]]=\"\"),\"\",IF(Table14[[#This Row],[2\nNumber of parents for whom a renewal application was submitted during the month]]=\"\",0,Table14[[#This Row],[2\nNumber of parents for whom a renewal application was submitted during the month]]))","v":""},{"$f":"IF(AND(Table14[[#This Row],[1\nNumber of parents for whom a new application was submitted during the month]]=\"\",Table14[[#This Row],[2\nNumber of parents for whom a renewal application was submitted during the month]]=\"\",Table14[[#This Row],[3\nTotal: number of parents applying this month]]=\"\"),\"\", MAX(Table14[[#This Row],[3\nTotal: number of parents applying this month]]-(Table14[[#This Row],[1\nNumber of parents for whom a new application was submitted during the month]] + Table14[[#This Row],[2\nNumber of parents for whom a renewal application was submitted during the month]]),0))","v":""},null,null,"",{"$f":"IF(AND(Table14[[#This Row],[4\nNumber of parents newly enrolled to date]]=\"\",Table14[[#This Row],[5\nNumber of parents renewed to date]]=\"\",Table14[[#This Row],[6\nTotal: Number of parents enrolled or renewed to date]]=\"\"),\"\",IF(Table14[[#This Row],[4\nNumber of parents newly enrolled to date]]=\"\",0,Table14[[#This Row],[4\nNumber of parents newly enrolled to date]]))","v":""},{"$f":"IF(AND(Table14[[#This Row],[4\nNumber of parents newly enrolled to date]]=\"\",Table14[[#This Row],[5\nNumber of parents renewed to date]]=\"\",Table14[[#This Row],[6\nTotal: Number of parents enrolled or renewed to date]]=\"\"),\"\",IF(Table14[[#This Row],[5\nNumber of parents renewed to date]]=\"\",0,Table14[[#This Row],[5\nNumber of parents renewed to date]]))","v":""},{"$f":"IF(AND(Table14[[#This Row],[4\nNumber of parents newly enrolled to date]]=\"\", Table14[[#This Row],[5\nNumber of parents renewed to date]]=\"\", Table14[[#This Row],[6\nTotal: Number of parents enrolled or renewed to date]]=\"\"),\"\",MAX(Table14[[#This Row],[6\nTotal: Number of parents enrolled or renewed to date]]-(Table14[[#This Row],[4\nNumber of parents newly enrolled to date]]+Table14[[#This Row],[5\nNumber of parents renewed to date]]),0))","v":""},{"$f":"'Cover sheet'!$D$16","v":0},{"$f":"'Cover sheet'!$D$17","v":0},{"$f":"'Cover sheet'!$D$18","v":""},null,"Type here"]
[null,"2019-10-01",null,null,"",{"$f":"IF(AND(Table14[[#This Row],[1\nNumber of parents for whom a new application was submitted during the month]]=\"\",Table14[[#This Row],[2\nNumber of parents for whom a renewal application was submitted during the month]]=\"\",Table14[[#This Row],[3\nTotal: number of parents applying this month]]=\"\"),\"\",IF(Table14[[#This Row],[1\nNumber of parents for whom a new application was submitted during the month]]=\"\",0,Table14[[#This Row],[1\nNumber of parents for whom a new application was submitted during the month]]))","v":""},{"$f":"IF(AND(Table14[[#This Row],[1\nNumber of parents for whom a new application was submitted during the month]]=\"\",Table14[[#This Row],[2\nNumber of parents for whom a renewal application was submitted during the month]]=\"\",Table14[[#This Row],[3\nTotal: number of parents applying this month]]=\"\"),\"\",IF(Table14[[#This Row],[2\nNumber of parents for whom a renewal application was submitted during the month]]=\"\",0,Table14[[#This Row],[2\nNumber of parents for whom a renewal application was submitted during the month]]))","v":""},{"$f":"IF(AND(Table14[[#This Row],[1\nNumber of parents for whom a new application was submitted during the month]]=\"\",Table14[[#This Row],[2\nNumber of parents for whom a renewal application was submitted during the month]]=\"\",Table14[[#This Row],[3\nTotal: number of parents applying this month]]=\"\"),\"\", MAX(Table14[[#This Row],[3\nTotal: number of parents applying this month]]-(Table14[[#This Row],[1\nNumber of parents for whom a new application was submitted during the month]] + Table14[[#This Row],[2\nNumber of parents for whom a renewal application was submitted during the month]]),0))","v":""},null,null,"",{"$f":"IF(AND(Table14[[#This Row],[4\nNumber of parents newly enrolled to date]]=\"\",Table14[[#This Row],[5\nNumber of parents renewed to date]]=\"\",Table14[[#This Row],[6\nTotal: Number of parents enrolled or renewed to date]]=\"\"),\"\",IF(Table14[[#This Row],[4\nNumber of parents newly enrolled to date]]=\"\",0,Table14[[#This Row],[4\nNumber of parents newly enrolled to date]]))","v":""},{"$f":"IF(AND(Table14[[#This Row],[4\nNumber of parents newly enrolled to date]]=\"\",Table14[[#This Row],[5\nNumber of parents renewed to date]]=\"\",Table14[[#This Row],[6\nTotal: Number of parents enrolled or renewed to date]]=\"\"),\"\",IF(Table14[[#This Row],[5\nNumber of parents renewed to date]]=\"\",0,Table14[[#This Row],[5\nNumber of parents renewed to date]]))","v":""},{"$f":"IF(AND(Table14[[#This Row],[4\nNumber of parents newly enrolled to date]]=\"\", Table14[[#This Row],[5\nNumber of parents renewed to date]]=\"\", Table14[[#This Row],[6\nTotal: Number of parents enrolled or renewed to date]]=\"\"),\"\",MAX(Table14[[#This Row],[6\nTotal: Number of parents enrolled or renewed to date]]-(Table14[[#This Row],[4\nNumber of parents newly enrolled to date]]+Table14[[#This Row],[5\nNumber of parents renewed to date]]),0))","v":""},{"$f":"'Cover sheet'!$D$16","v":0},{"$f":"'Cover sheet'!$D$17","v":0},{"$f":"'Cover sheet'!$D$18","v":""}]
[null,"2019-11-01",null,null,"",{"$f":"IF(AND(Table14[[#This Row],[1\nNumber of parents for whom a new application was submitted during the month]]=\"\",Table14[[#This Row],[2\nNumber of parents for whom a renewal application was submitted during the month]]=\"\",Table14[[#This Row],[3\nTotal: number of parents applying this month]]=\"\"),\"\",IF(Table14[[#This Row],[1\nNumber of parents for whom a new application was submitted during the month]]=\"\",0,Table14[[#This Row],[1\nNumber of parents for whom a new application was submitted during the month]]))","v":""},{"$f":"IF(AND(Table14[[#This Row],[1\nNumber of parents for whom a new application was submitted during the month]]=\"\",Table14[[#This Row],[2\nNumber of parents for whom a renewal application was submitted during the month]]=\"\",Table14[[#This Row],[3\nTotal: number of parents applying this month]]=\"\"),\"\",IF(Table14[[#This Row],[2\nNumber of parents for whom a renewal application was submitted during the month]]=\"\",0,Table14[[#This Row],[2\nNumber of parents for whom a renewal application was submitted during the month]]))","v":""},{"$f":"IF(AND(Table14[[#This Row],[1\nNumber of parents for whom a new application was submitted during the month]]=\"\",Table14[[#This Row],[2\nNumber of parents for whom a renewal application was submitted during the month]]=\"\",Table14[[#This Row],[3\nTotal: number of parents applying this month]]=\"\"),\"\", MAX(Table14[[#This Row],[3\nTotal: number of parents applying this month]]-(Table14[[#This Row],[1\nNumber of parents for whom a new application was submitted during the month]] + Table14[[#This Row],[2\nNumber of parents for whom a renewal application was submitted during the month]]),0))","v":""},null,null,"",{"$f":"IF(AND(Table14[[#This Row],[4\nNumber of parents newly enrolled to date]]=\"\",Table14[[#This Row],[5\nNumber of parents renewed to date]]=\"\",Table14[[#This Row],[6\nTotal: Number of parents enrolled or renewed to date]]=\"\"),\"\",IF(Table14[[#This Row],[4\nNumber of parents newly enrolled to date]]=\"\",0,Table14[[#This Row],[4\nNumber of parents newly enrolled to date]]))","v":""},{"$f":"IF(AND(Table14[[#This Row],[4\nNumber of parents newly enrolled to date]]=\"\",Table14[[#This Row],[5\nNumber of parents renewed to date]]=\"\",Table14[[#This Row],[6\nTotal: Number of parents enrolled or renewed to date]]=\"\"),\"\",IF(Table14[[#This Row],[5\nNumber of parents renewed to date]]=\"\",0,Table14[[#This Row],[5\nNumber of parents renewed to date]]))","v":""},{"$f":"IF(AND(Table14[[#This Row],[4\nNumber of parents newly enrolled to date]]=\"\", Table14[[#This Row],[5\nNumber of parents renewed to date]]=\"\", Table14[[#This Row],[6\nTotal: Number of parents enrolled or renewed to date]]=\"\"),\"\",MAX(Table14[[#This Row],[6\nTotal: Number of parents enrolled or renewed to date]]-(Table14[[#This Row],[4\nNumber of parents newly enrolled to date]]+Table14[[#This Row],[5\nNumber of parents renewed to date]]),0))","v":""},{"$f":"'Cover sheet'!$D$16","v":0},{"$f":"'Cover sheet'!$D$17","v":0},{"$f":"'Cover sheet'!$D$18","v":""}]
[null,"2019-12-01",null,null,"",{"$f":"IF(AND(Table14[[#This Row],[1\nNumber of parents for whom a new application was submitted during the month]]=\"\",Table14[[#This Row],[2\nNumber of parents for whom a renewal application was submitted during the month]]=\"\",Table14[[#This Row],[3\nTotal: number of parents applying this month]]=\"\"),\"\",IF(Table14[[#This Row],[1\nNumber of parents for whom a new application was submitted during the month]]=\"\",0,Table14[[#This Row],[1\nNumber of parents for whom a new application was submitted during the month]]))","v":""},{"$f":"IF(AND(Table14[[#This Row],[1\nNumber of parents for whom a new application was submitted during the month]]=\"\",Table14[[#This Row],[2\nNumber of parents for whom a renewal application was submitted during the month]]=\"\",Table14[[#This Row],[3\nTotal: number of parents applying this month]]=\"\"),\"\",IF(Table14[[#This Row],[2\nNumber of parents for whom a renewal application was submitted during the month]]=\"\",0,Table14[[#This Row],[2\nNumber of parents for whom a renewal application was submitted during the month]]))","v":""},{"$f":"IF(AND(Table14[[#This Row],[1\nNumber of parents for whom a new application was submitted during the month]]=\"\",Table14[[#This Row],[2\nNumber of parents for whom a renewal application was submitted during the month]]=\"\",Table14[[#This Row],[3\nTotal: number of parents applying this month]]=\"\"),\"\", MAX(Table14[[#This Row],[3\nTotal: number of parents applying this month]]-(Table14[[#This Row],[1\nNumber of parents for whom a new application was submitted during the month]] + Table14[[#This Row],[2\nNumber of parents for whom a renewal application was submitted during the month]]),0))","v":""},null,null,"",{"$f":"IF(AND(Table14[[#This Row],[4\nNumber of parents newly enrolled to date]]=\"\",Table14[[#This Row],[5\nNumber of parents renewed to date]]=\"\",Table14[[#This Row],[6\nTotal: Number of parents enrolled or renewed to date]]=\"\"),\"\",IF(Table14[[#This Row],[4\nNumber of parents newly enrolled to date]]=\"\",0,Table14[[#This Row],[4\nNumber of parents newly enrolled to date]]))","v":""},{"$f":"IF(AND(Table14[[#This Row],[4\nNumber of parents newly enrolled to date]]=\"\",Table14[[#This Row],[5\nNumber of parents renewed to date]]=\"\",Table14[[#This Row],[6\nTotal: Number of parents enrolled or renewed to date]]=\"\"),\"\",IF(Table14[[#This Row],[5\nNumber of parents renewed to date]]=\"\",0,Table14[[#This Row],[5\nNumber of parents renewed to date]]))","v":""},{"$f":"IF(AND(Table14[[#This Row],[4\nNumber of parents newly enrolled to date]]=\"\", Table14[[#This Row],[5\nNumber of parents renewed to date]]=\"\", Table14[[#This Row],[6\nTotal: Number of parents enrolled or renewed to date]]=\"\"),\"\",MAX(Table14[[#This Row],[6\nTotal: Number of parents enrolled or renewed to date]]-(Table14[[#This Row],[4\nNumber of parents newly enrolled to date]]+Table14[[#This Row],[5\nNumber of parents renewed to date]]),0))","v":""},{"$f":"'Cover sheet'!$D$16","v":0},{"$f":"'Cover sheet'!$D$17","v":0},{"$f":"'Cover sheet'!$D$18","v":""}]
[null,"2020-01-01",null,null,"",{"$f":"IF(AND(Table14[[#This Row],[1\nNumber of parents for whom a new application was submitted during the month]]=\"\",Table14[[#This Row],[2\nNumber of parents for whom a renewal application was submitted during the month]]=\"\",Table14[[#This Row],[3\nTotal: number of parents applying this month]]=\"\"),\"\",IF(Table14[[#This Row],[1\nNumber of parents for whom a new application was submitted during the month]]=\"\",0,Table14[[#This Row],[1\nNumber of parents for whom a new application was submitted during the month]]))","v":""},{"$f":"IF(AND(Table14[[#This Row],[1\nNumber of parents for whom a new application was submitted during the month]]=\"\",Table14[[#This Row],[2\nNumber of parents for whom a renewal application was submitted during the month]]=\"\",Table14[[#This Row],[3\nTotal: number of parents applying this month]]=\"\"),\"\",IF(Table14[[#This Row],[2\nNumber of parents for whom a renewal application was submitted during the month]]=\"\",0,Table14[[#This Row],[2\nNumber of parents for whom a renewal application was submitted during the month]]))","v":""},{"$f":"IF(AND(Table14[[#This Row],[1\nNumber of parents for whom a new application was submitted during the month]]=\"\",Table14[[#This Row],[2\nNumber of parents for whom a renewal application was submitted during the month]]=\"\",Table14[[#This Row],[3\nTotal: number of parents applying this month]]=\"\"),\"\", MAX(Table14[[#This Row],[3\nTotal: number of parents applying this month]]-(Table14[[#This Row],[1\nNumber of parents for whom a new application was submitted during the month]] + Table14[[#This Row],[2\nNumber of parents for whom a renewal application was submitted during the month]]),0))","v":""},null,null,"",{"$f":"IF(AND(Table14[[#This Row],[4\nNumber of parents newly enrolled to date]]=\"\",Table14[[#This Row],[5\nNumber of parents renewed to date]]=\"\",Table14[[#This Row],[6\nTotal: Number of parents enrolled or renewed to date]]=\"\"),\"\",IF(Table14[[#This Row],[4\nNumber of parents newly enrolled to date]]=\"\",0,Table14[[#This Row],[4\nNumber of parents newly enrolled to date]]))","v":""},{"$f":"IF(AND(Table14[[#This Row],[4\nNumber of parents newly enrolled to date]]=\"\",Table14[[#This Row],[5\nNumber of parents renewed to date]]=\"\",Table14[[#This Row],[6\nTotal: Number of parents enrolled or renewed to date]]=\"\"),\"\",IF(Table14[[#This Row],[5\nNumber of parents renewed to date]]=\"\",0,Table14[[#This Row],[5\nNumber of parents renewed to date]]))","v":""},{"$f":"IF(AND(Table14[[#This Row],[4\nNumber of parents newly enrolled to date]]=\"\", Table14[[#This Row],[5\nNumber of parents renewed to date]]=\"\", Table14[[#This Row],[6\nTotal: Number of parents enrolled or renewed to date]]=\"\"),\"\",MAX(Table14[[#This Row],[6\nTotal: Number of parents enrolled or renewed to date]]-(Table14[[#This Row],[4\nNumber of parents newly enrolled to date]]+Table14[[#This Row],[5\nNumber of parents renewed to date]]),0))","v":""},{"$f":"'Cover sheet'!$D$16","v":0},{"$f":"'Cover sheet'!$D$17","v":0},{"$f":"'Cover sheet'!$D$18","v":""}]
[null,"2020-02-01",null,null,"",{"$f":"IF(AND(Table14[[#This Row],[1\nNumber of parents for whom a new application was submitted during the month]]=\"\",Table14[[#This Row],[2\nNumber of parents for whom a renewal application was submitted during the month]]=\"\",Table14[[#This Row],[3\nTotal: number of parents applying this month]]=\"\"),\"\",IF(Table14[[#This Row],[1\nNumber of parents for whom a new application was submitted during the month]]=\"\",0,Table14[[#This Row],[1\nNumber of parents for whom a new application was submitted during the month]]))","v":""},{"$f":"IF(AND(Table14[[#This Row],[1\nNumber of parents for whom a new application was submitted during the month]]=\"\",Table14[[#This Row],[2\nNumber of parents for whom a renewal application was submitted during the month]]=\"\",Table14[[#This Row],[3\nTotal: number of parents applying this month]]=\"\"),\"\",IF(Table14[[#This Row],[2\nNumber of parents for whom a renewal application was submitted during the month]]=\"\",0,Table14[[#This Row],[2\nNumber of parents for whom a renewal application was submitted during the month]]))","v":""},{"$f":"IF(AND(Table14[[#This Row],[1\nNumber of parents for whom a new application was submitted during the month]]=\"\",Table14[[#This Row],[2\nNumber of parents for whom a renewal application was submitted during the month]]=\"\",Table14[[#This Row],[3\nTotal: number of parents applying this month]]=\"\"),\"\", MAX(Table14[[#This Row],[3\nTotal: number of parents applying this month]]-(Table14[[#This Row],[1\nNumber of parents for whom a new application was submitted during the month]] + Table14[[#This Row],[2\nNumber of parents for whom a renewal application was submitted during the month]]),0))","v":""},null,null,"",{"$f":"IF(AND(Table14[[#This Row],[4\nNumber of parents newly enrolled to date]]=\"\",Table14[[#This Row],[5\nNumber of parents renewed to date]]=\"\",Table14[[#This Row],[6\nTotal: Number of parents enrolled or renewed to date]]=\"\"),\"\",IF(Table14[[#This Row],[4\nNumber of parents newly enrolled to date]]=\"\",0,Table14[[#This Row],[4\nNumber of parents newly enrolled to date]]))","v":""},{"$f":"IF(AND(Table14[[#This Row],[4\nNumber of parents newly enrolled to date]]=\"\",Table14[[#This Row],[5\nNumber of parents renewed to date]]=\"\",Table14[[#This Row],[6\nTotal: Number of parents enrolled or renewed to date]]=\"\"),\"\",IF(Table14[[#This Row],[5\nNumber of parents renewed to date]]=\"\",0,Table14[[#This Row],[5\nNumber of parents renewed to date]]))","v":""},{"$f":"IF(AND(Table14[[#This Row],[4\nNumber of parents newly enrolled to date]]=\"\", Table14[[#This Row],[5\nNumber of parents renewed to date]]=\"\", Table14[[#This Row],[6\nTotal: Number of parents enrolled or renewed to date]]=\"\"),\"\",MAX(Table14[[#This Row],[6\nTotal: Number of parents enrolled or renewed to date]]-(Table14[[#This Row],[4\nNumber of parents newly enrolled to date]]+Table14[[#This Row],[5\nNumber of parents renewed to date]]),0))","v":""},{"$f":"'Cover sheet'!$D$16","v":0},{"$f":"'Cover sheet'!$D$17","v":0},{"$f":"'Cover sheet'!$D$18","v":""}]
[null,"2020-03-01",null,null,"",{"$f":"IF(AND(Table14[[#This Row],[1\nNumber of parents for whom a new application was submitted during the month]]=\"\",Table14[[#This Row],[2\nNumber of parents for whom a renewal application was submitted during the month]]=\"\",Table14[[#This Row],[3\nTotal: number of parents applying this month]]=\"\"),\"\",IF(Table14[[#This Row],[1\nNumber of parents for whom a new application was submitted during the month]]=\"\",0,Table14[[#This Row],[1\nNumber of parents for whom a new application was submitted during the month]]))","v":""},{"$f":"IF(AND(Table14[[#This Row],[1\nNumber of parents for whom a new application was submitted during the month]]=\"\",Table14[[#This Row],[2\nNumber of parents for whom a renewal application was submitted during the month]]=\"\",Table14[[#This Row],[3\nTotal: number of parents applying this month]]=\"\"),\"\",IF(Table14[[#This Row],[2\nNumber of parents for whom a renewal application was submitted during the month]]=\"\",0,Table14[[#This Row],[2\nNumber of parents for whom a renewal application was submitted during the month]]))","v":""},{"$f":"IF(AND(Table14[[#This Row],[1\nNumber of parents for whom a new application was submitted during the month]]=\"\",Table14[[#This Row],[2\nNumber of parents for whom a renewal application was submitted during the month]]=\"\",Table14[[#This Row],[3\nTotal: number of parents applying this month]]=\"\"),\"\", MAX(Table14[[#This Row],[3\nTotal: number of parents applying this month]]-(Table14[[#This Row],[1\nNumber of parents for whom a new application was submitted during the month]] + Table14[[#This Row],[2\nNumber of parents for whom a renewal application was submitted during the month]]),0))","v":""},null,null,"",{"$f":"IF(AND(Table14[[#This Row],[4\nNumber of parents newly enrolled to date]]=\"\",Table14[[#This Row],[5\nNumber of parents renewed to date]]=\"\",Table14[[#This Row],[6\nTotal: Number of parents enrolled or renewed to date]]=\"\"),\"\",IF(Table14[[#This Row],[4\nNumber of parents newly enrolled to date]]=\"\",0,Table14[[#This Row],[4\nNumber of parents newly enrolled to date]]))","v":""},{"$f":"IF(AND(Table14[[#This Row],[4\nNumber of parents newly enrolled to date]]=\"\",Table14[[#This Row],[5\nNumber of parents renewed to date]]=\"\",Table14[[#This Row],[6\nTotal: Number of parents enrolled or renewed to date]]=\"\"),\"\",IF(Table14[[#This Row],[5\nNumber of parents renewed to date]]=\"\",0,Table14[[#This Row],[5\nNumber of parents renewed to date]]))","v":""},{"$f":"IF(AND(Table14[[#This Row],[4\nNumber of parents newly enrolled to date]]=\"\", Table14[[#This Row],[5\nNumber of parents renewed to date]]=\"\", Table14[[#This Row],[6\nTotal: Number of parents enrolled or renewed to date]]=\"\"),\"\",MAX(Table14[[#This Row],[6\nTotal: Number of parents enrolled or renewed to date]]-(Table14[[#This Row],[4\nNumber of parents newly enrolled to date]]+Table14[[#This Row],[5\nNumber of parents renewed to date]]),0))","v":""},{"$f":"'Cover sheet'!$D$16","v":0},{"$f":"'Cover sheet'!$D$17","v":0},{"$f":"'Cover sheet'!$D$18","v":""}]
[null,"2020-04-01",null,null,"",{"$f":"IF(AND(Table14[[#This Row],[1\nNumber of parents for whom a new application was submitted during the month]]=\"\",Table14[[#This Row],[2\nNumber of parents for whom a renewal application was submitted during the month]]=\"\",Table14[[#This Row],[3\nTotal: number of parents applying this month]]=\"\"),\"\",IF(Table14[[#This Row],[1\nNumber of parents for whom a new application was submitted during the month]]=\"\",0,Table14[[#This Row],[1\nNumber of parents for whom a new application was submitted during the month]]))","v":""},{"$f":"IF(AND(Table14[[#This Row],[1\nNumber of parents for whom a new application was submitted during the month]]=\"\",Table14[[#This Row],[2\nNumber of parents for whom a renewal application was submitted during the month]]=\"\",Table14[[#This Row],[3\nTotal: number of parents applying this month]]=\"\"),\"\",IF(Table14[[#This Row],[2\nNumber of parents for whom a renewal application was submitted during the month]]=\"\",0,Table14[[#This Row],[2\nNumber of parents for whom a renewal application was submitted during the month]]))","v":""},{"$f":"IF(AND(Table14[[#This Row],[1\nNumber of parents for whom a new application was submitted during the month]]=\"\",Table14[[#This Row],[2\nNumber of parents for whom a renewal application was submitted during the month]]=\"\",Table14[[#This Row],[3\nTotal: number of parents applying this month]]=\"\"),\"\", MAX(Table14[[#This Row],[3\nTotal: number of parents applying this month]]-(Table14[[#This Row],[1\nNumber of parents for whom a new application was submitted during the month]] + Table14[[#This Row],[2\nNumber of parents for whom a renewal application was submitted during the month]]),0))","v":""},null,null,"",{"$f":"IF(AND(Table14[[#This Row],[4\nNumber of parents newly enrolled to date]]=\"\",Table14[[#This Row],[5\nNumber of parents renewed to date]]=\"\",Table14[[#This Row],[6\nTotal: Number of parents enrolled or renewed to date]]=\"\"),\"\",IF(Table14[[#This Row],[4\nNumber of parents newly enrolled to date]]=\"\",0,Table14[[#This Row],[4\nNumber of parents newly enrolled to date]]))","v":""},{"$f":"IF(AND(Table14[[#This Row],[4\nNumber of parents newly enrolled to date]]=\"\",Table14[[#This Row],[5\nNumber of parents renewed to date]]=\"\",Table14[[#This Row],[6\nTotal: Number of parents enrolled or renewed to date]]=\"\"),\"\",IF(Table14[[#This Row],[5\nNumber of parents renewed to date]]=\"\",0,Table14[[#This Row],[5\nNumber of parents renewed to date]]))","v":""},{"$f":"IF(AND(Table14[[#This Row],[4\nNumber of parents newly enrolled to date]]=\"\", Table14[[#This Row],[5\nNumber of parents renewed to date]]=\"\", Table14[[#This Row],[6\nTotal: Number of parents enrolled or renewed to date]]=\"\"),\"\",MAX(Table14[[#This Row],[6\nTotal: Number of parents enrolled or renewed to date]]-(Table14[[#This Row],[4\nNumber of parents newly enrolled to date]]+Table14[[#This Row],[5\nNumber of parents renewed to date]]),0))","v":""},{"$f":"'Cover sheet'!$D$16","v":0},{"$f":"'Cover sheet'!$D$17","v":0},{"$f":"'Cover sheet'!$D$18","v":""}]
[null,"2020-05-01",null,null,"",{"$f":"IF(AND(Table14[[#This Row],[1\nNumber of parents for whom a new application was submitted during the month]]=\"\",Table14[[#This Row],[2\nNumber of parents for whom a renewal application was submitted during the month]]=\"\",Table14[[#This Row],[3\nTotal: number of parents applying this month]]=\"\"),\"\",IF(Table14[[#This Row],[1\nNumber of parents for whom a new application was submitted during the month]]=\"\",0,Table14[[#This Row],[1\nNumber of parents for whom a new application was submitted during the month]]))","v":""},{"$f":"IF(AND(Table14[[#This Row],[1\nNumber of parents for whom a new application was submitted during the month]]=\"\",Table14[[#This Row],[2\nNumber of parents for whom a renewal application was submitted during the month]]=\"\",Table14[[#This Row],[3\nTotal: number of parents applying this month]]=\"\"),\"\",IF(Table14[[#This Row],[2\nNumber of parents for whom a renewal application was submitted during the month]]=\"\",0,Table14[[#This Row],[2\nNumber of parents for whom a renewal application was submitted during the month]]))","v":""},{"$f":"IF(AND(Table14[[#This Row],[1\nNumber of parents for whom a new application was submitted during the month]]=\"\",Table14[[#This Row],[2\nNumber of parents for whom a renewal application was submitted during the month]]=\"\",Table14[[#This Row],[3\nTotal: number of parents applying this month]]=\"\"),\"\", MAX(Table14[[#This Row],[3\nTotal: number of parents applying this month]]-(Table14[[#This Row],[1\nNumber of parents for whom a new application was submitted during the month]] + Table14[[#This Row],[2\nNumber of parents for whom a renewal application was submitted during the month]]),0))","v":""},null,null,"",{"$f":"IF(AND(Table14[[#This Row],[4\nNumber of parents newly enrolled to date]]=\"\",Table14[[#This Row],[5\nNumber of parents renewed to date]]=\"\",Table14[[#This Row],[6\nTotal: Number of parents enrolled or renewed to date]]=\"\"),\"\",IF(Table14[[#This Row],[4\nNumber of parents newly enrolled to date]]=\"\",0,Table14[[#This Row],[4\nNumber of parents newly enrolled to date]]))","v":""},{"$f":"IF(AND(Table14[[#This Row],[4\nNumber of parents newly enrolled to date]]=\"\",Table14[[#This Row],[5\nNumber of parents renewed to date]]=\"\",Table14[[#This Row],[6\nTotal: Number of parents enrolled or renewed to date]]=\"\"),\"\",IF(Table14[[#This Row],[5\nNumber of parents renewed to date]]=\"\",0,Table14[[#This Row],[5\nNumber of parents renewed to date]]))","v":""},{"$f":"IF(AND(Table14[[#This Row],[4\nNumber of parents newly enrolled to date]]=\"\", Table14[[#This Row],[5\nNumber of parents renewed to date]]=\"\", Table14[[#This Row],[6\nTotal: Number of parents enrolled or renewed to date]]=\"\"),\"\",MAX(Table14[[#This Row],[6\nTotal: Number of parents enrolled or renewed to date]]-(Table14[[#This Row],[4\nNumber of parents newly enrolled to date]]+Table14[[#This Row],[5\nNumber of parents renewed to date]]),0))","v":""},{"$f":"'Cover sheet'!$D$16","v":0},{"$f":"'Cover sheet'!$D$17","v":0},{"$f":"'Cover sheet'!$D$18","v":""}]
[null,"2020-06-01",null,null,"",{"$f":"IF(AND(Table14[[#This Row],[1\nNumber of parents for whom a new application was submitted during the month]]=\"\",Table14[[#This Row],[2\nNumber of parents for whom a renewal application was submitted during the month]]=\"\",Table14[[#This Row],[3\nTotal: number of parents applying this month]]=\"\"),\"\",IF(Table14[[#This Row],[1\nNumber of parents for whom a new application was submitted during the month]]=\"\",0,Table14[[#This Row],[1\nNumber of parents for whom a new application was submitted during the month]]))","v":""},{"$f":"IF(AND(Table14[[#This Row],[1\nNumber of parents for whom a new application was submitted during the month]]=\"\",Table14[[#This Row],[2\nNumber of parents for whom a renewal application was submitted during the month]]=\"\",Table14[[#This Row],[3\nTotal: number of parents applying this month]]=\"\"),\"\",IF(Table14[[#This Row],[2\nNumber of parents for whom a renewal application was submitted during the month]]=\"\",0,Table14[[#This Row],[2\nNumber of parents for whom a renewal application was submitted during the month]]))","v":""},{"$f":"IF(AND(Table14[[#This Row],[1\nNumber of parents for whom a new application was submitted during the month]]=\"\",Table14[[#This Row],[2\nNumber of parents for whom a renewal application was submitted during the month]]=\"\",Table14[[#This Row],[3\nTotal: number of parents applying this month]]=\"\"),\"\", MAX(Table14[[#This Row],[3\nTotal: number of parents applying this month]]-(Table14[[#This Row],[1\nNumber of parents for whom a new application was submitted during the month]] + Table14[[#This Row],[2\nNumber of parents for whom a renewal application was submitted during the month]]),0))","v":""},null,null,"",{"$f":"IF(AND(Table14[[#This Row],[4\nNumber of parents newly enrolled to date]]=\"\",Table14[[#This Row],[5\nNumber of parents renewed to date]]=\"\",Table14[[#This Row],[6\nTotal: Number of parents enrolled or renewed to date]]=\"\"),\"\",IF(Table14[[#This Row],[4\nNumber of parents newly enrolled to date]]=\"\",0,Table14[[#This Row],[4\nNumber of parents newly enrolled to date]]))","v":""},{"$f":"IF(AND(Table14[[#This Row],[4\nNumber of parents newly enrolled to date]]=\"\",Table14[[#This Row],[5\nNumber of parents renewed to date]]=\"\",Table14[[#This Row],[6\nTotal: Number of parents enrolled or renewed to date]]=\"\"),\"\",IF(Table14[[#This Row],[5\nNumber of parents renewed to date]]=\"\",0,Table14[[#This Row],[5\nNumber of parents renewed to date]]))","v":""},{"$f":"IF(AND(Table14[[#This Row],[4\nNumber of parents newly enrolled to date]]=\"\", Table14[[#This Row],[5\nNumber of parents renewed to date]]=\"\", Table14[[#This Row],[6\nTotal: Number of parents enrolled or renewed to date]]=\"\"),\"\",MAX(Table14[[#This Row],[6\nTotal: Number of parents enrolled or renewed to date]]-(Table14[[#This Row],[4\nNumber of parents newly enrolled to date]]+Table14[[#This Row],[5\nNumber of parents renewed to date]]),0))","v":""},{"$f":"'Cover sheet'!$D$16","v":0},{"$f":"'Cover sheet'!$D$17","v":0},{"$f":"'Cover sheet'!$D$18","v":""}]
[null,"2020-07-01",null,null,"",{"$f":"IF(AND(Table14[[#This Row],[1\nNumber of parents for whom a new application was submitted during the month]]=\"\",Table14[[#This Row],[2\nNumber of parents for whom a renewal application was submitted during the month]]=\"\",Table14[[#This Row],[3\nTotal: number of parents applying this month]]=\"\"),\"\",IF(Table14[[#This Row],[1\nNumber of parents for whom a new application was submitted during the month]]=\"\",0,Table14[[#This Row],[1\nNumber of parents for whom a new application was submitted during the month]]))","v":""},{"$f":"IF(AND(Table14[[#This Row],[1\nNumber of parents for whom a new application was submitted during the month]]=\"\",Table14[[#This Row],[2\nNumber of parents for whom a renewal application was submitted during the month]]=\"\",Table14[[#This Row],[3\nTotal: number of parents applying this month]]=\"\"),\"\",IF(Table14[[#This Row],[2\nNumber of parents for whom a renewal application was submitted during the month]]=\"\",0,Table14[[#This Row],[2\nNumber of parents for whom a renewal application was submitted during the month]]))","v":""},{"$f":"IF(AND(Table14[[#This Row],[1\nNumber of parents for whom a new application was submitted during the month]]=\"\",Table14[[#This Row],[2\nNumber of parents for whom a renewal application was submitted during the month]]=\"\",Table14[[#This Row],[3\nTotal: number of parents applying this month]]=\"\"),\"\", MAX(Table14[[#This Row],[3\nTotal: number of parents applying this month]]-(Table14[[#This Row],[1\nNumber of parents for whom a new application was submitted during the month]] + Table14[[#This Row],[2\nNumber of parents for whom a renewal application was submitted during the month]]),0))","v":""},null,null,"",{"$f":"IF(AND(Table14[[#This Row],[4\nNumber of parents newly enrolled to date]]=\"\",Table14[[#This Row],[5\nNumber of parents renewed to date]]=\"\",Table14[[#This Row],[6\nTotal: Number of parents enrolled or renewed to date]]=\"\"),\"\",IF(Table14[[#This Row],[4\nNumber of parents newly enrolled to date]]=\"\",0,Table14[[#This Row],[4\nNumber of parents newly enrolled to date]]))","v":""},{"$f":"IF(AND(Table14[[#This Row],[4\nNumber of parents newly enrolled to date]]=\"\",Table14[[#This Row],[5\nNumber of parents renewed to date]]=\"\",Table14[[#This Row],[6\nTotal: Number of parents enrolled or renewed to date]]=\"\"),\"\",IF(Table14[[#This Row],[5\nNumber of parents renewed to date]]=\"\",0,Table14[[#This Row],[5\nNumber of parents renewed to date]]))","v":""},{"$f":"IF(AND(Table14[[#This Row],[4\nNumber of parents newly enrolled to date]]=\"\", Table14[[#This Row],[5\nNumber of parents renewed to date]]=\"\", Table14[[#This Row],[6\nTotal: Number of parents enrolled or renewed to date]]=\"\"),\"\",MAX(Table14[[#This Row],[6\nTotal: Number of parents enrolled or renewed to date]]-(Table14[[#This Row],[4\nNumber of parents newly enrolled to date]]+Table14[[#This Row],[5\nNumber of parents renewed to date]]),0))","v":""},{"$f":"'Cover sheet'!$D$16","v":0},{"$f":"'Cover sheet'!$D$17","v":0},{"$f":"'Cover sheet'!$D$18","v":""}]
[null,"2020-08-01",null,null,"",{"$f":"IF(AND(Table14[[#This Row],[1\nNumber of parents for whom a new application was submitted during the month]]=\"\",Table14[[#This Row],[2\nNumber of parents for whom a renewal application was submitted during the month]]=\"\",Table14[[#This Row],[3\nTotal: number of parents applying this month]]=\"\"),\"\",IF(Table14[[#This Row],[1\nNumber of parents for whom a new application was submitted during the month]]=\"\",0,Table14[[#This Row],[1\nNumber of parents for whom a new application was submitted during the month]]))","v":""},{"$f":"IF(AND(Table14[[#This Row],[1\nNumber of parents for whom a new application was submitted during the month]]=\"\",Table14[[#This Row],[2\nNumber of parents for whom a renewal application was submitted during the month]]=\"\",Table14[[#This Row],[3\nTotal: number of parents applying this month]]=\"\"),\"\",IF(Table14[[#This Row],[2\nNumber of parents for whom a renewal application was submitted during the month]]=\"\",0,Table14[[#This Row],[2\nNumber of parents for whom a renewal application was submitted during the month]]))","v":""},{"$f":"IF(AND(Table14[[#This Row],[1\nNumber of parents for whom a new application was submitted during the month]]=\"\",Table14[[#This Row],[2\nNumber of parents for whom a renewal application was submitted during the month]]=\"\",Table14[[#This Row],[3\nTotal: number of parents applying this month]]=\"\"),\"\", MAX(Table14[[#This Row],[3\nTotal: number of parents applying this month]]-(Table14[[#This Row],[1\nNumber of parents for whom a new application was submitted during the month]] + Table14[[#This Row],[2\nNumber of parents for whom a renewal application was submitted during the month]]),0))","v":""},null,null,"",{"$f":"IF(AND(Table14[[#This Row],[4\nNumber of parents newly enrolled to date]]=\"\",Table14[[#This Row],[5\nNumber of parents renewed to date]]=\"\",Table14[[#This Row],[6\nTotal: Number of parents enrolled or renewed to date]]=\"\"),\"\",IF(Table14[[#This Row],[4\nNumber of parents newly enrolled to date]]=\"\",0,Table14[[#This Row],[4\nNumber of parents newly enrolled to date]]))","v":""},{"$f":"IF(AND(Table14[[#This Row],[4\nNumber of parents newly enrolled to date]]=\"\",Table14[[#This Row],[5\nNumber of parents renewed to date]]=\"\",Table14[[#This Row],[6\nTotal: Number of parents enrolled or renewed to date]]=\"\"),\"\",IF(Table14[[#This Row],[5\nNumber of parents renewed to date]]=\"\",0,Table14[[#This Row],[5\nNumber of parents renewed to date]]))","v":""},{"$f":"IF(AND(Table14[[#This Row],[4\nNumber of parents newly enrolled to date]]=\"\", Table14[[#This Row],[5\nNumber of parents renewed to date]]=\"\", Table14[[#This Row],[6\nTotal: Number of parents enrolled or renewed to date]]=\"\"),\"\",MAX(Table14[[#This Row],[6\nTotal: Number of parents enrolled or renewed to date]]-(Table14[[#This Row],[4\nNumber of parents newly enrolled to date]]+Table14[[#This Row],[5\nNumber of parents renewed to date]]),0))","v":""},{"$f":"'Cover sheet'!$D$16","v":0},{"$f":"'Cover sheet'!$D$17","v":0},{"$f":"'Cover sheet'!$D$18","v":""}]
[null,"2020-09-01",null,null,"",{"$f":"IF(AND(Table14[[#This Row],[1\nNumber of parents for whom a new application was submitted during the month]]=\"\",Table14[[#This Row],[2\nNumber of parents for whom a renewal application was submitted during the month]]=\"\",Table14[[#This Row],[3\nTotal: number of parents applying this month]]=\"\"),\"\",IF(Table14[[#This Row],[1\nNumber of parents for whom a new application was submitted during the month]]=\"\",0,Table14[[#This Row],[1\nNumber of parents for whom a new application was submitted during the month]]))","v":""},{"$f":"IF(AND(Table14[[#This Row],[1\nNumber of parents for whom a new application was submitted during the month]]=\"\",Table14[[#This Row],[2\nNumber of parents for whom a renewal application was submitted during the month]]=\"\",Table14[[#This Row],[3\nTotal: number of parents applying this month]]=\"\"),\"\",IF(Table14[[#This Row],[2\nNumber of parents for whom a renewal application was submitted during the month]]=\"\",0,Table14[[#This Row],[2\nNumber of parents for whom a renewal application was submitted during the month]]))","v":""},{"$f":"IF(AND(Table14[[#This Row],[1\nNumber of parents for whom a new application was submitted during the month]]=\"\",Table14[[#This Row],[2\nNumber of parents for whom a renewal application was submitted during the month]]=\"\",Table14[[#This Row],[3\nTotal: number of parents applying this month]]=\"\"),\"\", MAX(Table14[[#This Row],[3\nTotal: number of parents applying this month]]-(Table14[[#This Row],[1\nNumber of parents for whom a new application was submitted during the month]] + Table14[[#This Row],[2\nNumber of parents for whom a renewal application was submitted during the month]]),0))","v":""},null,null,"",{"$f":"IF(AND(Table14[[#This Row],[4\nNumber of parents newly enrolled to date]]=\"\",Table14[[#This Row],[5\nNumber of parents renewed to date]]=\"\",Table14[[#This Row],[6\nTotal: Number of parents enrolled or renewed to date]]=\"\"),\"\",IF(Table14[[#This Row],[4\nNumber of parents newly enrolled to date]]=\"\",0,Table14[[#This Row],[4\nNumber of parents newly enrolled to date]]))","v":""},{"$f":"IF(AND(Table14[[#This Row],[4\nNumber of parents newly enrolled to date]]=\"\",Table14[[#This Row],[5\nNumber of parents renewed to date]]=\"\",Table14[[#This Row],[6\nTotal: Number of parents enrolled or renewed to date]]=\"\"),\"\",IF(Table14[[#This Row],[5\nNumber of parents renewed to date]]=\"\",0,Table14[[#This Row],[5\nNumber of parents renewed to date]]))","v":""},{"$f":"IF(AND(Table14[[#This Row],[4\nNumber of parents newly enrolled to date]]=\"\", Table14[[#This Row],[5\nNumber of parents renewed to date]]=\"\", Table14[[#This Row],[6\nTotal: Number of parents enrolled or renewed to date]]=\"\"),\"\",MAX(Table14[[#This Row],[6\nTotal: Number of parents enrolled or renewed to date]]-(Table14[[#This Row],[4\nNumber of parents newly enrolled to date]]+Table14[[#This Row],[5\nNumber of parents renewed to date]]),0))","v":""},{"$f":"'Cover sheet'!$D$16","v":0},{"$f":"'Cover sheet'!$D$17","v":0},{"$f":"'Cover sheet'!$D$18","v":""}]
[null,"2020-10-01",null,null,"",{"$f":"IF(AND(Table14[[#This Row],[1\nNumber of parents for whom a new application was submitted during the month]]=\"\",Table14[[#This Row],[2\nNumber of parents for whom a renewal application was submitted during the month]]=\"\",Table14[[#This Row],[3\nTotal: number of parents applying this month]]=\"\"),\"\",IF(Table14[[#This Row],[1\nNumber of parents for whom a new application was submitted during the month]]=\"\",0,Table14[[#This Row],[1\nNumber of parents for whom a new application was submitted during the month]]))","v":""},{"$f":"IF(AND(Table14[[#This Row],[1\nNumber of parents for whom a new application was submitted during the month]]=\"\",Table14[[#This Row],[2\nNumber of parents for whom a renewal application was submitted during the month]]=\"\",Table14[[#This Row],[3\nTotal: number of parents applying this month]]=\"\"),\"\",IF(Table14[[#This Row],[2\nNumber of parents for whom a renewal application was submitted during the month]]=\"\",0,Table14[[#This Row],[2\nNumber of parents for whom a renewal application was submitted during the month]]))","v":""},{"$f":"IF(AND(Table14[[#This Row],[1\nNumber of parents for whom a new application was submitted during the month]]=\"\",Table14[[#This Row],[2\nNumber of parents for whom a renewal application was submitted during the month]]=\"\",Table14[[#This Row],[3\nTotal: number of parents applying this month]]=\"\"),\"\", MAX(Table14[[#This Row],[3\nTotal: number of parents applying this month]]-(Table14[[#This Row],[1\nNumber of parents for whom a new application was submitted during the month]] + Table14[[#This Row],[2\nNumber of parents for whom a renewal application was submitted during the month]]),0))","v":""},null,null,"",{"$f":"IF(AND(Table14[[#This Row],[4\nNumber of parents newly enrolled to date]]=\"\",Table14[[#This Row],[5\nNumber of parents renewed to date]]=\"\",Table14[[#This Row],[6\nTotal: Number of parents enrolled or renewed to date]]=\"\"),\"\",IF(Table14[[#This Row],[4\nNumber of parents newly enrolled to date]]=\"\",0,Table14[[#This Row],[4\nNumber of parents newly enrolled to date]]))","v":""},{"$f":"IF(AND(Table14[[#This Row],[4\nNumber of parents newly enrolled to date]]=\"\",Table14[[#This Row],[5\nNumber of parents renewed to date]]=\"\",Table14[[#This Row],[6\nTotal: Number of parents enrolled or renewed to date]]=\"\"),\"\",IF(Table14[[#This Row],[5\nNumber of parents renewed to date]]=\"\",0,Table14[[#This Row],[5\nNumber of parents renewed to date]]))","v":""},{"$f":"IF(AND(Table14[[#This Row],[4\nNumber of parents newly enrolled to date]]=\"\", Table14[[#This Row],[5\nNumber of parents renewed to date]]=\"\", Table14[[#This Row],[6\nTotal: Number of parents enrolled or renewed to date]]=\"\"),\"\",MAX(Table14[[#This Row],[6\nTotal: Number of parents enrolled or renewed to date]]-(Table14[[#This Row],[4\nNumber of parents newly enrolled to date]]+Table14[[#This Row],[5\nNumber of parents renewed to date]]),0))","v":""},{"$f":"'Cover sheet'!$D$16","v":0},{"$f":"'Cover sheet'!$D$17","v":0},{"$f":"'Cover sheet'!$D$18","v":""}]
[null,"2020-11-01",null,null,"",{"$f":"IF(AND(Table14[[#This Row],[1\nNumber of parents for whom a new application was submitted during the month]]=\"\",Table14[[#This Row],[2\nNumber of parents for whom a renewal application was submitted during the month]]=\"\",Table14[[#This Row],[3\nTotal: number of parents applying this month]]=\"\"),\"\",IF(Table14[[#This Row],[1\nNumber of parents for whom a new application was submitted during the month]]=\"\",0,Table14[[#This Row],[1\nNumber of parents for whom a new application was submitted during the month]]))","v":""},{"$f":"IF(AND(Table14[[#This Row],[1\nNumber of parents for whom a new application was submitted during the month]]=\"\",Table14[[#This Row],[2\nNumber of parents for whom a renewal application was submitted during the month]]=\"\",Table14[[#This Row],[3\nTotal: number of parents applying this month]]=\"\"),\"\",IF(Table14[[#This Row],[2\nNumber of parents for whom a renewal application was submitted during the month]]=\"\",0,Table14[[#This Row],[2\nNumber of parents for whom a renewal application was submitted during the month]]))","v":""},{"$f":"IF(AND(Table14[[#This Row],[1\nNumber of parents for whom a new application was submitted during the month]]=\"\",Table14[[#This Row],[2\nNumber of parents for whom a renewal application was submitted during the month]]=\"\",Table14[[#This Row],[3\nTotal: number of parents applying this month]]=\"\"),\"\", MAX(Table14[[#This Row],[3\nTotal: number of parents applying this month]]-(Table14[[#This Row],[1\nNumber of parents for whom a new application was submitted during the month]] + Table14[[#This Row],[2\nNumber of parents for whom a renewal application was submitted during the month]]),0))","v":""},null,null,"",{"$f":"IF(AND(Table14[[#This Row],[4\nNumber of parents newly enrolled to date]]=\"\",Table14[[#This Row],[5\nNumber of parents renewed to date]]=\"\",Table14[[#This Row],[6\nTotal: Number of parents enrolled or renewed to date]]=\"\"),\"\",IF(Table14[[#This Row],[4\nNumber of parents newly enrolled to date]]=\"\",0,Table14[[#This Row],[4\nNumber of parents newly enrolled to date]]))","v":""},{"$f":"IF(AND(Table14[[#This Row],[4\nNumber of parents newly enrolled to date]]=\"\",Table14[[#This Row],[5\nNumber of parents renewed to date]]=\"\",Table14[[#This Row],[6\nTotal: Number of parents enrolled or renewed to date]]=\"\"),\"\",IF(Table14[[#This Row],[5\nNumber of parents renewed to date]]=\"\",0,Table14[[#This Row],[5\nNumber of parents renewed to date]]))","v":""},{"$f":"IF(AND(Table14[[#This Row],[4\nNumber of parents newly enrolled to date]]=\"\", Table14[[#This Row],[5\nNumber of parents renewed to date]]=\"\", Table14[[#This Row],[6\nTotal: Number of parents enrolled or renewed to date]]=\"\"),\"\",MAX(Table14[[#This Row],[6\nTotal: Number of parents enrolled or renewed to date]]-(Table14[[#This Row],[4\nNumber of parents newly enrolled to date]]+Table14[[#This Row],[5\nNumber of parents renewed to date]]),0))","v":""},{"$f":"'Cover sheet'!$D$16","v":0},{"$f":"'Cover sheet'!$D$17","v":0},{"$f":"'Cover sheet'!$D$18","v":""}]
[null,"2020-12-01",null,null,"",{"$f":"IF(AND(Table14[[#This Row],[1\nNumber of parents for whom a new application was submitted during the month]]=\"\",Table14[[#This Row],[2\nNumber of parents for whom a renewal application was submitted during the month]]=\"\",Table14[[#This Row],[3\nTotal: number of parents applying this month]]=\"\"),\"\",IF(Table14[[#This Row],[1\nNumber of parents for whom a new application was submitted during the month]]=\"\",0,Table14[[#This Row],[1\nNumber of parents for whom a new application was submitted during the month]]))","v":""},{"$f":"IF(AND(Table14[[#This Row],[1\nNumber of parents for whom a new application was submitted during the month]]=\"\",Table14[[#This Row],[2\nNumber of parents for whom a renewal application was submitted during the month]]=\"\",Table14[[#This Row],[3\nTotal: number of parents applying this month]]=\"\"),\"\",IF(Table14[[#This Row],[2\nNumber of parents for whom a renewal application was submitted during the month]]=\"\",0,Table14[[#This Row],[2\nNumber of parents for whom a renewal application was submitted during the month]]))","v":""},{"$f":"IF(AND(Table14[[#This Row],[1\nNumber of parents for whom a new application was submitted during the month]]=\"\",Table14[[#This Row],[2\nNumber of parents for whom a renewal application was submitted during the month]]=\"\",Table14[[#This Row],[3\nTotal: number of parents applying this month]]=\"\"),\"\", MAX(Table14[[#This Row],[3\nTotal: number of parents applying this month]]-(Table14[[#This Row],[1\nNumber of parents for whom a new application was submitted during the month]] + Table14[[#This Row],[2\nNumber of parents for whom a renewal application was submitted during the month]]),0))","v":""},null,null,"",{"$f":"IF(AND(Table14[[#This Row],[4\nNumber of parents newly enrolled to date]]=\"\",Table14[[#This Row],[5\nNumber of parents renewed to date]]=\"\",Table14[[#This Row],[6\nTotal: Number of parents enrolled or renewed to date]]=\"\"),\"\",IF(Table14[[#This Row],[4\nNumber of parents newly enrolled to date]]=\"\",0,Table14[[#This Row],[4\nNumber of parents newly enrolled to date]]))","v":""},{"$f":"IF(AND(Table14[[#This Row],[4\nNumber of parents newly enrolled to date]]=\"\",Table14[[#This Row],[5\nNumber of parents renewed to date]]=\"\",Table14[[#This Row],[6\nTotal: Number of parents enrolled or renewed to date]]=\"\"),\"\",IF(Table14[[#This Row],[5\nNumber of parents renewed to date]]=\"\",0,Table14[[#This Row],[5\nNumber of parents renewed to date]]))","v":""},{"$f":"IF(AND(Table14[[#This Row],[4\nNumber of parents newly enrolled to date]]=\"\", Table14[[#This Row],[5\nNumber of parents renewed to date]]=\"\", Table14[[#This Row],[6\nTotal: Number of parents enrolled or renewed to date]]=\"\"),\"\",MAX(Table14[[#This Row],[6\nTotal: Number of parents enrolled or renewed to date]]-(Table14[[#This Row],[4\nNumber of parents newly enrolled to date]]+Table14[[#This Row],[5\nNumber of parents renewed to date]]),0))","v":""},{"$f":"'Cover sheet'!$D$16","v":0},{"$f":"'Cover sheet'!$D$17","v":0},{"$f":"'Cover sheet'!$D$18","v":""}]
[null,"2021-01-01",null,null,"",{"$f":"IF(AND(Table14[[#This Row],[1\nNumber of parents for whom a new application was submitted during the month]]=\"\",Table14[[#This Row],[2\nNumber of parents for whom a renewal application was submitted during the month]]=\"\",Table14[[#This Row],[3\nTotal: number of parents applying this month]]=\"\"),\"\",IF(Table14[[#This Row],[1\nNumber of parents for whom a new application was submitted during the month]]=\"\",0,Table14[[#This Row],[1\nNumber of parents for whom a new application was submitted during the month]]))","v":""},{"$f":"IF(AND(Table14[[#This Row],[1\nNumber of parents for whom a new application was submitted during the month]]=\"\",Table14[[#This Row],[2\nNumber of parents for whom a renewal application was submitted during the month]]=\"\",Table14[[#This Row],[3\nTotal: number of parents applying this month]]=\"\"),\"\",IF(Table14[[#This Row],[2\nNumber of parents for whom a renewal application was submitted during the month]]=\"\",0,Table14[[#This Row],[2\nNumber of parents for whom a renewal application was submitted during the month]]))","v":""},{"$f":"IF(AND(Table14[[#This Row],[1\nNumber of parents for whom a new application was submitted during the month]]=\"\",Table14[[#This Row],[2\nNumber of parents for whom a renewal application was submitted during the month]]=\"\",Table14[[#This Row],[3\nTotal: number of parents applying this month]]=\"\"),\"\", MAX(Table14[[#This Row],[3\nTotal: number of parents applying this month]]-(Table14[[#This Row],[1\nNumber of parents for whom a new application was submitted during the month]] + Table14[[#This Row],[2\nNumber of parents for whom a renewal application was submitted during the month]]),0))","v":""},null,null,"",{"$f":"IF(AND(Table14[[#This Row],[4\nNumber of parents newly enrolled to date]]=\"\",Table14[[#This Row],[5\nNumber of parents renewed to date]]=\"\",Table14[[#This Row],[6\nTotal: Number of parents enrolled or renewed to date]]=\"\"),\"\",IF(Table14[[#This Row],[4\nNumber of parents newly enrolled to date]]=\"\",0,Table14[[#This Row],[4\nNumber of parents newly enrolled to date]]))","v":""},{"$f":"IF(AND(Table14[[#This Row],[4\nNumber of parents newly enrolled to date]]=\"\",Table14[[#This Row],[5\nNumber of parents renewed to date]]=\"\",Table14[[#This Row],[6\nTotal: Number of parents enrolled or renewed to date]]=\"\"),\"\",IF(Table14[[#This Row],[5\nNumber of parents renewed to date]]=\"\",0,Table14[[#This Row],[5\nNumber of parents renewed to date]]))","v":""},{"$f":"IF(AND(Table14[[#This Row],[4\nNumber of parents newly enrolled to date]]=\"\", Table14[[#This Row],[5\nNumber of parents renewed to date]]=\"\", Table14[[#This Row],[6\nTotal: Number of parents enrolled or renewed to date]]=\"\"),\"\",MAX(Table14[[#This Row],[6\nTotal: Number of parents enrolled or renewed to date]]-(Table14[[#This Row],[4\nNumber of parents newly enrolled to date]]+Table14[[#This Row],[5\nNumber of parents renewed to date]]),0))","v":""},{"$f":"'Cover sheet'!$D$16","v":0},{"$f":"'Cover sheet'!$D$17","v":0},{"$f":"'Cover sheet'!$D$18","v":""}]
[null,"2021-02-01",null,null,"",{"$f":"IF(AND(Table14[[#This Row],[1\nNumber of parents for whom a new application was submitted during the month]]=\"\",Table14[[#This Row],[2\nNumber of parents for whom a renewal application was submitted during the month]]=\"\",Table14[[#This Row],[3\nTotal: number of parents applying this month]]=\"\"),\"\",IF(Table14[[#This Row],[1\nNumber of parents for whom a new application was submitted during the month]]=\"\",0,Table14[[#This Row],[1\nNumber of parents for whom a new application was submitted during the month]]))","v":""},{"$f":"IF(AND(Table14[[#This Row],[1\nNumber of parents for whom a new application was submitted during the month]]=\"\",Table14[[#This Row],[2\nNumber of parents for whom a renewal application was submitted during the month]]=\"\",Table14[[#This Row],[3\nTotal: number of parents applying this month]]=\"\"),\"\",IF(Table14[[#This Row],[2\nNumber of parents for whom a renewal application was submitted during the month]]=\"\",0,Table14[[#This Row],[2\nNumber of parents for whom a renewal application was submitted during the month]]))","v":""},{"$f":"IF(AND(Table14[[#This Row],[1\nNumber of parents for whom a new application was submitted during the month]]=\"\",Table14[[#This Row],[2\nNumber of parents for whom a renewal application was submitted during the month]]=\"\",Table14[[#This Row],[3\nTotal: number of parents applying this month]]=\"\"),\"\", MAX(Table14[[#This Row],[3\nTotal: number of parents applying this month]]-(Table14[[#This Row],[1\nNumber of parents for whom a new application was submitted during the month]] + Table14[[#This Row],[2\nNumber of parents for whom a renewal application was submitted during the month]]),0))","v":""},null,null,"",{"$f":"IF(AND(Table14[[#This Row],[4\nNumber of parents newly enrolled to date]]=\"\",Table14[[#This Row],[5\nNumber of parents renewed to date]]=\"\",Table14[[#This Row],[6\nTotal: Number of parents enrolled or renewed to date]]=\"\"),\"\",IF(Table14[[#This Row],[4\nNumber of parents newly enrolled to date]]=\"\",0,Table14[[#This Row],[4\nNumber of parents newly enrolled to date]]))","v":""},{"$f":"IF(AND(Table14[[#This Row],[4\nNumber of parents newly enrolled to date]]=\"\",Table14[[#This Row],[5\nNumber of parents renewed to date]]=\"\",Table14[[#This Row],[6\nTotal: Number of parents enrolled or renewed to date]]=\"\"),\"\",IF(Table14[[#This Row],[5\nNumber of parents renewed to date]]=\"\",0,Table14[[#This Row],[5\nNumber of parents renewed to date]]))","v":""},{"$f":"IF(AND(Table14[[#This Row],[4\nNumber of parents newly enrolled to date]]=\"\", Table14[[#This Row],[5\nNumber of parents renewed to date]]=\"\", Table14[[#This Row],[6\nTotal: Number of parents enrolled or renewed to date]]=\"\"),\"\",MAX(Table14[[#This Row],[6\nTotal: Number of parents enrolled or renewed to date]]-(Table14[[#This Row],[4\nNumber of parents newly enrolled to date]]+Table14[[#This Row],[5\nNumber of parents renewed to date]]),0))","v":""},{"$f":"'Cover sheet'!$D$16","v":0},{"$f":"'Cover sheet'!$D$17","v":0},{"$f":"'Cover sheet'!$D$18","v":""}]
[null,"2021-03-01",null,null,"",{"$f":"IF(AND(Table14[[#This Row],[1\nNumber of parents for whom a new application was submitted during the month]]=\"\",Table14[[#This Row],[2\nNumber of parents for whom a renewal application was submitted during the month]]=\"\",Table14[[#This Row],[3\nTotal: number of parents applying this month]]=\"\"),\"\",IF(Table14[[#This Row],[1\nNumber of parents for whom a new application was submitted during the month]]=\"\",0,Table14[[#This Row],[1\nNumber of parents for whom a new application was submitted during the month]]))","v":""},{"$f":"IF(AND(Table14[[#This Row],[1\nNumber of parents for whom a new application was submitted during the month]]=\"\",Table14[[#This Row],[2\nNumber of parents for whom a renewal application was submitted during the month]]=\"\",Table14[[#This Row],[3\nTotal: number of parents applying this month]]=\"\"),\"\",IF(Table14[[#This Row],[2\nNumber of parents for whom a renewal application was submitted during the month]]=\"\",0,Table14[[#This Row],[2\nNumber of parents for whom a renewal application was submitted during the month]]))","v":""},{"$f":"IF(AND(Table14[[#This Row],[1\nNumber of parents for whom a new application was submitted during the month]]=\"\",Table14[[#This Row],[2\nNumber of parents for whom a renewal application was submitted during the month]]=\"\",Table14[[#This Row],[3\nTotal: number of parents applying this month]]=\"\"),\"\", MAX(Table14[[#This Row],[3\nTotal: number of parents applying this month]]-(Table14[[#This Row],[1\nNumber of parents for whom a new application was submitted during the month]] + Table14[[#This Row],[2\nNumber of parents for whom a renewal application was submitted during the month]]),0))","v":""},null,null,"",{"$f":"IF(AND(Table14[[#This Row],[4\nNumber of parents newly enrolled to date]]=\"\",Table14[[#This Row],[5\nNumber of parents renewed to date]]=\"\",Table14[[#This Row],[6\nTotal: Number of parents enrolled or renewed to date]]=\"\"),\"\",IF(Table14[[#This Row],[4\nNumber of parents newly enrolled to date]]=\"\",0,Table14[[#This Row],[4\nNumber of parents newly enrolled to date]]))","v":""},{"$f":"IF(AND(Table14[[#This Row],[4\nNumber of parents newly enrolled to date]]=\"\",Table14[[#This Row],[5\nNumber of parents renewed to date]]=\"\",Table14[[#This Row],[6\nTotal: Number of parents enrolled or renewed to date]]=\"\"),\"\",IF(Table14[[#This Row],[5\nNumber of parents renewed to date]]=\"\",0,Table14[[#This Row],[5\nNumber of parents renewed to date]]))","v":""},{"$f":"IF(AND(Table14[[#This Row],[4\nNumber of parents newly enrolled to date]]=\"\", Table14[[#This Row],[5\nNumber of parents renewed to date]]=\"\", Table14[[#This Row],[6\nTotal: Number of parents enrolled or renewed to date]]=\"\"),\"\",MAX(Table14[[#This Row],[6\nTotal: Number of parents enrolled or renewed to date]]-(Table14[[#This Row],[4\nNumber of parents newly enrolled to date]]+Table14[[#This Row],[5\nNumber of parents renewed to date]]),0))","v":""},{"$f":"'Cover sheet'!$D$16","v":0},{"$f":"'Cover sheet'!$D$17","v":0},{"$f":"'Cover sheet'!$D$18","v":""}]
[null,"2021-04-01",null,null,"",{"$f":"IF(AND(Table14[[#This Row],[1\nNumber of parents for whom a new application was submitted during the month]]=\"\",Table14[[#This Row],[2\nNumber of parents for whom a renewal application was submitted during the month]]=\"\",Table14[[#This Row],[3\nTotal: number of parents applying this month]]=\"\"),\"\",IF(Table14[[#This Row],[1\nNumber of parents for whom a new application was submitted during the month]]=\"\",0,Table14[[#This Row],[1\nNumber of parents for whom a new application was submitted during the month]]))","v":""},{"$f":"IF(AND(Table14[[#This Row],[1\nNumber of parents for whom a new application was submitted during the month]]=\"\",Table14[[#This Row],[2\nNumber of parents for whom a renewal application was submitted during the month]]=\"\",Table14[[#This Row],[3\nTotal: number of parents applying this month]]=\"\"),\"\",IF(Table14[[#This Row],[2\nNumber of parents for whom a renewal application was submitted during the month]]=\"\",0,Table14[[#This Row],[2\nNumber of parents for whom a renewal application was submitted during the month]]))","v":""},{"$f":"IF(AND(Table14[[#This Row],[1\nNumber of parents for whom a new application was submitted during the month]]=\"\",Table14[[#This Row],[2\nNumber of parents for whom a renewal application was submitted during the month]]=\"\",Table14[[#This Row],[3\nTotal: number of parents applying this month]]=\"\"),\"\", MAX(Table14[[#This Row],[3\nTotal: number of parents applying this month]]-(Table14[[#This Row],[1\nNumber of parents for whom a new application was submitted during the month]] + Table14[[#This Row],[2\nNumber of parents for whom a renewal application was submitted during the month]]),0))","v":""},null,null,"",{"$f":"IF(AND(Table14[[#This Row],[4\nNumber of parents newly enrolled to date]]=\"\",Table14[[#This Row],[5\nNumber of parents renewed to date]]=\"\",Table14[[#This Row],[6\nTotal: Number of parents enrolled or renewed to date]]=\"\"),\"\",IF(Table14[[#This Row],[4\nNumber of parents newly enrolled to date]]=\"\",0,Table14[[#This Row],[4\nNumber of parents newly enrolled to date]]))","v":""},{"$f":"IF(AND(Table14[[#This Row],[4\nNumber of parents newly enrolled to date]]=\"\",Table14[[#This Row],[5\nNumber of parents renewed to date]]=\"\",Table14[[#This Row],[6\nTotal: Number of parents enrolled or renewed to date]]=\"\"),\"\",IF(Table14[[#This Row],[5\nNumber of parents renewed to date]]=\"\",0,Table14[[#This Row],[5\nNumber of parents renewed to date]]))","v":""},{"$f":"IF(AND(Table14[[#This Row],[4\nNumber of parents newly enrolled to date]]=\"\", Table14[[#This Row],[5\nNumber of parents renewed to date]]=\"\", Table14[[#This Row],[6\nTotal: Number of parents enrolled or renewed to date]]=\"\"),\"\",MAX(Table14[[#This Row],[6\nTotal: Number of parents enrolled or renewed to date]]-(Table14[[#This Row],[4\nNumber of parents newly enrolled to date]]+Table14[[#This Row],[5\nNumber of parents renewed to date]]),0))","v":""},{"$f":"'Cover sheet'!$D$16","v":0},{"$f":"'Cover sheet'!$D$17","v":0},{"$f":"'Cover sheet'!$D$18","v":""}]
[null,"2021-05-01",null,null,"",{"$f":"IF(AND(Table14[[#This Row],[1\nNumber of parents for whom a new application was submitted during the month]]=\"\",Table14[[#This Row],[2\nNumber of parents for whom a renewal application was submitted during the month]]=\"\",Table14[[#This Row],[3\nTotal: number of parents applying this month]]=\"\"),\"\",IF(Table14[[#This Row],[1\nNumber of parents for whom a new application was submitted during the month]]=\"\",0,Table14[[#This Row],[1\nNumber of parents for whom a new application was submitted during the month]]))","v":""},{"$f":"IF(AND(Table14[[#This Row],[1\nNumber of parents for whom a new application was submitted during the month]]=\"\",Table14[[#This Row],[2\nNumber of parents for whom a renewal application was submitted during the month]]=\"\",Table14[[#This Row],[3\nTotal: number of parents applying this month]]=\"\"),\"\",IF(Table14[[#This Row],[2\nNumber of parents for whom a renewal application was submitted during the month]]=\"\",0,Table14[[#This Row],[2\nNumber of parents for whom a renewal application was submitted during the month]]))","v":""},{"$f":"IF(AND(Table14[[#This Row],[1\nNumber of parents for whom a new application was submitted during the month]]=\"\",Table14[[#This Row],[2\nNumber of parents for whom a renewal application was submitted during the month]]=\"\",Table14[[#This Row],[3\nTotal: number of parents applying this month]]=\"\"),\"\", MAX(Table14[[#This Row],[3\nTotal: number of parents applying this month]]-(Table14[[#This Row],[1\nNumber of parents for whom a new application was submitted during the month]] + Table14[[#This Row],[2\nNumber of parents for whom a renewal application was submitted during the month]]),0))","v":""},null,null,"",{"$f":"IF(AND(Table14[[#This Row],[4\nNumber of parents newly enrolled to date]]=\"\",Table14[[#This Row],[5\nNumber of parents renewed to date]]=\"\",Table14[[#This Row],[6\nTotal: Number of parents enrolled or renewed to date]]=\"\"),\"\",IF(Table14[[#This Row],[4\nNumber of parents newly enrolled to date]]=\"\",0,Table14[[#This Row],[4\nNumber of parents newly enrolled to date]]))","v":""},{"$f":"IF(AND(Table14[[#This Row],[4\nNumber of parents newly enrolled to date]]=\"\",Table14[[#This Row],[5\nNumber of parents renewed to date]]=\"\",Table14[[#This Row],[6\nTotal: Number of parents enrolled or renewed to date]]=\"\"),\"\",IF(Table14[[#This Row],[5\nNumber of parents renewed to date]]=\"\",0,Table14[[#This Row],[5\nNumber of parents renewed to date]]))","v":""},{"$f":"IF(AND(Table14[[#This Row],[4\nNumber of parents newly enrolled to date]]=\"\", Table14[[#This Row],[5\nNumber of parents renewed to date]]=\"\", Table14[[#This Row],[6\nTotal: Number of parents enrolled or renewed to date]]=\"\"),\"\",MAX(Table14[[#This Row],[6\nTotal: Number of parents enrolled or renewed to date]]-(Table14[[#This Row],[4\nNumber of parents newly enrolled to date]]+Table14[[#This Row],[5\nNumber of parents renewed to date]]),0))","v":""},{"$f":"'Cover sheet'!$D$16","v":0},{"$f":"'Cover sheet'!$D$17","v":0},{"$f":"'Cover sheet'!$D$18","v":""}]
[null,"2021-06-01",null,null,"",{"$f":"IF(AND(Table14[[#This Row],[1\nNumber of parents for whom a new application was submitted during the month]]=\"\",Table14[[#This Row],[2\nNumber of parents for whom a renewal application was submitted during the month]]=\"\",Table14[[#This Row],[3\nTotal: number of parents applying this month]]=\"\"),\"\",IF(Table14[[#This Row],[1\nNumber of parents for whom a new application was submitted during the month]]=\"\",0,Table14[[#This Row],[1\nNumber of parents for whom a new application was submitted during the month]]))","v":""},{"$f":"IF(AND(Table14[[#This Row],[1\nNumber of parents for whom a new application was submitted during the month]]=\"\",Table14[[#This Row],[2\nNumber of parents for whom a renewal application was submitted during the month]]=\"\",Table14[[#This Row],[3\nTotal: number of parents applying this month]]=\"\"),\"\",IF(Table14[[#This Row],[2\nNumber of parents for whom a renewal application was submitted during the month]]=\"\",0,Table14[[#This Row],[2\nNumber of parents for whom a renewal application was submitted during the month]]))","v":""},{"$f":"IF(AND(Table14[[#This Row],[1\nNumber of parents for whom a new application was submitted during the month]]=\"\",Table14[[#This Row],[2\nNumber of parents for whom a renewal application was submitted during the month]]=\"\",Table14[[#This Row],[3\nTotal: number of parents applying this month]]=\"\"),\"\", MAX(Table14[[#This Row],[3\nTotal: number of parents applying this month]]-(Table14[[#This Row],[1\nNumber of parents for whom a new application was submitted during the month]] + Table14[[#This Row],[2\nNumber of parents for whom a renewal application was submitted during the month]]),0))","v":""},null,null,"",{"$f":"IF(AND(Table14[[#This Row],[4\nNumber of parents newly enrolled to date]]=\"\",Table14[[#This Row],[5\nNumber of parents renewed to date]]=\"\",Table14[[#This Row],[6\nTotal: Number of parents enrolled or renewed to date]]=\"\"),\"\",IF(Table14[[#This Row],[4\nNumber of parents newly enrolled to date]]=\"\",0,Table14[[#This Row],[4\nNumber of parents newly enrolled to date]]))","v":""},{"$f":"IF(AND(Table14[[#This Row],[4\nNumber of parents newly enrolled to date]]=\"\",Table14[[#This Row],[5\nNumber of parents renewed to date]]=\"\",Table14[[#This Row],[6\nTotal: Number of parents enrolled or renewed to date]]=\"\"),\"\",IF(Table14[[#This Row],[5\nNumber of parents renewed to date]]=\"\",0,Table14[[#This Row],[5\nNumber of parents renewed to date]]))","v":""},{"$f":"IF(AND(Table14[[#This Row],[4\nNumber of parents newly enrolled to date]]=\"\", Table14[[#This Row],[5\nNumber of parents renewed to date]]=\"\", Table14[[#This Row],[6\nTotal: Number of parents enrolled or renewed to date]]=\"\"),\"\",MAX(Table14[[#This Row],[6\nTotal: Number of parents enrolled or renewed to date]]-(Table14[[#This Row],[4\nNumber of parents newly enrolled to date]]+Table14[[#This Row],[5\nNumber of parents renewed to date]]),0))","v":""},{"$f":"'Cover sheet'!$D$16","v":0},{"$f":"'Cover sheet'!$D$17","v":0},{"$f":"'Cover sheet'!$D$18","v":""}]
[null,"2021-07-01",null,null,"",{"$f":"IF(AND(Table14[[#This Row],[1\nNumber of parents for whom a new application was submitted during the month]]=\"\",Table14[[#This Row],[2\nNumber of parents for whom a renewal application was submitted during the month]]=\"\",Table14[[#This Row],[3\nTotal: number of parents applying this month]]=\"\"),\"\",IF(Table14[[#This Row],[1\nNumber of parents for whom a new application was submitted during the month]]=\"\",0,Table14[[#This Row],[1\nNumber of parents for whom a new application was submitted during the month]]))","v":""},{"$f":"IF(AND(Table14[[#This Row],[1\nNumber of parents for whom a new application was submitted during the month]]=\"\",Table14[[#This Row],[2\nNumber of parents for whom a renewal application was submitted during the month]]=\"\",Table14[[#This Row],[3\nTotal: number of parents applying this month]]=\"\"),\"\",IF(Table14[[#This Row],[2\nNumber of parents for whom a renewal application was submitted during the month]]=\"\",0,Table14[[#This Row],[2\nNumber of parents for whom a renewal application was submitted during the month]]))","v":""},{"$f":"IF(AND(Table14[[#This Row],[1\nNumber of parents for whom a new application was submitted during the month]]=\"\",Table14[[#This Row],[2\nNumber of parents for whom a renewal application was submitted during the month]]=\"\",Table14[[#This Row],[3\nTotal: number of parents applying this month]]=\"\"),\"\", MAX(Table14[[#This Row],[3\nTotal: number of parents applying this month]]-(Table14[[#This Row],[1\nNumber of parents for whom a new application was submitted during the month]] + Table14[[#This Row],[2\nNumber of parents for whom a renewal application was submitted during the month]]),0))","v":""},null,null,"",{"$f":"IF(AND(Table14[[#This Row],[4\nNumber of parents newly enrolled to date]]=\"\",Table14[[#This Row],[5\nNumber of parents renewed to date]]=\"\",Table14[[#This Row],[6\nTotal: Number of parents enrolled or renewed to date]]=\"\"),\"\",IF(Table14[[#This Row],[4\nNumber of parents newly enrolled to date]]=\"\",0,Table14[[#This Row],[4\nNumber of parents newly enrolled to date]]))","v":""},{"$f":"IF(AND(Table14[[#This Row],[4\nNumber of parents newly enrolled to date]]=\"\",Table14[[#This Row],[5\nNumber of parents renewed to date]]=\"\",Table14[[#This Row],[6\nTotal: Number of parents enrolled or renewed to date]]=\"\"),\"\",IF(Table14[[#This Row],[5\nNumber of parents renewed to date]]=\"\",0,Table14[[#This Row],[5\nNumber of parents renewed to date]]))","v":""},{"$f":"IF(AND(Table14[[#This Row],[4\nNumber of parents newly enrolled to date]]=\"\", Table14[[#This Row],[5\nNumber of parents renewed to date]]=\"\", Table14[[#This Row],[6\nTotal: Number of parents enrolled or renewed to date]]=\"\"),\"\",MAX(Table14[[#This Row],[6\nTotal: Number of parents enrolled or renewed to date]]-(Table14[[#This Row],[4\nNumber of parents newly enrolled to date]]+Table14[[#This Row],[5\nNumber of parents renewed to date]]),0))","v":""},{"$f":"'Cover sheet'!$D$16","v":0},{"$f":"'Cover sheet'!$D$17","v":0},{"$f":"'Cover sheet'!$D$18","v":""}]
[null,"2021-08-01",null,null,"",{"$f":"IF(AND(Table14[[#This Row],[1\nNumber of parents for whom a new application was submitted during the month]]=\"\",Table14[[#This Row],[2\nNumber of parents for whom a renewal application was submitted during the month]]=\"\",Table14[[#This Row],[3\nTotal: number of parents applying this month]]=\"\"),\"\",IF(Table14[[#This Row],[1\nNumber of parents for whom a new application was submitted during the month]]=\"\",0,Table14[[#This Row],[1\nNumber of parents for whom a new application was submitted during the month]]))","v":""},{"$f":"IF(AND(Table14[[#This Row],[1\nNumber of parents for whom a new application was submitted during the month]]=\"\",Table14[[#This Row],[2\nNumber of parents for whom a renewal application was submitted during the month]]=\"\",Table14[[#This Row],[3\nTotal: number of parents applying this month]]=\"\"),\"\",IF(Table14[[#This Row],[2\nNumber of parents for whom a renewal application was submitted during the month]]=\"\",0,Table14[[#This Row],[2\nNumber of parents for whom a renewal application was submitted during the month]]))","v":""},{"$f":"IF(AND(Table14[[#This Row],[1\nNumber of parents for whom a new application was submitted during the month]]=\"\",Table14[[#This Row],[2\nNumber of parents for whom a renewal application was submitted during the month]]=\"\",Table14[[#This Row],[3\nTotal: number of parents applying this month]]=\"\"),\"\", MAX(Table14[[#This Row],[3\nTotal: number of parents applying this month]]-(Table14[[#This Row],[1\nNumber of parents for whom a new application was submitted during the month]] + Table14[[#This Row],[2\nNumber of parents for whom a renewal application was submitted during the month]]),0))","v":""},null,null,"",{"$f":"IF(AND(Table14[[#This Row],[4\nNumber of parents newly enrolled to date]]=\"\",Table14[[#This Row],[5\nNumber of parents renewed to date]]=\"\",Table14[[#This Row],[6\nTotal: Number of parents enrolled or renewed to date]]=\"\"),\"\",IF(Table14[[#This Row],[4\nNumber of parents newly enrolled to date]]=\"\",0,Table14[[#This Row],[4\nNumber of parents newly enrolled to date]]))","v":""},{"$f":"IF(AND(Table14[[#This Row],[4\nNumber of parents newly enrolled to date]]=\"\",Table14[[#This Row],[5\nNumber of parents renewed to date]]=\"\",Table14[[#This Row],[6\nTotal: Number of parents enrolled or renewed to date]]=\"\"),\"\",IF(Table14[[#This Row],[5\nNumber of parents renewed to date]]=\"\",0,Table14[[#This Row],[5\nNumber of parents renewed to date]]))","v":""},{"$f":"IF(AND(Table14[[#This Row],[4\nNumber of parents newly enrolled to date]]=\"\", Table14[[#This Row],[5\nNumber of parents renewed to date]]=\"\", Table14[[#This Row],[6\nTotal: Number of parents enrolled or renewed to date]]=\"\"),\"\",MAX(Table14[[#This Row],[6\nTotal: Number of parents enrolled or renewed to date]]-(Table14[[#This Row],[4\nNumber of parents newly enrolled to date]]+Table14[[#This Row],[5\nNumber of parents renewed to date]]),0))","v":""},{"$f":"'Cover sheet'!$D$16","v":0},{"$f":"'Cover sheet'!$D$17","v":0},{"$f":"'Cover sheet'!$D$18","v":""}]
[null,"2021-09-01",null,null,"",{"$f":"IF(AND(Table14[[#This Row],[1\nNumber of parents for whom a new application was submitted during the month]]=\"\",Table14[[#This Row],[2\nNumber of parents for whom a renewal application was submitted during the month]]=\"\",Table14[[#This Row],[3\nTotal: number of parents applying this month]]=\"\"),\"\",IF(Table14[[#This Row],[1\nNumber of parents for whom a new application was submitted during the month]]=\"\",0,Table14[[#This Row],[1\nNumber of parents for whom a new application was submitted during the month]]))","v":""},{"$f":"IF(AND(Table14[[#This Row],[1\nNumber of parents for whom a new application was submitted during the month]]=\"\",Table14[[#This Row],[2\nNumber of parents for whom a renewal application was submitted during the month]]=\"\",Table14[[#This Row],[3\nTotal: number of parents applying this month]]=\"\"),\"\",IF(Table14[[#This Row],[2\nNumber of parents for whom a renewal application was submitted during the month]]=\"\",0,Table14[[#This Row],[2\nNumber of parents for whom a renewal application was submitted during the month]]))","v":""},{"$f":"IF(AND(Table14[[#This Row],[1\nNumber of parents for whom a new application was submitted during the month]]=\"\",Table14[[#This Row],[2\nNumber of parents for whom a renewal application was submitted during the month]]=\"\",Table14[[#This Row],[3\nTotal: number of parents applying this month]]=\"\"),\"\", MAX(Table14[[#This Row],[3\nTotal: number of parents applying this month]]-(Table14[[#This Row],[1\nNumber of parents for whom a new application was submitted during the month]] + Table14[[#This Row],[2\nNumber of parents for whom a renewal application was submitted during the month]]),0))","v":""},null,null,"",{"$f":"IF(AND(Table14[[#This Row],[4\nNumber of parents newly enrolled to date]]=\"\",Table14[[#This Row],[5\nNumber of parents renewed to date]]=\"\",Table14[[#This Row],[6\nTotal: Number of parents enrolled or renewed to date]]=\"\"),\"\",IF(Table14[[#This Row],[4\nNumber of parents newly enrolled to date]]=\"\",0,Table14[[#This Row],[4\nNumber of parents newly enrolled to date]]))","v":""},{"$f":"IF(AND(Table14[[#This Row],[4\nNumber of parents newly enrolled to date]]=\"\",Table14[[#This Row],[5\nNumber of parents renewed to date]]=\"\",Table14[[#This Row],[6\nTotal: Number of parents enrolled or renewed to date]]=\"\"),\"\",IF(Table14[[#This Row],[5\nNumber of parents renewed to date]]=\"\",0,Table14[[#This Row],[5\nNumber of parents renewed to date]]))","v":""},{"$f":"IF(AND(Table14[[#This Row],[4\nNumber of parents newly enrolled to date]]=\"\", Table14[[#This Row],[5\nNumber of parents renewed to date]]=\"\", Table14[[#This Row],[6\nTotal: Number of parents enrolled or renewed to date]]=\"\"),\"\",MAX(Table14[[#This Row],[6\nTotal: Number of parents enrolled or renewed to date]]-(Table14[[#This Row],[4\nNumber of parents newly enrolled to date]]+Table14[[#This Row],[5\nNumber of parents renewed to date]]),0))","v":""},{"$f":"'Cover sheet'!$D$16","v":0},{"$f":"'Cover sheet'!$D$17","v":0},{"$f":"'Cover sheet'!$D$18","v":""}]
[null,"2021-10-01",null,null,"",{"$f":"IF(AND(Table14[[#This Row],[1\nNumber of parents for whom a new application was submitted during the month]]=\"\",Table14[[#This Row],[2\nNumber of parents for whom a renewal application was submitted during the month]]=\"\",Table14[[#This Row],[3\nTotal: number of parents applying this month]]=\"\"),\"\",IF(Table14[[#This Row],[1\nNumber of parents for whom a new application was submitted during the month]]=\"\",0,Table14[[#This Row],[1\nNumber of parents for whom a new application was submitted during the month]]))","v":""},{"$f":"IF(AND(Table14[[#This Row],[1\nNumber of parents for whom a new application was submitted during the month]]=\"\",Table14[[#This Row],[2\nNumber of parents for whom a renewal application was submitted during the month]]=\"\",Table14[[#This Row],[3\nTotal: number of parents applying this month]]=\"\"),\"\",IF(Table14[[#This Row],[2\nNumber of parents for whom a renewal application was submitted during the month]]=\"\",0,Table14[[#This Row],[2\nNumber of parents for whom a renewal application was submitted during the month]]))","v":""},{"$f":"IF(AND(Table14[[#This Row],[1\nNumber of parents for whom a new application was submitted during the month]]=\"\",Table14[[#This Row],[2\nNumber of parents for whom a renewal application was submitted during the month]]=\"\",Table14[[#This Row],[3\nTotal: number of parents applying this month]]=\"\"),\"\", MAX(Table14[[#This Row],[3\nTotal: number of parents applying this month]]-(Table14[[#This Row],[1\nNumber of parents for whom a new application was submitted during the month]] + Table14[[#This Row],[2\nNumber of parents for whom a renewal application was submitted during the month]]),0))","v":""},null,null,"",{"$f":"IF(AND(Table14[[#This Row],[4\nNumber of parents newly enrolled to date]]=\"\",Table14[[#This Row],[5\nNumber of parents renewed to date]]=\"\",Table14[[#This Row],[6\nTotal: Number of parents enrolled or renewed to date]]=\"\"),\"\",IF(Table14[[#This Row],[4\nNumber of parents newly enrolled to date]]=\"\",0,Table14[[#This Row],[4\nNumber of parents newly enrolled to date]]))","v":""},{"$f":"IF(AND(Table14[[#This Row],[4\nNumber of parents newly enrolled to date]]=\"\",Table14[[#This Row],[5\nNumber of parents renewed to date]]=\"\",Table14[[#This Row],[6\nTotal: Number of parents enrolled or renewed to date]]=\"\"),\"\",IF(Table14[[#This Row],[5\nNumber of parents renewed to date]]=\"\",0,Table14[[#This Row],[5\nNumber of parents renewed to date]]))","v":""},{"$f":"IF(AND(Table14[[#This Row],[4\nNumber of parents newly enrolled to date]]=\"\", Table14[[#This Row],[5\nNumber of parents renewed to date]]=\"\", Table14[[#This Row],[6\nTotal: Number of parents enrolled or renewed to date]]=\"\"),\"\",MAX(Table14[[#This Row],[6\nTotal: Number of parents enrolled or renewed to date]]-(Table14[[#This Row],[4\nNumber of parents newly enrolled to date]]+Table14[[#This Row],[5\nNumber of parents renewed to date]]),0))","v":""},{"$f":"'Cover sheet'!$D$16","v":0},{"$f":"'Cover sheet'!$D$17","v":0},{"$f":"'Cover sheet'!$D$18","v":""}]
[null,"2021-11-01",null,null,"",{"$f":"IF(AND(Table14[[#This Row],[1\nNumber of parents for whom a new application was submitted during the month]]=\"\",Table14[[#This Row],[2\nNumber of parents for whom a renewal application was submitted during the month]]=\"\",Table14[[#This Row],[3\nTotal: number of parents applying this month]]=\"\"),\"\",IF(Table14[[#This Row],[1\nNumber of parents for whom a new application was submitted during the month]]=\"\",0,Table14[[#This Row],[1\nNumber of parents for whom a new application was submitted during the month]]))","v":""},{"$f":"IF(AND(Table14[[#This Row],[1\nNumber of parents for whom a new application was submitted during the month]]=\"\",Table14[[#This Row],[2\nNumber of parents for whom a renewal application was submitted during the month]]=\"\",Table14[[#This Row],[3\nTotal: number of parents applying this month]]=\"\"),\"\",IF(Table14[[#This Row],[2\nNumber of parents for whom a renewal application was submitted during the month]]=\"\",0,Table14[[#This Row],[2\nNumber of parents for whom a renewal application was submitted during the month]]))","v":""},{"$f":"IF(AND(Table14[[#This Row],[1\nNumber of parents for whom a new application was submitted during the month]]=\"\",Table14[[#This Row],[2\nNumber of parents for whom a renewal application was submitted during the month]]=\"\",Table14[[#This Row],[3\nTotal: number of parents applying this month]]=\"\"),\"\", MAX(Table14[[#This Row],[3\nTotal: number of parents applying this month]]-(Table14[[#This Row],[1\nNumber of parents for whom a new application was submitted during the month]] + Table14[[#This Row],[2\nNumber of parents for whom a renewal application was submitted during the month]]),0))","v":""},null,null,"",{"$f":"IF(AND(Table14[[#This Row],[4\nNumber of parents newly enrolled to date]]=\"\",Table14[[#This Row],[5\nNumber of parents renewed to date]]=\"\",Table14[[#This Row],[6\nTotal: Number of parents enrolled or renewed to date]]=\"\"),\"\",IF(Table14[[#This Row],[4\nNumber of parents newly enrolled to date]]=\"\",0,Table14[[#This Row],[4\nNumber of parents newly enrolled to date]]))","v":""},{"$f":"IF(AND(Table14[[#This Row],[4\nNumber of parents newly enrolled to date]]=\"\",Table14[[#This Row],[5\nNumber of parents renewed to date]]=\"\",Table14[[#This Row],[6\nTotal: Number of parents enrolled or renewed to date]]=\"\"),\"\",IF(Table14[[#This Row],[5\nNumber of parents renewed to date]]=\"\",0,Table14[[#This Row],[5\nNumber of parents renewed to date]]))","v":""},{"$f":"IF(AND(Table14[[#This Row],[4\nNumber of parents newly enrolled to date]]=\"\", Table14[[#This Row],[5\nNumber of parents renewed to date]]=\"\", Table14[[#This Row],[6\nTotal: Number of parents enrolled or renewed to date]]=\"\"),\"\",MAX(Table14[[#This Row],[6\nTotal: Number of parents enrolled or renewed to date]]-(Table14[[#This Row],[4\nNumber of parents newly enrolled to date]]+Table14[[#This Row],[5\nNumber of parents renewed to date]]),0))","v":""},{"$f":"'Cover sheet'!$D$16","v":0},{"$f":"'Cover sheet'!$D$17","v":0},{"$f":"'Cover sheet'!$D$18","v":""}]
[null,"2021-12-01",null,null,"",{"$f":"IF(AND(Table14[[#This Row],[1\nNumber of parents for whom a new application was submitted during the month]]=\"\",Table14[[#This Row],[2\nNumber of parents for whom a renewal application was submitted during the month]]=\"\",Table14[[#This Row],[3\nTotal: number of parents applying this month]]=\"\"),\"\",IF(Table14[[#This Row],[1\nNumber of parents for whom a new application was submitted during the month]]=\"\",0,Table14[[#This Row],[1\nNumber of parents for whom a new application was submitted during the month]]))","v":""},{"$f":"IF(AND(Table14[[#This Row],[1\nNumber of parents for whom a new application was submitted during the month]]=\"\",Table14[[#This Row],[2\nNumber of parents for whom a renewal application was submitted during the month]]=\"\",Table14[[#This Row],[3\nTotal: number of parents applying this month]]=\"\"),\"\",IF(Table14[[#This Row],[2\nNumber of parents for whom a renewal application was submitted during the month]]=\"\",0,Table14[[#This Row],[2\nNumber of parents for whom a renewal application was submitted during the month]]))","v":""},{"$f":"IF(AND(Table14[[#This Row],[1\nNumber of parents for whom a new application was submitted during the month]]=\"\",Table14[[#This Row],[2\nNumber of parents for whom a renewal application was submitted during the month]]=\"\",Table14[[#This Row],[3\nTotal: number of parents applying this month]]=\"\"),\"\", MAX(Table14[[#This Row],[3\nTotal: number of parents applying this month]]-(Table14[[#This Row],[1\nNumber of parents for whom a new application was submitted during the month]] + Table14[[#This Row],[2\nNumber of parents for whom a renewal application was submitted during the month]]),0))","v":""},null,null,"",{"$f":"IF(AND(Table14[[#This Row],[4\nNumber of parents newly enrolled to date]]=\"\",Table14[[#This Row],[5\nNumber of parents renewed to date]]=\"\",Table14[[#This Row],[6\nTotal: Number of parents enrolled or renewed to date]]=\"\"),\"\",IF(Table14[[#This Row],[4\nNumber of parents newly enrolled to date]]=\"\",0,Table14[[#This Row],[4\nNumber of parents newly enrolled to date]]))","v":""},{"$f":"IF(AND(Table14[[#This Row],[4\nNumber of parents newly enrolled to date]]=\"\",Table14[[#This Row],[5\nNumber of parents renewed to date]]=\"\",Table14[[#This Row],[6\nTotal: Number of parents enrolled or renewed to date]]=\"\"),\"\",IF(Table14[[#This Row],[5\nNumber of parents renewed to date]]=\"\",0,Table14[[#This Row],[5\nNumber of parents renewed to date]]))","v":""},{"$f":"IF(AND(Table14[[#This Row],[4\nNumber of parents newly enrolled to date]]=\"\", Table14[[#This Row],[5\nNumber of parents renewed to date]]=\"\", Table14[[#This Row],[6\nTotal: Number of parents enrolled or renewed to date]]=\"\"),\"\",MAX(Table14[[#This Row],[6\nTotal: Number of parents enrolled or renewed to date]]-(Table14[[#This Row],[4\nNumber of parents newly enrolled to date]]+Table14[[#This Row],[5\nNumber of parents renewed to date]]),0))","v":""},{"$f":"'Cover sheet'!$D$16","v":0},{"$f":"'Cover sheet'!$D$17","v":0},{"$f":"'Cover sheet'!$D$18","v":""}]
[null,"2022-01-01",null,null,"",{"$f":"IF(AND(Table14[[#This Row],[1\nNumber of parents for whom a new application was submitted during the month]]=\"\",Table14[[#This Row],[2\nNumber of parents for whom a renewal application was submitted during the month]]=\"\",Table14[[#This Row],[3\nTotal: number of parents applying this month]]=\"\"),\"\",IF(Table14[[#This Row],[1\nNumber of parents for whom a new application was submitted during the month]]=\"\",0,Table14[[#This Row],[1\nNumber of parents for whom a new application was submitted during the month]]))","v":""},{"$f":"IF(AND(Table14[[#This Row],[1\nNumber of parents for whom a new application was submitted during the month]]=\"\",Table14[[#This Row],[2\nNumber of parents for whom a renewal application was submitted during the month]]=\"\",Table14[[#This Row],[3\nTotal: number of parents applying this month]]=\"\"),\"\",IF(Table14[[#This Row],[2\nNumber of parents for whom a renewal application was submitted during the month]]=\"\",0,Table14[[#This Row],[2\nNumber of parents for whom a renewal application was submitted during the month]]))","v":""},{"$f":"IF(AND(Table14[[#This Row],[1\nNumber of parents for whom a new application was submitted during the month]]=\"\",Table14[[#This Row],[2\nNumber of parents for whom a renewal application was submitted during the month]]=\"\",Table14[[#This Row],[3\nTotal: number of parents applying this month]]=\"\"),\"\", MAX(Table14[[#This Row],[3\nTotal: number of parents applying this month]]-(Table14[[#This Row],[1\nNumber of parents for whom a new application was submitted during the month]] + Table14[[#This Row],[2\nNumber of parents for whom a renewal application was submitted during the month]]),0))","v":""},null,null,"",{"$f":"IF(AND(Table14[[#This Row],[4\nNumber of parents newly enrolled to date]]=\"\",Table14[[#This Row],[5\nNumber of parents renewed to date]]=\"\",Table14[[#This Row],[6\nTotal: Number of parents enrolled or renewed to date]]=\"\"),\"\",IF(Table14[[#This Row],[4\nNumber of parents newly enrolled to date]]=\"\",0,Table14[[#This Row],[4\nNumber of parents newly enrolled to date]]))","v":""},{"$f":"IF(AND(Table14[[#This Row],[4\nNumber of parents newly enrolled to date]]=\"\",Table14[[#This Row],[5\nNumber of parents renewed to date]]=\"\",Table14[[#This Row],[6\nTotal: Number of parents enrolled or renewed to date]]=\"\"),\"\",IF(Table14[[#This Row],[5\nNumber of parents renewed to date]]=\"\",0,Table14[[#This Row],[5\nNumber of parents renewed to date]]))","v":""},{"$f":"IF(AND(Table14[[#This Row],[4\nNumber of parents newly enrolled to date]]=\"\", Table14[[#This Row],[5\nNumber of parents renewed to date]]=\"\", Table14[[#This Row],[6\nTotal: Number of parents enrolled or renewed to date]]=\"\"),\"\",MAX(Table14[[#This Row],[6\nTotal: Number of parents enrolled or renewed to date]]-(Table14[[#This Row],[4\nNumber of parents newly enrolled to date]]+Table14[[#This Row],[5\nNumber of parents renewed to date]]),0))","v":""},{"$f":"'Cover sheet'!$D$16","v":0},{"$f":"'Cover sheet'!$D$17","v":0},{"$f":"'Cover sheet'!$D$18","v":""}]
[null,"2022-02-01",null,null,"",{"$f":"IF(AND(Table14[[#This Row],[1\nNumber of parents for whom a new application was submitted during the month]]=\"\",Table14[[#This Row],[2\nNumber of parents for whom a renewal application was submitted during the month]]=\"\",Table14[[#This Row],[3\nTotal: number of parents applying this month]]=\"\"),\"\",IF(Table14[[#This Row],[1\nNumber of parents for whom a new application was submitted during the month]]=\"\",0,Table14[[#This Row],[1\nNumber of parents for whom a new application was submitted during the month]]))","v":""},{"$f":"IF(AND(Table14[[#This Row],[1\nNumber of parents for whom a new application was submitted during the month]]=\"\",Table14[[#This Row],[2\nNumber of parents for whom a renewal application was submitted during the month]]=\"\",Table14[[#This Row],[3\nTotal: number of parents applying this month]]=\"\"),\"\",IF(Table14[[#This Row],[2\nNumber of parents for whom a renewal application was submitted during the month]]=\"\",0,Table14[[#This Row],[2\nNumber of parents for whom a renewal application was submitted during the month]]))","v":""},{"$f":"IF(AND(Table14[[#This Row],[1\nNumber of parents for whom a new application was submitted during the month]]=\"\",Table14[[#This Row],[2\nNumber of parents for whom a renewal application was submitted during the month]]=\"\",Table14[[#This Row],[3\nTotal: number of parents applying this month]]=\"\"),\"\", MAX(Table14[[#This Row],[3\nTotal: number of parents applying this month]]-(Table14[[#This Row],[1\nNumber of parents for whom a new application was submitted during the month]] + Table14[[#This Row],[2\nNumber of parents for whom a renewal application was submitted during the month]]),0))","v":""},null,null,"",{"$f":"IF(AND(Table14[[#This Row],[4\nNumber of parents newly enrolled to date]]=\"\",Table14[[#This Row],[5\nNumber of parents renewed to date]]=\"\",Table14[[#This Row],[6\nTotal: Number of parents enrolled or renewed to date]]=\"\"),\"\",IF(Table14[[#This Row],[4\nNumber of parents newly enrolled to date]]=\"\",0,Table14[[#This Row],[4\nNumber of parents newly enrolled to date]]))","v":""},{"$f":"IF(AND(Table14[[#This Row],[4\nNumber of parents newly enrolled to date]]=\"\",Table14[[#This Row],[5\nNumber of parents renewed to date]]=\"\",Table14[[#This Row],[6\nTotal: Number of parents enrolled or renewed to date]]=\"\"),\"\",IF(Table14[[#This Row],[5\nNumber of parents renewed to date]]=\"\",0,Table14[[#This Row],[5\nNumber of parents renewed to date]]))","v":""},{"$f":"IF(AND(Table14[[#This Row],[4\nNumber of parents newly enrolled to date]]=\"\", Table14[[#This Row],[5\nNumber of parents renewed to date]]=\"\", Table14[[#This Row],[6\nTotal: Number of parents enrolled or renewed to date]]=\"\"),\"\",MAX(Table14[[#This Row],[6\nTotal: Number of parents enrolled or renewed to date]]-(Table14[[#This Row],[4\nNumber of parents newly enrolled to date]]+Table14[[#This Row],[5\nNumber of parents renewed to date]]),0))","v":""},{"$f":"'Cover sheet'!$D$16","v":0},{"$f":"'Cover sheet'!$D$17","v":0},{"$f":"'Cover sheet'!$D$18","v":""}]
[null,"2022-03-01",null,null,"",{"$f":"IF(AND(Table14[[#This Row],[1\nNumber of parents for whom a new application was submitted during the month]]=\"\",Table14[[#This Row],[2\nNumber of parents for whom a renewal application was submitted during the month]]=\"\",Table14[[#This Row],[3\nTotal: number of parents applying this month]]=\"\"),\"\",IF(Table14[[#This Row],[1\nNumber of parents for whom a new application was submitted during the month]]=\"\",0,Table14[[#This Row],[1\nNumber of parents for whom a new application was submitted during the month]]))","v":""},{"$f":"IF(AND(Table14[[#This Row],[1\nNumber of parents for whom a new application was submitted during the month]]=\"\",Table14[[#This Row],[2\nNumber of parents for whom a renewal application was submitted during the month]]=\"\",Table14[[#This Row],[3\nTotal: number of parents applying this month]]=\"\"),\"\",IF(Table14[[#This Row],[2\nNumber of parents for whom a renewal application was submitted during the month]]=\"\",0,Table14[[#This Row],[2\nNumber of parents for whom a renewal application was submitted during the month]]))","v":""},{"$f":"IF(AND(Table14[[#This Row],[1\nNumber of parents for whom a new application was submitted during the month]]=\"\",Table14[[#This Row],[2\nNumber of parents for whom a renewal application was submitted during the month]]=\"\",Table14[[#This Row],[3\nTotal: number of parents applying this month]]=\"\"),\"\", MAX(Table14[[#This Row],[3\nTotal: number of parents applying this month]]-(Table14[[#This Row],[1\nNumber of parents for whom a new application was submitted during the month]] + Table14[[#This Row],[2\nNumber of parents for whom a renewal application was submitted during the month]]),0))","v":""},null,null,"",{"$f":"IF(AND(Table14[[#This Row],[4\nNumber of parents newly enrolled to date]]=\"\",Table14[[#This Row],[5\nNumber of parents renewed to date]]=\"\",Table14[[#This Row],[6\nTotal: Number of parents enrolled or renewed to date]]=\"\"),\"\",IF(Table14[[#This Row],[4\nNumber of parents newly enrolled to date]]=\"\",0,Table14[[#This Row],[4\nNumber of parents newly enrolled to date]]))","v":""},{"$f":"IF(AND(Table14[[#This Row],[4\nNumber of parents newly enrolled to date]]=\"\",Table14[[#This Row],[5\nNumber of parents renewed to date]]=\"\",Table14[[#This Row],[6\nTotal: Number of parents enrolled or renewed to date]]=\"\"),\"\",IF(Table14[[#This Row],[5\nNumber of parents renewed to date]]=\"\",0,Table14[[#This Row],[5\nNumber of parents renewed to date]]))","v":""},{"$f":"IF(AND(Table14[[#This Row],[4\nNumber of parents newly enrolled to date]]=\"\", Table14[[#This Row],[5\nNumber of parents renewed to date]]=\"\", Table14[[#This Row],[6\nTotal: Number of parents enrolled or renewed to date]]=\"\"),\"\",MAX(Table14[[#This Row],[6\nTotal: Number of parents enrolled or renewed to date]]-(Table14[[#This Row],[4\nNumber of parents newly enrolled to date]]+Table14[[#This Row],[5\nNumber of parents renewed to date]]),0))","v":""},{"$f":"'Cover sheet'!$D$16","v":0},{"$f":"'Cover sheet'!$D$17","v":0},{"$f":"'Cover sheet'!$D$18","v":""}]
[null,"2022-04-01",null,null,"",{"$f":"IF(AND(Table14[[#This Row],[1\nNumber of parents for whom a new application was submitted during the month]]=\"\",Table14[[#This Row],[2\nNumber of parents for whom a renewal application was submitted during the month]]=\"\",Table14[[#This Row],[3\nTotal: number of parents applying this month]]=\"\"),\"\",IF(Table14[[#This Row],[1\nNumber of parents for whom a new application was submitted during the month]]=\"\",0,Table14[[#This Row],[1\nNumber of parents for whom a new application was submitted during the month]]))","v":""},{"$f":"IF(AND(Table14[[#This Row],[1\nNumber of parents for whom a new application was submitted during the month]]=\"\",Table14[[#This Row],[2\nNumber of parents for whom a renewal application was submitted during the month]]=\"\",Table14[[#This Row],[3\nTotal: number of parents applying this month]]=\"\"),\"\",IF(Table14[[#This Row],[2\nNumber of parents for whom a renewal application was submitted during the month]]=\"\",0,Table14[[#This Row],[2\nNumber of parents for whom a renewal application was submitted during the month]]))","v":""},{"$f":"IF(AND(Table14[[#This Row],[1\nNumber of parents for whom a new application was submitted during the month]]=\"\",Table14[[#This Row],[2\nNumber of parents for whom a renewal application was submitted during the month]]=\"\",Table14[[#This Row],[3\nTotal: number of parents applying this month]]=\"\"),\"\", MAX(Table14[[#This Row],[3\nTotal: number of parents applying this month]]-(Table14[[#This Row],[1\nNumber of parents for whom a new application was submitted during the month]] + Table14[[#This Row],[2\nNumber of parents for whom a renewal application was submitted during the month]]),0))","v":""},null,null,"",{"$f":"IF(AND(Table14[[#This Row],[4\nNumber of parents newly enrolled to date]]=\"\",Table14[[#This Row],[5\nNumber of parents renewed to date]]=\"\",Table14[[#This Row],[6\nTotal: Number of parents enrolled or renewed to date]]=\"\"),\"\",IF(Table14[[#This Row],[4\nNumber of parents newly enrolled to date]]=\"\",0,Table14[[#This Row],[4\nNumber of parents newly enrolled to date]]))","v":""},{"$f":"IF(AND(Table14[[#This Row],[4\nNumber of parents newly enrolled to date]]=\"\",Table14[[#This Row],[5\nNumber of parents renewed to date]]=\"\",Table14[[#This Row],[6\nTotal: Number of parents enrolled or renewed to date]]=\"\"),\"\",IF(Table14[[#This Row],[5\nNumber of parents renewed to date]]=\"\",0,Table14[[#This Row],[5\nNumber of parents renewed to date]]))","v":""},{"$f":"IF(AND(Table14[[#This Row],[4\nNumber of parents newly enrolled to date]]=\"\", Table14[[#This Row],[5\nNumber of parents renewed to date]]=\"\", Table14[[#This Row],[6\nTotal: Number of parents enrolled or renewed to date]]=\"\"),\"\",MAX(Table14[[#This Row],[6\nTotal: Number of parents enrolled or renewed to date]]-(Table14[[#This Row],[4\nNumber of parents newly enrolled to date]]+Table14[[#This Row],[5\nNumber of parents renewed to date]]),0))","v":""},{"$f":"'Cover sheet'!$D$16","v":0},{"$f":"'Cover sheet'!$D$17","v":0},{"$f":"'Cover sheet'!$D$18","v":""}]
[null,"2022-05-01",null,null,"",{"$f":"IF(AND(Table14[[#This Row],[1\nNumber of parents for whom a new application was submitted during the month]]=\"\",Table14[[#This Row],[2\nNumber of parents for whom a renewal application was submitted during the month]]=\"\",Table14[[#This Row],[3\nTotal: number of parents applying this month]]=\"\"),\"\",IF(Table14[[#This Row],[1\nNumber of parents for whom a new application was submitted during the month]]=\"\",0,Table14[[#This Row],[1\nNumber of parents for whom a new application was submitted during the month]]))","v":""},{"$f":"IF(AND(Table14[[#This Row],[1\nNumber of parents for whom a new application was submitted during the month]]=\"\",Table14[[#This Row],[2\nNumber of parents for whom a renewal application was submitted during the month]]=\"\",Table14[[#This Row],[3\nTotal: number of parents applying this month]]=\"\"),\"\",IF(Table14[[#This Row],[2\nNumber of parents for whom a renewal application was submitted during the month]]=\"\",0,Table14[[#This Row],[2\nNumber of parents for whom a renewal application was submitted during the month]]))","v":""},{"$f":"IF(AND(Table14[[#This Row],[1\nNumber of parents for whom a new application was submitted during the month]]=\"\",Table14[[#This Row],[2\nNumber of parents for whom a renewal application was submitted during the month]]=\"\",Table14[[#This Row],[3\nTotal: number of parents applying this month]]=\"\"),\"\", MAX(Table14[[#This Row],[3\nTotal: number of parents applying this month]]-(Table14[[#This Row],[1\nNumber of parents for whom a new application was submitted during the month]] + Table14[[#This Row],[2\nNumber of parents for whom a renewal application was submitted during the month]]),0))","v":""},null,null,"",{"$f":"IF(AND(Table14[[#This Row],[4\nNumber of parents newly enrolled to date]]=\"\",Table14[[#This Row],[5\nNumber of parents renewed to date]]=\"\",Table14[[#This Row],[6\nTotal: Number of parents enrolled or renewed to date]]=\"\"),\"\",IF(Table14[[#This Row],[4\nNumber of parents newly enrolled to date]]=\"\",0,Table14[[#This Row],[4\nNumber of parents newly enrolled to date]]))","v":""},{"$f":"IF(AND(Table14[[#This Row],[4\nNumber of parents newly enrolled to date]]=\"\",Table14[[#This Row],[5\nNumber of parents renewed to date]]=\"\",Table14[[#This Row],[6\nTotal: Number of parents enrolled or renewed to date]]=\"\"),\"\",IF(Table14[[#This Row],[5\nNumber of parents renewed to date]]=\"\",0,Table14[[#This Row],[5\nNumber of parents renewed to date]]))","v":""},{"$f":"IF(AND(Table14[[#This Row],[4\nNumber of parents newly enrolled to date]]=\"\", Table14[[#This Row],[5\nNumber of parents renewed to date]]=\"\", Table14[[#This Row],[6\nTotal: Number of parents enrolled or renewed to date]]=\"\"),\"\",MAX(Table14[[#This Row],[6\nTotal: Number of parents enrolled or renewed to date]]-(Table14[[#This Row],[4\nNumber of parents newly enrolled to date]]+Table14[[#This Row],[5\nNumber of parents renewed to date]]),0))","v":""},{"$f":"'Cover sheet'!$D$16","v":0},{"$f":"'Cover sheet'!$D$17","v":0},{"$f":"'Cover sheet'!$D$18","v":""}]
[null,"2022-06-01",null,null,"",{"$f":"IF(AND(Table14[[#This Row],[1\nNumber of parents for whom a new application was submitted during the month]]=\"\",Table14[[#This Row],[2\nNumber of parents for whom a renewal application was submitted during the month]]=\"\",Table14[[#This Row],[3\nTotal: number of parents applying this month]]=\"\"),\"\",IF(Table14[[#This Row],[1\nNumber of parents for whom a new application was submitted during the month]]=\"\",0,Table14[[#This Row],[1\nNumber of parents for whom a new application was submitted during the month]]))","v":""},{"$f":"IF(AND(Table14[[#This Row],[1\nNumber of parents for whom a new application was submitted during the month]]=\"\",Table14[[#This Row],[2\nNumber of parents for whom a renewal application was submitted during the month]]=\"\",Table14[[#This Row],[3\nTotal: number of parents applying this month]]=\"\"),\"\",IF(Table14[[#This Row],[2\nNumber of parents for whom a renewal application was submitted during the month]]=\"\",0,Table14[[#This Row],[2\nNumber of parents for whom a renewal application was submitted during the month]]))","v":""},{"$f":"IF(AND(Table14[[#This Row],[1\nNumber of parents for whom a new application was submitted during the month]]=\"\",Table14[[#This Row],[2\nNumber of parents for whom a renewal application was submitted during the month]]=\"\",Table14[[#This Row],[3\nTotal: number of parents applying this month]]=\"\"),\"\", MAX(Table14[[#This Row],[3\nTotal: number of parents applying this month]]-(Table14[[#This Row],[1\nNumber of parents for whom a new application was submitted during the month]] + Table14[[#This Row],[2\nNumber of parents for whom a renewal application was submitted during the month]]),0))","v":""},null,null,"",{"$f":"IF(AND(Table14[[#This Row],[4\nNumber of parents newly enrolled to date]]=\"\",Table14[[#This Row],[5\nNumber of parents renewed to date]]=\"\",Table14[[#This Row],[6\nTotal: Number of parents enrolled or renewed to date]]=\"\"),\"\",IF(Table14[[#This Row],[4\nNumber of parents newly enrolled to date]]=\"\",0,Table14[[#This Row],[4\nNumber of parents newly enrolled to date]]))","v":""},{"$f":"IF(AND(Table14[[#This Row],[4\nNumber of parents newly enrolled to date]]=\"\",Table14[[#This Row],[5\nNumber of parents renewed to date]]=\"\",Table14[[#This Row],[6\nTotal: Number of parents enrolled or renewed to date]]=\"\"),\"\",IF(Table14[[#This Row],[5\nNumber of parents renewed to date]]=\"\",0,Table14[[#This Row],[5\nNumber of parents renewed to date]]))","v":""},{"$f":"IF(AND(Table14[[#This Row],[4\nNumber of parents newly enrolled to date]]=\"\", Table14[[#This Row],[5\nNumber of parents renewed to date]]=\"\", Table14[[#This Row],[6\nTotal: Number of parents enrolled or renewed to date]]=\"\"),\"\",MAX(Table14[[#This Row],[6\nTotal: Number of parents enrolled or renewed to date]]-(Table14[[#This Row],[4\nNumber of parents newly enrolled to date]]+Table14[[#This Row],[5\nNumber of parents renewed to date]]),0))","v":""},{"$f":"'Cover sheet'!$D$16","v":0},{"$f":"'Cover sheet'!$D$17","v":0},{"$f":"'Cover sheet'!$D$18","v":""}]
[null,"2022-07-01",null,null,"",{"$f":"IF(AND(Table14[[#This Row],[1\nNumber of parents for whom a new application was submitted during the month]]=\"\",Table14[[#This Row],[2\nNumber of parents for whom a renewal application was submitted during the month]]=\"\",Table14[[#This Row],[3\nTotal: number of parents applying this month]]=\"\"),\"\",IF(Table14[[#This Row],[1\nNumber of parents for whom a new application was submitted during the month]]=\"\",0,Table14[[#This Row],[1\nNumber of parents for whom a new application was submitted during the month]]))","v":""},{"$f":"IF(AND(Table14[[#This Row],[1\nNumber of parents for whom a new application was submitted during the month]]=\"\",Table14[[#This Row],[2\nNumber of parents for whom a renewal application was submitted during the month]]=\"\",Table14[[#This Row],[3\nTotal: number of parents applying this month]]=\"\"),\"\",IF(Table14[[#This Row],[2\nNumber of parents for whom a renewal application was submitted during the month]]=\"\",0,Table14[[#This Row],[2\nNumber of parents for whom a renewal application was submitted during the month]]))","v":""},{"$f":"IF(AND(Table14[[#This Row],[1\nNumber of parents for whom a new application was submitted during the month]]=\"\",Table14[[#This Row],[2\nNumber of parents for whom a renewal application was submitted during the month]]=\"\",Table14[[#This Row],[3\nTotal: number of parents applying this month]]=\"\"),\"\", MAX(Table14[[#This Row],[3\nTotal: number of parents applying this month]]-(Table14[[#This Row],[1\nNumber of parents for whom a new application was submitted during the month]] + Table14[[#This Row],[2\nNumber of parents for whom a renewal application was submitted during the month]]),0))","v":""},null,null,"",{"$f":"IF(AND(Table14[[#This Row],[4\nNumber of parents newly enrolled to date]]=\"\",Table14[[#This Row],[5\nNumber of parents renewed to date]]=\"\",Table14[[#This Row],[6\nTotal: Number of parents enrolled or renewed to date]]=\"\"),\"\",IF(Table14[[#This Row],[4\nNumber of parents newly enrolled to date]]=\"\",0,Table14[[#This Row],[4\nNumber of parents newly enrolled to date]]))","v":""},{"$f":"IF(AND(Table14[[#This Row],[4\nNumber of parents newly enrolled to date]]=\"\",Table14[[#This Row],[5\nNumber of parents renewed to date]]=\"\",Table14[[#This Row],[6\nTotal: Number of parents enrolled or renewed to date]]=\"\"),\"\",IF(Table14[[#This Row],[5\nNumber of parents renewed to date]]=\"\",0,Table14[[#This Row],[5\nNumber of parents renewed to date]]))","v":""},{"$f":"IF(AND(Table14[[#This Row],[4\nNumber of parents newly enrolled to date]]=\"\", Table14[[#This Row],[5\nNumber of parents renewed to date]]=\"\", Table14[[#This Row],[6\nTotal: Number of parents enrolled or renewed to date]]=\"\"),\"\",MAX(Table14[[#This Row],[6\nTotal: Number of parents enrolled or renewed to date]]-(Table14[[#This Row],[4\nNumber of parents newly enrolled to date]]+Table14[[#This Row],[5\nNumber of parents renewed to date]]),0))","v":""},{"$f":"'Cover sheet'!$D$16","v":0},{"$f":"'Cover sheet'!$D$17","v":0},{"$f":"'Cover sheet'!$D$18","v":""}]
[null,"2022-08-01",null,null,"",{"$f":"IF(AND(Table14[[#This Row],[1\nNumber of parents for whom a new application was submitted during the month]]=\"\",Table14[[#This Row],[2\nNumber of parents for whom a renewal application was submitted during the month]]=\"\",Table14[[#This Row],[3\nTotal: number of parents applying this month]]=\"\"),\"\",IF(Table14[[#This Row],[1\nNumber of parents for whom a new application was submitted during the month]]=\"\",0,Table14[[#This Row],[1\nNumber of parents for whom a new application was submitted during the month]]))","v":""},{"$f":"IF(AND(Table14[[#This Row],[1\nNumber of parents for whom a new application was submitted during the month]]=\"\",Table14[[#This Row],[2\nNumber of parents for whom a renewal application was submitted during the month]]=\"\",Table14[[#This Row],[3\nTotal: number of parents applying this month]]=\"\"),\"\",IF(Table14[[#This Row],[2\nNumber of parents for whom a renewal application was submitted during the month]]=\"\",0,Table14[[#This Row],[2\nNumber of parents for whom a renewal application was submitted during the month]]))","v":""},{"$f":"IF(AND(Table14[[#This Row],[1\nNumber of parents for whom a new application was submitted during the month]]=\"\",Table14[[#This Row],[2\nNumber of parents for whom a renewal application was submitted during the month]]=\"\",Table14[[#This Row],[3\nTotal: number of parents applying this month]]=\"\"),\"\", MAX(Table14[[#This Row],[3\nTotal: number of parents applying this month]]-(Table14[[#This Row],[1\nNumber of parents for whom a new application was submitted during the month]] + Table14[[#This Row],[2\nNumber of parents for whom a renewal application was submitted during the month]]),0))","v":""},null,null,"",{"$f":"IF(AND(Table14[[#This Row],[4\nNumber of parents newly enrolled to date]]=\"\",Table14[[#This Row],[5\nNumber of parents renewed to date]]=\"\",Table14[[#This Row],[6\nTotal: Number of parents enrolled or renewed to date]]=\"\"),\"\",IF(Table14[[#This Row],[4\nNumber of parents newly enrolled to date]]=\"\",0,Table14[[#This Row],[4\nNumber of parents newly enrolled to date]]))","v":""},{"$f":"IF(AND(Table14[[#This Row],[4\nNumber of parents newly enrolled to date]]=\"\",Table14[[#This Row],[5\nNumber of parents renewed to date]]=\"\",Table14[[#This Row],[6\nTotal: Number of parents enrolled or renewed to date]]=\"\"),\"\",IF(Table14[[#This Row],[5\nNumber of parents renewed to date]]=\"\",0,Table14[[#This Row],[5\nNumber of parents renewed to date]]))","v":""},{"$f":"IF(AND(Table14[[#This Row],[4\nNumber of parents newly enrolled to date]]=\"\", Table14[[#This Row],[5\nNumber of parents renewed to date]]=\"\", Table14[[#This Row],[6\nTotal: Number of parents enrolled or renewed to date]]=\"\"),\"\",MAX(Table14[[#This Row],[6\nTotal: Number of parents enrolled or renewed to date]]-(Table14[[#This Row],[4\nNumber of parents newly enrolled to date]]+Table14[[#This Row],[5\nNumber of parents renewed to date]]),0))","v":""},{"$f":"'Cover sheet'!$D$16","v":0},{"$f":"'Cover sheet'!$D$17","v":0},{"$f":"'Cover sheet'!$D$18","v":""}]
[null,"2022-09-01",null,null,"",{"$f":"IF(AND(Table14[[#This Row],[1\nNumber of parents for whom a new application was submitted during the month]]=\"\",Table14[[#This Row],[2\nNumber of parents for whom a renewal application was submitted during the month]]=\"\",Table14[[#This Row],[3\nTotal: number of parents applying this month]]=\"\"),\"\",IF(Table14[[#This Row],[1\nNumber of parents for whom a new application was submitted during the month]]=\"\",0,Table14[[#This Row],[1\nNumber of parents for whom a new application was submitted during the month]]))","v":""},{"$f":"IF(AND(Table14[[#This Row],[1\nNumber of parents for whom a new application was submitted during the month]]=\"\",Table14[[#This Row],[2\nNumber of parents for whom a renewal application was submitted during the month]]=\"\",Table14[[#This Row],[3\nTotal: number of parents applying this month]]=\"\"),\"\",IF(Table14[[#This Row],[2\nNumber of parents for whom a renewal application was submitted during the month]]=\"\",0,Table14[[#This Row],[2\nNumber of parents for whom a renewal application was submitted during the month]]))","v":""},{"$f":"IF(AND(Table14[[#This Row],[1\nNumber of parents for whom a new application was submitted during the month]]=\"\",Table14[[#This Row],[2\nNumber of parents for whom a renewal application was submitted during the month]]=\"\",Table14[[#This Row],[3\nTotal: number of parents applying this month]]=\"\"),\"\", MAX(Table14[[#This Row],[3\nTotal: number of parents applying this month]]-(Table14[[#This Row],[1\nNumber of parents for whom a new application was submitted during the month]] + Table14[[#This Row],[2\nNumber of parents for whom a renewal application was submitted during the month]]),0))","v":""},null,null,"",{"$f":"IF(AND(Table14[[#This Row],[4\nNumber of parents newly enrolled to date]]=\"\",Table14[[#This Row],[5\nNumber of parents renewed to date]]=\"\",Table14[[#This Row],[6\nTotal: Number of parents enrolled or renewed to date]]=\"\"),\"\",IF(Table14[[#This Row],[4\nNumber of parents newly enrolled to date]]=\"\",0,Table14[[#This Row],[4\nNumber of parents newly enrolled to date]]))","v":""},{"$f":"IF(AND(Table14[[#This Row],[4\nNumber of parents newly enrolled to date]]=\"\",Table14[[#This Row],[5\nNumber of parents renewed to date]]=\"\",Table14[[#This Row],[6\nTotal: Number of parents enrolled or renewed to date]]=\"\"),\"\",IF(Table14[[#This Row],[5\nNumber of parents renewed to date]]=\"\",0,Table14[[#This Row],[5\nNumber of parents renewed to date]]))","v":""},{"$f":"IF(AND(Table14[[#This Row],[4\nNumber of parents newly enrolled to date]]=\"\", Table14[[#This Row],[5\nNumber of parents renewed to date]]=\"\", Table14[[#This Row],[6\nTotal: Number of parents enrolled or renewed to date]]=\"\"),\"\",MAX(Table14[[#This Row],[6\nTotal: Number of parents enrolled or renewed to date]]-(Table14[[#This Row],[4\nNumber of parents newly enrolled to date]]+Table14[[#This Row],[5\nNumber of parents renewed to date]]),0))","v":""},{"$f":"'Cover sheet'!$D$16","v":0},{"$f":"'Cover sheet'!$D$17","v":0},{"$f":"'Cover sheet'!$D$18","v":""}]
[null,"2022-10-01",null,null,"",{"$f":"IF(AND(Table14[[#This Row],[1\nNumber of parents for whom a new application was submitted during the month]]=\"\",Table14[[#This Row],[2\nNumber of parents for whom a renewal application was submitted during the month]]=\"\",Table14[[#This Row],[3\nTotal: number of parents applying this month]]=\"\"),\"\",IF(Table14[[#This Row],[1\nNumber of parents for whom a new application was submitted during the month]]=\"\",0,Table14[[#This Row],[1\nNumber of parents for whom a new application was submitted during the month]]))","v":""},{"$f":"IF(AND(Table14[[#This Row],[1\nNumber of parents for whom a new application was submitted during the month]]=\"\",Table14[[#This Row],[2\nNumber of parents for whom a renewal application was submitted during the month]]=\"\",Table14[[#This Row],[3\nTotal: number of parents applying this month]]=\"\"),\"\",IF(Table14[[#This Row],[2\nNumber of parents for whom a renewal application was submitted during the month]]=\"\",0,Table14[[#This Row],[2\nNumber of parents for whom a renewal application was submitted during the month]]))","v":""},{"$f":"IF(AND(Table14[[#This Row],[1\nNumber of parents for whom a new application was submitted during the month]]=\"\",Table14[[#This Row],[2\nNumber of parents for whom a renewal application was submitted during the month]]=\"\",Table14[[#This Row],[3\nTotal: number of parents applying this month]]=\"\"),\"\", MAX(Table14[[#This Row],[3\nTotal: number of parents applying this month]]-(Table14[[#This Row],[1\nNumber of parents for whom a new application was submitted during the month]] + Table14[[#This Row],[2\nNumber of parents for whom a renewal application was submitted during the month]]),0))","v":""},null,null,"",{"$f":"IF(AND(Table14[[#This Row],[4\nNumber of parents newly enrolled to date]]=\"\",Table14[[#This Row],[5\nNumber of parents renewed to date]]=\"\",Table14[[#This Row],[6\nTotal: Number of parents enrolled or renewed to date]]=\"\"),\"\",IF(Table14[[#This Row],[4\nNumber of parents newly enrolled to date]]=\"\",0,Table14[[#This Row],[4\nNumber of parents newly enrolled to date]]))","v":""},{"$f":"IF(AND(Table14[[#This Row],[4\nNumber of parents newly enrolled to date]]=\"\",Table14[[#This Row],[5\nNumber of parents renewed to date]]=\"\",Table14[[#This Row],[6\nTotal: Number of parents enrolled or renewed to date]]=\"\"),\"\",IF(Table14[[#This Row],[5\nNumber of parents renewed to date]]=\"\",0,Table14[[#This Row],[5\nNumber of parents renewed to date]]))","v":""},{"$f":"IF(AND(Table14[[#This Row],[4\nNumber of parents newly enrolled to date]]=\"\", Table14[[#This Row],[5\nNumber of parents renewed to date]]=\"\", Table14[[#This Row],[6\nTotal: Number of parents enrolled or renewed to date]]=\"\"),\"\",MAX(Table14[[#This Row],[6\nTotal: Number of parents enrolled or renewed to date]]-(Table14[[#This Row],[4\nNumber of parents newly enrolled to date]]+Table14[[#This Row],[5\nNumber of parents renewed to date]]),0))","v":""},{"$f":"'Cover sheet'!$D$16","v":0},{"$f":"'Cover sheet'!$D$17","v":0},{"$f":"'Cover sheet'!$D$18","v":""}]
[null,"2022-11-01",null,null,"",{"$f":"IF(AND(Table14[[#This Row],[1\nNumber of parents for whom a new application was submitted during the month]]=\"\",Table14[[#This Row],[2\nNumber of parents for whom a renewal application was submitted during the month]]=\"\",Table14[[#This Row],[3\nTotal: number of parents applying this month]]=\"\"),\"\",IF(Table14[[#This Row],[1\nNumber of parents for whom a new application was submitted during the month]]=\"\",0,Table14[[#This Row],[1\nNumber of parents for whom a new application was submitted during the month]]))","v":""},{"$f":"IF(AND(Table14[[#This Row],[1\nNumber of parents for whom a new application was submitted during the month]]=\"\",Table14[[#This Row],[2\nNumber of parents for whom a renewal application was submitted during the month]]=\"\",Table14[[#This Row],[3\nTotal: number of parents applying this month]]=\"\"),\"\",IF(Table14[[#This Row],[2\nNumber of parents for whom a renewal application was submitted during the month]]=\"\",0,Table14[[#This Row],[2\nNumber of parents for whom a renewal application was submitted during the month]]))","v":""},{"$f":"IF(AND(Table14[[#This Row],[1\nNumber of parents for whom a new application was submitted during the month]]=\"\",Table14[[#This Row],[2\nNumber of parents for whom a renewal application was submitted during the month]]=\"\",Table14[[#This Row],[3\nTotal: number of parents applying this month]]=\"\"),\"\", MAX(Table14[[#This Row],[3\nTotal: number of parents applying this month]]-(Table14[[#This Row],[1\nNumber of parents for whom a new application was submitted during the month]] + Table14[[#This Row],[2\nNumber of parents for whom a renewal application was submitted during the month]]),0))","v":""},null,null,"",{"$f":"IF(AND(Table14[[#This Row],[4\nNumber of parents newly enrolled to date]]=\"\",Table14[[#This Row],[5\nNumber of parents renewed to date]]=\"\",Table14[[#This Row],[6\nTotal: Number of parents enrolled or renewed to date]]=\"\"),\"\",IF(Table14[[#This Row],[4\nNumber of parents newly enrolled to date]]=\"\",0,Table14[[#This Row],[4\nNumber of parents newly enrolled to date]]))","v":""},{"$f":"IF(AND(Table14[[#This Row],[4\nNumber of parents newly enrolled to date]]=\"\",Table14[[#This Row],[5\nNumber of parents renewed to date]]=\"\",Table14[[#This Row],[6\nTotal: Number of parents enrolled or renewed to date]]=\"\"),\"\",IF(Table14[[#This Row],[5\nNumber of parents renewed to date]]=\"\",0,Table14[[#This Row],[5\nNumber of parents renewed to date]]))","v":""},{"$f":"IF(AND(Table14[[#This Row],[4\nNumber of parents newly enrolled to date]]=\"\", Table14[[#This Row],[5\nNumber of parents renewed to date]]=\"\", Table14[[#This Row],[6\nTotal: Number of parents enrolled or renewed to date]]=\"\"),\"\",MAX(Table14[[#This Row],[6\nTotal: Number of parents enrolled or renewed to date]]-(Table14[[#This Row],[4\nNumber of parents newly enrolled to date]]+Table14[[#This Row],[5\nNumber of parents renewed to date]]),0))","v":""},{"$f":"'Cover sheet'!$D$16","v":0},{"$f":"'Cover sheet'!$D$17","v":0},{"$f":"'Cover sheet'!$D$18","v":""}]
[null,"2022-12-01",null,null,"",{"$f":"IF(AND(Table14[[#This Row],[1\nNumber of parents for whom a new application was submitted during the month]]=\"\",Table14[[#This Row],[2\nNumber of parents for whom a renewal application was submitted during the month]]=\"\",Table14[[#This Row],[3\nTotal: number of parents applying this month]]=\"\"),\"\",IF(Table14[[#This Row],[1\nNumber of parents for whom a new application was submitted during the month]]=\"\",0,Table14[[#This Row],[1\nNumber of parents for whom a new application was submitted during the month]]))","v":""},{"$f":"IF(AND(Table14[[#This Row],[1\nNumber of parents for whom a new application was submitted during the month]]=\"\",Table14[[#This Row],[2\nNumber of parents for whom a renewal application was submitted during the month]]=\"\",Table14[[#This Row],[3\nTotal: number of parents applying this month]]=\"\"),\"\",IF(Table14[[#This Row],[2\nNumber of parents for whom a renewal application was submitted during the month]]=\"\",0,Table14[[#This Row],[2\nNumber of parents for whom a renewal application was submitted during the month]]))","v":""},{"$f":"IF(AND(Table14[[#This Row],[1\nNumber of parents for whom a new application was submitted during the month]]=\"\",Table14[[#This Row],[2\nNumber of parents for whom a renewal application was submitted during the month]]=\"\",Table14[[#This Row],[3\nTotal: number of parents applying this month]]=\"\"),\"\", MAX(Table14[[#This Row],[3\nTotal: number of parents applying this month]]-(Table14[[#This Row],[1\nNumber of parents for whom a new application was submitted during the month]] + Table14[[#This Row],[2\nNumber of parents for whom a renewal application was submitted during the month]]),0))","v":""},null,null,"",{"$f":"IF(AND(Table14[[#This Row],[4\nNumber of parents newly enrolled to date]]=\"\",Table14[[#This Row],[5\nNumber of parents renewed to date]]=\"\",Table14[[#This Row],[6\nTotal: Number of parents enrolled or renewed to date]]=\"\"),\"\",IF(Table14[[#This Row],[4\nNumber of parents newly enrolled to date]]=\"\",0,Table14[[#This Row],[4\nNumber of parents newly enrolled to date]]))","v":""},{"$f":"IF(AND(Table14[[#This Row],[4\nNumber of parents newly enrolled to date]]=\"\",Table14[[#This Row],[5\nNumber of parents renewed to date]]=\"\",Table14[[#This Row],[6\nTotal: Number of parents enrolled or renewed to date]]=\"\"),\"\",IF(Table14[[#This Row],[5\nNumber of parents renewed to date]]=\"\",0,Table14[[#This Row],[5\nNumber of parents renewed to date]]))","v":""},{"$f":"IF(AND(Table14[[#This Row],[4\nNumber of parents newly enrolled to date]]=\"\", Table14[[#This Row],[5\nNumber of parents renewed to date]]=\"\", Table14[[#This Row],[6\nTotal: Number of parents enrolled or renewed to date]]=\"\"),\"\",MAX(Table14[[#This Row],[6\nTotal: Number of parents enrolled or renewed to date]]-(Table14[[#This Row],[4\nNumber of parents newly enrolled to date]]+Table14[[#This Row],[5\nNumber of parents renewed to date]]),0))","v":""},{"$f":"'Cover sheet'!$D$16","v":0},{"$f":"'Cover sheet'!$D$17","v":0},{"$f":"'Cover sheet'!$D$18","v":""}]
[null,"2023-01-01",null,null,"",{"$f":"IF(AND(Table14[[#This Row],[1\nNumber of parents for whom a new application was submitted during the month]]=\"\",Table14[[#This Row],[2\nNumber of parents for whom a renewal application was submitted during the month]]=\"\",Table14[[#This Row],[3\nTotal: number of parents applying this month]]=\"\"),\"\",IF(Table14[[#This Row],[1\nNumber of parents for whom a new application was submitted during the month]]=\"\",0,Table14[[#This Row],[1\nNumber of parents for whom a new application was submitted during the month]]))","v":""},{"$f":"IF(AND(Table14[[#This Row],[1\nNumber of parents for whom a new application was submitted during the month]]=\"\",Table14[[#This Row],[2\nNumber of parents for whom a renewal application was submitted during the month]]=\"\",Table14[[#This Row],[3\nTotal: number of parents applying this month]]=\"\"),\"\",IF(Table14[[#This Row],[2\nNumber of parents for whom a renewal application was submitted during the month]]=\"\",0,Table14[[#This Row],[2\nNumber of parents for whom a renewal application was submitted during the month]]))","v":""},{"$f":"IF(AND(Table14[[#This Row],[1\nNumber of parents for whom a new application was submitted during the month]]=\"\",Table14[[#This Row],[2\nNumber of parents for whom a renewal application was submitted during the month]]=\"\",Table14[[#This Row],[3\nTotal: number of parents applying this month]]=\"\"),\"\", MAX(Table14[[#This Row],[3\nTotal: number of parents applying this month]]-(Table14[[#This Row],[1\nNumber of parents for whom a new application was submitted during the month]] + Table14[[#This Row],[2\nNumber of parents for whom a renewal application was submitted during the month]]),0))","v":""},null,null,"",{"$f":"IF(AND(Table14[[#This Row],[4\nNumber of parents newly enrolled to date]]=\"\",Table14[[#This Row],[5\nNumber of parents renewed to date]]=\"\",Table14[[#This Row],[6\nTotal: Number of parents enrolled or renewed to date]]=\"\"),\"\",IF(Table14[[#This Row],[4\nNumber of parents newly enrolled to date]]=\"\",0,Table14[[#This Row],[4\nNumber of parents newly enrolled to date]]))","v":""},{"$f":"IF(AND(Table14[[#This Row],[4\nNumber of parents newly enrolled to date]]=\"\",Table14[[#This Row],[5\nNumber of parents renewed to date]]=\"\",Table14[[#This Row],[6\nTotal: Number of parents enrolled or renewed to date]]=\"\"),\"\",IF(Table14[[#This Row],[5\nNumber of parents renewed to date]]=\"\",0,Table14[[#This Row],[5\nNumber of parents renewed to date]]))","v":""},{"$f":"IF(AND(Table14[[#This Row],[4\nNumber of parents newly enrolled to date]]=\"\", Table14[[#This Row],[5\nNumber of parents renewed to date]]=\"\", Table14[[#This Row],[6\nTotal: Number of parents enrolled or renewed to date]]=\"\"),\"\",MAX(Table14[[#This Row],[6\nTotal: Number of parents enrolled or renewed to date]]-(Table14[[#This Row],[4\nNumber of parents newly enrolled to date]]+Table14[[#This Row],[5\nNumber of parents renewed to date]]),0))","v":""},{"$f":"'Cover sheet'!$D$16","v":0},{"$f":"'Cover sheet'!$D$17","v":0},{"$f":"'Cover sheet'!$D$18","v":""}]
[null,"2023-02-01",null,null,"",{"$f":"IF(AND(Table14[[#This Row],[1\nNumber of parents for whom a new application was submitted during the month]]=\"\",Table14[[#This Row],[2\nNumber of parents for whom a renewal application was submitted during the month]]=\"\",Table14[[#This Row],[3\nTotal: number of parents applying this month]]=\"\"),\"\",IF(Table14[[#This Row],[1\nNumber of parents for whom a new application was submitted during the month]]=\"\",0,Table14[[#This Row],[1\nNumber of parents for whom a new application was submitted during the month]]))","v":""},{"$f":"IF(AND(Table14[[#This Row],[1\nNumber of parents for whom a new application was submitted during the month]]=\"\",Table14[[#This Row],[2\nNumber of parents for whom a renewal application was submitted during the month]]=\"\",Table14[[#This Row],[3\nTotal: number of parents applying this month]]=\"\"),\"\",IF(Table14[[#This Row],[2\nNumber of parents for whom a renewal application was submitted during the month]]=\"\",0,Table14[[#This Row],[2\nNumber of parents for whom a renewal application was submitted during the month]]))","v":""},{"$f":"IF(AND(Table14[[#This Row],[1\nNumber of parents for whom a new application was submitted during the month]]=\"\",Table14[[#This Row],[2\nNumber of parents for whom a renewal application was submitted during the month]]=\"\",Table14[[#This Row],[3\nTotal: number of parents applying this month]]=\"\"),\"\", MAX(Table14[[#This Row],[3\nTotal: number of parents applying this month]]-(Table14[[#This Row],[1\nNumber of parents for whom a new application was submitted during the month]] + Table14[[#This Row],[2\nNumber of parents for whom a renewal application was submitted during the month]]),0))","v":""},null,null,"",{"$f":"IF(AND(Table14[[#This Row],[4\nNumber of parents newly enrolled to date]]=\"\",Table14[[#This Row],[5\nNumber of parents renewed to date]]=\"\",Table14[[#This Row],[6\nTotal: Number of parents enrolled or renewed to date]]=\"\"),\"\",IF(Table14[[#This Row],[4\nNumber of parents newly enrolled to date]]=\"\",0,Table14[[#This Row],[4\nNumber of parents newly enrolled to date]]))","v":""},{"$f":"IF(AND(Table14[[#This Row],[4\nNumber of parents newly enrolled to date]]=\"\",Table14[[#This Row],[5\nNumber of parents renewed to date]]=\"\",Table14[[#This Row],[6\nTotal: Number of parents enrolled or renewed to date]]=\"\"),\"\",IF(Table14[[#This Row],[5\nNumber of parents renewed to date]]=\"\",0,Table14[[#This Row],[5\nNumber of parents renewed to date]]))","v":""},{"$f":"IF(AND(Table14[[#This Row],[4\nNumber of parents newly enrolled to date]]=\"\", Table14[[#This Row],[5\nNumber of parents renewed to date]]=\"\", Table14[[#This Row],[6\nTotal: Number of parents enrolled or renewed to date]]=\"\"),\"\",MAX(Table14[[#This Row],[6\nTotal: Number of parents enrolled or renewed to date]]-(Table14[[#This Row],[4\nNumber of parents newly enrolled to date]]+Table14[[#This Row],[5\nNumber of parents renewed to date]]),0))","v":""},{"$f":"'Cover sheet'!$D$16","v":0},{"$f":"'Cover sheet'!$D$17","v":0},{"$f":"'Cover sheet'!$D$18","v":""}]
[null,"2023-03-01",null,null,"",{"$f":"IF(AND(Table14[[#This Row],[1\nNumber of parents for whom a new application was submitted during the month]]=\"\",Table14[[#This Row],[2\nNumber of parents for whom a renewal application was submitted during the month]]=\"\",Table14[[#This Row],[3\nTotal: number of parents applying this month]]=\"\"),\"\",IF(Table14[[#This Row],[1\nNumber of parents for whom a new application was submitted during the month]]=\"\",0,Table14[[#This Row],[1\nNumber of parents for whom a new application was submitted during the month]]))","v":""},{"$f":"IF(AND(Table14[[#This Row],[1\nNumber of parents for whom a new application was submitted during the month]]=\"\",Table14[[#This Row],[2\nNumber of parents for whom a renewal application was submitted during the month]]=\"\",Table14[[#This Row],[3\nTotal: number of parents applying this month]]=\"\"),\"\",IF(Table14[[#This Row],[2\nNumber of parents for whom a renewal application was submitted during the month]]=\"\",0,Table14[[#This Row],[2\nNumber of parents for whom a renewal application was submitted during the month]]))","v":""},{"$f":"IF(AND(Table14[[#This Row],[1\nNumber of parents for whom a new application was submitted during the month]]=\"\",Table14[[#This Row],[2\nNumber of parents for whom a renewal application was submitted during the month]]=\"\",Table14[[#This Row],[3\nTotal: number of parents applying this month]]=\"\"),\"\", MAX(Table14[[#This Row],[3\nTotal: number of parents applying this month]]-(Table14[[#This Row],[1\nNumber of parents for whom a new application was submitted during the month]] + Table14[[#This Row],[2\nNumber of parents for whom a renewal application was submitted during the month]]),0))","v":""},null,null,"",{"$f":"IF(AND(Table14[[#This Row],[4\nNumber of parents newly enrolled to date]]=\"\",Table14[[#This Row],[5\nNumber of parents renewed to date]]=\"\",Table14[[#This Row],[6\nTotal: Number of parents enrolled or renewed to date]]=\"\"),\"\",IF(Table14[[#This Row],[4\nNumber of parents newly enrolled to date]]=\"\",0,Table14[[#This Row],[4\nNumber of parents newly enrolled to date]]))","v":""},{"$f":"IF(AND(Table14[[#This Row],[4\nNumber of parents newly enrolled to date]]=\"\",Table14[[#This Row],[5\nNumber of parents renewed to date]]=\"\",Table14[[#This Row],[6\nTotal: Number of parents enrolled or renewed to date]]=\"\"),\"\",IF(Table14[[#This Row],[5\nNumber of parents renewed to date]]=\"\",0,Table14[[#This Row],[5\nNumber of parents renewed to date]]))","v":""},{"$f":"IF(AND(Table14[[#This Row],[4\nNumber of parents newly enrolled to date]]=\"\", Table14[[#This Row],[5\nNumber of parents renewed to date]]=\"\", Table14[[#This Row],[6\nTotal: Number of parents enrolled or renewed to date]]=\"\"),\"\",MAX(Table14[[#This Row],[6\nTotal: Number of parents enrolled or renewed to date]]-(Table14[[#This Row],[4\nNumber of parents newly enrolled to date]]+Table14[[#This Row],[5\nNumber of parents renewed to date]]),0))","v":""},{"$f":"'Cover sheet'!$D$16","v":0},{"$f":"'Cover sheet'!$D$17","v":0},{"$f":"'Cover sheet'!$D$18","v":""}]
[null,"2023-04-01",null,null,"",{"$f":"IF(AND(Table14[[#This Row],[1\nNumber of parents for whom a new application was submitted during the month]]=\"\",Table14[[#This Row],[2\nNumber of parents for whom a renewal application was submitted during the month]]=\"\",Table14[[#This Row],[3\nTotal: number of parents applying this month]]=\"\"),\"\",IF(Table14[[#This Row],[1\nNumber of parents for whom a new application was submitted during the month]]=\"\",0,Table14[[#This Row],[1\nNumber of parents for whom a new application was submitted during the month]]))","v":""},{"$f":"IF(AND(Table14[[#This Row],[1\nNumber of parents for whom a new application was submitted during the month]]=\"\",Table14[[#This Row],[2\nNumber of parents for whom a renewal application was submitted during the month]]=\"\",Table14[[#This Row],[3\nTotal: number of parents applying this month]]=\"\"),\"\",IF(Table14[[#This Row],[2\nNumber of parents for whom a renewal application was submitted during the month]]=\"\",0,Table14[[#This Row],[2\nNumber of parents for whom a renewal application was submitted during the month]]))","v":""},{"$f":"IF(AND(Table14[[#This Row],[1\nNumber of parents for whom a new application was submitted during the month]]=\"\",Table14[[#This Row],[2\nNumber of parents for whom a renewal application was submitted during the month]]=\"\",Table14[[#This Row],[3\nTotal: number of parents applying this month]]=\"\"),\"\", MAX(Table14[[#This Row],[3\nTotal: number of parents applying this month]]-(Table14[[#This Row],[1\nNumber of parents for whom a new application was submitted during the month]] + Table14[[#This Row],[2\nNumber of parents for whom a renewal application was submitted during the month]]),0))","v":""},null,null,"",{"$f":"IF(AND(Table14[[#This Row],[4\nNumber of parents newly enrolled to date]]=\"\",Table14[[#This Row],[5\nNumber of parents renewed to date]]=\"\",Table14[[#This Row],[6\nTotal: Number of parents enrolled or renewed to date]]=\"\"),\"\",IF(Table14[[#This Row],[4\nNumber of parents newly enrolled to date]]=\"\",0,Table14[[#This Row],[4\nNumber of parents newly enrolled to date]]))","v":""},{"$f":"IF(AND(Table14[[#This Row],[4\nNumber of parents newly enrolled to date]]=\"\",Table14[[#This Row],[5\nNumber of parents renewed to date]]=\"\",Table14[[#This Row],[6\nTotal: Number of parents enrolled or renewed to date]]=\"\"),\"\",IF(Table14[[#This Row],[5\nNumber of parents renewed to date]]=\"\",0,Table14[[#This Row],[5\nNumber of parents renewed to date]]))","v":""},{"$f":"IF(AND(Table14[[#This Row],[4\nNumber of parents newly enrolled to date]]=\"\", Table14[[#This Row],[5\nNumber of parents renewed to date]]=\"\", Table14[[#This Row],[6\nTotal: Number of parents enrolled or renewed to date]]=\"\"),\"\",MAX(Table14[[#This Row],[6\nTotal: Number of parents enrolled or renewed to date]]-(Table14[[#This Row],[4\nNumber of parents newly enrolled to date]]+Table14[[#This Row],[5\nNumber of parents renewed to date]]),0))","v":""},{"$f":"'Cover sheet'!$D$16","v":0},{"$f":"'Cover sheet'!$D$17","v":0},{"$f":"'Cover sheet'!$D$18","v":""}]
[null,"2023-05-01",null,null,"",{"$f":"IF(AND(Table14[[#This Row],[1\nNumber of parents for whom a new application was submitted during the month]]=\"\",Table14[[#This Row],[2\nNumber of parents for whom a renewal application was submitted during the month]]=\"\",Table14[[#This Row],[3\nTotal: number of parents applying this month]]=\"\"),\"\",IF(Table14[[#This Row],[1\nNumber of parents for whom a new application was submitted during the month]]=\"\",0,Table14[[#This Row],[1\nNumber of parents for whom a new application was submitted during the month]]))","v":""},{"$f":"IF(AND(Table14[[#This Row],[1\nNumber of parents for whom a new application was submitted during the month]]=\"\",Table14[[#This Row],[2\nNumber of parents for whom a renewal application was submitted during the month]]=\"\",Table14[[#This Row],[3\nTotal: number of parents applying this month]]=\"\"),\"\",IF(Table14[[#This Row],[2\nNumber of parents for whom a renewal application was submitted during the month]]=\"\",0,Table14[[#This Row],[2\nNumber of parents for whom a renewal application was submitted during the month]]))","v":""},{"$f":"IF(AND(Table14[[#This Row],[1\nNumber of parents for whom a new application was submitted during the month]]=\"\",Table14[[#This Row],[2\nNumber of parents for whom a renewal application was submitted during the month]]=\"\",Table14[[#This Row],[3\nTotal: number of parents applying this month]]=\"\"),\"\", MAX(Table14[[#This Row],[3\nTotal: number of parents applying this month]]-(Table14[[#This Row],[1\nNumber of parents for whom a new application was submitted during the month]] + Table14[[#This Row],[2\nNumber of parents for whom a renewal application was submitted during the month]]),0))","v":""},null,null,"",{"$f":"IF(AND(Table14[[#This Row],[4\nNumber of parents newly enrolled to date]]=\"\",Table14[[#This Row],[5\nNumber of parents renewed to date]]=\"\",Table14[[#This Row],[6\nTotal: Number of parents enrolled or renewed to date]]=\"\"),\"\",IF(Table14[[#This Row],[4\nNumber of parents newly enrolled to date]]=\"\",0,Table14[[#This Row],[4\nNumber of parents newly enrolled to date]]))","v":""},{"$f":"IF(AND(Table14[[#This Row],[4\nNumber of parents newly enrolled to date]]=\"\",Table14[[#This Row],[5\nNumber of parents renewed to date]]=\"\",Table14[[#This Row],[6\nTotal: Number of parents enrolled or renewed to date]]=\"\"),\"\",IF(Table14[[#This Row],[5\nNumber of parents renewed to date]]=\"\",0,Table14[[#This Row],[5\nNumber of parents renewed to date]]))","v":""},{"$f":"IF(AND(Table14[[#This Row],[4\nNumber of parents newly enrolled to date]]=\"\", Table14[[#This Row],[5\nNumber of parents renewed to date]]=\"\", Table14[[#This Row],[6\nTotal: Number of parents enrolled or renewed to date]]=\"\"),\"\",MAX(Table14[[#This Row],[6\nTotal: Number of parents enrolled or renewed to date]]-(Table14[[#This Row],[4\nNumber of parents newly enrolled to date]]+Table14[[#This Row],[5\nNumber of parents renewed to date]]),0))","v":""},{"$f":"'Cover sheet'!$D$16","v":0},{"$f":"'Cover sheet'!$D$17","v":0},{"$f":"'Cover sheet'!$D$18","v":""}]
[null,"2023-06-01",null,null,"",{"$f":"IF(AND(Table14[[#This Row],[1\nNumber of parents for whom a new application was submitted during the month]]=\"\",Table14[[#This Row],[2\nNumber of parents for whom a renewal application was submitted during the month]]=\"\",Table14[[#This Row],[3\nTotal: number of parents applying this month]]=\"\"),\"\",IF(Table14[[#This Row],[1\nNumber of parents for whom a new application was submitted during the month]]=\"\",0,Table14[[#This Row],[1\nNumber of parents for whom a new application was submitted during the month]]))","v":""},{"$f":"IF(AND(Table14[[#This Row],[1\nNumber of parents for whom a new application was submitted during the month]]=\"\",Table14[[#This Row],[2\nNumber of parents for whom a renewal application was submitted during the month]]=\"\",Table14[[#This Row],[3\nTotal: number of parents applying this month]]=\"\"),\"\",IF(Table14[[#This Row],[2\nNumber of parents for whom a renewal application was submitted during the month]]=\"\",0,Table14[[#This Row],[2\nNumber of parents for whom a renewal application was submitted during the month]]))","v":""},{"$f":"IF(AND(Table14[[#This Row],[1\nNumber of parents for whom a new application was submitted during the month]]=\"\",Table14[[#This Row],[2\nNumber of parents for whom a renewal application was submitted during the month]]=\"\",Table14[[#This Row],[3\nTotal: number of parents applying this month]]=\"\"),\"\", MAX(Table14[[#This Row],[3\nTotal: number of parents applying this month]]-(Table14[[#This Row],[1\nNumber of parents for whom a new application was submitted during the month]] + Table14[[#This Row],[2\nNumber of parents for whom a renewal application was submitted during the month]]),0))","v":""},null,null,"",{"$f":"IF(AND(Table14[[#This Row],[4\nNumber of parents newly enrolled to date]]=\"\",Table14[[#This Row],[5\nNumber of parents renewed to date]]=\"\",Table14[[#This Row],[6\nTotal: Number of parents enrolled or renewed to date]]=\"\"),\"\",IF(Table14[[#This Row],[4\nNumber of parents newly enrolled to date]]=\"\",0,Table14[[#This Row],[4\nNumber of parents newly enrolled to date]]))","v":""},{"$f":"IF(AND(Table14[[#This Row],[4\nNumber of parents newly enrolled to date]]=\"\",Table14[[#This Row],[5\nNumber of parents renewed to date]]=\"\",Table14[[#This Row],[6\nTotal: Number of parents enrolled or renewed to date]]=\"\"),\"\",IF(Table14[[#This Row],[5\nNumber of parents renewed to date]]=\"\",0,Table14[[#This Row],[5\nNumber of parents renewed to date]]))","v":""},{"$f":"IF(AND(Table14[[#This Row],[4\nNumber of parents newly enrolled to date]]=\"\", Table14[[#This Row],[5\nNumber of parents renewed to date]]=\"\", Table14[[#This Row],[6\nTotal: Number of parents enrolled or renewed to date]]=\"\"),\"\",MAX(Table14[[#This Row],[6\nTotal: Number of parents enrolled or renewed to date]]-(Table14[[#This Row],[4\nNumber of parents newly enrolled to date]]+Table14[[#This Row],[5\nNumber of parents renewed to date]]),0))","v":""},{"$f":"'Cover sheet'!$D$16","v":0},{"$f":"'Cover sheet'!$D$17","v":0},{"$f":"'Cover sheet'!$D$18","v":""}]

{"sheet":"Parent dash support","index":7,"n_rows":14,"n_cols":4,"rows_kept":14,"hidden":true}
[]
[null,"Pie chart"]
[null,"Percentage of target achieved",{"$f":"$D$3/$D$4","v":{"$error":"#VALUE!"}},{"$f":"OFFSET('C. Parent data'!$K$13,COUNT('C. Parent data'!$K:$K)-1,0,-1,1)","v":0}]
[null,"Remaining progress needed",{"$f":"IF($C$3<1,1-$C$3,0)","v":{"$error":"#VALUE!"}},{"$f":"'Cover sheet'!$D$18","v":""}]
[]
[null,"Enrollments figure series names"]
[null,"Number of parents newly enrolled to date"]
[null,"Number of parents renewed to date"]
[null,"New/ renewal breakdown not available"]
[]
[null,"Applications bar series names"]
[null,"Number of parents with new applications"]
[null,"Number of parents with renewal applications"]
[null,"New/ renewal breakdown not available"]

{"sheet":"D. Parent dashboard","index":8,"n_rows":0,"n_cols":0,"rows_kept":0}

{"sheet":"E. Main activities","index":9,"n_rows":6,"n_cols":6,"rows_kept":6,"merged":[[2,1,2,2]]}
[null,"Tab E. Major activities, achievements, challenges, and help topics this month"]
[]
[null,"Instructions: Describe 1 - 6 major activities, achievements and challenges that you experienced on this grant project during the current reporting period. Enter up to 6 topics that you would like help with. Each cell is limited to 1,000 characters."]
[]
[null,"Table E.1 Major activities, achievements and challenges",null,null,"Table E.2. Help topics"]
[null,"Major activities, achievements and challenges","Description/details",null,"I need help with…","Description/details"]